Workbook

Sheet STAFFETTE 3X800 Master
C1: MANIFESTAZIONE | F1: LOCALITA' | I1: SOCIETA' ORGANIZZATRICE
C2: 6° prova provinciale | F2: Tezze sul Brenta | I2: CSI Tezze sul Brenta
A3: CATEGORIA | C3: ORA INIZIO | D3: ORA FINE | F3: GARA | I3: DATA
A4: MASTER | F4: STAFFETTA 3 X 800 | I4: 2017-09-24
A6: N. tessera | B6: ATLETA COGNOME E NOME | D6: SOCIETA' | E6: NASCITA | F6: CATEGORIA | G6: Corsia | H6: PETTORALE | I6: Tempo | J6: Piazzamento | K6: PUNTI | L6: CL.
A8: 1 SERIE | B8: =IF(ISERROR(VLOOKUP(A8,tesserati[],2,FALSE)),"",VLOOKUP(A8,tesserati[],2,FALSE)) ->  | C8: =IF(ISERROR(VLOOKUP(A8,tesserati[],3,FALSE)),"",VLOOKUP(A8,tesserati[],3,FALSE)) ->  | D8: =IF(ISERROR(VLOOKUP(#REF!,tesserati[],5,FALSE)),"",VLOOKUP(#REF!,tesserati[],5,FALSE)) ->  | E8: =IF(ISERROR(VLOOKUP(A8,tesserati[],4,FALSE)),"",VLOOKUP(A8,tesserati[],4,FALSE)) ->  | F8: =IF(ISERROR(VLOOKUP(A8,tesserati[],7,FALSE)),"",VLOOKUP(A8,tesserati[],7,FALSE)) -> 
A9: 4754 | B9: =IF(ISERROR(VLOOKUP(A9,tesserati[],2,FALSE)),"",VLOOKUP(A9,tesserati[],2,FALSE)) -> SPILLER | C9: =IF(ISERROR(VLOOKUP(A9,tesserati[],3,FALSE)),"",VLOOKUP(A9,tesserati[],3,FALSE)) -> CRISTIANO | D9: =IF(ISERROR(VLOOKUP(A9,tesserati[],4,FALSE)),"",VLOOKUP(A9,tesserati[],4,FALSE)) -> ATLETICA UNION CREAZZO | E9: =IF(ISERROR(VLOOKUP(A9,tesserati[],5,FALSE)),"",VLOOKUP(A9,tesserati[],5,FALSE)) -> 1977 | F9: =IF(ISERROR(VLOOKUP(A9,tesserati[],7,FALSE)),"",VLOOKUP(A9,tesserati[],7,FALSE)) -> AAM | H9: 68 | I9: 7,05.8 | J9: 1
A10: 1958 | B10: =IF(ISERROR(VLOOKUP(A10,tesserati[],2,FALSE)),"",VLOOKUP(A10,tesserati[],2,FALSE)) -> MAZZI | C10: =IF(ISERROR(VLOOKUP(A10,tesserati[],3,FALSE)),"",VLOOKUP(A10,tesserati[],3,FALSE)) -> ALEX | D10: =IF(ISERROR(VLOOKUP(A10,tesserati[],4,FALSE)),"",VLOOKUP(A10,tesserati[],4,FALSE)) -> ATLETICA UNION CREAZZO | E10: =IF(ISERROR(VLOOKUP(A10,tesserati[],5,FALSE)),"",VLOOKUP(A10,tesserati[],5,FALSE)) -> 1977 | F10: =IF(ISERROR(VLOOKUP(A10,tesserati[],7,FALSE)),"",VLOOKUP(A10,tesserati[],7,FALSE)) -> AAM
A11: 1960 | B11: =IF(ISERROR(VLOOKUP(A11,tesserati[],2,FALSE)),"",VLOOKUP(A11,tesserati[],2,FALSE)) -> MICHELETTO | C11: =IF(ISERROR(VLOOKUP(A11,tesserati[],3,FALSE)),"",VLOOKUP(A11,tesserati[],3,FALSE)) -> FABRIZIO | D11: =IF(ISERROR(VLOOKUP(A11,tesserati[],4,FALSE)),"",VLOOKUP(A11,tesserati[],4,FALSE)) -> ATLETICA UNION CREAZZO | E11: =IF(ISERROR(VLOOKUP(A11,tesserati[],5,FALSE)),"",VLOOKUP(A11,tesserati[],5,FALSE)) -> 1972 | F11: =IF(ISERROR(VLOOKUP(A11,tesserati[],7,FALSE)),"",VLOOKUP(A11,tesserati[],7,FALSE)) -> ABM
B12: =IF(ISERROR(VLOOKUP(A12,tesserati[],2,FALSE)),"",VLOOKUP(A12,tesserati[],2,FALSE)) ->  | C12: =IF(ISERROR(VLOOKUP(A12,tesserati[],3,FALSE)),"",VLOOKUP(A12,tesserati[],3,FALSE)) ->  | D12: =IF(ISERROR(VLOOKUP(A12,tesserati[],4,FALSE)),"",VLOOKUP(A12,tesserati[],4,FALSE)) ->  | E12: =IF(ISERROR(VLOOKUP(A12,tesserati[],5,FALSE)),"",VLOOKUP(A12,tesserati[],5,FALSE)) ->  | F12: =IF(ISERROR(VLOOKUP(A12,tesserati[],7,FALSE)),"",VLOOKUP(A12,tesserati[],7,FALSE)) -> 
A13: 1954 | B13: =IF(ISERROR(VLOOKUP(A13,tesserati[],2,FALSE)),"",VLOOKUP(A13,tesserati[],2,FALSE)) -> FINETTO | C13: =IF(ISERROR(VLOOKUP(A13,tesserati[],3,FALSE)),"",VLOOKUP(A13,tesserati[],3,FALSE)) -> ALFONSO | D13: =IF(ISERROR(VLOOKUP(A13,tesserati[],4,FALSE)),"",VLOOKUP(A13,tesserati[],4,FALSE)) -> ATLETICA UNION CREAZZO | E13: =IF(ISERROR(VLOOKUP(A13,tesserati[],5,FALSE)),"",VLOOKUP(A13,tesserati[],5,FALSE)) -> 1968 | F13: =IF(ISERROR(VLOOKUP(A13,tesserati[],7,FALSE)),"",VLOOKUP(A13,tesserati[],7,FALSE)) -> ABM | H13: 496 | I13: 7,58.2 | J13: 2
A14: 2959 | B14: =IF(ISERROR(VLOOKUP(A14,tesserati[],2,FALSE)),"",VLOOKUP(A14,tesserati[],2,FALSE)) -> CATTANI | C14: =IF(ISERROR(VLOOKUP(A14,tesserati[],3,FALSE)),"",VLOOKUP(A14,tesserati[],3,FALSE)) -> MASSIMILIANO | D14: =IF(ISERROR(VLOOKUP(A14,tesserati[],4,FALSE)),"",VLOOKUP(A14,tesserati[],4,FALSE)) -> ATLETICA UNION CREAZZO | E14: =IF(ISERROR(VLOOKUP(A14,tesserati[],5,FALSE)),"",VLOOKUP(A14,tesserati[],5,FALSE)) -> 1970 | F14: =IF(ISERROR(VLOOKUP(A14,tesserati[],7,FALSE)),"",VLOOKUP(A14,tesserati[],7,FALSE)) -> ABM
A15: 3018 | B15: =IF(ISERROR(VLOOKUP(A15,tesserati[],2,FALSE)),"",VLOOKUP(A15,tesserati[],2,FALSE)) -> OLIVIERO | C15: =IF(ISERROR(VLOOKUP(A15,tesserati[],3,FALSE)),"",VLOOKUP(A15,tesserati[],3,FALSE)) -> ANDREA | D15: =IF(ISERROR(VLOOKUP(A15,tesserati[],4,FALSE)),"",VLOOKUP(A15,tesserati[],4,FALSE)) -> ATLETICA UNION CREAZZO | E15: =IF(ISERROR(VLOOKUP(A15,tesserati[],5,FALSE)),"",VLOOKUP(A15,tesserati[],5,FALSE)) -> 1973 | F15: =IF(ISERROR(VLOOKUP(A15,tesserati[],7,FALSE)),"",VLOOKUP(A15,tesserati[],7,FALSE)) -> AAM
B16: =IF(ISERROR(VLOOKUP(A16,tesserati[],2,FALSE)),"",VLOOKUP(A16,tesserati[],2,FALSE)) ->  | C16: =IF(ISERROR(VLOOKUP(A16,tesserati[],3,FALSE)),"",VLOOKUP(A16,tesserati[],3,FALSE)) ->  | D16: =IF(ISERROR(VLOOKUP(A16,tesserati[],4,FALSE)),"",VLOOKUP(A16,tesserati[],4,FALSE)) ->  | E16: =IF(ISERROR(VLOOKUP(A16,tesserati[],5,FALSE)),"",VLOOKUP(A16,tesserati[],5,FALSE)) ->  | F16: =IF(ISERROR(VLOOKUP(A16,tesserati[],7,FALSE)),"",VLOOKUP(A16,tesserati[],7,FALSE)) -> 
B17: =IF(ISERROR(VLOOKUP(A17,tesserati[],2,FALSE)),"",VLOOKUP(A17,tesserati[],2,FALSE)) ->  | C17: =IF(ISERROR(VLOOKUP(A17,tesserati[],3,FALSE)),"",VLOOKUP(A17,tesserati[],3,FALSE)) ->  | D17: =IF(ISERROR(VLOOKUP(A17,tesserati[],4,FALSE)),"",VLOOKUP(A17,tesserati[],4,FALSE)) ->  | E17: =IF(ISERROR(VLOOKUP(A17,tesserati[],5,FALSE)),"",VLOOKUP(A17,tesserati[],5,FALSE)) ->  | F17: =IF(ISERROR(VLOOKUP(A17,tesserati[],7,FALSE)),"",VLOOKUP(A17,tesserati[],7,FALSE)) -> 
B18: =IF(ISERROR(VLOOKUP(A18,tesserati[],2,FALSE)),"",VLOOKUP(A18,tesserati[],2,FALSE)) ->  | C18: =IF(ISERROR(VLOOKUP(A18,tesserati[],3,FALSE)),"",VLOOKUP(A18,tesserati[],3,FALSE)) ->  | D18: =IF(ISERROR(VLOOKUP(A18,tesserati[],4,FALSE)),"",VLOOKUP(A18,tesserati[],4,FALSE)) ->  | E18: =IF(ISERROR(VLOOKUP(A18,tesserati[],5,FALSE)),"",VLOOKUP(A18,tesserati[],5,FALSE)) ->  | F18: =IF(ISERROR(VLOOKUP(A18,tesserati[],7,FALSE)),"",VLOOKUP(A18,tesserati[],7,FALSE)) -> 
B19: =IF(ISERROR(VLOOKUP(A19,tesserati[],2,FALSE)),"",VLOOKUP(A19,tesserati[],2,FALSE)) ->  | C19: =IF(ISERROR(VLOOKUP(A19,tesserati[],3,FALSE)),"",VLOOKUP(A19,tesserati[],3,FALSE)) ->  | D19: =IF(ISERROR(VLOOKUP(A19,tesserati[],4,FALSE)),"",VLOOKUP(A19,tesserati[],4,FALSE)) ->  | E19: =IF(ISERROR(VLOOKUP(A19,tesserati[],5,FALSE)),"",VLOOKUP(A19,tesserati[],5,FALSE)) ->  | F19: =IF(ISERROR(VLOOKUP(A19,tesserati[],7,FALSE)),"",VLOOKUP(A19,tesserati[],7,FALSE)) -> 
B20: =IF(ISERROR(VLOOKUP(A20,tesserati[],2,FALSE)),"",VLOOKUP(A20,tesserati[],2,FALSE)) ->  | C20: =IF(ISERROR(VLOOKUP(A20,tesserati[],3,FALSE)),"",VLOOKUP(A20,tesserati[],3,FALSE)) ->  | D20: =IF(ISERROR(VLOOKUP(A20,tesserati[],4,FALSE)),"",VLOOKUP(A20,tesserati[],4,FALSE)) ->  | E20: =IF(ISERROR(VLOOKUP(A20,tesserati[],5,FALSE)),"",VLOOKUP(A20,tesserati[],5,FALSE)) ->  | F20: =IF(ISERROR(VLOOKUP(A20,tesserati[],7,FALSE)),"",VLOOKUP(A20,tesserati[],7,FALSE)) -> 
B21: =IF(ISERROR(VLOOKUP(A21,tesserati[],2,FALSE)),"",VLOOKUP(A21,tesserati[],2,FALSE)) ->  | C21: =IF(ISERROR(VLOOKUP(A21,tesserati[],3,FALSE)),"",VLOOKUP(A21,tesserati[],3,FALSE)) ->  | D21: =IF(ISERROR(VLOOKUP(A21,tesserati[],4,FALSE)),"",VLOOKUP(A21,tesserati[],4,FALSE)) ->  | E21: =IF(ISERROR(VLOOKUP(A21,tesserati[],5,FALSE)),"",VLOOKUP(A21,tesserati[],5,FALSE)) ->  | F21: =IF(ISERROR(VLOOKUP(A21,tesserati[],7,FALSE)),"",VLOOKUP(A21,tesserati[],7,FALSE)) -> 
B22: =IF(ISERROR(VLOOKUP(A22,tesserati[],2,FALSE)),"",VLOOKUP(A22,tesserati[],2,FALSE)) ->  | C22: =IF(ISERROR(VLOOKUP(A22,tesserati[],3,FALSE)),"",VLOOKUP(A22,tesserati[],3,FALSE)) ->  | D22: =IF(ISERROR(VLOOKUP(A22,tesserati[],4,FALSE)),"",VLOOKUP(A22,tesserati[],4,FALSE)) ->  | E22: =IF(ISERROR(VLOOKUP(A22,tesserati[],5,FALSE)),"",VLOOKUP(A22,tesserati[],5,FALSE)) ->  | F22: =IF(ISERROR(VLOOKUP(A22,tesserati[],7,FALSE)),"",VLOOKUP(A22,tesserati[],7,FALSE)) -> 
B23: =IF(ISERROR(VLOOKUP(A23,tesserati[],2,FALSE)),"",VLOOKUP(A23,tesserati[],2,FALSE)) ->  | C23: =IF(ISERROR(VLOOKUP(A23,tesserati[],3,FALSE)),"",VLOOKUP(A23,tesserati[],3,FALSE)) ->  | D23: =IF(ISERROR(VLOOKUP(A23,tesserati[],4,FALSE)),"",VLOOKUP(A23,tesserati[],4,FALSE)) ->  | E23: =IF(ISERROR(VLOOKUP(A23,tesserati[],5,FALSE)),"",VLOOKUP(A23,tesserati[],5,FALSE)) ->  | F23: =IF(ISERROR(VLOOKUP(A23,tesserati[],7,FALSE)),"",VLOOKUP(A23,tesserati[],7,FALSE)) -> 
B24: =IF(ISERROR(VLOOKUP(A24,tesserati[],2,FALSE)),"",VLOOKUP(A24,tesserati[],2,FALSE)) ->  | C24: =IF(ISERROR(VLOOKUP(A24,tesserati[],3,FALSE)),"",VLOOKUP(A24,tesserati[],3,FALSE)) ->  | D24: =IF(ISERROR(VLOOKUP(A24,tesserati[],4,FALSE)),"",VLOOKUP(A24,tesserati[],4,FALSE)) ->  | E24: =IF(ISERROR(VLOOKUP(A24,tesserati[],5,FALSE)),"",VLOOKUP(A24,tesserati[],5,FALSE)) ->  | F24: =IF(ISERROR(VLOOKUP(A24,tesserati[],7,FALSE)),"",VLOOKUP(A24,tesserati[],7,FALSE)) -> 
B25: =IF(ISERROR(VLOOKUP(A25,tesserati[],2,FALSE)),"",VLOOKUP(A25,tesserati[],2,FALSE)) ->  | C25: =IF(ISERROR(VLOOKUP(A25,tesserati[],3,FALSE)),"",VLOOKUP(A25,tesserati[],3,FALSE)) ->  | D25: =IF(ISERROR(VLOOKUP(A25,tesserati[],4,FALSE)),"",VLOOKUP(A25,tesserati[],4,FALSE)) ->  | E25: =IF(ISERROR(VLOOKUP(A25,tesserati[],5,FALSE)),"",VLOOKUP(A25,tesserati[],5,FALSE)) ->  | F25: =IF(ISERROR(VLOOKUP(A25,tesserati[],7,FALSE)),"",VLOOKUP(A25,tesserati[],7,FALSE)) -> 
B26: =IF(ISERROR(VLOOKUP(A26,tesserati[],2,FALSE)),"",VLOOKUP(A26,tesserati[],2,FALSE)) ->  | C26: =IF(ISERROR(VLOOKUP(A26,tesserati[],3,FALSE)),"",VLOOKUP(A26,tesserati[],3,FALSE)) ->  | D26: =IF(ISERROR(VLOOKUP(A26,tesserati[],4,FALSE)),"",VLOOKUP(A26,tesserati[],4,FALSE)) ->  | E26: =IF(ISERROR(VLOOKUP(A26,tesserati[],5,FALSE)),"",VLOOKUP(A26,tesserati[],5,FALSE)) ->  | F26: =IF(ISERROR(VLOOKUP(A26,tesserati[],7,FALSE)),"",VLOOKUP(A26,tesserati[],7,FALSE)) -> 
B27: =IF(ISERROR(VLOOKUP(A27,tesserati[],2,FALSE)),"",VLOOKUP(A27,tesserati[],2,FALSE)) ->  | C27: =IF(ISERROR(VLOOKUP(A27,tesserati[],3,FALSE)),"",VLOOKUP(A27,tesserati[],3,FALSE)) ->  | D27: =IF(ISERROR(VLOOKUP(A27,tesserati[],4,FALSE)),"",VLOOKUP(A27,tesserati[],4,FALSE)) ->  | E27: =IF(ISERROR(VLOOKUP(A27,tesserati[],5,FALSE)),"",VLOOKUP(A27,tesserati[],5,FALSE)) ->  | F27: =IF(ISERROR(VLOOKUP(A27,tesserati[],7,FALSE)),"",VLOOKUP(A27,tesserati[],7,FALSE)) -> 
B28: =IF(ISERROR(VLOOKUP(A28,tesserati[],2,FALSE)),"",VLOOKUP(A28,tesserati[],2,FALSE)) ->  | C28: =IF(ISERROR(VLOOKUP(A28,tesserati[],3,FALSE)),"",VLOOKUP(A28,tesserati[],3,FALSE)) ->  | D28: =IF(ISERROR(VLOOKUP(A28,tesserati[],4,FALSE)),"",VLOOKUP(A28,tesserati[],4,FALSE)) ->  | E28: =IF(ISERROR(VLOOKUP(A28,tesserati[],5,FALSE)),"",VLOOKUP(A28,tesserati[],5,FALSE)) ->  | F28: =IF(ISERROR(VLOOKUP(A28,tesserati[],7,FALSE)),"",VLOOKUP(A28,tesserati[],7,FALSE)) -> 
B29: =IF(ISERROR(VLOOKUP(A29,tesserati[],2,FALSE)),"",VLOOKUP(A29,tesserati[],2,FALSE)) ->  | C29: =IF(ISERROR(VLOOKUP(A29,tesserati[],3,FALSE)),"",VLOOKUP(A29,tesserati[],3,FALSE)) ->  | D29: =IF(ISERROR(VLOOKUP(A29,tesserati[],4,FALSE)),"",VLOOKUP(A29,tesserati[],4,FALSE)) ->  | E29: =IF(ISERROR(VLOOKUP(A29,tesserati[],5,FALSE)),"",VLOOKUP(A29,tesserati[],5,FALSE)) ->  | F29: =IF(ISERROR(VLOOKUP(A29,tesserati[],7,FALSE)),"",VLOOKUP(A29,tesserati[],7,FALSE)) -> 
B30: =IF(ISERROR(VLOOKUP(A30,tesserati[],2,FALSE)),"",VLOOKUP(A30,tesserati[],2,FALSE)) ->  | C30: =IF(ISERROR(VLOOKUP(A30,tesserati[],3,FALSE)),"",VLOOKUP(A30,tesserati[],3,FALSE)) ->  | D30: =IF(ISERROR(VLOOKUP(A30,tesserati[],4,FALSE)),"",VLOOKUP(A30,tesserati[],4,FALSE)) ->  | E30: =IF(ISERROR(VLOOKUP(A30,tesserati[],5,FALSE)),"",VLOOKUP(A30,tesserati[],5,FALSE)) ->  | F30: =IF(ISERROR(VLOOKUP(A30,tesserati[],7,FALSE)),"",VLOOKUP(A30,tesserati[],7,FALSE)) -> 
B31: =IF(ISERROR(VLOOKUP(A31,tesserati[],2,FALSE)),"",VLOOKUP(A31,tesserati[],2,FALSE)) ->  | C31: =IF(ISERROR(VLOOKUP(A31,tesserati[],3,FALSE)),"",VLOOKUP(A31,tesserati[],3,FALSE)) ->  | D31: =IF(ISERROR(VLOOKUP(A31,tesserati[],4,FALSE)),"",VLOOKUP(A31,tesserati[],4,FALSE)) ->  | E31: =IF(ISERROR(VLOOKUP(A31,tesserati[],5,FALSE)),"",VLOOKUP(A31,tesserati[],5,FALSE)) ->  | F31: =IF(ISERROR(VLOOKUP(A31,tesserati[],7,FALSE)),"",VLOOKUP(A31,tesserati[],7,FALSE)) -> 
B32: =IF(ISERROR(VLOOKUP(A32,tesserati[],2,FALSE)),"",VLOOKUP(A32,tesserati[],2,FALSE)) ->  | C32: =IF(ISERROR(VLOOKUP(A32,tesserati[],3,FALSE)),"",VLOOKUP(A32,tesserati[],3,FALSE)) ->  | D32: =IF(ISERROR(VLOOKUP(A32,tesserati[],4,FALSE)),"",VLOOKUP(A32,tesserati[],4,FALSE)) ->  | E32: =IF(ISERROR(VLOOKUP(A32,tesserati[],5,FALSE)),"",VLOOKUP(A32,tesserati[],5,FALSE)) ->  | F32: =IF(ISERROR(VLOOKUP(A32,tesserati[],7,FALSE)),"",VLOOKUP(A32,tesserati[],7,FALSE)) -> 
A33: 2 SERIE
B34: =IF(ISERROR(VLOOKUP(A34,tesserati[],2,FALSE)),"",VLOOKUP(A34,tesserati[],2,FALSE)) ->  | C34: =IF(ISERROR(VLOOKUP(A34,tesserati[],3,FALSE)),"",VLOOKUP(A34,tesserati[],3,FALSE)) ->  | D34: =IF(ISERROR(VLOOKUP(A34,tesserati[],4,FALSE)),"",VLOOKUP(A34,tesserati[],4,FALSE)) ->  | E34: =IF(ISERROR(VLOOKUP(A34,tesserati[],5,FALSE)),"",VLOOKUP(A34,tesserati[],5,FALSE)) ->  | F34: =IF(ISERROR(VLOOKUP(A34,tesserati[],7,FALSE)),"",VLOOKUP(A34,tesserati[],7,FALSE)) ->  | G34: 1
B35: =IF(ISERROR(VLOOKUP(A35,tesserati[],2,FALSE)),"",VLOOKUP(A35,tesserati[],2,FALSE)) ->  | C35: =IF(ISERROR(VLOOKUP(A35,tesserati[],3,FALSE)),"",VLOOKUP(A35,tesserati[],3,FALSE)) ->  | D35: =IF(ISERROR(VLOOKUP(A35,tesserati[],4,FALSE)),"",VLOOKUP(A35,tesserati[],4,FALSE)) ->  | E35: =IF(ISERROR(VLOOKUP(A35,tesserati[],5,FALSE)),"",VLOOKUP(A35,tesserati[],5,FALSE)) ->  | F35: =IF(ISERROR(VLOOKUP(A35,tesserati[],7,FALSE)),"",VLOOKUP(A35,tesserati[],7,FALSE)) -> 
B36: =IF(ISERROR(VLOOKUP(A36,tesserati[],2,FALSE)),"",VLOOKUP(A36,tesserati[],2,FALSE)) ->  | C36: =IF(ISERROR(VLOOKUP(A36,tesserati[],3,FALSE)),"",VLOOKUP(A36,tesserati[],3,FALSE)) ->  | D36: =IF(ISERROR(VLOOKUP(A36,tesserati[],4,FALSE)),"",VLOOKUP(A36,tesserati[],4,FALSE)) ->  | E36: =IF(ISERROR(VLOOKUP(A36,tesserati[],5,FALSE)),"",VLOOKUP(A36,tesserati[],5,FALSE)) ->  | F36: =IF(ISERROR(VLOOKUP(A36,tesserati[],7,FALSE)),"",VLOOKUP(A36,tesserati[],7,FALSE)) -> 
B37: =IF(ISERROR(VLOOKUP(A37,tesserati[],2,FALSE)),"",VLOOKUP(A37,tesserati[],2,FALSE)) ->  | C37: =IF(ISERROR(VLOOKUP(A37,tesserati[],3,FALSE)),"",VLOOKUP(A37,tesserati[],3,FALSE)) ->  | D37: =IF(ISERROR(VLOOKUP(A37,tesserati[],4,FALSE)),"",VLOOKUP(A37,tesserati[],4,FALSE)) ->  | E37: =IF(ISERROR(VLOOKUP(A37,tesserati[],5,FALSE)),"",VLOOKUP(A37,tesserati[],5,FALSE)) ->  | F37: =IF(ISERROR(VLOOKUP(A37,tesserati[],7,FALSE)),"",VLOOKUP(A37,tesserati[],7,FALSE)) -> 
B38: =IF(ISERROR(VLOOKUP(A38,tesserati[],2,FALSE)),"",VLOOKUP(A38,tesserati[],2,FALSE)) ->  | C38: =IF(ISERROR(VLOOKUP(A38,tesserati[],3,FALSE)),"",VLOOKUP(A38,tesserati[],3,FALSE)) ->  | D38: =IF(ISERROR(VLOOKUP(A38,tesserati[],4,FALSE)),"",VLOOKUP(A38,tesserati[],4,FALSE)) ->  | E38: =IF(ISERROR(VLOOKUP(A38,tesserati[],5,FALSE)),"",VLOOKUP(A38,tesserati[],5,FALSE)) ->  | F38: =IF(ISERROR(VLOOKUP(A38,tesserati[],7,FALSE)),"",VLOOKUP(A38,tesserati[],7,FALSE)) ->  | G38: 2
B39: =IF(ISERROR(VLOOKUP(A39,tesserati[],2,FALSE)),"",VLOOKUP(A39,tesserati[],2,FALSE)) ->  | C39: =IF(ISERROR(VLOOKUP(A39,tesserati[],3,FALSE)),"",VLOOKUP(A39,tesserati[],3,FALSE)) ->  | D39: =IF(ISERROR(VLOOKUP(A39,tesserati[],4,FALSE)),"",VLOOKUP(A39,tesserati[],4,FALSE)) ->  | E39: =IF(ISERROR(VLOOKUP(A39,tesserati[],5,FALSE)),"",VLOOKUP(A39,tesserati[],5,FALSE)) ->  | F39: =IF(ISERROR(VLOOKUP(A39,tesserati[],7,FALSE)),"",VLOOKUP(A39,tesserati[],7,FALSE)) -> 
B40: =IF(ISERROR(VLOOKUP(A40,tesserati[],2,FALSE)),"",VLOOKUP(A40,tesserati[],2,FALSE)) ->  | C40: =IF(ISERROR(VLOOKUP(A40,tesserati[],3,FALSE)),"",VLOOKUP(A40,tesserati[],3,FALSE)) ->  | D40: =IF(ISERROR(VLOOKUP(A40,tesserati[],4,FALSE)),"",VLOOKUP(A40,tesserati[],4,FALSE)) ->  | E40: =IF(ISERROR(VLOOKUP(A40,tesserati[],5,FALSE)),"",VLOOKUP(A40,tesserati[],5,FALSE)) ->  | F40: =IF(ISERROR(VLOOKUP(A40,tesserati[],7,FALSE)),"",VLOOKUP(A40,tesserati[],7,FALSE)) -> 
B41: =IF(ISERROR(VLOOKUP(A41,tesserati[],2,FALSE)),"",VLOOKUP(A41,tesserati[],2,FALSE)) ->  | C41: =IF(ISERROR(VLOOKUP(A41,tesserati[],3,FALSE)),"",VLOOKUP(A41,tesserati[],3,FALSE)) ->  | D41: =IF(ISERROR(VLOOKUP(A41,tesserati[],4,FALSE)),"",VLOOKUP(A41,tesserati[],4,FALSE)) ->  | E41: =IF(ISERROR(VLOOKUP(A41,tesserati[],5,FALSE)),"",VLOOKUP(A41,tesserati[],5,FALSE)) ->  | F41: =IF(ISERROR(VLOOKUP(A41,tesserati[],7,FALSE)),"",VLOOKUP(A41,tesserati[],7,FALSE)) -> 
B42: =IF(ISERROR(VLOOKUP(A42,tesserati[],2,FALSE)),"",VLOOKUP(A42,tesserati[],2,FALSE)) ->  | C42: =IF(ISERROR(VLOOKUP(A42,tesserati[],3,FALSE)),"",VLOOKUP(A42,tesserati[],3,FALSE)) ->  | D42: =IF(ISERROR(VLOOKUP(A42,tesserati[],4,FALSE)),"",VLOOKUP(A42,tesserati[],4,FALSE)) ->  | E42: =IF(ISERROR(VLOOKUP(A42,tesserati[],5,FALSE)),"",VLOOKUP(A42,tesserati[],5,FALSE)) ->  | F42: =IF(ISERROR(VLOOKUP(A42,tesserati[],7,FALSE)),"",VLOOKUP(A42,tesserati[],7,FALSE)) ->  | G42: 3
B43: =IF(ISERROR(VLOOKUP(A43,tesserati[],2,FALSE)),"",VLOOKUP(A43,tesserati[],2,FALSE)) ->  | C43: =IF(ISERROR(VLOOKUP(A43,tesserati[],3,FALSE)),"",VLOOKUP(A43,tesserati[],3,FALSE)) ->  | D43: =IF(ISERROR(VLOOKUP(A43,tesserati[],4,FALSE)),"",VLOOKUP(A43,tesserati[],4,FALSE)) ->  | E43: =IF(ISERROR(VLOOKUP(A43,tesserati[],5,FALSE)),"",VLOOKUP(A43,tesserati[],5,FALSE)) ->  | F43: =IF(ISERROR(VLOOKUP(A43,tesserati[],7,FALSE)),"",VLOOKUP(A43,tesserati[],7,FALSE)) -> 
B44: =IF(ISERROR(VLOOKUP(A44,tesserati[],2,FALSE)),"",VLOOKUP(A44,tesserati[],2,FALSE)) ->  | C44: =IF(ISERROR(VLOOKUP(A44,tesserati[],3,FALSE)),"",VLOOKUP(A44,tesserati[],3,FALSE)) ->  | D44: =IF(ISERROR(VLOOKUP(A44,tesserati[],4,FALSE)),"",VLOOKUP(A44,tesserati[],4,FALSE)) ->  | E44: =IF(ISERROR(VLOOKUP(A44,tesserati[],5,FALSE)),"",VLOOKUP(A44,tesserati[],5,FALSE)) ->  | F44: =IF(ISERROR(VLOOKUP(A44,tesserati[],7,FALSE)),"",VLOOKUP(A44,tesserati[],7,FALSE)) -> 
B45: =IF(ISERROR(VLOOKUP(A45,tesserati[],2,FALSE)),"",VLOOKUP(A45,tesserati[],2,FALSE)) ->  | C45: =IF(ISERROR(VLOOKUP(A45,tesserati[],3,FALSE)),"",VLOOKUP(A45,tesserati[],3,FALSE)) ->  | D45: =IF(ISERROR(VLOOKUP(A45,tesserati[],4,FALSE)),"",VLOOKUP(A45,tesserati[],4,FALSE)) ->  | E45: =IF(ISERROR(VLOOKUP(A45,tesserati[],5,FALSE)),"",VLOOKUP(A45,tesserati[],5,FALSE)) ->  | F45: =IF(ISERROR(VLOOKUP(A45,tesserati[],7,FALSE)),"",VLOOKUP(A45,tesserati[],7,FALSE)) -> 
B46: =IF(ISERROR(VLOOKUP(A46,tesserati[],2,FALSE)),"",VLOOKUP(A46,tesserati[],2,FALSE)) ->  | C46: =IF(ISERROR(VLOOKUP(A46,tesserati[],3,FALSE)),"",VLOOKUP(A46,tesserati[],3,FALSE)) ->  | D46: =IF(ISERROR(VLOOKUP(A46,tesserati[],4,FALSE)),"",VLOOKUP(A46,tesserati[],4,FALSE)) ->  | E46: =IF(ISERROR(VLOOKUP(A46,tesserati[],5,FALSE)),"",VLOOKUP(A46,tesserati[],5,FALSE)) ->  | F46: =IF(ISERROR(VLOOKUP(A46,tesserati[],7,FALSE)),"",VLOOKUP(A46,tesserati[],7,FALSE)) ->  | G46: 4
B47: =IF(ISERROR(VLOOKUP(A47,tesserati[],2,FALSE)),"",VLOOKUP(A47,tesserati[],2,FALSE)) ->  | C47: =IF(ISERROR(VLOOKUP(A47,tesserati[],3,FALSE)),"",VLOOKUP(A47,tesserati[],3,FALSE)) ->  | D47: =IF(ISERROR(VLOOKUP(A47,tesserati[],4,FALSE)),"",VLOOKUP(A47,tesserati[],4,FALSE)) ->  | E47: =IF(ISERROR(VLOOKUP(A47,tesserati[],5,FALSE)),"",VLOOKUP(A47,tesserati[],5,FALSE)) ->  | F47: =IF(ISERROR(VLOOKUP(A47,tesserati[],7,FALSE)),"",VLOOKUP(A47,tesserati[],7,FALSE)) -> 
B48: =IF(ISERROR(VLOOKUP(A48,tesserati[],2,FALSE)),"",VLOOKUP(A48,tesserati[],2,FALSE)) ->  | C48: =IF(ISERROR(VLOOKUP(A48,tesserati[],3,FALSE)),"",VLOOKUP(A48,tesserati[],3,FALSE)) ->  | D48: =IF(ISERROR(VLOOKUP(A48,tesserati[],4,FALSE)),"",VLOOKUP(A48,tesserati[],4,FALSE)) ->  | E48: =IF(ISERROR(VLOOKUP(A48,tesserati[],5,FALSE)),"",VLOOKUP(A48,tesserati[],5,FALSE)) ->  | F48: =IF(ISERROR(VLOOKUP(A48,tesserati[],7,FALSE)),"",VLOOKUP(A48,tesserati[],7,FALSE)) -> 
B49: =IF(ISERROR(VLOOKUP(A49,tesserati[],2,FALSE)),"",VLOOKUP(A49,tesserati[],2,FALSE)) ->  | C49: =IF(ISERROR(VLOOKUP(A49,tesserati[],3,FALSE)),"",VLOOKUP(A49,tesserati[],3,FALSE)) ->  | D49: =IF(ISERROR(VLOOKUP(A49,tesserati[],4,FALSE)),"",VLOOKUP(A49,tesserati[],4,FALSE)) ->  | E49: =IF(ISERROR(VLOOKUP(A49,tesserati[],5,FALSE)),"",VLOOKUP(A49,tesserati[],5,FALSE)) ->  | F49: =IF(ISERROR(VLOOKUP(A49,tesserati[],7,FALSE)),"",VLOOKUP(A49,tesserati[],7,FALSE)) -> 
B50: =IF(ISERROR(VLOOKUP(A50,tesserati[],2,FALSE)),"",VLOOKUP(A50,tesserati[],2,FALSE)) ->  | C50: =IF(ISERROR(VLOOKUP(A50,tesserati[],3,FALSE)),"",VLOOKUP(A50,tesserati[],3,FALSE)) ->  | D50: =IF(ISERROR(VLOOKUP(A50,tesserati[],4,FALSE)),"",VLOOKUP(A50,tesserati[],4,FALSE)) ->  | E50: =IF(ISERROR(VLOOKUP(A50,tesserati[],5,FALSE)),"",VLOOKUP(A50,tesserati[],5,FALSE)) ->  | F50: =IF(ISERROR(VLOOKUP(A50,tesserati[],7,FALSE)),"",VLOOKUP(A50,tesserati[],7,FALSE)) ->  | G50: 5
B51: =IF(ISERROR(VLOOKUP(A51,tesserati[],2,FALSE)),"",VLOOKUP(A51,tesserati[],2,FALSE)) ->  | C51: =IF(ISERROR(VLOOKUP(A51,tesserati[],3,FALSE)),"",VLOOKUP(A51,tesserati[],3,FALSE)) ->  | D51: =IF(ISERROR(VLOOKUP(A51,tesserati[],4,FALSE)),"",VLOOKUP(A51,tesserati[],4,FALSE)) ->  | E51: =IF(ISERROR(VLOOKUP(A51,tesserati[],5,FALSE)),"",VLOOKUP(A51,tesserati[],5,FALSE)) ->  | F51: =IF(ISERROR(VLOOKUP(A51,tesserati[],7,FALSE)),"",VLOOKUP(A51,tesserati[],7,FALSE)) -> 
B52: =IF(ISERROR(VLOOKUP(A52,tesserati[],2,FALSE)),"",VLOOKUP(A52,tesserati[],2,FALSE)) ->  | C52: =IF(ISERROR(VLOOKUP(A52,tesserati[],3,FALSE)),"",VLOOKUP(A52,tesserati[],3,FALSE)) ->  | D52: =IF(ISERROR(VLOOKUP(A52,tesserati[],4,FALSE)),"",VLOOKUP(A52,tesserati[],4,FALSE)) ->  | E52: =IF(ISERROR(VLOOKUP(A52,tesserati[],5,FALSE)),"",VLOOKUP(A52,tesserati[],5,FALSE)) ->  | F52: =IF(ISERROR(VLOOKUP(A52,tesserati[],7,FALSE)),"",VLOOKUP(A52,tesserati[],7,FALSE)) -> 
B53: =IF(ISERROR(VLOOKUP(A53,tesserati[],2,FALSE)),"",VLOOKUP(A53,tesserati[],2,FALSE)) ->  | C53: =IF(ISERROR(VLOOKUP(A53,tesserati[],3,FALSE)),"",VLOOKUP(A53,tesserati[],3,FALSE)) ->  | D53: =IF(ISERROR(VLOOKUP(A53,tesserati[],4,FALSE)),"",VLOOKUP(A53,tesserati[],4,FALSE)) ->  | E53: =IF(ISERROR(VLOOKUP(A53,tesserati[],5,FALSE)),"",VLOOKUP(A53,tesserati[],5,FALSE)) ->  | F53: =IF(ISERROR(VLOOKUP(A53,tesserati[],7,FALSE)),"",VLOOKUP(A53,tesserati[],7,FALSE)) -> 
B54: =IF(ISERROR(VLOOKUP(A54,tesserati[],2,FALSE)),"",VLOOKUP(A54,tesserati[],2,FALSE)) ->  | C54: =IF(ISERROR(VLOOKUP(A54,tesserati[],3,FALSE)),"",VLOOKUP(A54,tesserati[],3,FALSE)) ->  | D54: =IF(ISERROR(VLOOKUP(A54,tesserati[],4,FALSE)),"",VLOOKUP(A54,tesserati[],4,FALSE)) ->  | E54: =IF(ISERROR(VLOOKUP(A54,tesserati[],5,FALSE)),"",VLOOKUP(A54,tesserati[],5,FALSE)) ->  | F54: =IF(ISERROR(VLOOKUP(A54,tesserati[],7,FALSE)),"",VLOOKUP(A54,tesserati[],7,FALSE)) ->  | G54: 6
B55: =IF(ISERROR(VLOOKUP(A55,tesserati[],2,FALSE)),"",VLOOKUP(A55,tesserati[],2,FALSE)) ->  | C55: =IF(ISERROR(VLOOKUP(A55,tesserati[],3,FALSE)),"",VLOOKUP(A55,tesserati[],3,FALSE)) ->  | D55: =IF(ISERROR(VLOOKUP(A55,tesserati[],4,FALSE)),"",VLOOKUP(A55,tesserati[],4,FALSE)) ->  | E55: =IF(ISERROR(VLOOKUP(A55,tesserati[],5,FALSE)),"",VLOOKUP(A55,tesserati[],5,FALSE)) ->  | F55: =IF(ISERROR(VLOOKUP(A55,tesserati[],7,FALSE)),"",VLOOKUP(A55,tesserati[],7,FALSE)) -> 
B56: =IF(ISERROR(VLOOKUP(A56,tesserati[],2,FALSE)),"",VLOOKUP(A56,tesserati[],2,FALSE)) ->  | C56: =IF(ISERROR(VLOOKUP(A56,tesserati[],3,FALSE)),"",VLOOKUP(A56,tesserati[],3,FALSE)) ->  | D56: =IF(ISERROR(VLOOKUP(A56,tesserati[],4,FALSE)),"",VLOOKUP(A56,tesserati[],4,FALSE)) ->  | E56: =IF(ISERROR(VLOOKUP(A56,tesserati[],5,FALSE)),"",VLOOKUP(A56,tesserati[],5,FALSE)) ->  | F56: =IF(ISERROR(VLOOKUP(A56,tesserati[],7,FALSE)),"",VLOOKUP(A56,tesserati[],7,FALSE)) -> 
B57: =IF(ISERROR(VLOOKUP(A57,tesserati[],2,FALSE)),"",VLOOKUP(A57,tesserati[],2,FALSE)) ->  | C57: =IF(ISERROR(VLOOKUP(A57,tesserati[],3,FALSE)),"",VLOOKUP(A57,tesserati[],3,FALSE)) ->  | D57: =IF(ISERROR(VLOOKUP(A57,tesserati[],4,FALSE)),"",VLOOKUP(A57,tesserati[],4,FALSE)) ->  | E57: =IF(ISERROR(VLOOKUP(A57,tesserati[],5,FALSE)),"",VLOOKUP(A57,tesserati[],5,FALSE)) ->  | F57: =IF(ISERROR(VLOOKUP(A57,tesserati[],7,FALSE)),"",VLOOKUP(A57,tesserati[],7,FALSE)) -> 
B58: =IF(ISERROR(VLOOKUP(A58,tesserati[],2,FALSE)),"",VLOOKUP(A58,tesserati[],2,FALSE)) ->  | C58: =IF(ISERROR(VLOOKUP(A58,tesserati[],3,FALSE)),"",VLOOKUP(A58,tesserati[],3,FALSE)) ->  | D58: =IF(ISERROR(VLOOKUP(A58,tesserati[],4,FALSE)),"",VLOOKUP(A58,tesserati[],4,FALSE)) ->  | E58: =IF(ISERROR(VLOOKUP(A58,tesserati[],5,FALSE)),"",VLOOKUP(A58,tesserati[],5,FALSE)) ->  | F58: =IF(ISERROR(VLOOKUP(A58,tesserati[],7,FALSE)),"",VLOOKUP(A58,tesserati[],7,FALSE)) -> 
B59: =IF(ISERROR(VLOOKUP(A59,tesserati[],2,FALSE)),"",VLOOKUP(A59,tesserati[],2,FALSE)) ->  | C59: =IF(ISERROR(VLOOKUP(A59,tesserati[],3,FALSE)),"",VLOOKUP(A59,tesserati[],3,FALSE)) ->  | D59: =IF(ISERROR(VLOOKUP(A59,tesserati[],4,FALSE)),"",VLOOKUP(A59,tesserati[],4,FALSE)) ->  | E59: =IF(ISERROR(VLOOKUP(A59,tesserati[],5,FALSE)),"",VLOOKUP(A59,tesserati[],5,FALSE)) ->  | F59: =IF(ISERROR(VLOOKUP(A59,tesserati[],7,FALSE)),"",VLOOKUP(A59,tesserati[],7,FALSE)) -> 
B60: =IF(ISERROR(VLOOKUP(A60,tesserati[],2,FALSE)),"",VLOOKUP(A60,tesserati[],2,FALSE)) ->  | C60: =IF(ISERROR(VLOOKUP(A60,tesserati[],3,FALSE)),"",VLOOKUP(A60,tesserati[],3,FALSE)) ->  | D60: =IF(ISERROR(VLOOKUP(A60,tesserati[],4,FALSE)),"",VLOOKUP(A60,tesserati[],4,FALSE)) ->  | E60: =IF(ISERROR(VLOOKUP(A60,tesserati[],5,FALSE)),"",VLOOKUP(A60,tesserati[],5,FALSE)) ->  | F60: =IF(ISERROR(VLOOKUP(A60,tesserati[],7,FALSE)),"",VLOOKUP(A60,tesserati[],7,FALSE)) -> 
B61: =IF(ISERROR(VLOOKUP(A61,tesserati[],2,FALSE)),"",VLOOKUP(A61,tesserati[],2,FALSE)) ->  | C61: =IF(ISERROR(VLOOKUP(A61,tesserati[],3,FALSE)),"",VLOOKUP(A61,tesserati[],3,FALSE)) ->  | D61: =IF(ISERROR(VLOOKUP(A61,tesserati[],4,FALSE)),"",VLOOKUP(A61,tesserati[],4,FALSE)) ->  | E61: =IF(ISERROR(VLOOKUP(A61,tesserati[],5,FALSE)),"",VLOOKUP(A61,tesserati[],5,FALSE)) ->  | F61: =IF(ISERROR(VLOOKUP(A61,tesserati[],7,FALSE)),"",VLOOKUP(A61,tesserati[],7,FALSE)) -> 
B62: =IF(ISERROR(VLOOKUP(A62,tesserati[],2,FALSE)),"",VLOOKUP(A62,tesserati[],2,FALSE)) ->  | C62: =IF(ISERROR(VLOOKUP(A62,tesserati[],3,FALSE)),"",VLOOKUP(A62,tesserati[],3,FALSE)) ->  | D62: =IF(ISERROR(VLOOKUP(A62,tesserati[],4,FALSE)),"",VLOOKUP(A62,tesserati[],4,FALSE)) ->  | E62: =IF(ISERROR(VLOOKUP(A62,tesserati[],5,FALSE)),"",VLOOKUP(A62,tesserati[],5,FALSE)) ->  | F62: =IF(ISERROR(VLOOKUP(A62,tesserati[],7,FALSE)),"",VLOOKUP(A62,tesserati[],7,FALSE)) -> 
B63: =IF(ISERROR(VLOOKUP(A63,tesserati[],2,FALSE)),"",VLOOKUP(A63,tesserati[],2,FALSE)) ->  | C63: =IF(ISERROR(VLOOKUP(A63,tesserati[],3,FALSE)),"",VLOOKUP(A63,tesserati[],3,FALSE)) ->  | D63: =IF(ISERROR(VLOOKUP(A63,tesserati[],4,FALSE)),"",VLOOKUP(A63,tesserati[],4,FALSE)) ->  | E63: =IF(ISERROR(VLOOKUP(A63,tesserati[],5,FALSE)),"",VLOOKUP(A63,tesserati[],5,FALSE)) ->  | F63: =IF(ISERROR(VLOOKUP(A63,tesserati[],7,FALSE)),"",VLOOKUP(A63,tesserati[],7,FALSE)) -> 
B64: =IF(ISERROR(VLOOKUP(A64,tesserati[],2,FALSE)),"",VLOOKUP(A64,tesserati[],2,FALSE)) ->  | C64: =IF(ISERROR(VLOOKUP(A64,tesserati[],3,FALSE)),"",VLOOKUP(A64,tesserati[],3,FALSE)) ->  | D64: =IF(ISERROR(VLOOKUP(A64,tesserati[],4,FALSE)),"",VLOOKUP(A64,tesserati[],4,FALSE)) ->  | E64: =IF(ISERROR(VLOOKUP(A64,tesserati[],5,FALSE)),"",VLOOKUP(A64,tesserati[],5,FALSE)) ->  | F64: =IF(ISERROR(VLOOKUP(A64,tesserati[],7,FALSE)),"",VLOOKUP(A64,tesserati[],7,FALSE)) -> 
B65: =IF(ISERROR(VLOOKUP(A65,tesserati[],2,FALSE)),"",VLOOKUP(A65,tesserati[],2,FALSE)) ->  | C65: =IF(ISERROR(VLOOKUP(A65,tesserati[],3,FALSE)),"",VLOOKUP(A65,tesserati[],3,FALSE)) ->  | D65: =IF(ISERROR(VLOOKUP(A65,tesserati[],4,FALSE)),"",VLOOKUP(A65,tesserati[],4,FALSE)) ->  | E65: =IF(ISERROR(VLOOKUP(A65,tesserati[],5,FALSE)),"",VLOOKUP(A65,tesserati[],5,FALSE)) ->  | F65: =IF(ISERROR(VLOOKUP(A65,tesserati[],7,FALSE)),"",VLOOKUP(A65,tesserati[],7,FALSE)) -> 
B66: =IF(ISERROR(VLOOKUP(A66,tesserati[],2,FALSE)),"",VLOOKUP(A66,tesserati[],2,FALSE)) ->  | C66: =IF(ISERROR(VLOOKUP(A66,tesserati[],3,FALSE)),"",VLOOKUP(A66,tesserati[],3,FALSE)) ->  | D66: =IF(ISERROR(VLOOKUP(A66,tesserati[],4,FALSE)),"",VLOOKUP(A66,tesserati[],4,FALSE)) ->  | E66: =IF(ISERROR(VLOOKUP(A66,tesserati[],5,FALSE)),"",VLOOKUP(A66,tesserati[],5,FALSE)) ->  | F66: =IF(ISERROR(VLOOKUP(A66,tesserati[],7,FALSE)),"",VLOOKUP(A66,tesserati[],7,FALSE)) -> 
B67: =IF(ISERROR(VLOOKUP(A67,tesserati[],2,FALSE)),"",VLOOKUP(A67,tesserati[],2,FALSE)) ->  | C67: =IF(ISERROR(VLOOKUP(A67,tesserati[],3,FALSE)),"",VLOOKUP(A67,tesserati[],3,FALSE)) ->  | D67: =IF(ISERROR(VLOOKUP(A67,tesserati[],4,FALSE)),"",VLOOKUP(A67,tesserati[],4,FALSE)) ->  | E67: =IF(ISERROR(VLOOKUP(A67,tesserati[],5,FALSE)),"",VLOOKUP(A67,tesserati[],5,FALSE)) ->  | F67: =IF(ISERROR(VLOOKUP(A67,tesserati[],7,FALSE)),"",VLOOKUP(A67,tesserati[],7,FALSE)) -> 
B68: =IF(ISERROR(VLOOKUP(A68,tesserati[],2,FALSE)),"",VLOOKUP(A68,tesserati[],2,FALSE)) ->  | C68: =IF(ISERROR(VLOOKUP(A68,tesserati[],3,FALSE)),"",VLOOKUP(A68,tesserati[],3,FALSE)) ->  | D68: =IF(ISERROR(VLOOKUP(A68,tesserati[],4,FALSE)),"",VLOOKUP(A68,tesserati[],4,FALSE)) ->  | E68: =IF(ISERROR(VLOOKUP(A68,tesserati[],5,FALSE)),"",VLOOKUP(A68,tesserati[],5,FALSE)) ->  | F68: =IF(ISERROR(VLOOKUP(A68,tesserati[],7,FALSE)),"",VLOOKUP(A68,tesserati[],7,FALSE)) -> 
B69: =IF(ISERROR(VLOOKUP(A69,tesserati[],2,FALSE)),"",VLOOKUP(A69,tesserati[],2,FALSE)) ->  | C69: =IF(ISERROR(VLOOKUP(A69,tesserati[],3,FALSE)),"",VLOOKUP(A69,tesserati[],3,FALSE)) ->  | D69: =IF(ISERROR(VLOOKUP(A69,tesserati[],4,FALSE)),"",VLOOKUP(A69,tesserati[],4,FALSE)) ->  | E69: =IF(ISERROR(VLOOKUP(A69,tesserati[],5,FALSE)),"",VLOOKUP(A69,tesserati[],5,FALSE)) ->  | F69: =IF(ISERROR(VLOOKUP(A69,tesserati[],7,FALSE)),"",VLOOKUP(A69,tesserati[],7,FALSE)) -> 
B70: =IF(ISERROR(VLOOKUP(A70,tesserati[],2,FALSE)),"",VLOOKUP(A70,tesserati[],2,FALSE)) ->  | C70: =IF(ISERROR(VLOOKUP(A70,tesserati[],3,FALSE)),"",VLOOKUP(A70,tesserati[],3,FALSE)) ->  | D70: =IF(ISERROR(VLOOKUP(A70,tesserati[],4,FALSE)),"",VLOOKUP(A70,tesserati[],4,FALSE)) ->  | E70: =IF(ISERROR(VLOOKUP(A70,tesserati[],5,FALSE)),"",VLOOKUP(A70,tesserati[],5,FALSE)) ->  | F70: =IF(ISERROR(VLOOKUP(A70,tesserati[],7,FALSE)),"",VLOOKUP(A70,tesserati[],7,FALSE)) -> 
B71: =IF(ISERROR(VLOOKUP(A71,tesserati[],2,FALSE)),"",VLOOKUP(A71,tesserati[],2,FALSE)) ->  | C71: =IF(ISERROR(VLOOKUP(A71,tesserati[],3,FALSE)),"",VLOOKUP(A71,tesserati[],3,FALSE)) ->  | D71: =IF(ISERROR(VLOOKUP(A71,tesserati[],4,FALSE)),"",VLOOKUP(A71,tesserati[],4,FALSE)) ->  | E71: =IF(ISERROR(VLOOKUP(A71,tesserati[],5,FALSE)),"",VLOOKUP(A71,tesserati[],5,FALSE)) ->  | F71: =IF(ISERROR(VLOOKUP(A71,tesserati[],7,FALSE)),"",VLOOKUP(A71,tesserati[],7,FALSE)) -> 
B72: =IF(ISERROR(VLOOKUP(A72,tesserati[],2,FALSE)),"",VLOOKUP(A72,tesserati[],2,FALSE)) ->  | C72: =IF(ISERROR(VLOOKUP(A72,tesserati[],3,FALSE)),"",VLOOKUP(A72,tesserati[],3,FALSE)) ->  | D72: =IF(ISERROR(VLOOKUP(A72,tesserati[],4,FALSE)),"",VLOOKUP(A72,tesserati[],4,FALSE)) ->  | E72: =IF(ISERROR(VLOOKUP(A72,tesserati[],5,FALSE)),"",VLOOKUP(A72,tesserati[],5,FALSE)) ->  | F72: =IF(ISERROR(VLOOKUP(A72,tesserati[],7,FALSE)),"",VLOOKUP(A72,tesserati[],7,FALSE)) -> 

Sheet STAFFETTE 4X100 ASS. F
C1: MANIFESTAZIONE | F1: LOCALITA' | I1: SOCIETA' ORGANIZZATRICE
C2: 6° prova provinciale | F2: Tezze sul Brenta | I2: CSI Tezze sul Brenta
A3: CATEGORIA | C3: ORA INIZIO | D3: ORA FINE | F3: GARA | I3: DATA
A4: ASS. F | F4: STAFFETTA 4 X 100 | I4: 2017-09-24
A6: N. tessera | B6: ATLETA COGNOME E NOME | D6: SOCIETA' | E6: NASCITA | F6: CATEGORIA | G6: Corsia | H6: PETTORALE | I6: Tempo | J6: Piazzamento | K6: PUNTI | L6: CL.
A8: 1 SERIE | B8: =IF(ISERROR(VLOOKUP(A8,tesserati[],2,FALSE)),"",VLOOKUP(A8,tesserati[],2,FALSE)) ->  | C8: =IF(ISERROR(VLOOKUP(A8,tesserati[],3,FALSE)),"",VLOOKUP(A8,tesserati[],3,FALSE)) ->  | D8: =IF(ISERROR(VLOOKUP(#REF!,tesserati[],5,FALSE)),"",VLOOKUP(#REF!,tesserati[],5,FALSE)) ->  | E8: =IF(ISERROR(VLOOKUP(A8,tesserati[],4,FALSE)),"",VLOOKUP(A8,tesserati[],4,FALSE)) ->  | F8: =IF(ISERROR(VLOOKUP(A8,tesserati[],7,FALSE)),"",VLOOKUP(A8,tesserati[],7,FALSE)) -> 
A9: 3122 | B9: =IF(ISERROR(VLOOKUP(A9,tesserati[],2,FALSE)),"",VLOOKUP(A9,tesserati[],2,FALSE)) -> GRIGNOLO | C9: =IF(ISERROR(VLOOKUP(A9,tesserati[],3,FALSE)),"",VLOOKUP(A9,tesserati[],3,FALSE)) -> ALESSIA | D9: =IF(ISERROR(VLOOKUP(A9,tesserati[],4,FALSE)),"",VLOOKUP(A9,tesserati[],4,FALSE)) -> ATLETICA UNION CREAZZO | E9: =IF(ISERROR(VLOOKUP(A9,tesserati[],5,FALSE)),"",VLOOKUP(A9,tesserati[],5,FALSE)) -> 2000 | F9: =IF(ISERROR(VLOOKUP(A9,tesserati[],7,FALSE)),"",VLOOKUP(A9,tesserati[],7,FALSE)) -> AF | G9: 2 | I9: 54.9 | J9: 1
A10: 1956 | B10: =IF(ISERROR(VLOOKUP(A10,tesserati[],2,FALSE)),"",VLOOKUP(A10,tesserati[],2,FALSE)) -> MARAN | C10: =IF(ISERROR(VLOOKUP(A10,tesserati[],3,FALSE)),"",VLOOKUP(A10,tesserati[],3,FALSE)) -> ELISABETTA | D10: =IF(ISERROR(VLOOKUP(A10,tesserati[],4,FALSE)),"",VLOOKUP(A10,tesserati[],4,FALSE)) -> ATLETICA UNION CREAZZO | E10: =IF(ISERROR(VLOOKUP(A10,tesserati[],5,FALSE)),"",VLOOKUP(A10,tesserati[],5,FALSE)) -> 1992 | F10: =IF(ISERROR(VLOOKUP(A10,tesserati[],7,FALSE)),"",VLOOKUP(A10,tesserati[],7,FALSE)) -> SF
A11: 2958 | B11: =IF(ISERROR(VLOOKUP(A11,tesserati[],2,FALSE)),"",VLOOKUP(A11,tesserati[],2,FALSE)) -> CATTANI | C11: =IF(ISERROR(VLOOKUP(A11,tesserati[],3,FALSE)),"",VLOOKUP(A11,tesserati[],3,FALSE)) -> LEILA | D11: =IF(ISERROR(VLOOKUP(A11,tesserati[],4,FALSE)),"",VLOOKUP(A11,tesserati[],4,FALSE)) -> ATLETICA UNION CREAZZO | E11: =IF(ISERROR(VLOOKUP(A11,tesserati[],5,FALSE)),"",VLOOKUP(A11,tesserati[],5,FALSE)) -> 2001 | F11: =IF(ISERROR(VLOOKUP(A11,tesserati[],7,FALSE)),"",VLOOKUP(A11,tesserati[],7,FALSE)) -> AF
A12: 3123 | B12: =IF(ISERROR(VLOOKUP(A12,tesserati[],2,FALSE)),"",VLOOKUP(A12,tesserati[],2,FALSE)) -> URBANI | C12: =IF(ISERROR(VLOOKUP(A12,tesserati[],3,FALSE)),"",VLOOKUP(A12,tesserati[],3,FALSE)) -> CATERINA | D12: =IF(ISERROR(VLOOKUP(A12,tesserati[],4,FALSE)),"",VLOOKUP(A12,tesserati[],4,FALSE)) -> ATLETICA UNION CREAZZO | E12: =IF(ISERROR(VLOOKUP(A12,tesserati[],5,FALSE)),"",VLOOKUP(A12,tesserati[],5,FALSE)) -> 2000 | F12: =IF(ISERROR(VLOOKUP(A12,tesserati[],7,FALSE)),"",VLOOKUP(A12,tesserati[],7,FALSE)) -> AF
A13: 4004 | B13: =IF(ISERROR(VLOOKUP(A13,tesserati[],2,FALSE)),"",VLOOKUP(A13,tesserati[],2,FALSE)) -> RIGHI | C13: =IF(ISERROR(VLOOKUP(A13,tesserati[],3,FALSE)),"",VLOOKUP(A13,tesserati[],3,FALSE)) -> ELENA | D13: =IF(ISERROR(VLOOKUP(A13,tesserati[],4,FALSE)),"",VLOOKUP(A13,tesserati[],4,FALSE)) -> POLISPORTIVA DUEVILLE | E13: =IF(ISERROR(VLOOKUP(A13,tesserati[],5,FALSE)),"",VLOOKUP(A13,tesserati[],5,FALSE)) -> 1968 | F13: =IF(ISERROR(VLOOKUP(A13,tesserati[],7,FALSE)),"",VLOOKUP(A13,tesserati[],7,FALSE)) -> ABF | G13: 3 | I13: 59.3 | J13: 2
A14: 3336 | B14: =IF(ISERROR(VLOOKUP(A14,tesserati[],2,FALSE)),"",VLOOKUP(A14,tesserati[],2,FALSE)) -> GONELLA | C14: =IF(ISERROR(VLOOKUP(A14,tesserati[],3,FALSE)),"",VLOOKUP(A14,tesserati[],3,FALSE)) -> CLAUDIA | D14: =IF(ISERROR(VLOOKUP(A14,tesserati[],4,FALSE)),"",VLOOKUP(A14,tesserati[],4,FALSE)) -> POLISPORTIVA DUEVILLE | E14: =IF(ISERROR(VLOOKUP(A14,tesserati[],5,FALSE)),"",VLOOKUP(A14,tesserati[],5,FALSE)) -> 1966 | F14: =IF(ISERROR(VLOOKUP(A14,tesserati[],7,FALSE)),"",VLOOKUP(A14,tesserati[],7,FALSE)) -> ABF
A15: 4035 | B15: =IF(ISERROR(VLOOKUP(A15,tesserati[],2,FALSE)),"",VLOOKUP(A15,tesserati[],2,FALSE)) -> FASSINA | C15: =IF(ISERROR(VLOOKUP(A15,tesserati[],3,FALSE)),"",VLOOKUP(A15,tesserati[],3,FALSE)) -> ALESSANDRA | D15: =IF(ISERROR(VLOOKUP(A15,tesserati[],4,FALSE)),"",VLOOKUP(A15,tesserati[],4,FALSE)) -> POLISPORTIVA DUEVILLE | E15: =IF(ISERROR(VLOOKUP(A15,tesserati[],5,FALSE)),"",VLOOKUP(A15,tesserati[],5,FALSE)) -> 2001 | F15: =IF(ISERROR(VLOOKUP(A15,tesserati[],7,FALSE)),"",VLOOKUP(A15,tesserati[],7,FALSE)) -> AF
A16: 3956 | B16: =IF(ISERROR(VLOOKUP(A16,tesserati[],2,FALSE)),"",VLOOKUP(A16,tesserati[],2,FALSE)) -> CRISTOFORI | C16: =IF(ISERROR(VLOOKUP(A16,tesserati[],3,FALSE)),"",VLOOKUP(A16,tesserati[],3,FALSE)) -> SARA | D16: =IF(ISERROR(VLOOKUP(A16,tesserati[],4,FALSE)),"",VLOOKUP(A16,tesserati[],4,FALSE)) -> POLISPORTIVA DUEVILLE | E16: =IF(ISERROR(VLOOKUP(A16,tesserati[],5,FALSE)),"",VLOOKUP(A16,tesserati[],5,FALSE)) -> 2000 | F16: =IF(ISERROR(VLOOKUP(A16,tesserati[],7,FALSE)),"",VLOOKUP(A16,tesserati[],7,FALSE)) -> AF
A17: 3030 | B17: =IF(ISERROR(VLOOKUP(A17,tesserati[],2,FALSE)),"",VLOOKUP(A17,tesserati[],2,FALSE)) -> CABEZZONI | C17: =IF(ISERROR(VLOOKUP(A17,tesserati[],3,FALSE)),"",VLOOKUP(A17,tesserati[],3,FALSE)) -> LAURA | D17: =IF(ISERROR(VLOOKUP(A17,tesserati[],4,FALSE)),"",VLOOKUP(A17,tesserati[],4,FALSE)) -> ATLETICA UNION CREAZZO | E17: =IF(ISERROR(VLOOKUP(A17,tesserati[],5,FALSE)),"",VLOOKUP(A17,tesserati[],5,FALSE)) -> 1971 | F17: =IF(ISERROR(VLOOKUP(A17,tesserati[],7,FALSE)),"",VLOOKUP(A17,tesserati[],7,FALSE)) -> ABF | G17: 4 | I17: 1,03.4 | J17: 3
A18: 4750 | B18: =IF(ISERROR(VLOOKUP(A18,tesserati[],2,FALSE)),"",VLOOKUP(A18,tesserati[],2,FALSE)) -> GIANELLO | C18: =IF(ISERROR(VLOOKUP(A18,tesserati[],3,FALSE)),"",VLOOKUP(A18,tesserati[],3,FALSE)) -> EVELIN | D18: =IF(ISERROR(VLOOKUP(A18,tesserati[],4,FALSE)),"",VLOOKUP(A18,tesserati[],4,FALSE)) -> ATLETICA UNION CREAZZO | E18: =IF(ISERROR(VLOOKUP(A18,tesserati[],5,FALSE)),"",VLOOKUP(A18,tesserati[],5,FALSE)) -> 1971 | F18: =IF(ISERROR(VLOOKUP(A18,tesserati[],7,FALSE)),"",VLOOKUP(A18,tesserati[],7,FALSE)) -> ABF
A19: 2951 | B19: =IF(ISERROR(VLOOKUP(A19,tesserati[],2,FALSE)),"",VLOOKUP(A19,tesserati[],2,FALSE)) -> BEVILACQUA | C19: =IF(ISERROR(VLOOKUP(A19,tesserati[],3,FALSE)),"",VLOOKUP(A19,tesserati[],3,FALSE)) -> DINA | D19: =IF(ISERROR(VLOOKUP(A19,tesserati[],4,FALSE)),"",VLOOKUP(A19,tesserati[],4,FALSE)) -> ATLETICA UNION CREAZZO | E19: =IF(ISERROR(VLOOKUP(A19,tesserati[],5,FALSE)),"",VLOOKUP(A19,tesserati[],5,FALSE)) -> 1965 | F19: =IF(ISERROR(VLOOKUP(A19,tesserati[],7,FALSE)),"",VLOOKUP(A19,tesserati[],7,FALSE)) -> ABF
A20: 2974 | B20: =IF(ISERROR(VLOOKUP(A20,tesserati[],2,FALSE)),"",VLOOKUP(A20,tesserati[],2,FALSE)) -> GASPARI | C20: =IF(ISERROR(VLOOKUP(A20,tesserati[],3,FALSE)),"",VLOOKUP(A20,tesserati[],3,FALSE)) -> NADIA | D20: =IF(ISERROR(VLOOKUP(A20,tesserati[],4,FALSE)),"",VLOOKUP(A20,tesserati[],4,FALSE)) -> ATLETICA UNION CREAZZO | E20: =IF(ISERROR(VLOOKUP(A20,tesserati[],5,FALSE)),"",VLOOKUP(A20,tesserati[],5,FALSE)) -> 1970 | F20: =IF(ISERROR(VLOOKUP(A20,tesserati[],7,FALSE)),"",VLOOKUP(A20,tesserati[],7,FALSE)) -> ABF
B21: =IF(ISERROR(VLOOKUP(A21,tesserati[],2,FALSE)),"",VLOOKUP(A21,tesserati[],2,FALSE)) ->  | C21: =IF(ISERROR(VLOOKUP(A21,tesserati[],3,FALSE)),"",VLOOKUP(A21,tesserati[],3,FALSE)) ->  | D21: =IF(ISERROR(VLOOKUP(A21,tesserati[],4,FALSE)),"",VLOOKUP(A21,tesserati[],4,FALSE)) ->  | E21: =IF(ISERROR(VLOOKUP(A21,tesserati[],5,FALSE)),"",VLOOKUP(A21,tesserati[],5,FALSE)) ->  | F21: =IF(ISERROR(VLOOKUP(A21,tesserati[],7,FALSE)),"",VLOOKUP(A21,tesserati[],7,FALSE)) -> 
B22: =IF(ISERROR(VLOOKUP(A22,tesserati[],2,FALSE)),"",VLOOKUP(A22,tesserati[],2,FALSE)) ->  | C22: =IF(ISERROR(VLOOKUP(A22,tesserati[],3,FALSE)),"",VLOOKUP(A22,tesserati[],3,FALSE)) ->  | D22: =IF(ISERROR(VLOOKUP(A22,tesserati[],4,FALSE)),"",VLOOKUP(A22,tesserati[],4,FALSE)) ->  | E22: =IF(ISERROR(VLOOKUP(A22,tesserati[],5,FALSE)),"",VLOOKUP(A22,tesserati[],5,FALSE)) ->  | F22: =IF(ISERROR(VLOOKUP(A22,tesserati[],7,FALSE)),"",VLOOKUP(A22,tesserati[],7,FALSE)) -> 
B23: =IF(ISERROR(VLOOKUP(A23,tesserati[],2,FALSE)),"",VLOOKUP(A23,tesserati[],2,FALSE)) ->  | C23: =IF(ISERROR(VLOOKUP(A23,tesserati[],3,FALSE)),"",VLOOKUP(A23,tesserati[],3,FALSE)) ->  | D23: =IF(ISERROR(VLOOKUP(A23,tesserati[],4,FALSE)),"",VLOOKUP(A23,tesserati[],4,FALSE)) ->  | E23: =IF(ISERROR(VLOOKUP(A23,tesserati[],5,FALSE)),"",VLOOKUP(A23,tesserati[],5,FALSE)) ->  | F23: =IF(ISERROR(VLOOKUP(A23,tesserati[],7,FALSE)),"",VLOOKUP(A23,tesserati[],7,FALSE)) -> 
B24: =IF(ISERROR(VLOOKUP(A24,tesserati[],2,FALSE)),"",VLOOKUP(A24,tesserati[],2,FALSE)) ->  | C24: =IF(ISERROR(VLOOKUP(A24,tesserati[],3,FALSE)),"",VLOOKUP(A24,tesserati[],3,FALSE)) ->  | D24: =IF(ISERROR(VLOOKUP(A24,tesserati[],4,FALSE)),"",VLOOKUP(A24,tesserati[],4,FALSE)) ->  | E24: =IF(ISERROR(VLOOKUP(A24,tesserati[],5,FALSE)),"",VLOOKUP(A24,tesserati[],5,FALSE)) ->  | F24: =IF(ISERROR(VLOOKUP(A24,tesserati[],7,FALSE)),"",VLOOKUP(A24,tesserati[],7,FALSE)) -> 
B25: =IF(ISERROR(VLOOKUP(A25,tesserati[],2,FALSE)),"",VLOOKUP(A25,tesserati[],2,FALSE)) ->  | C25: =IF(ISERROR(VLOOKUP(A25,tesserati[],3,FALSE)),"",VLOOKUP(A25,tesserati[],3,FALSE)) ->  | D25: =IF(ISERROR(VLOOKUP(A25,tesserati[],4,FALSE)),"",VLOOKUP(A25,tesserati[],4,FALSE)) ->  | E25: =IF(ISERROR(VLOOKUP(A25,tesserati[],5,FALSE)),"",VLOOKUP(A25,tesserati[],5,FALSE)) ->  | F25: =IF(ISERROR(VLOOKUP(A25,tesserati[],7,FALSE)),"",VLOOKUP(A25,tesserati[],7,FALSE)) -> 
B26: =IF(ISERROR(VLOOKUP(A26,tesserati[],2,FALSE)),"",VLOOKUP(A26,tesserati[],2,FALSE)) ->  | C26: =IF(ISERROR(VLOOKUP(A26,tesserati[],3,FALSE)),"",VLOOKUP(A26,tesserati[],3,FALSE)) ->  | D26: =IF(ISERROR(VLOOKUP(A26,tesserati[],4,FALSE)),"",VLOOKUP(A26,tesserati[],4,FALSE)) ->  | E26: =IF(ISERROR(VLOOKUP(A26,tesserati[],5,FALSE)),"",VLOOKUP(A26,tesserati[],5,FALSE)) ->  | F26: =IF(ISERROR(VLOOKUP(A26,tesserati[],7,FALSE)),"",VLOOKUP(A26,tesserati[],7,FALSE)) -> 
B27: =IF(ISERROR(VLOOKUP(A27,tesserati[],2,FALSE)),"",VLOOKUP(A27,tesserati[],2,FALSE)) ->  | C27: =IF(ISERROR(VLOOKUP(A27,tesserati[],3,FALSE)),"",VLOOKUP(A27,tesserati[],3,FALSE)) ->  | D27: =IF(ISERROR(VLOOKUP(A27,tesserati[],4,FALSE)),"",VLOOKUP(A27,tesserati[],4,FALSE)) ->  | E27: =IF(ISERROR(VLOOKUP(A27,tesserati[],5,FALSE)),"",VLOOKUP(A27,tesserati[],5,FALSE)) ->  | F27: =IF(ISERROR(VLOOKUP(A27,tesserati[],7,FALSE)),"",VLOOKUP(A27,tesserati[],7,FALSE)) -> 
B28: =IF(ISERROR(VLOOKUP(A28,tesserati[],2,FALSE)),"",VLOOKUP(A28,tesserati[],2,FALSE)) ->  | C28: =IF(ISERROR(VLOOKUP(A28,tesserati[],3,FALSE)),"",VLOOKUP(A28,tesserati[],3,FALSE)) ->  | D28: =IF(ISERROR(VLOOKUP(A28,tesserati[],4,FALSE)),"",VLOOKUP(A28,tesserati[],4,FALSE)) ->  | E28: =IF(ISERROR(VLOOKUP(A28,tesserati[],5,FALSE)),"",VLOOKUP(A28,tesserati[],5,FALSE)) ->  | F28: =IF(ISERROR(VLOOKUP(A28,tesserati[],7,FALSE)),"",VLOOKUP(A28,tesserati[],7,FALSE)) -> 
B29: =IF(ISERROR(VLOOKUP(A29,tesserati[],2,FALSE)),"",VLOOKUP(A29,tesserati[],2,FALSE)) ->  | C29: =IF(ISERROR(VLOOKUP(A29,tesserati[],3,FALSE)),"",VLOOKUP(A29,tesserati[],3,FALSE)) ->  | D29: =IF(ISERROR(VLOOKUP(A29,tesserati[],4,FALSE)),"",VLOOKUP(A29,tesserati[],4,FALSE)) ->  | E29: =IF(ISERROR(VLOOKUP(A29,tesserati[],5,FALSE)),"",VLOOKUP(A29,tesserati[],5,FALSE)) ->  | F29: =IF(ISERROR(VLOOKUP(A29,tesserati[],7,FALSE)),"",VLOOKUP(A29,tesserati[],7,FALSE)) -> 
B30: =IF(ISERROR(VLOOKUP(A30,tesserati[],2,FALSE)),"",VLOOKUP(A30,tesserati[],2,FALSE)) ->  | C30: =IF(ISERROR(VLOOKUP(A30,tesserati[],3,FALSE)),"",VLOOKUP(A30,tesserati[],3,FALSE)) ->  | D30: =IF(ISERROR(VLOOKUP(A30,tesserati[],4,FALSE)),"",VLOOKUP(A30,tesserati[],4,FALSE)) ->  | E30: =IF(ISERROR(VLOOKUP(A30,tesserati[],5,FALSE)),"",VLOOKUP(A30,tesserati[],5,FALSE)) ->  | F30: =IF(ISERROR(VLOOKUP(A30,tesserati[],7,FALSE)),"",VLOOKUP(A30,tesserati[],7,FALSE)) -> 
B31: =IF(ISERROR(VLOOKUP(A31,tesserati[],2,FALSE)),"",VLOOKUP(A31,tesserati[],2,FALSE)) ->  | C31: =IF(ISERROR(VLOOKUP(A31,tesserati[],3,FALSE)),"",VLOOKUP(A31,tesserati[],3,FALSE)) ->  | D31: =IF(ISERROR(VLOOKUP(A31,tesserati[],4,FALSE)),"",VLOOKUP(A31,tesserati[],4,FALSE)) ->  | E31: =IF(ISERROR(VLOOKUP(A31,tesserati[],5,FALSE)),"",VLOOKUP(A31,tesserati[],5,FALSE)) ->  | F31: =IF(ISERROR(VLOOKUP(A31,tesserati[],7,FALSE)),"",VLOOKUP(A31,tesserati[],7,FALSE)) -> 
B32: =IF(ISERROR(VLOOKUP(A32,tesserati[],2,FALSE)),"",VLOOKUP(A32,tesserati[],2,FALSE)) ->  | C32: =IF(ISERROR(VLOOKUP(A32,tesserati[],3,FALSE)),"",VLOOKUP(A32,tesserati[],3,FALSE)) ->  | D32: =IF(ISERROR(VLOOKUP(A32,tesserati[],4,FALSE)),"",VLOOKUP(A32,tesserati[],4,FALSE)) ->  | E32: =IF(ISERROR(VLOOKUP(A32,tesserati[],5,FALSE)),"",VLOOKUP(A32,tesserati[],5,FALSE)) ->  | F32: =IF(ISERROR(VLOOKUP(A32,tesserati[],7,FALSE)),"",VLOOKUP(A32,tesserati[],7,FALSE)) -> 
A33: 2 SERIE
B34: =IF(ISERROR(VLOOKUP(A34,tesserati[],2,FALSE)),"",VLOOKUP(A34,tesserati[],2,FALSE)) ->  | C34: =IF(ISERROR(VLOOKUP(A34,tesserati[],3,FALSE)),"",VLOOKUP(A34,tesserati[],3,FALSE)) ->  | D34: =IF(ISERROR(VLOOKUP(A34,tesserati[],4,FALSE)),"",VLOOKUP(A34,tesserati[],4,FALSE)) ->  | E34: =IF(ISERROR(VLOOKUP(A34,tesserati[],5,FALSE)),"",VLOOKUP(A34,tesserati[],5,FALSE)) ->  | F34: =IF(ISERROR(VLOOKUP(A34,tesserati[],7,FALSE)),"",VLOOKUP(A34,tesserati[],7,FALSE)) ->  | G34: 1
B35: =IF(ISERROR(VLOOKUP(A35,tesserati[],2,FALSE)),"",VLOOKUP(A35,tesserati[],2,FALSE)) ->  | C35: =IF(ISERROR(VLOOKUP(A35,tesserati[],3,FALSE)),"",VLOOKUP(A35,tesserati[],3,FALSE)) ->  | D35: =IF(ISERROR(VLOOKUP(A35,tesserati[],4,FALSE)),"",VLOOKUP(A35,tesserati[],4,FALSE)) ->  | E35: =IF(ISERROR(VLOOKUP(A35,tesserati[],5,FALSE)),"",VLOOKUP(A35,tesserati[],5,FALSE)) ->  | F35: =IF(ISERROR(VLOOKUP(A35,tesserati[],7,FALSE)),"",VLOOKUP(A35,tesserati[],7,FALSE)) -> 
B36: =IF(ISERROR(VLOOKUP(A36,tesserati[],2,FALSE)),"",VLOOKUP(A36,tesserati[],2,FALSE)) ->  | C36: =IF(ISERROR(VLOOKUP(A36,tesserati[],3,FALSE)),"",VLOOKUP(A36,tesserati[],3,FALSE)) ->  | D36: =IF(ISERROR(VLOOKUP(A36,tesserati[],4,FALSE)),"",VLOOKUP(A36,tesserati[],4,FALSE)) ->  | E36: =IF(ISERROR(VLOOKUP(A36,tesserati[],5,FALSE)),"",VLOOKUP(A36,tesserati[],5,FALSE)) ->  | F36: =IF(ISERROR(VLOOKUP(A36,tesserati[],7,FALSE)),"",VLOOKUP(A36,tesserati[],7,FALSE)) -> 
B37: =IF(ISERROR(VLOOKUP(A37,tesserati[],2,FALSE)),"",VLOOKUP(A37,tesserati[],2,FALSE)) ->  | C37: =IF(ISERROR(VLOOKUP(A37,tesserati[],3,FALSE)),"",VLOOKUP(A37,tesserati[],3,FALSE)) ->  | D37: =IF(ISERROR(VLOOKUP(A37,tesserati[],4,FALSE)),"",VLOOKUP(A37,tesserati[],4,FALSE)) ->  | E37: =IF(ISERROR(VLOOKUP(A37,tesserati[],5,FALSE)),"",VLOOKUP(A37,tesserati[],5,FALSE)) ->  | F37: =IF(ISERROR(VLOOKUP(A37,tesserati[],7,FALSE)),"",VLOOKUP(A37,tesserati[],7,FALSE)) -> 
B38: =IF(ISERROR(VLOOKUP(A38,tesserati[],2,FALSE)),"",VLOOKUP(A38,tesserati[],2,FALSE)) ->  | C38: =IF(ISERROR(VLOOKUP(A38,tesserati[],3,FALSE)),"",VLOOKUP(A38,tesserati[],3,FALSE)) ->  | D38: =IF(ISERROR(VLOOKUP(A38,tesserati[],4,FALSE)),"",VLOOKUP(A38,tesserati[],4,FALSE)) ->  | E38: =IF(ISERROR(VLOOKUP(A38,tesserati[],5,FALSE)),"",VLOOKUP(A38,tesserati[],5,FALSE)) ->  | F38: =IF(ISERROR(VLOOKUP(A38,tesserati[],7,FALSE)),"",VLOOKUP(A38,tesserati[],7,FALSE)) ->  | G38: 2
B39: =IF(ISERROR(VLOOKUP(A39,tesserati[],2,FALSE)),"",VLOOKUP(A39,tesserati[],2,FALSE)) ->  | C39: =IF(ISERROR(VLOOKUP(A39,tesserati[],3,FALSE)),"",VLOOKUP(A39,tesserati[],3,FALSE)) ->  | D39: =IF(ISERROR(VLOOKUP(A39,tesserati[],4,FALSE)),"",VLOOKUP(A39,tesserati[],4,FALSE)) ->  | E39: =IF(ISERROR(VLOOKUP(A39,tesserati[],5,FALSE)),"",VLOOKUP(A39,tesserati[],5,FALSE)) ->  | F39: =IF(ISERROR(VLOOKUP(A39,tesserati[],7,FALSE)),"",VLOOKUP(A39,tesserati[],7,FALSE)) -> 
B40: =IF(ISERROR(VLOOKUP(A40,tesserati[],2,FALSE)),"",VLOOKUP(A40,tesserati[],2,FALSE)) ->  | C40: =IF(ISERROR(VLOOKUP(A40,tesserati[],3,FALSE)),"",VLOOKUP(A40,tesserati[],3,FALSE)) ->  | D40: =IF(ISERROR(VLOOKUP(A40,tesserati[],4,FALSE)),"",VLOOKUP(A40,tesserati[],4,FALSE)) ->  | E40: =IF(ISERROR(VLOOKUP(A40,tesserati[],5,FALSE)),"",VLOOKUP(A40,tesserati[],5,FALSE)) ->  | F40: =IF(ISERROR(VLOOKUP(A40,tesserati[],7,FALSE)),"",VLOOKUP(A40,tesserati[],7,FALSE)) -> 
B41: =IF(ISERROR(VLOOKUP(A41,tesserati[],2,FALSE)),"",VLOOKUP(A41,tesserati[],2,FALSE)) ->  | C41: =IF(ISERROR(VLOOKUP(A41,tesserati[],3,FALSE)),"",VLOOKUP(A41,tesserati[],3,FALSE)) ->  | D41: =IF(ISERROR(VLOOKUP(A41,tesserati[],4,FALSE)),"",VLOOKUP(A41,tesserati[],4,FALSE)) ->  | E41: =IF(ISERROR(VLOOKUP(A41,tesserati[],5,FALSE)),"",VLOOKUP(A41,tesserati[],5,FALSE)) ->  | F41: =IF(ISERROR(VLOOKUP(A41,tesserati[],7,FALSE)),"",VLOOKUP(A41,tesserati[],7,FALSE)) -> 
B42: =IF(ISERROR(VLOOKUP(A42,tesserati[],2,FALSE)),"",VLOOKUP(A42,tesserati[],2,FALSE)) ->  | C42: =IF(ISERROR(VLOOKUP(A42,tesserati[],3,FALSE)),"",VLOOKUP(A42,tesserati[],3,FALSE)) ->  | D42: =IF(ISERROR(VLOOKUP(A42,tesserati[],4,FALSE)),"",VLOOKUP(A42,tesserati[],4,FALSE)) ->  | E42: =IF(ISERROR(VLOOKUP(A42,tesserati[],5,FALSE)),"",VLOOKUP(A42,tesserati[],5,FALSE)) ->  | F42: =IF(ISERROR(VLOOKUP(A42,tesserati[],7,FALSE)),"",VLOOKUP(A42,tesserati[],7,FALSE)) ->  | G42: 3
B43: =IF(ISERROR(VLOOKUP(A43,tesserati[],2,FALSE)),"",VLOOKUP(A43,tesserati[],2,FALSE)) ->  | C43: =IF(ISERROR(VLOOKUP(A43,tesserati[],3,FALSE)),"",VLOOKUP(A43,tesserati[],3,FALSE)) ->  | D43: =IF(ISERROR(VLOOKUP(A43,tesserati[],4,FALSE)),"",VLOOKUP(A43,tesserati[],4,FALSE)) ->  | E43: =IF(ISERROR(VLOOKUP(A43,tesserati[],5,FALSE)),"",VLOOKUP(A43,tesserati[],5,FALSE)) ->  | F43: =IF(ISERROR(VLOOKUP(A43,tesserati[],7,FALSE)),"",VLOOKUP(A43,tesserati[],7,FALSE)) -> 
B44: =IF(ISERROR(VLOOKUP(A44,tesserati[],2,FALSE)),"",VLOOKUP(A44,tesserati[],2,FALSE)) ->  | C44: =IF(ISERROR(VLOOKUP(A44,tesserati[],3,FALSE)),"",VLOOKUP(A44,tesserati[],3,FALSE)) ->  | D44: =IF(ISERROR(VLOOKUP(A44,tesserati[],4,FALSE)),"",VLOOKUP(A44,tesserati[],4,FALSE)) ->  | E44: =IF(ISERROR(VLOOKUP(A44,tesserati[],5,FALSE)),"",VLOOKUP(A44,tesserati[],5,FALSE)) ->  | F44: =IF(ISERROR(VLOOKUP(A44,tesserati[],7,FALSE)),"",VLOOKUP(A44,tesserati[],7,FALSE)) -> 
B45: =IF(ISERROR(VLOOKUP(A45,tesserati[],2,FALSE)),"",VLOOKUP(A45,tesserati[],2,FALSE)) ->  | C45: =IF(ISERROR(VLOOKUP(A45,tesserati[],3,FALSE)),"",VLOOKUP(A45,tesserati[],3,FALSE)) ->  | D45: =IF(ISERROR(VLOOKUP(A45,tesserati[],4,FALSE)),"",VLOOKUP(A45,tesserati[],4,FALSE)) ->  | E45: =IF(ISERROR(VLOOKUP(A45,tesserati[],5,FALSE)),"",VLOOKUP(A45,tesserati[],5,FALSE)) ->  | F45: =IF(ISERROR(VLOOKUP(A45,tesserati[],7,FALSE)),"",VLOOKUP(A45,tesserati[],7,FALSE)) -> 
B46: =IF(ISERROR(VLOOKUP(A46,tesserati[],2,FALSE)),"",VLOOKUP(A46,tesserati[],2,FALSE)) ->  | C46: =IF(ISERROR(VLOOKUP(A46,tesserati[],3,FALSE)),"",VLOOKUP(A46,tesserati[],3,FALSE)) ->  | D46: =IF(ISERROR(VLOOKUP(A46,tesserati[],4,FALSE)),"",VLOOKUP(A46,tesserati[],4,FALSE)) ->  | E46: =IF(ISERROR(VLOOKUP(A46,tesserati[],5,FALSE)),"",VLOOKUP(A46,tesserati[],5,FALSE)) ->  | F46: =IF(ISERROR(VLOOKUP(A46,tesserati[],7,FALSE)),"",VLOOKUP(A46,tesserati[],7,FALSE)) ->  | G46: 4
B47: =IF(ISERROR(VLOOKUP(A47,tesserati[],2,FALSE)),"",VLOOKUP(A47,tesserati[],2,FALSE)) ->  | C47: =IF(ISERROR(VLOOKUP(A47,tesserati[],3,FALSE)),"",VLOOKUP(A47,tesserati[],3,FALSE)) ->  | D47: =IF(ISERROR(VLOOKUP(A47,tesserati[],4,FALSE)),"",VLOOKUP(A47,tesserati[],4,FALSE)) ->  | E47: =IF(ISERROR(VLOOKUP(A47,tesserati[],5,FALSE)),"",VLOOKUP(A47,tesserati[],5,FALSE)) ->  | F47: =IF(ISERROR(VLOOKUP(A47,tesserati[],7,FALSE)),"",VLOOKUP(A47,tesserati[],7,FALSE)) -> 
B48: =IF(ISERROR(VLOOKUP(A48,tesserati[],2,FALSE)),"",VLOOKUP(A48,tesserati[],2,FALSE)) ->  | C48: =IF(ISERROR(VLOOKUP(A48,tesserati[],3,FALSE)),"",VLOOKUP(A48,tesserati[],3,FALSE)) ->  | D48: =IF(ISERROR(VLOOKUP(A48,tesserati[],4,FALSE)),"",VLOOKUP(A48,tesserati[],4,FALSE)) ->  | E48: =IF(ISERROR(VLOOKUP(A48,tesserati[],5,FALSE)),"",VLOOKUP(A48,tesserati[],5,FALSE)) ->  | F48: =IF(ISERROR(VLOOKUP(A48,tesserati[],7,FALSE)),"",VLOOKUP(A48,tesserati[],7,FALSE)) -> 
B49: =IF(ISERROR(VLOOKUP(A49,tesserati[],2,FALSE)),"",VLOOKUP(A49,tesserati[],2,FALSE)) ->  | C49: =IF(ISERROR(VLOOKUP(A49,tesserati[],3,FALSE)),"",VLOOKUP(A49,tesserati[],3,FALSE)) ->  | D49: =IF(ISERROR(VLOOKUP(A49,tesserati[],4,FALSE)),"",VLOOKUP(A49,tesserati[],4,FALSE)) ->  | E49: =IF(ISERROR(VLOOKUP(A49,tesserati[],5,FALSE)),"",VLOOKUP(A49,tesserati[],5,FALSE)) ->  | F49: =IF(ISERROR(VLOOKUP(A49,tesserati[],7,FALSE)),"",VLOOKUP(A49,tesserati[],7,FALSE)) -> 
B50: =IF(ISERROR(VLOOKUP(A50,tesserati[],2,FALSE)),"",VLOOKUP(A50,tesserati[],2,FALSE)) ->  | C50: =IF(ISERROR(VLOOKUP(A50,tesserati[],3,FALSE)),"",VLOOKUP(A50,tesserati[],3,FALSE)) ->  | D50: =IF(ISERROR(VLOOKUP(A50,tesserati[],4,FALSE)),"",VLOOKUP(A50,tesserati[],4,FALSE)) ->  | E50: =IF(ISERROR(VLOOKUP(A50,tesserati[],5,FALSE)),"",VLOOKUP(A50,tesserati[],5,FALSE)) ->  | F50: =IF(ISERROR(VLOOKUP(A50,tesserati[],7,FALSE)),"",VLOOKUP(A50,tesserati[],7,FALSE)) ->  | G50: 5
B51: =IF(ISERROR(VLOOKUP(A51,tesserati[],2,FALSE)),"",VLOOKUP(A51,tesserati[],2,FALSE)) ->  | C51: =IF(ISERROR(VLOOKUP(A51,tesserati[],3,FALSE)),"",VLOOKUP(A51,tesserati[],3,FALSE)) ->  | D51: =IF(ISERROR(VLOOKUP(A51,tesserati[],4,FALSE)),"",VLOOKUP(A51,tesserati[],4,FALSE)) ->  | E51: =IF(ISERROR(VLOOKUP(A51,tesserati[],5,FALSE)),"",VLOOKUP(A51,tesserati[],5,FALSE)) ->  | F51: =IF(ISERROR(VLOOKUP(A51,tesserati[],7,FALSE)),"",VLOOKUP(A51,tesserati[],7,FALSE)) -> 
B52: =IF(ISERROR(VLOOKUP(A52,tesserati[],2,FALSE)),"",VLOOKUP(A52,tesserati[],2,FALSE)) ->  | C52: =IF(ISERROR(VLOOKUP(A52,tesserati[],3,FALSE)),"",VLOOKUP(A52,tesserati[],3,FALSE)) ->  | D52: =IF(ISERROR(VLOOKUP(A52,tesserati[],4,FALSE)),"",VLOOKUP(A52,tesserati[],4,FALSE)) ->  | E52: =IF(ISERROR(VLOOKUP(A52,tesserati[],5,FALSE)),"",VLOOKUP(A52,tesserati[],5,FALSE)) ->  | F52: =IF(ISERROR(VLOOKUP(A52,tesserati[],7,FALSE)),"",VLOOKUP(A52,tesserati[],7,FALSE)) -> 
B53: =IF(ISERROR(VLOOKUP(A53,tesserati[],2,FALSE)),"",VLOOKUP(A53,tesserati[],2,FALSE)) ->  | C53: =IF(ISERROR(VLOOKUP(A53,tesserati[],3,FALSE)),"",VLOOKUP(A53,tesserati[],3,FALSE)) ->  | D53: =IF(ISERROR(VLOOKUP(A53,tesserati[],4,FALSE)),"",VLOOKUP(A53,tesserati[],4,FALSE)) ->  | E53: =IF(ISERROR(VLOOKUP(A53,tesserati[],5,FALSE)),"",VLOOKUP(A53,tesserati[],5,FALSE)) ->  | F53: =IF(ISERROR(VLOOKUP(A53,tesserati[],7,FALSE)),"",VLOOKUP(A53,tesserati[],7,FALSE)) -> 
B54: =IF(ISERROR(VLOOKUP(A54,tesserati[],2,FALSE)),"",VLOOKUP(A54,tesserati[],2,FALSE)) ->  | C54: =IF(ISERROR(VLOOKUP(A54,tesserati[],3,FALSE)),"",VLOOKUP(A54,tesserati[],3,FALSE)) ->  | D54: =IF(ISERROR(VLOOKUP(A54,tesserati[],4,FALSE)),"",VLOOKUP(A54,tesserati[],4,FALSE)) ->  | E54: =IF(ISERROR(VLOOKUP(A54,tesserati[],5,FALSE)),"",VLOOKUP(A54,tesserati[],5,FALSE)) ->  | F54: =IF(ISERROR(VLOOKUP(A54,tesserati[],7,FALSE)),"",VLOOKUP(A54,tesserati[],7,FALSE)) ->  | G54: 6
B55: =IF(ISERROR(VLOOKUP(A55,tesserati[],2,FALSE)),"",VLOOKUP(A55,tesserati[],2,FALSE)) ->  | C55: =IF(ISERROR(VLOOKUP(A55,tesserati[],3,FALSE)),"",VLOOKUP(A55,tesserati[],3,FALSE)) ->  | D55: =IF(ISERROR(VLOOKUP(A55,tesserati[],4,FALSE)),"",VLOOKUP(A55,tesserati[],4,FALSE)) ->  | E55: =IF(ISERROR(VLOOKUP(A55,tesserati[],5,FALSE)),"",VLOOKUP(A55,tesserati[],5,FALSE)) ->  | F55: =IF(ISERROR(VLOOKUP(A55,tesserati[],7,FALSE)),"",VLOOKUP(A55,tesserati[],7,FALSE)) -> 
B56: =IF(ISERROR(VLOOKUP(A56,tesserati[],2,FALSE)),"",VLOOKUP(A56,tesserati[],2,FALSE)) ->  | C56: =IF(ISERROR(VLOOKUP(A56,tesserati[],3,FALSE)),"",VLOOKUP(A56,tesserati[],3,FALSE)) ->  | D56: =IF(ISERROR(VLOOKUP(A56,tesserati[],4,FALSE)),"",VLOOKUP(A56,tesserati[],4,FALSE)) ->  | E56: =IF(ISERROR(VLOOKUP(A56,tesserati[],5,FALSE)),"",VLOOKUP(A56,tesserati[],5,FALSE)) ->  | F56: =IF(ISERROR(VLOOKUP(A56,tesserati[],7,FALSE)),"",VLOOKUP(A56,tesserati[],7,FALSE)) -> 
B57: =IF(ISERROR(VLOOKUP(A57,tesserati[],2,FALSE)),"",VLOOKUP(A57,tesserati[],2,FALSE)) ->  | C57: =IF(ISERROR(VLOOKUP(A57,tesserati[],3,FALSE)),"",VLOOKUP(A57,tesserati[],3,FALSE)) ->  | D57: =IF(ISERROR(VLOOKUP(A57,tesserati[],4,FALSE)),"",VLOOKUP(A57,tesserati[],4,FALSE)) ->  | E57: =IF(ISERROR(VLOOKUP(A57,tesserati[],5,FALSE)),"",VLOOKUP(A57,tesserati[],5,FALSE)) ->  | F57: =IF(ISERROR(VLOOKUP(A57,tesserati[],7,FALSE)),"",VLOOKUP(A57,tesserati[],7,FALSE)) -> 
B58: =IF(ISERROR(VLOOKUP(A58,tesserati[],2,FALSE)),"",VLOOKUP(A58,tesserati[],2,FALSE)) ->  | C58: =IF(ISERROR(VLOOKUP(A58,tesserati[],3,FALSE)),"",VLOOKUP(A58,tesserati[],3,FALSE)) ->  | D58: =IF(ISERROR(VLOOKUP(A58,tesserati[],4,FALSE)),"",VLOOKUP(A58,tesserati[],4,FALSE)) ->  | E58: =IF(ISERROR(VLOOKUP(A58,tesserati[],5,FALSE)),"",VLOOKUP(A58,tesserati[],5,FALSE)) ->  | F58: =IF(ISERROR(VLOOKUP(A58,tesserati[],7,FALSE)),"",VLOOKUP(A58,tesserati[],7,FALSE)) -> 
B59: =IF(ISERROR(VLOOKUP(A59,tesserati[],2,FALSE)),"",VLOOKUP(A59,tesserati[],2,FALSE)) ->  | C59: =IF(ISERROR(VLOOKUP(A59,tesserati[],3,FALSE)),"",VLOOKUP(A59,tesserati[],3,FALSE)) ->  | D59: =IF(ISERROR(VLOOKUP(A59,tesserati[],4,FALSE)),"",VLOOKUP(A59,tesserati[],4,FALSE)) ->  | E59: =IF(ISERROR(VLOOKUP(A59,tesserati[],5,FALSE)),"",VLOOKUP(A59,tesserati[],5,FALSE)) ->  | F59: =IF(ISERROR(VLOOKUP(A59,tesserati[],7,FALSE)),"",VLOOKUP(A59,tesserati[],7,FALSE)) -> 
B60: =IF(ISERROR(VLOOKUP(A60,tesserati[],2,FALSE)),"",VLOOKUP(A60,tesserati[],2,FALSE)) ->  | C60: =IF(ISERROR(VLOOKUP(A60,tesserati[],3,FALSE)),"",VLOOKUP(A60,tesserati[],3,FALSE)) ->  | D60: =IF(ISERROR(VLOOKUP(A60,tesserati[],4,FALSE)),"",VLOOKUP(A60,tesserati[],4,FALSE)) ->  | E60: =IF(ISERROR(VLOOKUP(A60,tesserati[],5,FALSE)),"",VLOOKUP(A60,tesserati[],5,FALSE)) ->  | F60: =IF(ISERROR(VLOOKUP(A60,tesserati[],7,FALSE)),"",VLOOKUP(A60,tesserati[],7,FALSE)) -> 
B61: =IF(ISERROR(VLOOKUP(A61,tesserati[],2,FALSE)),"",VLOOKUP(A61,tesserati[],2,FALSE)) ->  | C61: =IF(ISERROR(VLOOKUP(A61,tesserati[],3,FALSE)),"",VLOOKUP(A61,tesserati[],3,FALSE)) ->  | D61: =IF(ISERROR(VLOOKUP(A61,tesserati[],4,FALSE)),"",VLOOKUP(A61,tesserati[],4,FALSE)) ->  | E61: =IF(ISERROR(VLOOKUP(A61,tesserati[],5,FALSE)),"",VLOOKUP(A61,tesserati[],5,FALSE)) ->  | F61: =IF(ISERROR(VLOOKUP(A61,tesserati[],7,FALSE)),"",VLOOKUP(A61,tesserati[],7,FALSE)) -> 
B62: =IF(ISERROR(VLOOKUP(A62,tesserati[],2,FALSE)),"",VLOOKUP(A62,tesserati[],2,FALSE)) ->  | C62: =IF(ISERROR(VLOOKUP(A62,tesserati[],3,FALSE)),"",VLOOKUP(A62,tesserati[],3,FALSE)) ->  | D62: =IF(ISERROR(VLOOKUP(A62,tesserati[],4,FALSE)),"",VLOOKUP(A62,tesserati[],4,FALSE)) ->  | E62: =IF(ISERROR(VLOOKUP(A62,tesserati[],5,FALSE)),"",VLOOKUP(A62,tesserati[],5,FALSE)) ->  | F62: =IF(ISERROR(VLOOKUP(A62,tesserati[],7,FALSE)),"",VLOOKUP(A62,tesserati[],7,FALSE)) -> 
B63: =IF(ISERROR(VLOOKUP(A63,tesserati[],2,FALSE)),"",VLOOKUP(A63,tesserati[],2,FALSE)) ->  | C63: =IF(ISERROR(VLOOKUP(A63,tesserati[],3,FALSE)),"",VLOOKUP(A63,tesserati[],3,FALSE)) ->  | D63: =IF(ISERROR(VLOOKUP(A63,tesserati[],4,FALSE)),"",VLOOKUP(A63,tesserati[],4,FALSE)) ->  | E63: =IF(ISERROR(VLOOKUP(A63,tesserati[],5,FALSE)),"",VLOOKUP(A63,tesserati[],5,FALSE)) ->  | F63: =IF(ISERROR(VLOOKUP(A63,tesserati[],7,FALSE)),"",VLOOKUP(A63,tesserati[],7,FALSE)) -> 
B64: =IF(ISERROR(VLOOKUP(A64,tesserati[],2,FALSE)),"",VLOOKUP(A64,tesserati[],2,FALSE)) ->  | C64: =IF(ISERROR(VLOOKUP(A64,tesserati[],3,FALSE)),"",VLOOKUP(A64,tesserati[],3,FALSE)) ->  | D64: =IF(ISERROR(VLOOKUP(A64,tesserati[],4,FALSE)),"",VLOOKUP(A64,tesserati[],4,FALSE)) ->  | E64: =IF(ISERROR(VLOOKUP(A64,tesserati[],5,FALSE)),"",VLOOKUP(A64,tesserati[],5,FALSE)) ->  | F64: =IF(ISERROR(VLOOKUP(A64,tesserati[],7,FALSE)),"",VLOOKUP(A64,tesserati[],7,FALSE)) -> 
B65: =IF(ISERROR(VLOOKUP(A65,tesserati[],2,FALSE)),"",VLOOKUP(A65,tesserati[],2,FALSE)) ->  | C65: =IF(ISERROR(VLOOKUP(A65,tesserati[],3,FALSE)),"",VLOOKUP(A65,tesserati[],3,FALSE)) ->  | D65: =IF(ISERROR(VLOOKUP(A65,tesserati[],4,FALSE)),"",VLOOKUP(A65,tesserati[],4,FALSE)) ->  | E65: =IF(ISERROR(VLOOKUP(A65,tesserati[],5,FALSE)),"",VLOOKUP(A65,tesserati[],5,FALSE)) ->  | F65: =IF(ISERROR(VLOOKUP(A65,tesserati[],7,FALSE)),"",VLOOKUP(A65,tesserati[],7,FALSE)) -> 
B66: =IF(ISERROR(VLOOKUP(A66,tesserati[],2,FALSE)),"",VLOOKUP(A66,tesserati[],2,FALSE)) ->  | C66: =IF(ISERROR(VLOOKUP(A66,tesserati[],3,FALSE)),"",VLOOKUP(A66,tesserati[],3,FALSE)) ->  | D66: =IF(ISERROR(VLOOKUP(A66,tesserati[],4,FALSE)),"",VLOOKUP(A66,tesserati[],4,FALSE)) ->  | E66: =IF(ISERROR(VLOOKUP(A66,tesserati[],5,FALSE)),"",VLOOKUP(A66,tesserati[],5,FALSE)) ->  | F66: =IF(ISERROR(VLOOKUP(A66,tesserati[],7,FALSE)),"",VLOOKUP(A66,tesserati[],7,FALSE)) -> 
B67: =IF(ISERROR(VLOOKUP(A67,tesserati[],2,FALSE)),"",VLOOKUP(A67,tesserati[],2,FALSE)) ->  | C67: =IF(ISERROR(VLOOKUP(A67,tesserati[],3,FALSE)),"",VLOOKUP(A67,tesserati[],3,FALSE)) ->  | D67: =IF(ISERROR(VLOOKUP(A67,tesserati[],4,FALSE)),"",VLOOKUP(A67,tesserati[],4,FALSE)) ->  | E67: =IF(ISERROR(VLOOKUP(A67,tesserati[],5,FALSE)),"",VLOOKUP(A67,tesserati[],5,FALSE)) ->  | F67: =IF(ISERROR(VLOOKUP(A67,tesserati[],7,FALSE)),"",VLOOKUP(A67,tesserati[],7,FALSE)) -> 
B68: =IF(ISERROR(VLOOKUP(A68,tesserati[],2,FALSE)),"",VLOOKUP(A68,tesserati[],2,FALSE)) ->  | C68: =IF(ISERROR(VLOOKUP(A68,tesserati[],3,FALSE)),"",VLOOKUP(A68,tesserati[],3,FALSE)) ->  | D68: =IF(ISERROR(VLOOKUP(A68,tesserati[],4,FALSE)),"",VLOOKUP(A68,tesserati[],4,FALSE)) ->  | E68: =IF(ISERROR(VLOOKUP(A68,tesserati[],5,FALSE)),"",VLOOKUP(A68,tesserati[],5,FALSE)) ->  | F68: =IF(ISERROR(VLOOKUP(A68,tesserati[],7,FALSE)),"",VLOOKUP(A68,tesserati[],7,FALSE)) -> 
B69: =IF(ISERROR(VLOOKUP(A69,tesserati[],2,FALSE)),"",VLOOKUP(A69,tesserati[],2,FALSE)) ->  | C69: =IF(ISERROR(VLOOKUP(A69,tesserati[],3,FALSE)),"",VLOOKUP(A69,tesserati[],3,FALSE)) ->  | D69: =IF(ISERROR(VLOOKUP(A69,tesserati[],4,FALSE)),"",VLOOKUP(A69,tesserati[],4,FALSE)) ->  | E69: =IF(ISERROR(VLOOKUP(A69,tesserati[],5,FALSE)),"",VLOOKUP(A69,tesserati[],5,FALSE)) ->  | F69: =IF(ISERROR(VLOOKUP(A69,tesserati[],7,FALSE)),"",VLOOKUP(A69,tesserati[],7,FALSE)) -> 
B70: =IF(ISERROR(VLOOKUP(A70,tesserati[],2,FALSE)),"",VLOOKUP(A70,tesserati[],2,FALSE)) ->  | C70: =IF(ISERROR(VLOOKUP(A70,tesserati[],3,FALSE)),"",VLOOKUP(A70,tesserati[],3,FALSE)) ->  | D70: =IF(ISERROR(VLOOKUP(A70,tesserati[],4,FALSE)),"",VLOOKUP(A70,tesserati[],4,FALSE)) ->  | E70: =IF(ISERROR(VLOOKUP(A70,tesserati[],5,FALSE)),"",VLOOKUP(A70,tesserati[],5,FALSE)) ->  | F70: =IF(ISERROR(VLOOKUP(A70,tesserati[],7,FALSE)),"",VLOOKUP(A70,tesserati[],7,FALSE)) -> 
B71: =IF(ISERROR(VLOOKUP(A71,tesserati[],2,FALSE)),"",VLOOKUP(A71,tesserati[],2,FALSE)) ->  | C71: =IF(ISERROR(VLOOKUP(A71,tesserati[],3,FALSE)),"",VLOOKUP(A71,tesserati[],3,FALSE)) ->  | D71: =IF(ISERROR(VLOOKUP(A71,tesserati[],4,FALSE)),"",VLOOKUP(A71,tesserati[],4,FALSE)) ->  | E71: =IF(ISERROR(VLOOKUP(A71,tesserati[],5,FALSE)),"",VLOOKUP(A71,tesserati[],5,FALSE)) ->  | F71: =IF(ISERROR(VLOOKUP(A71,tesserati[],7,FALSE)),"",VLOOKUP(A71,tesserati[],7,FALSE)) -> 
B72: =IF(ISERROR(VLOOKUP(A72,tesserati[],2,FALSE)),"",VLOOKUP(A72,tesserati[],2,FALSE)) ->  | C72: =IF(ISERROR(VLOOKUP(A72,tesserati[],3,FALSE)),"",VLOOKUP(A72,tesserati[],3,FALSE)) ->  | D72: =IF(ISERROR(VLOOKUP(A72,tesserati[],4,FALSE)),"",VLOOKUP(A72,tesserati[],4,FALSE)) ->  | E72: =IF(ISERROR(VLOOKUP(A72,tesserati[],5,FALSE)),"",VLOOKUP(A72,tesserati[],5,FALSE)) ->  | F72: =IF(ISERROR(VLOOKUP(A72,tesserati[],7,FALSE)),"",VLOOKUP(A72,tesserati[],7,FALSE)) -> 

Sheet STAFFETTE 4X100 ASS. M
C1: MANIFESTAZIONE | F1: LOCALITA' | I1: SOCIETA' ORGANIZZATRICE
C2: 6° prova provinciale | F2: Tezze sul Brenta | I2: CSI Tezze sul Brenta
A3: CATEGORIA | C3: ORA INIZIO | D3: ORA FINE | F3: GARA | I3: DATA
A4: ASS. M | F4: STAFFETTA 4 X 100 | I4: 2017-09-24
A6: N. tessera | B6: ATLETA COGNOME E NOME | D6: SOCIETA' | E6: NASCITA | F6: CATEGORIA | G6: Corsia | H6: PETTORALE | I6: Tempo | J6: Piazzamento | K6: PUNTI | L6: S.
A8: 1 SERIE | B8: =IF(ISERROR(VLOOKUP(A8,tesserati[],2,FALSE)),"",VLOOKUP(A8,tesserati[],2,FALSE)) ->  | C8: =IF(ISERROR(VLOOKUP(A8,tesserati[],3,FALSE)),"",VLOOKUP(A8,tesserati[],3,FALSE)) ->  | D8: =IF(ISERROR(VLOOKUP(#REF!,tesserati[],5,FALSE)),"",VLOOKUP(#REF!,tesserati[],5,FALSE)) ->  | E8: =IF(ISERROR(VLOOKUP(A8,tesserati[],4,FALSE)),"",VLOOKUP(A8,tesserati[],4,FALSE)) ->  | F8: =IF(ISERROR(VLOOKUP(A8,tesserati[],7,FALSE)),"",VLOOKUP(A8,tesserati[],7,FALSE)) -> 
A9: 4600 | B9: =IF(ISERROR(VLOOKUP(A9,tesserati[],2,FALSE)),"",VLOOKUP(A9,tesserati[],2,FALSE)) -> ZALTRON | C9: =IF(ISERROR(VLOOKUP(A9,tesserati[],3,FALSE)),"",VLOOKUP(A9,tesserati[],3,FALSE)) -> MATTIA | D9: =IF(ISERROR(VLOOKUP(A9,tesserati[],4,FALSE)),"",VLOOKUP(A9,tesserati[],4,FALSE)) -> CSI ATLETICA COLLI BERICI | E9: =IF(ISERROR(VLOOKUP(A9,tesserati[],5,FALSE)),"",VLOOKUP(A9,tesserati[],5,FALSE)) -> 1999 | F9: =IF(ISERROR(VLOOKUP(A9,tesserati[],7,FALSE)),"",VLOOKUP(A9,tesserati[],7,FALSE)) -> JM | G9: 4 | I9: 45.4 | J9: 1 | L9: 2
A10: 4403 | B10: =IF(ISERROR(VLOOKUP(A10,tesserati[],2,FALSE)),"",VLOOKUP(A10,tesserati[],2,FALSE)) -> TOMBOLAN | C10: =IF(ISERROR(VLOOKUP(A10,tesserati[],3,FALSE)),"",VLOOKUP(A10,tesserati[],3,FALSE)) -> SIMONE | D10: =IF(ISERROR(VLOOKUP(A10,tesserati[],4,FALSE)),"",VLOOKUP(A10,tesserati[],4,FALSE)) -> CSI ATLETICA COLLI BERICI | E10: =IF(ISERROR(VLOOKUP(A10,tesserati[],5,FALSE)),"",VLOOKUP(A10,tesserati[],5,FALSE)) -> 1999 | F10: =IF(ISERROR(VLOOKUP(A10,tesserati[],7,FALSE)),"",VLOOKUP(A10,tesserati[],7,FALSE)) -> JM
A11: 4569 | B11: =IF(ISERROR(VLOOKUP(A11,tesserati[],2,FALSE)),"",VLOOKUP(A11,tesserati[],2,FALSE)) -> CRIVELLARO | C11: =IF(ISERROR(VLOOKUP(A11,tesserati[],3,FALSE)),"",VLOOKUP(A11,tesserati[],3,FALSE)) -> MATTIA | D11: =IF(ISERROR(VLOOKUP(A11,tesserati[],4,FALSE)),"",VLOOKUP(A11,tesserati[],4,FALSE)) -> CSI ATLETICA COLLI BERICI | E11: =IF(ISERROR(VLOOKUP(A11,tesserati[],5,FALSE)),"",VLOOKUP(A11,tesserati[],5,FALSE)) -> 1991 | F11: =IF(ISERROR(VLOOKUP(A11,tesserati[],7,FALSE)),"",VLOOKUP(A11,tesserati[],7,FALSE)) -> SM
A12: 4603 | B12: =IF(ISERROR(VLOOKUP(A12,tesserati[],2,FALSE)),"",VLOOKUP(A12,tesserati[],2,FALSE)) -> ZIVOJINOVIC | C12: =IF(ISERROR(VLOOKUP(A12,tesserati[],3,FALSE)),"",VLOOKUP(A12,tesserati[],3,FALSE)) -> MILAN | D12: =IF(ISERROR(VLOOKUP(A12,tesserati[],4,FALSE)),"",VLOOKUP(A12,tesserati[],4,FALSE)) -> CSI ATLETICA COLLI BERICI | E12: =IF(ISERROR(VLOOKUP(A12,tesserati[],5,FALSE)),"",VLOOKUP(A12,tesserati[],5,FALSE)) -> 2001 | F12: =IF(ISERROR(VLOOKUP(A12,tesserati[],7,FALSE)),"",VLOOKUP(A12,tesserati[],7,FALSE)) -> AM
A13: 4026 | B13: =IF(ISERROR(VLOOKUP(A13,tesserati[],2,FALSE)),"",VLOOKUP(A13,tesserati[],2,FALSE)) -> ZORZO | C13: =IF(ISERROR(VLOOKUP(A13,tesserati[],3,FALSE)),"",VLOOKUP(A13,tesserati[],3,FALSE)) -> LEONARDO | D13: =IF(ISERROR(VLOOKUP(A13,tesserati[],4,FALSE)),"",VLOOKUP(A13,tesserati[],4,FALSE)) -> POLISPORTIVA DUEVILLE | E13: =IF(ISERROR(VLOOKUP(A13,tesserati[],5,FALSE)),"",VLOOKUP(A13,tesserati[],5,FALSE)) -> 2001 | F13: =IF(ISERROR(VLOOKUP(A13,tesserati[],7,FALSE)),"",VLOOKUP(A13,tesserati[],7,FALSE)) -> AM | G13: 4 | I13: 48.2 | J13: 2 | L13: 1
A14: 3967 | B14: =IF(ISERROR(VLOOKUP(A14,tesserati[],2,FALSE)),"",VLOOKUP(A14,tesserati[],2,FALSE)) -> FACCIN | C14: =IF(ISERROR(VLOOKUP(A14,tesserati[],3,FALSE)),"",VLOOKUP(A14,tesserati[],3,FALSE)) -> ENRICO | D14: =IF(ISERROR(VLOOKUP(A14,tesserati[],4,FALSE)),"",VLOOKUP(A14,tesserati[],4,FALSE)) -> POLISPORTIVA DUEVILLE | E14: =IF(ISERROR(VLOOKUP(A14,tesserati[],5,FALSE)),"",VLOOKUP(A14,tesserati[],5,FALSE)) -> 1998 | F14: =IF(ISERROR(VLOOKUP(A14,tesserati[],7,FALSE)),"",VLOOKUP(A14,tesserati[],7,FALSE)) -> JM
A15: 3965 | B15: =IF(ISERROR(VLOOKUP(A15,tesserati[],2,FALSE)),"",VLOOKUP(A15,tesserati[],2,FALSE)) -> FACCIN | C15: =IF(ISERROR(VLOOKUP(A15,tesserati[],3,FALSE)),"",VLOOKUP(A15,tesserati[],3,FALSE)) -> ELIA | D15: =IF(ISERROR(VLOOKUP(A15,tesserati[],4,FALSE)),"",VLOOKUP(A15,tesserati[],4,FALSE)) -> POLISPORTIVA DUEVILLE | E15: =IF(ISERROR(VLOOKUP(A15,tesserati[],5,FALSE)),"",VLOOKUP(A15,tesserati[],5,FALSE)) -> 2000 | F15: =IF(ISERROR(VLOOKUP(A15,tesserati[],7,FALSE)),"",VLOOKUP(A15,tesserati[],7,FALSE)) -> AM
A16: 3975 | B16: =IF(ISERROR(VLOOKUP(A16,tesserati[],2,FALSE)),"",VLOOKUP(A16,tesserati[],2,FALSE)) -> LANARO | C16: =IF(ISERROR(VLOOKUP(A16,tesserati[],3,FALSE)),"",VLOOKUP(A16,tesserati[],3,FALSE)) -> GIACOMO | D16: =IF(ISERROR(VLOOKUP(A16,tesserati[],4,FALSE)),"",VLOOKUP(A16,tesserati[],4,FALSE)) -> POLISPORTIVA DUEVILLE | E16: =IF(ISERROR(VLOOKUP(A16,tesserati[],5,FALSE)),"",VLOOKUP(A16,tesserati[],5,FALSE)) -> 1998 | F16: =IF(ISERROR(VLOOKUP(A16,tesserati[],7,FALSE)),"",VLOOKUP(A16,tesserati[],7,FALSE)) -> JM
A17: 4204 | B17: =IF(ISERROR(VLOOKUP(A17,tesserati[],2,FALSE)),"",VLOOKUP(A17,tesserati[],2,FALSE)) -> SABBADINI | C17: =IF(ISERROR(VLOOKUP(A17,tesserati[],3,FALSE)),"",VLOOKUP(A17,tesserati[],3,FALSE)) -> SIMONE | D17: =IF(ISERROR(VLOOKUP(A17,tesserati[],4,FALSE)),"",VLOOKUP(A17,tesserati[],4,FALSE)) -> ATLETICA TRISSINO | E17: =IF(ISERROR(VLOOKUP(A17,tesserati[],5,FALSE)),"",VLOOKUP(A17,tesserati[],5,FALSE)) -> 2001 | F17: =IF(ISERROR(VLOOKUP(A17,tesserati[],7,FALSE)),"",VLOOKUP(A17,tesserati[],7,FALSE)) -> AM | G17: 5 | I17: 48.6 | J17: 3 | L17: 1
A18: 4181 | B18: =IF(ISERROR(VLOOKUP(A18,tesserati[],2,FALSE)),"",VLOOKUP(A18,tesserati[],2,FALSE)) -> MASSIGNAN | C18: =IF(ISERROR(VLOOKUP(A18,tesserati[],3,FALSE)),"",VLOOKUP(A18,tesserati[],3,FALSE)) -> ENRICO MARIO | D18: =IF(ISERROR(VLOOKUP(A18,tesserati[],4,FALSE)),"",VLOOKUP(A18,tesserati[],4,FALSE)) -> ATLETICA TRISSINO | E18: =IF(ISERROR(VLOOKUP(A18,tesserati[],5,FALSE)),"",VLOOKUP(A18,tesserati[],5,FALSE)) -> 1986 | F18: =IF(ISERROR(VLOOKUP(A18,tesserati[],7,FALSE)),"",VLOOKUP(A18,tesserati[],7,FALSE)) -> SM
A19: 4202 | B19: =IF(ISERROR(VLOOKUP(A19,tesserati[],2,FALSE)),"",VLOOKUP(A19,tesserati[],2,FALSE)) -> PELLIZZARO | C19: =IF(ISERROR(VLOOKUP(A19,tesserati[],3,FALSE)),"",VLOOKUP(A19,tesserati[],3,FALSE)) -> FABIO | D19: =IF(ISERROR(VLOOKUP(A19,tesserati[],4,FALSE)),"",VLOOKUP(A19,tesserati[],4,FALSE)) -> ATLETICA TRISSINO | E19: =IF(ISERROR(VLOOKUP(A19,tesserati[],5,FALSE)),"",VLOOKUP(A19,tesserati[],5,FALSE)) -> 1997 | F19: =IF(ISERROR(VLOOKUP(A19,tesserati[],7,FALSE)),"",VLOOKUP(A19,tesserati[],7,FALSE)) -> SM
A20: 4189 | B20: =IF(ISERROR(VLOOKUP(A20,tesserati[],2,FALSE)),"",VLOOKUP(A20,tesserati[],2,FALSE)) -> BUSATO | C20: =IF(ISERROR(VLOOKUP(A20,tesserati[],3,FALSE)),"",VLOOKUP(A20,tesserati[],3,FALSE)) -> GIOVANNI | D20: =IF(ISERROR(VLOOKUP(A20,tesserati[],4,FALSE)),"",VLOOKUP(A20,tesserati[],4,FALSE)) -> ATLETICA TRISSINO | E20: =IF(ISERROR(VLOOKUP(A20,tesserati[],5,FALSE)),"",VLOOKUP(A20,tesserati[],5,FALSE)) -> 2001 | F20: =IF(ISERROR(VLOOKUP(A20,tesserati[],7,FALSE)),"",VLOOKUP(A20,tesserati[],7,FALSE)) -> AM
A21: 2461 | B21: =IF(ISERROR(VLOOKUP(A21,tesserati[],2,FALSE)),"",VLOOKUP(A21,tesserati[],2,FALSE)) -> BATTISTELLA | C21: =IF(ISERROR(VLOOKUP(A21,tesserati[],3,FALSE)),"",VLOOKUP(A21,tesserati[],3,FALSE)) -> ANDREA | D21: =IF(ISERROR(VLOOKUP(A21,tesserati[],4,FALSE)),"",VLOOKUP(A21,tesserati[],4,FALSE)) -> C.S.I. TEZZE SUL BRENTA | E21: =IF(ISERROR(VLOOKUP(A21,tesserati[],5,FALSE)),"",VLOOKUP(A21,tesserati[],5,FALSE)) -> 2001 | F21: =IF(ISERROR(VLOOKUP(A21,tesserati[],7,FALSE)),"",VLOOKUP(A21,tesserati[],7,FALSE)) -> AM | G21: 3 | I21: 48.9 | J21: 4 | L21: 1
A22: 3646 | B22: =IF(ISERROR(VLOOKUP(A22,tesserati[],2,FALSE)),"",VLOOKUP(A22,tesserati[],2,FALSE)) -> TEGORELLI | C22: =IF(ISERROR(VLOOKUP(A22,tesserati[],3,FALSE)),"",VLOOKUP(A22,tesserati[],3,FALSE)) -> FAUSTO | D22: =IF(ISERROR(VLOOKUP(A22,tesserati[],4,FALSE)),"",VLOOKUP(A22,tesserati[],4,FALSE)) -> C.S.I. TEZZE SUL BRENTA | E22: =IF(ISERROR(VLOOKUP(A22,tesserati[],5,FALSE)),"",VLOOKUP(A22,tesserati[],5,FALSE)) -> 1965 | F22: =IF(ISERROR(VLOOKUP(A22,tesserati[],7,FALSE)),"",VLOOKUP(A22,tesserati[],7,FALSE)) -> ABM
A23: 2481 | B23: =IF(ISERROR(VLOOKUP(A23,tesserati[],2,FALSE)),"",VLOOKUP(A23,tesserati[],2,FALSE)) -> BRESOLIN | C23: =IF(ISERROR(VLOOKUP(A23,tesserati[],3,FALSE)),"",VLOOKUP(A23,tesserati[],3,FALSE)) -> DAVIDE | D23: =IF(ISERROR(VLOOKUP(A23,tesserati[],4,FALSE)),"",VLOOKUP(A23,tesserati[],4,FALSE)) -> C.S.I. TEZZE SUL BRENTA | E23: =IF(ISERROR(VLOOKUP(A23,tesserati[],5,FALSE)),"",VLOOKUP(A23,tesserati[],5,FALSE)) -> 2001 | F23: =IF(ISERROR(VLOOKUP(A23,tesserati[],7,FALSE)),"",VLOOKUP(A23,tesserati[],7,FALSE)) -> AM
A24: 3635 | B24: =IF(ISERROR(VLOOKUP(A24,tesserati[],2,FALSE)),"",VLOOKUP(A24,tesserati[],2,FALSE)) -> CERANTOLA | C24: =IF(ISERROR(VLOOKUP(A24,tesserati[],3,FALSE)),"",VLOOKUP(A24,tesserati[],3,FALSE)) -> DANIELE | D24: =IF(ISERROR(VLOOKUP(A24,tesserati[],4,FALSE)),"",VLOOKUP(A24,tesserati[],4,FALSE)) -> C.S.I. TEZZE SUL BRENTA | E24: =IF(ISERROR(VLOOKUP(A24,tesserati[],5,FALSE)),"",VLOOKUP(A24,tesserati[],5,FALSE)) -> 1999 | F24: =IF(ISERROR(VLOOKUP(A24,tesserati[],7,FALSE)),"",VLOOKUP(A24,tesserati[],7,FALSE)) -> JM
A25: 6720 | B25: =IF(ISERROR(VLOOKUP(A25,tesserati[],2,FALSE)),"",VLOOKUP(A25,tesserati[],2,FALSE)) -> MISSIAGGIA | C25: =IF(ISERROR(VLOOKUP(A25,tesserati[],3,FALSE)),"",VLOOKUP(A25,tesserati[],3,FALSE)) -> LUCA | D25: =IF(ISERROR(VLOOKUP(A25,tesserati[],4,FALSE)),"",VLOOKUP(A25,tesserati[],4,FALSE)) -> POL. DIL. MONTECCHIO PRECALCINO | E25: =IF(ISERROR(VLOOKUP(A25,tesserati[],5,FALSE)),"",VLOOKUP(A25,tesserati[],5,FALSE)) -> 2001 | F25: =IF(ISERROR(VLOOKUP(A25,tesserati[],7,FALSE)),"",VLOOKUP(A25,tesserati[],7,FALSE)) -> AM | G25: 5 | I25: 49.6 | J25: 5 | L25: 2
A26: 2694 | B26: =IF(ISERROR(VLOOKUP(A26,tesserati[],2,FALSE)),"",VLOOKUP(A26,tesserati[],2,FALSE)) -> FRIZZARIN | C26: =IF(ISERROR(VLOOKUP(A26,tesserati[],3,FALSE)),"",VLOOKUP(A26,tesserati[],3,FALSE)) -> FABIO | D26: =IF(ISERROR(VLOOKUP(A26,tesserati[],4,FALSE)),"",VLOOKUP(A26,tesserati[],4,FALSE)) -> POL. DIL. MONTECCHIO PRECALCINO | E26: =IF(ISERROR(VLOOKUP(A26,tesserati[],5,FALSE)),"",VLOOKUP(A26,tesserati[],5,FALSE)) -> 2000 | F26: =IF(ISERROR(VLOOKUP(A26,tesserati[],7,FALSE)),"",VLOOKUP(A26,tesserati[],7,FALSE)) -> AM
A27: 2706 | B27: =IF(ISERROR(VLOOKUP(A27,tesserati[],2,FALSE)),"",VLOOKUP(A27,tesserati[],2,FALSE)) -> DAL FERRO | C27: =IF(ISERROR(VLOOKUP(A27,tesserati[],3,FALSE)),"",VLOOKUP(A27,tesserati[],3,FALSE)) -> NICOLA | D27: =IF(ISERROR(VLOOKUP(A27,tesserati[],4,FALSE)),"",VLOOKUP(A27,tesserati[],4,FALSE)) -> POL. DIL. MONTECCHIO PRECALCINO | E27: =IF(ISERROR(VLOOKUP(A27,tesserati[],5,FALSE)),"",VLOOKUP(A27,tesserati[],5,FALSE)) -> 2001 | F27: =IF(ISERROR(VLOOKUP(A27,tesserati[],7,FALSE)),"",VLOOKUP(A27,tesserati[],7,FALSE)) -> AM
A28: 2699 | B28: =IF(ISERROR(VLOOKUP(A28,tesserati[],2,FALSE)),"",VLOOKUP(A28,tesserati[],2,FALSE)) -> MORO | C28: =IF(ISERROR(VLOOKUP(A28,tesserati[],3,FALSE)),"",VLOOKUP(A28,tesserati[],3,FALSE)) -> FILIPPO | D28: =IF(ISERROR(VLOOKUP(A28,tesserati[],4,FALSE)),"",VLOOKUP(A28,tesserati[],4,FALSE)) -> POL. DIL. MONTECCHIO PRECALCINO | E28: =IF(ISERROR(VLOOKUP(A28,tesserati[],5,FALSE)),"",VLOOKUP(A28,tesserati[],5,FALSE)) -> 1996 | F28: =IF(ISERROR(VLOOKUP(A28,tesserati[],7,FALSE)),"",VLOOKUP(A28,tesserati[],7,FALSE)) -> SM
A29: 2826 | B29: =IF(ISERROR(VLOOKUP(A29,tesserati[],2,FALSE)),"",VLOOKUP(A29,tesserati[],2,FALSE)) -> CATTELAN | C29: =IF(ISERROR(VLOOKUP(A29,tesserati[],3,FALSE)),"",VLOOKUP(A29,tesserati[],3,FALSE)) -> MANUEL | D29: =IF(ISERROR(VLOOKUP(A29,tesserati[],4,FALSE)),"",VLOOKUP(A29,tesserati[],4,FALSE)) -> RISORGIVE | E29: =IF(ISERROR(VLOOKUP(A29,tesserati[],5,FALSE)),"",VLOOKUP(A29,tesserati[],5,FALSE)) -> 1999 | F29: =IF(ISERROR(VLOOKUP(A29,tesserati[],7,FALSE)),"",VLOOKUP(A29,tesserati[],7,FALSE)) -> JM | G29: 2 | I29: 50.4 | J29: 6 | L29: 2
A30: 2839 | B30: =IF(ISERROR(VLOOKUP(A30,tesserati[],2,FALSE)),"",VLOOKUP(A30,tesserati[],2,FALSE)) -> PISANELLO | C30: =IF(ISERROR(VLOOKUP(A30,tesserati[],3,FALSE)),"",VLOOKUP(A30,tesserati[],3,FALSE)) -> LORENZO | D30: =IF(ISERROR(VLOOKUP(A30,tesserati[],4,FALSE)),"",VLOOKUP(A30,tesserati[],4,FALSE)) -> RISORGIVE | E30: =IF(ISERROR(VLOOKUP(A30,tesserati[],5,FALSE)),"",VLOOKUP(A30,tesserati[],5,FALSE)) -> 1994 | F30: =IF(ISERROR(VLOOKUP(A30,tesserati[],7,FALSE)),"",VLOOKUP(A30,tesserati[],7,FALSE)) -> SM
A31: 2825 | B31: =IF(ISERROR(VLOOKUP(A31,tesserati[],2,FALSE)),"",VLOOKUP(A31,tesserati[],2,FALSE)) -> CAPPELLARI | C31: =IF(ISERROR(VLOOKUP(A31,tesserati[],3,FALSE)),"",VLOOKUP(A31,tesserati[],3,FALSE)) -> GIACOMO | D31: =IF(ISERROR(VLOOKUP(A31,tesserati[],4,FALSE)),"",VLOOKUP(A31,tesserati[],4,FALSE)) -> RISORGIVE | E31: =IF(ISERROR(VLOOKUP(A31,tesserati[],5,FALSE)),"",VLOOKUP(A31,tesserati[],5,FALSE)) -> 1995 | F31: =IF(ISERROR(VLOOKUP(A31,tesserati[],7,FALSE)),"",VLOOKUP(A31,tesserati[],7,FALSE)) -> SM
A32: 2845 | B32: =IF(ISERROR(VLOOKUP(A32,tesserati[],2,FALSE)),"",VLOOKUP(A32,tesserati[],2,FALSE)) -> VASSALLO | C32: =IF(ISERROR(VLOOKUP(A32,tesserati[],3,FALSE)),"",VLOOKUP(A32,tesserati[],3,FALSE)) -> FEDERICO | D32: =IF(ISERROR(VLOOKUP(A32,tesserati[],4,FALSE)),"",VLOOKUP(A32,tesserati[],4,FALSE)) -> RISORGIVE | E32: =IF(ISERROR(VLOOKUP(A32,tesserati[],5,FALSE)),"",VLOOKUP(A32,tesserati[],5,FALSE)) -> 1993 | F32: =IF(ISERROR(VLOOKUP(A32,tesserati[],7,FALSE)),"",VLOOKUP(A32,tesserati[],7,FALSE)) -> SM
A33: 3004 | B33: =IF(ISERROR(VLOOKUP(A33,tesserati[],2,FALSE)),"",VLOOKUP(A33,tesserati[],2,FALSE)) -> ZAMUNARO | C33: =IF(ISERROR(VLOOKUP(A33,tesserati[],3,FALSE)),"",VLOOKUP(A33,tesserati[],3,FALSE)) -> NICOLA | D33: =IF(ISERROR(VLOOKUP(A33,tesserati[],4,FALSE)),"",VLOOKUP(A33,tesserati[],4,FALSE)) -> ATLETICA UNION CREAZZO | E33: =IF(ISERROR(VLOOKUP(A33,tesserati[],5,FALSE)),"",VLOOKUP(A33,tesserati[],5,FALSE)) -> 1997 | F33: =IF(ISERROR(VLOOKUP(A33,tesserati[],7,FALSE)),"",VLOOKUP(A33,tesserati[],7,FALSE)) -> SM | G33: 2 | I33: 51.2 | J33: 7 | L33: 1
A34: 2995 | B34: =IF(ISERROR(VLOOKUP(A34,tesserati[],2,FALSE)),"",VLOOKUP(A34,tesserati[],2,FALSE)) -> SARTORI | C34: =IF(ISERROR(VLOOKUP(A34,tesserati[],3,FALSE)),"",VLOOKUP(A34,tesserati[],3,FALSE)) -> MICHELE | D34: =IF(ISERROR(VLOOKUP(A34,tesserati[],4,FALSE)),"",VLOOKUP(A34,tesserati[],4,FALSE)) -> ATLETICA UNION CREAZZO | E34: =IF(ISERROR(VLOOKUP(A34,tesserati[],5,FALSE)),"",VLOOKUP(A34,tesserati[],5,FALSE)) -> 2001 | F34: =IF(ISERROR(VLOOKUP(A34,tesserati[],7,FALSE)),"",VLOOKUP(A34,tesserati[],7,FALSE)) -> AM
A35: 3028 | B35: =IF(ISERROR(VLOOKUP(A35,tesserati[],2,FALSE)),"",VLOOKUP(A35,tesserati[],2,FALSE)) -> AGU | C35: =IF(ISERROR(VLOOKUP(A35,tesserati[],3,FALSE)),"",VLOOKUP(A35,tesserati[],3,FALSE)) -> CHINEDU | D35: =IF(ISERROR(VLOOKUP(A35,tesserati[],4,FALSE)),"",VLOOKUP(A35,tesserati[],4,FALSE)) -> ATLETICA UNION CREAZZO | E35: =IF(ISERROR(VLOOKUP(A35,tesserati[],5,FALSE)),"",VLOOKUP(A35,tesserati[],5,FALSE)) -> 2001 | F35: =IF(ISERROR(VLOOKUP(A35,tesserati[],7,FALSE)),"",VLOOKUP(A35,tesserati[],7,FALSE)) -> AM
A36: 1957 | B36: =IF(ISERROR(VLOOKUP(A36,tesserati[],2,FALSE)),"",VLOOKUP(A36,tesserati[],2,FALSE)) -> MARCHETTO | C36: =IF(ISERROR(VLOOKUP(A36,tesserati[],3,FALSE)),"",VLOOKUP(A36,tesserati[],3,FALSE)) -> GIULIO | D36: =IF(ISERROR(VLOOKUP(A36,tesserati[],4,FALSE)),"",VLOOKUP(A36,tesserati[],4,FALSE)) -> ATLETICA UNION CREAZZO | E36: =IF(ISERROR(VLOOKUP(A36,tesserati[],5,FALSE)),"",VLOOKUP(A36,tesserati[],5,FALSE)) -> 1995 | F36: =IF(ISERROR(VLOOKUP(A36,tesserati[],7,FALSE)),"",VLOOKUP(A36,tesserati[],7,FALSE)) -> SM
A37: 2479 | B37: =IF(ISERROR(VLOOKUP(A37,tesserati[],2,FALSE)),"",VLOOKUP(A37,tesserati[],2,FALSE)) -> BAGGIO | C37: =IF(ISERROR(VLOOKUP(A37,tesserati[],3,FALSE)),"",VLOOKUP(A37,tesserati[],3,FALSE)) -> ANDREA | D37: =IF(ISERROR(VLOOKUP(A37,tesserati[],4,FALSE)),"",VLOOKUP(A37,tesserati[],4,FALSE)) -> C.S.I. TEZZE SUL BRENTA | E37: =IF(ISERROR(VLOOKUP(A37,tesserati[],5,FALSE)),"",VLOOKUP(A37,tesserati[],5,FALSE)) -> 2000 | F37: =IF(ISERROR(VLOOKUP(A37,tesserati[],7,FALSE)),"",VLOOKUP(A37,tesserati[],7,FALSE)) -> AM | G37: 3 | I37: Sq. | L37: 2
A38: 3462 | B38: =IF(ISERROR(VLOOKUP(A38,tesserati[],2,FALSE)),"",VLOOKUP(A38,tesserati[],2,FALSE)) -> ZERBINATI | C38: =IF(ISERROR(VLOOKUP(A38,tesserati[],3,FALSE)),"",VLOOKUP(A38,tesserati[],3,FALSE)) -> MICHELA | D38: =IF(ISERROR(VLOOKUP(A38,tesserati[],4,FALSE)),"",VLOOKUP(A38,tesserati[],4,FALSE)) -> ATLETICA UNION CREAZZO | E38: =IF(ISERROR(VLOOKUP(A38,tesserati[],5,FALSE)),"",VLOOKUP(A38,tesserati[],5,FALSE)) -> 1973 | F38: =IF(ISERROR(VLOOKUP(A38,tesserati[],7,FALSE)),"",VLOOKUP(A38,tesserati[],7,FALSE)) -> AAF
A39: 921 | B39: =IF(ISERROR(VLOOKUP(A39,tesserati[],2,FALSE)),"",VLOOKUP(A39,tesserati[],2,FALSE)) -> LAGO | C39: =IF(ISERROR(VLOOKUP(A39,tesserati[],3,FALSE)),"",VLOOKUP(A39,tesserati[],3,FALSE)) -> ALBERTO | D39: =IF(ISERROR(VLOOKUP(A39,tesserati[],4,FALSE)),"",VLOOKUP(A39,tesserati[],4,FALSE)) -> C.S.I. TEZZE SUL BRENTA | E39: =IF(ISERROR(VLOOKUP(A39,tesserati[],5,FALSE)),"",VLOOKUP(A39,tesserati[],5,FALSE)) -> 1979 | F39: =IF(ISERROR(VLOOKUP(A39,tesserati[],7,FALSE)),"",VLOOKUP(A39,tesserati[],7,FALSE)) -> AAM
A40: 5218 | B40: =IF(ISERROR(VLOOKUP(A40,tesserati[],2,FALSE)),"",VLOOKUP(A40,tesserati[],2,FALSE)) -> RIZZOTTO | C40: =IF(ISERROR(VLOOKUP(A40,tesserati[],3,FALSE)),"",VLOOKUP(A40,tesserati[],3,FALSE)) -> ANDREA | D40: =IF(ISERROR(VLOOKUP(A40,tesserati[],4,FALSE)),"",VLOOKUP(A40,tesserati[],4,FALSE)) -> C.S.I. TEZZE SUL BRENTA | E40: =IF(ISERROR(VLOOKUP(A40,tesserati[],5,FALSE)),"",VLOOKUP(A40,tesserati[],5,FALSE)) -> 1997 | F40: =IF(ISERROR(VLOOKUP(A40,tesserati[],7,FALSE)),"",VLOOKUP(A40,tesserati[],7,FALSE)) -> SM
A41: Squalifica per infrazione reg. 170.7 terzo cambio
B42: =IF(ISERROR(VLOOKUP(A42,tesserati[],2,FALSE)),"",VLOOKUP(A42,tesserati[],2,FALSE)) ->  | C42: =IF(ISERROR(VLOOKUP(A42,tesserati[],3,FALSE)),"",VLOOKUP(A42,tesserati[],3,FALSE)) ->  | D42: =IF(ISERROR(VLOOKUP(A42,tesserati[],4,FALSE)),"",VLOOKUP(A42,tesserati[],4,FALSE)) ->  | E42: =IF(ISERROR(VLOOKUP(A42,tesserati[],5,FALSE)),"",VLOOKUP(A42,tesserati[],5,FALSE)) ->  | F42: =IF(ISERROR(VLOOKUP(A42,tesserati[],7,FALSE)),"",VLOOKUP(A42,tesserati[],7,FALSE)) -> 
B43: =IF(ISERROR(VLOOKUP(A43,tesserati[],2,FALSE)),"",VLOOKUP(A43,tesserati[],2,FALSE)) ->  | C43: =IF(ISERROR(VLOOKUP(A43,tesserati[],3,FALSE)),"",VLOOKUP(A43,tesserati[],3,FALSE)) ->  | D43: =IF(ISERROR(VLOOKUP(A43,tesserati[],4,FALSE)),"",VLOOKUP(A43,tesserati[],4,FALSE)) ->  | E43: =IF(ISERROR(VLOOKUP(A43,tesserati[],5,FALSE)),"",VLOOKUP(A43,tesserati[],5,FALSE)) ->  | F43: =IF(ISERROR(VLOOKUP(A43,tesserati[],7,FALSE)),"",VLOOKUP(A43,tesserati[],7,FALSE)) -> 
B44: =IF(ISERROR(VLOOKUP(A44,tesserati[],2,FALSE)),"",VLOOKUP(A44,tesserati[],2,FALSE)) ->  | C44: =IF(ISERROR(VLOOKUP(A44,tesserati[],3,FALSE)),"",VLOOKUP(A44,tesserati[],3,FALSE)) ->  | D44: =IF(ISERROR(VLOOKUP(A44,tesserati[],4,FALSE)),"",VLOOKUP(A44,tesserati[],4,FALSE)) ->  | E44: =IF(ISERROR(VLOOKUP(A44,tesserati[],5,FALSE)),"",VLOOKUP(A44,tesserati[],5,FALSE)) ->  | F44: =IF(ISERROR(VLOOKUP(A44,tesserati[],7,FALSE)),"",VLOOKUP(A44,tesserati[],7,FALSE)) -> 
B45: =IF(ISERROR(VLOOKUP(A45,tesserati[],2,FALSE)),"",VLOOKUP(A45,tesserati[],2,FALSE)) ->  | C45: =IF(ISERROR(VLOOKUP(A45,tesserati[],3,FALSE)),"",VLOOKUP(A45,tesserati[],3,FALSE)) ->  | D45: =IF(ISERROR(VLOOKUP(A45,tesserati[],4,FALSE)),"",VLOOKUP(A45,tesserati[],4,FALSE)) ->  | E45: =IF(ISERROR(VLOOKUP(A45,tesserati[],5,FALSE)),"",VLOOKUP(A45,tesserati[],5,FALSE)) ->  | F45: =IF(ISERROR(VLOOKUP(A45,tesserati[],7,FALSE)),"",VLOOKUP(A45,tesserati[],7,FALSE)) -> 
B46: =IF(ISERROR(VLOOKUP(A46,tesserati[],2,FALSE)),"",VLOOKUP(A46,tesserati[],2,FALSE)) ->  | C46: =IF(ISERROR(VLOOKUP(A46,tesserati[],3,FALSE)),"",VLOOKUP(A46,tesserati[],3,FALSE)) ->  | D46: =IF(ISERROR(VLOOKUP(A46,tesserati[],4,FALSE)),"",VLOOKUP(A46,tesserati[],4,FALSE)) ->  | E46: =IF(ISERROR(VLOOKUP(A46,tesserati[],5,FALSE)),"",VLOOKUP(A46,tesserati[],5,FALSE)) ->  | F46: =IF(ISERROR(VLOOKUP(A46,tesserati[],7,FALSE)),"",VLOOKUP(A46,tesserati[],7,FALSE)) -> 
B47: =IF(ISERROR(VLOOKUP(A47,tesserati[],2,FALSE)),"",VLOOKUP(A47,tesserati[],2,FALSE)) ->  | C47: =IF(ISERROR(VLOOKUP(A47,tesserati[],3,FALSE)),"",VLOOKUP(A47,tesserati[],3,FALSE)) ->  | D47: =IF(ISERROR(VLOOKUP(A47,tesserati[],4,FALSE)),"",VLOOKUP(A47,tesserati[],4,FALSE)) ->  | E47: =IF(ISERROR(VLOOKUP(A47,tesserati[],5,FALSE)),"",VLOOKUP(A47,tesserati[],5,FALSE)) ->  | F47: =IF(ISERROR(VLOOKUP(A47,tesserati[],7,FALSE)),"",VLOOKUP(A47,tesserati[],7,FALSE)) -> 
B48: =IF(ISERROR(VLOOKUP(A48,tesserati[],2,FALSE)),"",VLOOKUP(A48,tesserati[],2,FALSE)) ->  | C48: =IF(ISERROR(VLOOKUP(A48,tesserati[],3,FALSE)),"",VLOOKUP(A48,tesserati[],3,FALSE)) ->  | D48: =IF(ISERROR(VLOOKUP(A48,tesserati[],4,FALSE)),"",VLOOKUP(A48,tesserati[],4,FALSE)) ->  | E48: =IF(ISERROR(VLOOKUP(A48,tesserati[],5,FALSE)),"",VLOOKUP(A48,tesserati[],5,FALSE)) ->  | F48: =IF(ISERROR(VLOOKUP(A48,tesserati[],7,FALSE)),"",VLOOKUP(A48,tesserati[],7,FALSE)) -> 
B49: =IF(ISERROR(VLOOKUP(A49,tesserati[],2,FALSE)),"",VLOOKUP(A49,tesserati[],2,FALSE)) ->  | C49: =IF(ISERROR(VLOOKUP(A49,tesserati[],3,FALSE)),"",VLOOKUP(A49,tesserati[],3,FALSE)) ->  | D49: =IF(ISERROR(VLOOKUP(A49,tesserati[],4,FALSE)),"",VLOOKUP(A49,tesserati[],4,FALSE)) ->  | E49: =IF(ISERROR(VLOOKUP(A49,tesserati[],5,FALSE)),"",VLOOKUP(A49,tesserati[],5,FALSE)) ->  | F49: =IF(ISERROR(VLOOKUP(A49,tesserati[],7,FALSE)),"",VLOOKUP(A49,tesserati[],7,FALSE)) -> 
B50: =IF(ISERROR(VLOOKUP(A50,tesserati[],2,FALSE)),"",VLOOKUP(A50,tesserati[],2,FALSE)) ->  | C50: =IF(ISERROR(VLOOKUP(A50,tesserati[],3,FALSE)),"",VLOOKUP(A50,tesserati[],3,FALSE)) ->  | D50: =IF(ISERROR(VLOOKUP(A50,tesserati[],4,FALSE)),"",VLOOKUP(A50,tesserati[],4,FALSE)) ->  | E50: =IF(ISERROR(VLOOKUP(A50,tesserati[],5,FALSE)),"",VLOOKUP(A50,tesserati[],5,FALSE)) ->  | F50: =IF(ISERROR(VLOOKUP(A50,tesserati[],7,FALSE)),"",VLOOKUP(A50,tesserati[],7,FALSE)) -> 
B51: =IF(ISERROR(VLOOKUP(A51,tesserati[],2,FALSE)),"",VLOOKUP(A51,tesserati[],2,FALSE)) ->  | C51: =IF(ISERROR(VLOOKUP(A51,tesserati[],3,FALSE)),"",VLOOKUP(A51,tesserati[],3,FALSE)) ->  | D51: =IF(ISERROR(VLOOKUP(A51,tesserati[],4,FALSE)),"",VLOOKUP(A51,tesserati[],4,FALSE)) ->  | E51: =IF(ISERROR(VLOOKUP(A51,tesserati[],5,FALSE)),"",VLOOKUP(A51,tesserati[],5,FALSE)) ->  | F51: =IF(ISERROR(VLOOKUP(A51,tesserati[],7,FALSE)),"",VLOOKUP(A51,tesserati[],7,FALSE)) -> 
B52: =IF(ISERROR(VLOOKUP(A52,tesserati[],2,FALSE)),"",VLOOKUP(A52,tesserati[],2,FALSE)) ->  | C52: =IF(ISERROR(VLOOKUP(A52,tesserati[],3,FALSE)),"",VLOOKUP(A52,tesserati[],3,FALSE)) ->  | D52: =IF(ISERROR(VLOOKUP(A52,tesserati[],4,FALSE)),"",VLOOKUP(A52,tesserati[],4,FALSE)) ->  | E52: =IF(ISERROR(VLOOKUP(A52,tesserati[],5,FALSE)),"",VLOOKUP(A52,tesserati[],5,FALSE)) ->  | F52: =IF(ISERROR(VLOOKUP(A52,tesserati[],7,FALSE)),"",VLOOKUP(A52,tesserati[],7,FALSE)) -> 
B53: =IF(ISERROR(VLOOKUP(A53,tesserati[],2,FALSE)),"",VLOOKUP(A53,tesserati[],2,FALSE)) ->  | C53: =IF(ISERROR(VLOOKUP(A53,tesserati[],3,FALSE)),"",VLOOKUP(A53,tesserati[],3,FALSE)) ->  | D53: =IF(ISERROR(VLOOKUP(A53,tesserati[],4,FALSE)),"",VLOOKUP(A53,tesserati[],4,FALSE)) ->  | E53: =IF(ISERROR(VLOOKUP(A53,tesserati[],5,FALSE)),"",VLOOKUP(A53,tesserati[],5,FALSE)) ->  | F53: =IF(ISERROR(VLOOKUP(A53,tesserati[],7,FALSE)),"",VLOOKUP(A53,tesserati[],7,FALSE)) -> 
B54: =IF(ISERROR(VLOOKUP(A54,tesserati[],2,FALSE)),"",VLOOKUP(A54,tesserati[],2,FALSE)) ->  | C54: =IF(ISERROR(VLOOKUP(A54,tesserati[],3,FALSE)),"",VLOOKUP(A54,tesserati[],3,FALSE)) ->  | D54: =IF(ISERROR(VLOOKUP(A54,tesserati[],4,FALSE)),"",VLOOKUP(A54,tesserati[],4,FALSE)) ->  | E54: =IF(ISERROR(VLOOKUP(A54,tesserati[],5,FALSE)),"",VLOOKUP(A54,tesserati[],5,FALSE)) ->  | F54: =IF(ISERROR(VLOOKUP(A54,tesserati[],7,FALSE)),"",VLOOKUP(A54,tesserati[],7,FALSE)) -> 
B55: =IF(ISERROR(VLOOKUP(A55,tesserati[],2,FALSE)),"",VLOOKUP(A55,tesserati[],2,FALSE)) ->  | C55: =IF(ISERROR(VLOOKUP(A55,tesserati[],3,FALSE)),"",VLOOKUP(A55,tesserati[],3,FALSE)) ->  | D55: =IF(ISERROR(VLOOKUP(A55,tesserati[],4,FALSE)),"",VLOOKUP(A55,tesserati[],4,FALSE)) ->  | E55: =IF(ISERROR(VLOOKUP(A55,tesserati[],5,FALSE)),"",VLOOKUP(A55,tesserati[],5,FALSE)) ->  | F55: =IF(ISERROR(VLOOKUP(A55,tesserati[],7,FALSE)),"",VLOOKUP(A55,tesserati[],7,FALSE)) -> 
B56: =IF(ISERROR(VLOOKUP(A56,tesserati[],2,FALSE)),"",VLOOKUP(A56,tesserati[],2,FALSE)) ->  | C56: =IF(ISERROR(VLOOKUP(A56,tesserati[],3,FALSE)),"",VLOOKUP(A56,tesserati[],3,FALSE)) ->  | D56: =IF(ISERROR(VLOOKUP(A56,tesserati[],4,FALSE)),"",VLOOKUP(A56,tesserati[],4,FALSE)) ->  | E56: =IF(ISERROR(VLOOKUP(A56,tesserati[],5,FALSE)),"",VLOOKUP(A56,tesserati[],5,FALSE)) ->  | F56: =IF(ISERROR(VLOOKUP(A56,tesserati[],7,FALSE)),"",VLOOKUP(A56,tesserati[],7,FALSE)) -> 
B57: =IF(ISERROR(VLOOKUP(A57,tesserati[],2,FALSE)),"",VLOOKUP(A57,tesserati[],2,FALSE)) ->  | C57: =IF(ISERROR(VLOOKUP(A57,tesserati[],3,FALSE)),"",VLOOKUP(A57,tesserati[],3,FALSE)) ->  | D57: =IF(ISERROR(VLOOKUP(A57,tesserati[],4,FALSE)),"",VLOOKUP(A57,tesserati[],4,FALSE)) ->  | E57: =IF(ISERROR(VLOOKUP(A57,tesserati[],5,FALSE)),"",VLOOKUP(A57,tesserati[],5,FALSE)) ->  | F57: =IF(ISERROR(VLOOKUP(A57,tesserati[],7,FALSE)),"",VLOOKUP(A57,tesserati[],7,FALSE)) -> 
B58: =IF(ISERROR(VLOOKUP(A58,tesserati[],2,FALSE)),"",VLOOKUP(A58,tesserati[],2,FALSE)) ->  | C58: =IF(ISERROR(VLOOKUP(A58,tesserati[],3,FALSE)),"",VLOOKUP(A58,tesserati[],3,FALSE)) ->  | D58: =IF(ISERROR(VLOOKUP(A58,tesserati[],4,FALSE)),"",VLOOKUP(A58,tesserati[],4,FALSE)) ->  | E58: =IF(ISERROR(VLOOKUP(A58,tesserati[],5,FALSE)),"",VLOOKUP(A58,tesserati[],5,FALSE)) ->  | F58: =IF(ISERROR(VLOOKUP(A58,tesserati[],7,FALSE)),"",VLOOKUP(A58,tesserati[],7,FALSE)) -> 
B59: =IF(ISERROR(VLOOKUP(A59,tesserati[],2,FALSE)),"",VLOOKUP(A59,tesserati[],2,FALSE)) ->  | C59: =IF(ISERROR(VLOOKUP(A59,tesserati[],3,FALSE)),"",VLOOKUP(A59,tesserati[],3,FALSE)) ->  | D59: =IF(ISERROR(VLOOKUP(A59,tesserati[],4,FALSE)),"",VLOOKUP(A59,tesserati[],4,FALSE)) ->  | E59: =IF(ISERROR(VLOOKUP(A59,tesserati[],5,FALSE)),"",VLOOKUP(A59,tesserati[],5,FALSE)) ->  | F59: =IF(ISERROR(VLOOKUP(A59,tesserati[],7,FALSE)),"",VLOOKUP(A59,tesserati[],7,FALSE)) -> 
B60: =IF(ISERROR(VLOOKUP(A60,tesserati[],2,FALSE)),"",VLOOKUP(A60,tesserati[],2,FALSE)) ->  | C60: =IF(ISERROR(VLOOKUP(A60,tesserati[],3,FALSE)),"",VLOOKUP(A60,tesserati[],3,FALSE)) ->  | D60: =IF(ISERROR(VLOOKUP(A60,tesserati[],4,FALSE)),"",VLOOKUP(A60,tesserati[],4,FALSE)) ->  | E60: =IF(ISERROR(VLOOKUP(A60,tesserati[],5,FALSE)),"",VLOOKUP(A60,tesserati[],5,FALSE)) ->  | F60: =IF(ISERROR(VLOOKUP(A60,tesserati[],7,FALSE)),"",VLOOKUP(A60,tesserati[],7,FALSE)) -> 
B61: =IF(ISERROR(VLOOKUP(A61,tesserati[],2,FALSE)),"",VLOOKUP(A61,tesserati[],2,FALSE)) ->  | C61: =IF(ISERROR(VLOOKUP(A61,tesserati[],3,FALSE)),"",VLOOKUP(A61,tesserati[],3,FALSE)) ->  | D61: =IF(ISERROR(VLOOKUP(A61,tesserati[],4,FALSE)),"",VLOOKUP(A61,tesserati[],4,FALSE)) ->  | E61: =IF(ISERROR(VLOOKUP(A61,tesserati[],5,FALSE)),"",VLOOKUP(A61,tesserati[],5,FALSE)) ->  | F61: =IF(ISERROR(VLOOKUP(A61,tesserati[],7,FALSE)),"",VLOOKUP(A61,tesserati[],7,FALSE)) -> 
B62: =IF(ISERROR(VLOOKUP(A62,tesserati[],2,FALSE)),"",VLOOKUP(A62,tesserati[],2,FALSE)) ->  | C62: =IF(ISERROR(VLOOKUP(A62,tesserati[],3,FALSE)),"",VLOOKUP(A62,tesserati[],3,FALSE)) ->  | D62: =IF(ISERROR(VLOOKUP(A62,tesserati[],4,FALSE)),"",VLOOKUP(A62,tesserati[],4,FALSE)) ->  | E62: =IF(ISERROR(VLOOKUP(A62,tesserati[],5,FALSE)),"",VLOOKUP(A62,tesserati[],5,FALSE)) ->  | F62: =IF(ISERROR(VLOOKUP(A62,tesserati[],7,FALSE)),"",VLOOKUP(A62,tesserati[],7,FALSE)) -> 
B63: =IF(ISERROR(VLOOKUP(A63,tesserati[],2,FALSE)),"",VLOOKUP(A63,tesserati[],2,FALSE)) ->  | C63: =IF(ISERROR(VLOOKUP(A63,tesserati[],3,FALSE)),"",VLOOKUP(A63,tesserati[],3,FALSE)) ->  | D63: =IF(ISERROR(VLOOKUP(A63,tesserati[],4,FALSE)),"",VLOOKUP(A63,tesserati[],4,FALSE)) ->  | E63: =IF(ISERROR(VLOOKUP(A63,tesserati[],5,FALSE)),"",VLOOKUP(A63,tesserati[],5,FALSE)) ->  | F63: =IF(ISERROR(VLOOKUP(A63,tesserati[],7,FALSE)),"",VLOOKUP(A63,tesserati[],7,FALSE)) -> 
B64: =IF(ISERROR(VLOOKUP(A64,tesserati[],2,FALSE)),"",VLOOKUP(A64,tesserati[],2,FALSE)) ->  | C64: =IF(ISERROR(VLOOKUP(A64,tesserati[],3,FALSE)),"",VLOOKUP(A64,tesserati[],3,FALSE)) ->  | D64: =IF(ISERROR(VLOOKUP(A64,tesserati[],4,FALSE)),"",VLOOKUP(A64,tesserati[],4,FALSE)) ->  | E64: =IF(ISERROR(VLOOKUP(A64,tesserati[],5,FALSE)),"",VLOOKUP(A64,tesserati[],5,FALSE)) ->  | F64: =IF(ISERROR(VLOOKUP(A64,tesserati[],7,FALSE)),"",VLOOKUP(A64,tesserati[],7,FALSE)) -> 
B65: =IF(ISERROR(VLOOKUP(A65,tesserati[],2,FALSE)),"",VLOOKUP(A65,tesserati[],2,FALSE)) ->  | C65: =IF(ISERROR(VLOOKUP(A65,tesserati[],3,FALSE)),"",VLOOKUP(A65,tesserati[],3,FALSE)) ->  | D65: =IF(ISERROR(VLOOKUP(A65,tesserati[],4,FALSE)),"",VLOOKUP(A65,tesserati[],4,FALSE)) ->  | E65: =IF(ISERROR(VLOOKUP(A65,tesserati[],5,FALSE)),"",VLOOKUP(A65,tesserati[],5,FALSE)) ->  | F65: =IF(ISERROR(VLOOKUP(A65,tesserati[],7,FALSE)),"",VLOOKUP(A65,tesserati[],7,FALSE)) -> 
B66: =IF(ISERROR(VLOOKUP(A66,tesserati[],2,FALSE)),"",VLOOKUP(A66,tesserati[],2,FALSE)) ->  | C66: =IF(ISERROR(VLOOKUP(A66,tesserati[],3,FALSE)),"",VLOOKUP(A66,tesserati[],3,FALSE)) ->  | D66: =IF(ISERROR(VLOOKUP(A66,tesserati[],4,FALSE)),"",VLOOKUP(A66,tesserati[],4,FALSE)) ->  | E66: =IF(ISERROR(VLOOKUP(A66,tesserati[],5,FALSE)),"",VLOOKUP(A66,tesserati[],5,FALSE)) ->  | F66: =IF(ISERROR(VLOOKUP(A66,tesserati[],7,FALSE)),"",VLOOKUP(A66,tesserati[],7,FALSE)) -> 
B67: =IF(ISERROR(VLOOKUP(A67,tesserati[],2,FALSE)),"",VLOOKUP(A67,tesserati[],2,FALSE)) ->  | C67: =IF(ISERROR(VLOOKUP(A67,tesserati[],3,FALSE)),"",VLOOKUP(A67,tesserati[],3,FALSE)) ->  | D67: =IF(ISERROR(VLOOKUP(A67,tesserati[],4,FALSE)),"",VLOOKUP(A67,tesserati[],4,FALSE)) ->  | E67: =IF(ISERROR(VLOOKUP(A67,tesserati[],5,FALSE)),"",VLOOKUP(A67,tesserati[],5,FALSE)) ->  | F67: =IF(ISERROR(VLOOKUP(A67,tesserati[],7,FALSE)),"",VLOOKUP(A67,tesserati[],7,FALSE)) -> 
B68: =IF(ISERROR(VLOOKUP(A68,tesserati[],2,FALSE)),"",VLOOKUP(A68,tesserati[],2,FALSE)) ->  | C68: =IF(ISERROR(VLOOKUP(A68,tesserati[],3,FALSE)),"",VLOOKUP(A68,tesserati[],3,FALSE)) ->  | D68: =IF(ISERROR(VLOOKUP(A68,tesserati[],4,FALSE)),"",VLOOKUP(A68,tesserati[],4,FALSE)) ->  | E68: =IF(ISERROR(VLOOKUP(A68,tesserati[],5,FALSE)),"",VLOOKUP(A68,tesserati[],5,FALSE)) ->  | F68: =IF(ISERROR(VLOOKUP(A68,tesserati[],7,FALSE)),"",VLOOKUP(A68,tesserati[],7,FALSE)) -> 
B69: =IF(ISERROR(VLOOKUP(A69,tesserati[],2,FALSE)),"",VLOOKUP(A69,tesserati[],2,FALSE)) ->  | C69: =IF(ISERROR(VLOOKUP(A69,tesserati[],3,FALSE)),"",VLOOKUP(A69,tesserati[],3,FALSE)) ->  | D69: =IF(ISERROR(VLOOKUP(A69,tesserati[],4,FALSE)),"",VLOOKUP(A69,tesserati[],4,FALSE)) ->  | E69: =IF(ISERROR(VLOOKUP(A69,tesserati[],5,FALSE)),"",VLOOKUP(A69,tesserati[],5,FALSE)) ->  | F69: =IF(ISERROR(VLOOKUP(A69,tesserati[],7,FALSE)),"",VLOOKUP(A69,tesserati[],7,FALSE)) -> 
B70: =IF(ISERROR(VLOOKUP(A70,tesserati[],2,FALSE)),"",VLOOKUP(A70,tesserati[],2,FALSE)) ->  | C70: =IF(ISERROR(VLOOKUP(A70,tesserati[],3,FALSE)),"",VLOOKUP(A70,tesserati[],3,FALSE)) ->  | D70: =IF(ISERROR(VLOOKUP(A70,tesserati[],4,FALSE)),"",VLOOKUP(A70,tesserati[],4,FALSE)) ->  | E70: =IF(ISERROR(VLOOKUP(A70,tesserati[],5,FALSE)),"",VLOOKUP(A70,tesserati[],5,FALSE)) ->  | F70: =IF(ISERROR(VLOOKUP(A70,tesserati[],7,FALSE)),"",VLOOKUP(A70,tesserati[],7,FALSE)) -> 
B71: =IF(ISERROR(VLOOKUP(A71,tesserati[],2,FALSE)),"",VLOOKUP(A71,tesserati[],2,FALSE)) ->  | C71: =IF(ISERROR(VLOOKUP(A71,tesserati[],3,FALSE)),"",VLOOKUP(A71,tesserati[],3,FALSE)) ->  | D71: =IF(ISERROR(VLOOKUP(A71,tesserati[],4,FALSE)),"",VLOOKUP(A71,tesserati[],4,FALSE)) ->  | E71: =IF(ISERROR(VLOOKUP(A71,tesserati[],5,FALSE)),"",VLOOKUP(A71,tesserati[],5,FALSE)) ->  | F71: =IF(ISERROR(VLOOKUP(A71,tesserati[],7,FALSE)),"",VLOOKUP(A71,tesserati[],7,FALSE)) -> 

Sheet STAFFETTE 4X100 CM
C1: MANIFESTAZIONE | F1: LOCALITA' | I1: SOCIETA' ORGANIZZATRICE
C2: 6° prova provinciale | F2: Tezze sul Brenta | I2: CSI Tezze sul Brenta
A3: CATEGORIA | C3: ORA INIZIO | D3: ORA FINE | F3: GARA | I3: DATA
A4: CADETTI | F4: STAFFETTA 4 X 100 | I4: 2017-09-24
A6: N. tessera | B6: ATLETA COGNOME E NOME | D6: SOCIETA' | E6: NASCITA | F6: CATEGORIA | G6: Corsia | H6: PETTORALE | I6: Tempo | J6: Piazzamento | K6: PUNTI | L6: CL.
A8: 1 SERIE | B8: =IF(ISERROR(VLOOKUP(A8,tesserati[],2,FALSE)),"",VLOOKUP(A8,tesserati[],2,FALSE)) ->  | C8: =IF(ISERROR(VLOOKUP(A8,tesserati[],3,FALSE)),"",VLOOKUP(A8,tesserati[],3,FALSE)) ->  | D8: =IF(ISERROR(VLOOKUP(#REF!,tesserati[],5,FALSE)),"",VLOOKUP(#REF!,tesserati[],5,FALSE)) ->  | E8: =IF(ISERROR(VLOOKUP(A8,tesserati[],4,FALSE)),"",VLOOKUP(A8,tesserati[],4,FALSE)) ->  | F8: =IF(ISERROR(VLOOKUP(A8,tesserati[],7,FALSE)),"",VLOOKUP(A8,tesserati[],7,FALSE)) -> 
A9: 2693 | B9: =IF(ISERROR(VLOOKUP(A9,tesserati[],2,FALSE)),"",VLOOKUP(A9,tesserati[],2,FALSE)) -> CAPPELLOTTO | C9: =IF(ISERROR(VLOOKUP(A9,tesserati[],3,FALSE)),"",VLOOKUP(A9,tesserati[],3,FALSE)) -> FRANCESCO | D9: =IF(ISERROR(VLOOKUP(A9,tesserati[],4,FALSE)),"",VLOOKUP(A9,tesserati[],4,FALSE)) -> POL. DIL. MONTECCHIO PRECALCINO | E9: =IF(ISERROR(VLOOKUP(A9,tesserati[],5,FALSE)),"",VLOOKUP(A9,tesserati[],5,FALSE)) -> 2003 | F9: =IF(ISERROR(VLOOKUP(A9,tesserati[],7,FALSE)),"",VLOOKUP(A9,tesserati[],7,FALSE)) -> CM | G9: 4 | I9: 49.5 | J9: 1
A10: 3246 | B10: =IF(ISERROR(VLOOKUP(A10,tesserati[],2,FALSE)),"",VLOOKUP(A10,tesserati[],2,FALSE)) -> ZUCCHI | C10: =IF(ISERROR(VLOOKUP(A10,tesserati[],3,FALSE)),"",VLOOKUP(A10,tesserati[],3,FALSE)) -> GIOELE | D10: =IF(ISERROR(VLOOKUP(A10,tesserati[],4,FALSE)),"",VLOOKUP(A10,tesserati[],4,FALSE)) -> POL. DIL. MONTECCHIO PRECALCINO | E10: =IF(ISERROR(VLOOKUP(A10,tesserati[],5,FALSE)),"",VLOOKUP(A10,tesserati[],5,FALSE)) -> 2002 | F10: =IF(ISERROR(VLOOKUP(A10,tesserati[],7,FALSE)),"",VLOOKUP(A10,tesserati[],7,FALSE)) -> CM
A11: 2700 | B11: =IF(ISERROR(VLOOKUP(A11,tesserati[],2,FALSE)),"",VLOOKUP(A11,tesserati[],2,FALSE)) -> MORO | C11: =IF(ISERROR(VLOOKUP(A11,tesserati[],3,FALSE)),"",VLOOKUP(A11,tesserati[],3,FALSE)) -> TOMMASO | D11: =IF(ISERROR(VLOOKUP(A11,tesserati[],4,FALSE)),"",VLOOKUP(A11,tesserati[],4,FALSE)) -> POL. DIL. MONTECCHIO PRECALCINO | E11: =IF(ISERROR(VLOOKUP(A11,tesserati[],5,FALSE)),"",VLOOKUP(A11,tesserati[],5,FALSE)) -> 2003 | F11: =IF(ISERROR(VLOOKUP(A11,tesserati[],7,FALSE)),"",VLOOKUP(A11,tesserati[],7,FALSE)) -> CM
A12: 2695 | B12: =IF(ISERROR(VLOOKUP(A12,tesserati[],2,FALSE)),"",VLOOKUP(A12,tesserati[],2,FALSE)) -> GUERRERO | C12: =IF(ISERROR(VLOOKUP(A12,tesserati[],3,FALSE)),"",VLOOKUP(A12,tesserati[],3,FALSE)) -> FRANCO HECTOR | D12: =IF(ISERROR(VLOOKUP(A12,tesserati[],4,FALSE)),"",VLOOKUP(A12,tesserati[],4,FALSE)) -> POL. DIL. MONTECCHIO PRECALCINO | E12: =IF(ISERROR(VLOOKUP(A12,tesserati[],5,FALSE)),"",VLOOKUP(A12,tesserati[],5,FALSE)) -> 2003 | F12: =IF(ISERROR(VLOOKUP(A12,tesserati[],7,FALSE)),"",VLOOKUP(A12,tesserati[],7,FALSE)) -> CM
A13: 5123 | B13: =IF(ISERROR(VLOOKUP(A13,tesserati[],2,FALSE)),"",VLOOKUP(A13,tesserati[],2,FALSE)) -> VENTURA | C13: =IF(ISERROR(VLOOKUP(A13,tesserati[],3,FALSE)),"",VLOOKUP(A13,tesserati[],3,FALSE)) -> FILIPPO | D13: =IF(ISERROR(VLOOKUP(A13,tesserati[],4,FALSE)),"",VLOOKUP(A13,tesserati[],4,FALSE)) -> POLISPORTIVA SALF ALTOPADOVANA | E13: =IF(ISERROR(VLOOKUP(A13,tesserati[],5,FALSE)),"",VLOOKUP(A13,tesserati[],5,FALSE)) -> 2003 | F13: =IF(ISERROR(VLOOKUP(A13,tesserati[],7,FALSE)),"",VLOOKUP(A13,tesserati[],7,FALSE)) -> CM | G13: 5 | I13: 50.5 | J13: 2
A14: 7956 | B14: =IF(ISERROR(VLOOKUP(A14,tesserati[],2,FALSE)),"",VLOOKUP(A14,tesserati[],2,FALSE)) -> PERNECHELE | C14: =IF(ISERROR(VLOOKUP(A14,tesserati[],3,FALSE)),"",VLOOKUP(A14,tesserati[],3,FALSE)) -> DANIELE | D14: =IF(ISERROR(VLOOKUP(A14,tesserati[],4,FALSE)),"",VLOOKUP(A14,tesserati[],4,FALSE)) -> POLISPORTIVA SALF ALTOPADOVANA | E14: =IF(ISERROR(VLOOKUP(A14,tesserati[],5,FALSE)),"",VLOOKUP(A14,tesserati[],5,FALSE)) -> 2002 | F14: =IF(ISERROR(VLOOKUP(A14,tesserati[],7,FALSE)),"",VLOOKUP(A14,tesserati[],7,FALSE)) -> CM
A15: 5118 | B15: =IF(ISERROR(VLOOKUP(A15,tesserati[],2,FALSE)),"",VLOOKUP(A15,tesserati[],2,FALSE)) -> FABIAN | C15: =IF(ISERROR(VLOOKUP(A15,tesserati[],3,FALSE)),"",VLOOKUP(A15,tesserati[],3,FALSE)) -> FILIPPO | D15: =IF(ISERROR(VLOOKUP(A15,tesserati[],4,FALSE)),"",VLOOKUP(A15,tesserati[],4,FALSE)) -> POLISPORTIVA SALF ALTOPADOVANA | E15: =IF(ISERROR(VLOOKUP(A15,tesserati[],5,FALSE)),"",VLOOKUP(A15,tesserati[],5,FALSE)) -> 2002 | F15: =IF(ISERROR(VLOOKUP(A15,tesserati[],7,FALSE)),"",VLOOKUP(A15,tesserati[],7,FALSE)) -> CM
A16: 5130 | B16: =IF(ISERROR(VLOOKUP(A16,tesserati[],2,FALSE)),"",VLOOKUP(A16,tesserati[],2,FALSE)) -> MERLO | C16: =IF(ISERROR(VLOOKUP(A16,tesserati[],3,FALSE)),"",VLOOKUP(A16,tesserati[],3,FALSE)) -> GIOVANNI | D16: =IF(ISERROR(VLOOKUP(A16,tesserati[],4,FALSE)),"",VLOOKUP(A16,tesserati[],4,FALSE)) -> POLISPORTIVA SALF ALTOPADOVANA | E16: =IF(ISERROR(VLOOKUP(A16,tesserati[],5,FALSE)),"",VLOOKUP(A16,tesserati[],5,FALSE)) -> 2003 | F16: =IF(ISERROR(VLOOKUP(A16,tesserati[],7,FALSE)),"",VLOOKUP(A16,tesserati[],7,FALSE)) -> CM
A17: 4334 | B17: =IF(ISERROR(VLOOKUP(A17,tesserati[],2,FALSE)),"",VLOOKUP(A17,tesserati[],2,FALSE)) -> TURETTA | C17: =IF(ISERROR(VLOOKUP(A17,tesserati[],3,FALSE)),"",VLOOKUP(A17,tesserati[],3,FALSE)) -> MATTEO | D17: =IF(ISERROR(VLOOKUP(A17,tesserati[],4,FALSE)),"",VLOOKUP(A17,tesserati[],4,FALSE)) -> C.S.I. TEZZE SUL BRENTA | E17: =IF(ISERROR(VLOOKUP(A17,tesserati[],5,FALSE)),"",VLOOKUP(A17,tesserati[],5,FALSE)) -> 2004 | F17: =IF(ISERROR(VLOOKUP(A17,tesserati[],7,FALSE)),"",VLOOKUP(A17,tesserati[],7,FALSE)) -> RM | G17: 6 | I17: 51.3 | J17: 3
A18: 3636 | B18: =IF(ISERROR(VLOOKUP(A18,tesserati[],2,FALSE)),"",VLOOKUP(A18,tesserati[],2,FALSE)) -> CERANTOLA | C18: =IF(ISERROR(VLOOKUP(A18,tesserati[],3,FALSE)),"",VLOOKUP(A18,tesserati[],3,FALSE)) -> DAVIDE | D18: =IF(ISERROR(VLOOKUP(A18,tesserati[],4,FALSE)),"",VLOOKUP(A18,tesserati[],4,FALSE)) -> C.S.I. TEZZE SUL BRENTA | E18: =IF(ISERROR(VLOOKUP(A18,tesserati[],5,FALSE)),"",VLOOKUP(A18,tesserati[],5,FALSE)) -> 2003 | F18: =IF(ISERROR(VLOOKUP(A18,tesserati[],7,FALSE)),"",VLOOKUP(A18,tesserati[],7,FALSE)) -> CM
A19: 2464 | B19: =IF(ISERROR(VLOOKUP(A19,tesserati[],2,FALSE)),"",VLOOKUP(A19,tesserati[],2,FALSE)) -> LOVECCHIO | C19: =IF(ISERROR(VLOOKUP(A19,tesserati[],3,FALSE)),"",VLOOKUP(A19,tesserati[],3,FALSE)) -> PIO FEDERICO | D19: =IF(ISERROR(VLOOKUP(A19,tesserati[],4,FALSE)),"",VLOOKUP(A19,tesserati[],4,FALSE)) -> C.S.I. TEZZE SUL BRENTA | E19: =IF(ISERROR(VLOOKUP(A19,tesserati[],5,FALSE)),"",VLOOKUP(A19,tesserati[],5,FALSE)) -> 2003 | F19: =IF(ISERROR(VLOOKUP(A19,tesserati[],7,FALSE)),"",VLOOKUP(A19,tesserati[],7,FALSE)) -> CM
A20: 5221 | B20: =IF(ISERROR(VLOOKUP(A20,tesserati[],2,FALSE)),"",VLOOKUP(A20,tesserati[],2,FALSE)) -> GAMBARDELLA | C20: =IF(ISERROR(VLOOKUP(A20,tesserati[],3,FALSE)),"",VLOOKUP(A20,tesserati[],3,FALSE)) -> MICHELE PIO | D20: =IF(ISERROR(VLOOKUP(A20,tesserati[],4,FALSE)),"",VLOOKUP(A20,tesserati[],4,FALSE)) -> C.S.I. TEZZE SUL BRENTA | E20: =IF(ISERROR(VLOOKUP(A20,tesserati[],5,FALSE)),"",VLOOKUP(A20,tesserati[],5,FALSE)) -> 2002 | F20: =IF(ISERROR(VLOOKUP(A20,tesserati[],7,FALSE)),"",VLOOKUP(A20,tesserati[],7,FALSE)) -> CM
A21: 5120 | B21: =IF(ISERROR(VLOOKUP(A21,tesserati[],2,FALSE)),"",VLOOKUP(A21,tesserati[],2,FALSE)) -> PERNECHELE | C21: =IF(ISERROR(VLOOKUP(A21,tesserati[],3,FALSE)),"",VLOOKUP(A21,tesserati[],3,FALSE)) -> NICOLA | D21: =IF(ISERROR(VLOOKUP(A21,tesserati[],4,FALSE)),"",VLOOKUP(A21,tesserati[],4,FALSE)) -> POLISPORTIVA SALF ALTOPADOVANA | E21: =IF(ISERROR(VLOOKUP(A21,tesserati[],5,FALSE)),"",VLOOKUP(A21,tesserati[],5,FALSE)) -> 2002 | F21: =IF(ISERROR(VLOOKUP(A21,tesserati[],7,FALSE)),"",VLOOKUP(A21,tesserati[],7,FALSE)) -> CM | G21: 3 | I21: 52.7 | J21: 4
A22: 3468 | B22: =IF(ISERROR(VLOOKUP(A22,tesserati[],2,FALSE)),"",VLOOKUP(A22,tesserati[],2,FALSE)) -> BORON | C22: =IF(ISERROR(VLOOKUP(A22,tesserati[],3,FALSE)),"",VLOOKUP(A22,tesserati[],3,FALSE)) -> NICOLã | D22: =IF(ISERROR(VLOOKUP(A22,tesserati[],4,FALSE)),"",VLOOKUP(A22,tesserati[],4,FALSE)) -> ATLETICA UNION CREAZZO | E22: =IF(ISERROR(VLOOKUP(A22,tesserati[],5,FALSE)),"",VLOOKUP(A22,tesserati[],5,FALSE)) -> 2003 | F22: =IF(ISERROR(VLOOKUP(A22,tesserati[],7,FALSE)),"",VLOOKUP(A22,tesserati[],7,FALSE)) -> CM
A23: 2935 | B23: =IF(ISERROR(VLOOKUP(A23,tesserati[],2,FALSE)),"",VLOOKUP(A23,tesserati[],2,FALSE)) -> SCOTUZZI | C23: =IF(ISERROR(VLOOKUP(A23,tesserati[],3,FALSE)),"",VLOOKUP(A23,tesserati[],3,FALSE)) -> LEONARDO | D23: =IF(ISERROR(VLOOKUP(A23,tesserati[],4,FALSE)),"",VLOOKUP(A23,tesserati[],4,FALSE)) -> ATLETICA UNION CREAZZO | E23: =IF(ISERROR(VLOOKUP(A23,tesserati[],5,FALSE)),"",VLOOKUP(A23,tesserati[],5,FALSE)) -> 2003 | F23: =IF(ISERROR(VLOOKUP(A23,tesserati[],7,FALSE)),"",VLOOKUP(A23,tesserati[],7,FALSE)) -> CM
A24: 2952 | B24: =IF(ISERROR(VLOOKUP(A24,tesserati[],2,FALSE)),"",VLOOKUP(A24,tesserati[],2,FALSE)) -> CAMPAGNOLO | C24: =IF(ISERROR(VLOOKUP(A24,tesserati[],3,FALSE)),"",VLOOKUP(A24,tesserati[],3,FALSE)) -> ANDREA | D24: =IF(ISERROR(VLOOKUP(A24,tesserati[],4,FALSE)),"",VLOOKUP(A24,tesserati[],4,FALSE)) -> ATLETICA UNION CREAZZO | E24: =IF(ISERROR(VLOOKUP(A24,tesserati[],5,FALSE)),"",VLOOKUP(A24,tesserati[],5,FALSE)) -> 2004 | F24: =IF(ISERROR(VLOOKUP(A24,tesserati[],7,FALSE)),"",VLOOKUP(A24,tesserati[],7,FALSE)) -> RM
A25: 3640 | B25: =IF(ISERROR(VLOOKUP(A25,tesserati[],2,FALSE)),"",VLOOKUP(A25,tesserati[],2,FALSE)) -> LIVIERO | C25: =IF(ISERROR(VLOOKUP(A25,tesserati[],3,FALSE)),"",VLOOKUP(A25,tesserati[],3,FALSE)) -> FRANCESCO | D25: =IF(ISERROR(VLOOKUP(A25,tesserati[],4,FALSE)),"",VLOOKUP(A25,tesserati[],4,FALSE)) -> C.S.I. TEZZE SUL BRENTA | E25: =IF(ISERROR(VLOOKUP(A25,tesserati[],5,FALSE)),"",VLOOKUP(A25,tesserati[],5,FALSE)) -> 2004 | F25: =IF(ISERROR(VLOOKUP(A25,tesserati[],7,FALSE)),"",VLOOKUP(A25,tesserati[],7,FALSE)) -> RM | G25: 2 | I25: 56.6 | J25: 5
A26: 2467 | B26: =IF(ISERROR(VLOOKUP(A26,tesserati[],2,FALSE)),"",VLOOKUP(A26,tesserati[],2,FALSE)) -> PIOTTO | C26: =IF(ISERROR(VLOOKUP(A26,tesserati[],3,FALSE)),"",VLOOKUP(A26,tesserati[],3,FALSE)) -> NICHOLAS | D26: =IF(ISERROR(VLOOKUP(A26,tesserati[],4,FALSE)),"",VLOOKUP(A26,tesserati[],4,FALSE)) -> C.S.I. TEZZE SUL BRENTA | E26: =IF(ISERROR(VLOOKUP(A26,tesserati[],5,FALSE)),"",VLOOKUP(A26,tesserati[],5,FALSE)) -> 2003 | F26: =IF(ISERROR(VLOOKUP(A26,tesserati[],7,FALSE)),"",VLOOKUP(A26,tesserati[],7,FALSE)) -> CM
A27: 2463 | B27: =IF(ISERROR(VLOOKUP(A27,tesserati[],2,FALSE)),"",VLOOKUP(A27,tesserati[],2,FALSE)) -> CAREGNATO | C27: =IF(ISERROR(VLOOKUP(A27,tesserati[],3,FALSE)),"",VLOOKUP(A27,tesserati[],3,FALSE)) -> PAOLO | D27: =IF(ISERROR(VLOOKUP(A27,tesserati[],4,FALSE)),"",VLOOKUP(A27,tesserati[],4,FALSE)) -> C.S.I. TEZZE SUL BRENTA | E27: =IF(ISERROR(VLOOKUP(A27,tesserati[],5,FALSE)),"",VLOOKUP(A27,tesserati[],5,FALSE)) -> 2003 | F27: =IF(ISERROR(VLOOKUP(A27,tesserati[],7,FALSE)),"",VLOOKUP(A27,tesserati[],7,FALSE)) -> CM
A28: 4336 | B28: =IF(ISERROR(VLOOKUP(A28,tesserati[],2,FALSE)),"",VLOOKUP(A28,tesserati[],2,FALSE)) -> GIROLIMETTO | C28: =IF(ISERROR(VLOOKUP(A28,tesserati[],3,FALSE)),"",VLOOKUP(A28,tesserati[],3,FALSE)) -> FEDERICO | D28: =IF(ISERROR(VLOOKUP(A28,tesserati[],4,FALSE)),"",VLOOKUP(A28,tesserati[],4,FALSE)) -> C.S.I. TEZZE SUL BRENTA | E28: =IF(ISERROR(VLOOKUP(A28,tesserati[],5,FALSE)),"",VLOOKUP(A28,tesserati[],5,FALSE)) -> 2003 | F28: =IF(ISERROR(VLOOKUP(A28,tesserati[],7,FALSE)),"",VLOOKUP(A28,tesserati[],7,FALSE)) -> CM
B29: =IF(ISERROR(VLOOKUP(A29,tesserati[],2,FALSE)),"",VLOOKUP(A29,tesserati[],2,FALSE)) ->  | C29: =IF(ISERROR(VLOOKUP(A29,tesserati[],3,FALSE)),"",VLOOKUP(A29,tesserati[],3,FALSE)) ->  | D29: =IF(ISERROR(VLOOKUP(A29,tesserati[],4,FALSE)),"",VLOOKUP(A29,tesserati[],4,FALSE)) ->  | E29: =IF(ISERROR(VLOOKUP(A29,tesserati[],5,FALSE)),"",VLOOKUP(A29,tesserati[],5,FALSE)) ->  | F29: =IF(ISERROR(VLOOKUP(A29,tesserati[],7,FALSE)),"",VLOOKUP(A29,tesserati[],7,FALSE)) -> 
B30: =IF(ISERROR(VLOOKUP(A30,tesserati[],2,FALSE)),"",VLOOKUP(A30,tesserati[],2,FALSE)) ->  | C30: =IF(ISERROR(VLOOKUP(A30,tesserati[],3,FALSE)),"",VLOOKUP(A30,tesserati[],3,FALSE)) ->  | D30: =IF(ISERROR(VLOOKUP(A30,tesserati[],4,FALSE)),"",VLOOKUP(A30,tesserati[],4,FALSE)) ->  | E30: =IF(ISERROR(VLOOKUP(A30,tesserati[],5,FALSE)),"",VLOOKUP(A30,tesserati[],5,FALSE)) ->  | F30: =IF(ISERROR(VLOOKUP(A30,tesserati[],7,FALSE)),"",VLOOKUP(A30,tesserati[],7,FALSE)) -> 
B31: =IF(ISERROR(VLOOKUP(A31,tesserati[],2,FALSE)),"",VLOOKUP(A31,tesserati[],2,FALSE)) ->  | C31: =IF(ISERROR(VLOOKUP(A31,tesserati[],3,FALSE)),"",VLOOKUP(A31,tesserati[],3,FALSE)) ->  | D31: =IF(ISERROR(VLOOKUP(A31,tesserati[],4,FALSE)),"",VLOOKUP(A31,tesserati[],4,FALSE)) ->  | E31: =IF(ISERROR(VLOOKUP(A31,tesserati[],5,FALSE)),"",VLOOKUP(A31,tesserati[],5,FALSE)) ->  | F31: =IF(ISERROR(VLOOKUP(A31,tesserati[],7,FALSE)),"",VLOOKUP(A31,tesserati[],7,FALSE)) -> 
B32: =IF(ISERROR(VLOOKUP(A32,tesserati[],2,FALSE)),"",VLOOKUP(A32,tesserati[],2,FALSE)) ->  | C32: =IF(ISERROR(VLOOKUP(A32,tesserati[],3,FALSE)),"",VLOOKUP(A32,tesserati[],3,FALSE)) ->  | D32: =IF(ISERROR(VLOOKUP(A32,tesserati[],4,FALSE)),"",VLOOKUP(A32,tesserati[],4,FALSE)) ->  | E32: =IF(ISERROR(VLOOKUP(A32,tesserati[],5,FALSE)),"",VLOOKUP(A32,tesserati[],5,FALSE)) ->  | F32: =IF(ISERROR(VLOOKUP(A32,tesserati[],7,FALSE)),"",VLOOKUP(A32,tesserati[],7,FALSE)) -> 
A33: 2 SERIE
B34: =IF(ISERROR(VLOOKUP(A34,tesserati[],2,FALSE)),"",VLOOKUP(A34,tesserati[],2,FALSE)) ->  | C34: =IF(ISERROR(VLOOKUP(A34,tesserati[],3,FALSE)),"",VLOOKUP(A34,tesserati[],3,FALSE)) ->  | D34: =IF(ISERROR(VLOOKUP(A34,tesserati[],4,FALSE)),"",VLOOKUP(A34,tesserati[],4,FALSE)) ->  | E34: =IF(ISERROR(VLOOKUP(A34,tesserati[],5,FALSE)),"",VLOOKUP(A34,tesserati[],5,FALSE)) ->  | F34: =IF(ISERROR(VLOOKUP(A34,tesserati[],7,FALSE)),"",VLOOKUP(A34,tesserati[],7,FALSE)) ->  | G34: 1
B35: =IF(ISERROR(VLOOKUP(A35,tesserati[],2,FALSE)),"",VLOOKUP(A35,tesserati[],2,FALSE)) ->  | C35: =IF(ISERROR(VLOOKUP(A35,tesserati[],3,FALSE)),"",VLOOKUP(A35,tesserati[],3,FALSE)) ->  | D35: =IF(ISERROR(VLOOKUP(A35,tesserati[],4,FALSE)),"",VLOOKUP(A35,tesserati[],4,FALSE)) ->  | E35: =IF(ISERROR(VLOOKUP(A35,tesserati[],5,FALSE)),"",VLOOKUP(A35,tesserati[],5,FALSE)) ->  | F35: =IF(ISERROR(VLOOKUP(A35,tesserati[],7,FALSE)),"",VLOOKUP(A35,tesserati[],7,FALSE)) -> 
B36: =IF(ISERROR(VLOOKUP(A36,tesserati[],2,FALSE)),"",VLOOKUP(A36,tesserati[],2,FALSE)) ->  | C36: =IF(ISERROR(VLOOKUP(A36,tesserati[],3,FALSE)),"",VLOOKUP(A36,tesserati[],3,FALSE)) ->  | D36: =IF(ISERROR(VLOOKUP(A36,tesserati[],4,FALSE)),"",VLOOKUP(A36,tesserati[],4,FALSE)) ->  | E36: =IF(ISERROR(VLOOKUP(A36,tesserati[],5,FALSE)),"",VLOOKUP(A36,tesserati[],5,FALSE)) ->  | F36: =IF(ISERROR(VLOOKUP(A36,tesserati[],7,FALSE)),"",VLOOKUP(A36,tesserati[],7,FALSE)) -> 
B37: =IF(ISERROR(VLOOKUP(A37,tesserati[],2,FALSE)),"",VLOOKUP(A37,tesserati[],2,FALSE)) ->  | C37: =IF(ISERROR(VLOOKUP(A37,tesserati[],3,FALSE)),"",VLOOKUP(A37,tesserati[],3,FALSE)) ->  | D37: =IF(ISERROR(VLOOKUP(A37,tesserati[],4,FALSE)),"",VLOOKUP(A37,tesserati[],4,FALSE)) ->  | E37: =IF(ISERROR(VLOOKUP(A37,tesserati[],5,FALSE)),"",VLOOKUP(A37,tesserati[],5,FALSE)) ->  | F37: =IF(ISERROR(VLOOKUP(A37,tesserati[],7,FALSE)),"",VLOOKUP(A37,tesserati[],7,FALSE)) -> 
B38: =IF(ISERROR(VLOOKUP(A38,tesserati[],2,FALSE)),"",VLOOKUP(A38,tesserati[],2,FALSE)) ->  | C38: =IF(ISERROR(VLOOKUP(A38,tesserati[],3,FALSE)),"",VLOOKUP(A38,tesserati[],3,FALSE)) ->  | D38: =IF(ISERROR(VLOOKUP(A38,tesserati[],4,FALSE)),"",VLOOKUP(A38,tesserati[],4,FALSE)) ->  | E38: =IF(ISERROR(VLOOKUP(A38,tesserati[],5,FALSE)),"",VLOOKUP(A38,tesserati[],5,FALSE)) ->  | F38: =IF(ISERROR(VLOOKUP(A38,tesserati[],7,FALSE)),"",VLOOKUP(A38,tesserati[],7,FALSE)) ->  | G38: 2
B39: =IF(ISERROR(VLOOKUP(A39,tesserati[],2,FALSE)),"",VLOOKUP(A39,tesserati[],2,FALSE)) ->  | C39: =IF(ISERROR(VLOOKUP(A39,tesserati[],3,FALSE)),"",VLOOKUP(A39,tesserati[],3,FALSE)) ->  | D39: =IF(ISERROR(VLOOKUP(A39,tesserati[],4,FALSE)),"",VLOOKUP(A39,tesserati[],4,FALSE)) ->  | E39: =IF(ISERROR(VLOOKUP(A39,tesserati[],5,FALSE)),"",VLOOKUP(A39,tesserati[],5,FALSE)) ->  | F39: =IF(ISERROR(VLOOKUP(A39,tesserati[],7,FALSE)),"",VLOOKUP(A39,tesserati[],7,FALSE)) -> 
B40: =IF(ISERROR(VLOOKUP(A40,tesserati[],2,FALSE)),"",VLOOKUP(A40,tesserati[],2,FALSE)) ->  | C40: =IF(ISERROR(VLOOKUP(A40,tesserati[],3,FALSE)),"",VLOOKUP(A40,tesserati[],3,FALSE)) ->  | D40: =IF(ISERROR(VLOOKUP(A40,tesserati[],4,FALSE)),"",VLOOKUP(A40,tesserati[],4,FALSE)) ->  | E40: =IF(ISERROR(VLOOKUP(A40,tesserati[],5,FALSE)),"",VLOOKUP(A40,tesserati[],5,FALSE)) ->  | F40: =IF(ISERROR(VLOOKUP(A40,tesserati[],7,FALSE)),"",VLOOKUP(A40,tesserati[],7,FALSE)) -> 
B41: =IF(ISERROR(VLOOKUP(A41,tesserati[],2,FALSE)),"",VLOOKUP(A41,tesserati[],2,FALSE)) ->  | C41: =IF(ISERROR(VLOOKUP(A41,tesserati[],3,FALSE)),"",VLOOKUP(A41,tesserati[],3,FALSE)) ->  | D41: =IF(ISERROR(VLOOKUP(A41,tesserati[],4,FALSE)),"",VLOOKUP(A41,tesserati[],4,FALSE)) ->  | E41: =IF(ISERROR(VLOOKUP(A41,tesserati[],5,FALSE)),"",VLOOKUP(A41,tesserati[],5,FALSE)) ->  | F41: =IF(ISERROR(VLOOKUP(A41,tesserati[],7,FALSE)),"",VLOOKUP(A41,tesserati[],7,FALSE)) -> 
B42: =IF(ISERROR(VLOOKUP(A42,tesserati[],2,FALSE)),"",VLOOKUP(A42,tesserati[],2,FALSE)) ->  | C42: =IF(ISERROR(VLOOKUP(A42,tesserati[],3,FALSE)),"",VLOOKUP(A42,tesserati[],3,FALSE)) ->  | D42: =IF(ISERROR(VLOOKUP(A42,tesserati[],4,FALSE)),"",VLOOKUP(A42,tesserati[],4,FALSE)) ->  | E42: =IF(ISERROR(VLOOKUP(A42,tesserati[],5,FALSE)),"",VLOOKUP(A42,tesserati[],5,FALSE)) ->  | F42: =IF(ISERROR(VLOOKUP(A42,tesserati[],7,FALSE)),"",VLOOKUP(A42,tesserati[],7,FALSE)) ->  | G42: 3
B43: =IF(ISERROR(VLOOKUP(A43,tesserati[],2,FALSE)),"",VLOOKUP(A43,tesserati[],2,FALSE)) ->  | C43: =IF(ISERROR(VLOOKUP(A43,tesserati[],3,FALSE)),"",VLOOKUP(A43,tesserati[],3,FALSE)) ->  | D43: =IF(ISERROR(VLOOKUP(A43,tesserati[],4,FALSE)),"",VLOOKUP(A43,tesserati[],4,FALSE)) ->  | E43: =IF(ISERROR(VLOOKUP(A43,tesserati[],5,FALSE)),"",VLOOKUP(A43,tesserati[],5,FALSE)) ->  | F43: =IF(ISERROR(VLOOKUP(A43,tesserati[],7,FALSE)),"",VLOOKUP(A43,tesserati[],7,FALSE)) -> 
B44: =IF(ISERROR(VLOOKUP(A44,tesserati[],2,FALSE)),"",VLOOKUP(A44,tesserati[],2,FALSE)) ->  | C44: =IF(ISERROR(VLOOKUP(A44,tesserati[],3,FALSE)),"",VLOOKUP(A44,tesserati[],3,FALSE)) ->  | D44: =IF(ISERROR(VLOOKUP(A44,tesserati[],4,FALSE)),"",VLOOKUP(A44,tesserati[],4,FALSE)) ->  | E44: =IF(ISERROR(VLOOKUP(A44,tesserati[],5,FALSE)),"",VLOOKUP(A44,tesserati[],5,FALSE)) ->  | F44: =IF(ISERROR(VLOOKUP(A44,tesserati[],7,FALSE)),"",VLOOKUP(A44,tesserati[],7,FALSE)) -> 
B45: =IF(ISERROR(VLOOKUP(A45,tesserati[],2,FALSE)),"",VLOOKUP(A45,tesserati[],2,FALSE)) ->  | C45: =IF(ISERROR(VLOOKUP(A45,tesserati[],3,FALSE)),"",VLOOKUP(A45,tesserati[],3,FALSE)) ->  | D45: =IF(ISERROR(VLOOKUP(A45,tesserati[],4,FALSE)),"",VLOOKUP(A45,tesserati[],4,FALSE)) ->  | E45: =IF(ISERROR(VLOOKUP(A45,tesserati[],5,FALSE)),"",VLOOKUP(A45,tesserati[],5,FALSE)) ->  | F45: =IF(ISERROR(VLOOKUP(A45,tesserati[],7,FALSE)),"",VLOOKUP(A45,tesserati[],7,FALSE)) -> 
B46: =IF(ISERROR(VLOOKUP(A46,tesserati[],2,FALSE)),"",VLOOKUP(A46,tesserati[],2,FALSE)) ->  | C46: =IF(ISERROR(VLOOKUP(A46,tesserati[],3,FALSE)),"",VLOOKUP(A46,tesserati[],3,FALSE)) ->  | D46: =IF(ISERROR(VLOOKUP(A46,tesserati[],4,FALSE)),"",VLOOKUP(A46,tesserati[],4,FALSE)) ->  | E46: =IF(ISERROR(VLOOKUP(A46,tesserati[],5,FALSE)),"",VLOOKUP(A46,tesserati[],5,FALSE)) ->  | F46: =IF(ISERROR(VLOOKUP(A46,tesserati[],7,FALSE)),"",VLOOKUP(A46,tesserati[],7,FALSE)) ->  | G46: 4
B47: =IF(ISERROR(VLOOKUP(A47,tesserati[],2,FALSE)),"",VLOOKUP(A47,tesserati[],2,FALSE)) ->  | C47: =IF(ISERROR(VLOOKUP(A47,tesserati[],3,FALSE)),"",VLOOKUP(A47,tesserati[],3,FALSE)) ->  | D47: =IF(ISERROR(VLOOKUP(A47,tesserati[],4,FALSE)),"",VLOOKUP(A47,tesserati[],4,FALSE)) ->  | E47: =IF(ISERROR(VLOOKUP(A47,tesserati[],5,FALSE)),"",VLOOKUP(A47,tesserati[],5,FALSE)) ->  | F47: =IF(ISERROR(VLOOKUP(A47,tesserati[],7,FALSE)),"",VLOOKUP(A47,tesserati[],7,FALSE)) -> 
B48: =IF(ISERROR(VLOOKUP(A48,tesserati[],2,FALSE)),"",VLOOKUP(A48,tesserati[],2,FALSE)) ->  | C48: =IF(ISERROR(VLOOKUP(A48,tesserati[],3,FALSE)),"",VLOOKUP(A48,tesserati[],3,FALSE)) ->  | D48: =IF(ISERROR(VLOOKUP(A48,tesserati[],4,FALSE)),"",VLOOKUP(A48,tesserati[],4,FALSE)) ->  | E48: =IF(ISERROR(VLOOKUP(A48,tesserati[],5,FALSE)),"",VLOOKUP(A48,tesserati[],5,FALSE)) ->  | F48: =IF(ISERROR(VLOOKUP(A48,tesserati[],7,FALSE)),"",VLOOKUP(A48,tesserati[],7,FALSE)) -> 
B49: =IF(ISERROR(VLOOKUP(A49,tesserati[],2,FALSE)),"",VLOOKUP(A49,tesserati[],2,FALSE)) ->  | C49: =IF(ISERROR(VLOOKUP(A49,tesserati[],3,FALSE)),"",VLOOKUP(A49,tesserati[],3,FALSE)) ->  | D49: =IF(ISERROR(VLOOKUP(A49,tesserati[],4,FALSE)),"",VLOOKUP(A49,tesserati[],4,FALSE)) ->  | E49: =IF(ISERROR(VLOOKUP(A49,tesserati[],5,FALSE)),"",VLOOKUP(A49,tesserati[],5,FALSE)) ->  | F49: =IF(ISERROR(VLOOKUP(A49,tesserati[],7,FALSE)),"",VLOOKUP(A49,tesserati[],7,FALSE)) -> 
B50: =IF(ISERROR(VLOOKUP(A50,tesserati[],2,FALSE)),"",VLOOKUP(A50,tesserati[],2,FALSE)) ->  | C50: =IF(ISERROR(VLOOKUP(A50,tesserati[],3,FALSE)),"",VLOOKUP(A50,tesserati[],3,FALSE)) ->  | D50: =IF(ISERROR(VLOOKUP(A50,tesserati[],4,FALSE)),"",VLOOKUP(A50,tesserati[],4,FALSE)) ->  | E50: =IF(ISERROR(VLOOKUP(A50,tesserati[],5,FALSE)),"",VLOOKUP(A50,tesserati[],5,FALSE)) ->  | F50: =IF(ISERROR(VLOOKUP(A50,tesserati[],7,FALSE)),"",VLOOKUP(A50,tesserati[],7,FALSE)) ->  | G50: 5
B51: =IF(ISERROR(VLOOKUP(A51,tesserati[],2,FALSE)),"",VLOOKUP(A51,tesserati[],2,FALSE)) ->  | C51: =IF(ISERROR(VLOOKUP(A51,tesserati[],3,FALSE)),"",VLOOKUP(A51,tesserati[],3,FALSE)) ->  | D51: =IF(ISERROR(VLOOKUP(A51,tesserati[],4,FALSE)),"",VLOOKUP(A51,tesserati[],4,FALSE)) ->  | E51: =IF(ISERROR(VLOOKUP(A51,tesserati[],5,FALSE)),"",VLOOKUP(A51,tesserati[],5,FALSE)) ->  | F51: =IF(ISERROR(VLOOKUP(A51,tesserati[],7,FALSE)),"",VLOOKUP(A51,tesserati[],7,FALSE)) -> 
B52: =IF(ISERROR(VLOOKUP(A52,tesserati[],2,FALSE)),"",VLOOKUP(A52,tesserati[],2,FALSE)) ->  | C52: =IF(ISERROR(VLOOKUP(A52,tesserati[],3,FALSE)),"",VLOOKUP(A52,tesserati[],3,FALSE)) ->  | D52: =IF(ISERROR(VLOOKUP(A52,tesserati[],4,FALSE)),"",VLOOKUP(A52,tesserati[],4,FALSE)) ->  | E52: =IF(ISERROR(VLOOKUP(A52,tesserati[],5,FALSE)),"",VLOOKUP(A52,tesserati[],5,FALSE)) ->  | F52: =IF(ISERROR(VLOOKUP(A52,tesserati[],7,FALSE)),"",VLOOKUP(A52,tesserati[],7,FALSE)) -> 
B53: =IF(ISERROR(VLOOKUP(A53,tesserati[],2,FALSE)),"",VLOOKUP(A53,tesserati[],2,FALSE)) ->  | C53: =IF(ISERROR(VLOOKUP(A53,tesserati[],3,FALSE)),"",VLOOKUP(A53,tesserati[],3,FALSE)) ->  | D53: =IF(ISERROR(VLOOKUP(A53,tesserati[],4,FALSE)),"",VLOOKUP(A53,tesserati[],4,FALSE)) ->  | E53: =IF(ISERROR(VLOOKUP(A53,tesserati[],5,FALSE)),"",VLOOKUP(A53,tesserati[],5,FALSE)) ->  | F53: =IF(ISERROR(VLOOKUP(A53,tesserati[],7,FALSE)),"",VLOOKUP(A53,tesserati[],7,FALSE)) -> 
B54: =IF(ISERROR(VLOOKUP(A54,tesserati[],2,FALSE)),"",VLOOKUP(A54,tesserati[],2,FALSE)) ->  | C54: =IF(ISERROR(VLOOKUP(A54,tesserati[],3,FALSE)),"",VLOOKUP(A54,tesserati[],3,FALSE)) ->  | D54: =IF(ISERROR(VLOOKUP(A54,tesserati[],4,FALSE)),"",VLOOKUP(A54,tesserati[],4,FALSE)) ->  | E54: =IF(ISERROR(VLOOKUP(A54,tesserati[],5,FALSE)),"",VLOOKUP(A54,tesserati[],5,FALSE)) ->  | F54: =IF(ISERROR(VLOOKUP(A54,tesserati[],7,FALSE)),"",VLOOKUP(A54,tesserati[],7,FALSE)) ->  | G54: 6
B55: =IF(ISERROR(VLOOKUP(A55,tesserati[],2,FALSE)),"",VLOOKUP(A55,tesserati[],2,FALSE)) ->  | C55: =IF(ISERROR(VLOOKUP(A55,tesserati[],3,FALSE)),"",VLOOKUP(A55,tesserati[],3,FALSE)) ->  | D55: =IF(ISERROR(VLOOKUP(A55,tesserati[],4,FALSE)),"",VLOOKUP(A55,tesserati[],4,FALSE)) ->  | E55: =IF(ISERROR(VLOOKUP(A55,tesserati[],5,FALSE)),"",VLOOKUP(A55,tesserati[],5,FALSE)) ->  | F55: =IF(ISERROR(VLOOKUP(A55,tesserati[],7,FALSE)),"",VLOOKUP(A55,tesserati[],7,FALSE)) -> 
B56: =IF(ISERROR(VLOOKUP(A56,tesserati[],2,FALSE)),"",VLOOKUP(A56,tesserati[],2,FALSE)) ->  | C56: =IF(ISERROR(VLOOKUP(A56,tesserati[],3,FALSE)),"",VLOOKUP(A56,tesserati[],3,FALSE)) ->  | D56: =IF(ISERROR(VLOOKUP(A56,tesserati[],4,FALSE)),"",VLOOKUP(A56,tesserati[],4,FALSE)) ->  | E56: =IF(ISERROR(VLOOKUP(A56,tesserati[],5,FALSE)),"",VLOOKUP(A56,tesserati[],5,FALSE)) ->  | F56: =IF(ISERROR(VLOOKUP(A56,tesserati[],7,FALSE)),"",VLOOKUP(A56,tesserati[],7,FALSE)) -> 
B57: =IF(ISERROR(VLOOKUP(A57,tesserati[],2,FALSE)),"",VLOOKUP(A57,tesserati[],2,FALSE)) ->  | C57: =IF(ISERROR(VLOOKUP(A57,tesserati[],3,FALSE)),"",VLOOKUP(A57,tesserati[],3,FALSE)) ->  | D57: =IF(ISERROR(VLOOKUP(A57,tesserati[],4,FALSE)),"",VLOOKUP(A57,tesserati[],4,FALSE)) ->  | E57: =IF(ISERROR(VLOOKUP(A57,tesserati[],5,FALSE)),"",VLOOKUP(A57,tesserati[],5,FALSE)) ->  | F57: =IF(ISERROR(VLOOKUP(A57,tesserati[],7,FALSE)),"",VLOOKUP(A57,tesserati[],7,FALSE)) -> 
B58: =IF(ISERROR(VLOOKUP(A58,tesserati[],2,FALSE)),"",VLOOKUP(A58,tesserati[],2,FALSE)) ->  | C58: =IF(ISERROR(VLOOKUP(A58,tesserati[],3,FALSE)),"",VLOOKUP(A58,tesserati[],3,FALSE)) ->  | D58: =IF(ISERROR(VLOOKUP(A58,tesserati[],4,FALSE)),"",VLOOKUP(A58,tesserati[],4,FALSE)) ->  | E58: =IF(ISERROR(VLOOKUP(A58,tesserati[],5,FALSE)),"",VLOOKUP(A58,tesserati[],5,FALSE)) ->  | F58: =IF(ISERROR(VLOOKUP(A58,tesserati[],7,FALSE)),"",VLOOKUP(A58,tesserati[],7,FALSE)) -> 
B59: =IF(ISERROR(VLOOKUP(A59,tesserati[],2,FALSE)),"",VLOOKUP(A59,tesserati[],2,FALSE)) ->  | C59: =IF(ISERROR(VLOOKUP(A59,tesserati[],3,FALSE)),"",VLOOKUP(A59,tesserati[],3,FALSE)) ->  | D59: =IF(ISERROR(VLOOKUP(A59,tesserati[],4,FALSE)),"",VLOOKUP(A59,tesserati[],4,FALSE)) ->  | E59: =IF(ISERROR(VLOOKUP(A59,tesserati[],5,FALSE)),"",VLOOKUP(A59,tesserati[],5,FALSE)) ->  | F59: =IF(ISERROR(VLOOKUP(A59,tesserati[],7,FALSE)),"",VLOOKUP(A59,tesserati[],7,FALSE)) -> 
B60: =IF(ISERROR(VLOOKUP(A60,tesserati[],2,FALSE)),"",VLOOKUP(A60,tesserati[],2,FALSE)) ->  | C60: =IF(ISERROR(VLOOKUP(A60,tesserati[],3,FALSE)),"",VLOOKUP(A60,tesserati[],3,FALSE)) ->  | D60: =IF(ISERROR(VLOOKUP(A60,tesserati[],4,FALSE)),"",VLOOKUP(A60,tesserati[],4,FALSE)) ->  | E60: =IF(ISERROR(VLOOKUP(A60,tesserati[],5,FALSE)),"",VLOOKUP(A60,tesserati[],5,FALSE)) ->  | F60: =IF(ISERROR(VLOOKUP(A60,tesserati[],7,FALSE)),"",VLOOKUP(A60,tesserati[],7,FALSE)) -> 
B61: =IF(ISERROR(VLOOKUP(A61,tesserati[],2,FALSE)),"",VLOOKUP(A61,tesserati[],2,FALSE)) ->  | C61: =IF(ISERROR(VLOOKUP(A61,tesserati[],3,FALSE)),"",VLOOKUP(A61,tesserati[],3,FALSE)) ->  | D61: =IF(ISERROR(VLOOKUP(A61,tesserati[],4,FALSE)),"",VLOOKUP(A61,tesserati[],4,FALSE)) ->  | E61: =IF(ISERROR(VLOOKUP(A61,tesserati[],5,FALSE)),"",VLOOKUP(A61,tesserati[],5,FALSE)) ->  | F61: =IF(ISERROR(VLOOKUP(A61,tesserati[],7,FALSE)),"",VLOOKUP(A61,tesserati[],7,FALSE)) -> 
B62: =IF(ISERROR(VLOOKUP(A62,tesserati[],2,FALSE)),"",VLOOKUP(A62,tesserati[],2,FALSE)) ->  | C62: =IF(ISERROR(VLOOKUP(A62,tesserati[],3,FALSE)),"",VLOOKUP(A62,tesserati[],3,FALSE)) ->  | D62: =IF(ISERROR(VLOOKUP(A62,tesserati[],4,FALSE)),"",VLOOKUP(A62,tesserati[],4,FALSE)) ->  | E62: =IF(ISERROR(VLOOKUP(A62,tesserati[],5,FALSE)),"",VLOOKUP(A62,tesserati[],5,FALSE)) ->  | F62: =IF(ISERROR(VLOOKUP(A62,tesserati[],7,FALSE)),"",VLOOKUP(A62,tesserati[],7,FALSE)) -> 
B63: =IF(ISERROR(VLOOKUP(A63,tesserati[],2,FALSE)),"",VLOOKUP(A63,tesserati[],2,FALSE)) ->  | C63: =IF(ISERROR(VLOOKUP(A63,tesserati[],3,FALSE)),"",VLOOKUP(A63,tesserati[],3,FALSE)) ->  | D63: =IF(ISERROR(VLOOKUP(A63,tesserati[],4,FALSE)),"",VLOOKUP(A63,tesserati[],4,FALSE)) ->  | E63: =IF(ISERROR(VLOOKUP(A63,tesserati[],5,FALSE)),"",VLOOKUP(A63,tesserati[],5,FALSE)) ->  | F63: =IF(ISERROR(VLOOKUP(A63,tesserati[],7,FALSE)),"",VLOOKUP(A63,tesserati[],7,FALSE)) -> 
B64: =IF(ISERROR(VLOOKUP(A64,tesserati[],2,FALSE)),"",VLOOKUP(A64,tesserati[],2,FALSE)) ->  | C64: =IF(ISERROR(VLOOKUP(A64,tesserati[],3,FALSE)),"",VLOOKUP(A64,tesserati[],3,FALSE)) ->  | D64: =IF(ISERROR(VLOOKUP(A64,tesserati[],4,FALSE)),"",VLOOKUP(A64,tesserati[],4,FALSE)) ->  | E64: =IF(ISERROR(VLOOKUP(A64,tesserati[],5,FALSE)),"",VLOOKUP(A64,tesserati[],5,FALSE)) ->  | F64: =IF(ISERROR(VLOOKUP(A64,tesserati[],7,FALSE)),"",VLOOKUP(A64,tesserati[],7,FALSE)) -> 
B65: =IF(ISERROR(VLOOKUP(A65,tesserati[],2,FALSE)),"",VLOOKUP(A65,tesserati[],2,FALSE)) ->  | C65: =IF(ISERROR(VLOOKUP(A65,tesserati[],3,FALSE)),"",VLOOKUP(A65,tesserati[],3,FALSE)) ->  | D65: =IF(ISERROR(VLOOKUP(A65,tesserati[],4,FALSE)),"",VLOOKUP(A65,tesserati[],4,FALSE)) ->  | E65: =IF(ISERROR(VLOOKUP(A65,tesserati[],5,FALSE)),"",VLOOKUP(A65,tesserati[],5,FALSE)) ->  | F65: =IF(ISERROR(VLOOKUP(A65,tesserati[],7,FALSE)),"",VLOOKUP(A65,tesserati[],7,FALSE)) -> 
B66: =IF(ISERROR(VLOOKUP(A66,tesserati[],2,FALSE)),"",VLOOKUP(A66,tesserati[],2,FALSE)) ->  | C66: =IF(ISERROR(VLOOKUP(A66,tesserati[],3,FALSE)),"",VLOOKUP(A66,tesserati[],3,FALSE)) ->  | D66: =IF(ISERROR(VLOOKUP(A66,tesserati[],4,FALSE)),"",VLOOKUP(A66,tesserati[],4,FALSE)) ->  | E66: =IF(ISERROR(VLOOKUP(A66,tesserati[],5,FALSE)),"",VLOOKUP(A66,tesserati[],5,FALSE)) ->  | F66: =IF(ISERROR(VLOOKUP(A66,tesserati[],7,FALSE)),"",VLOOKUP(A66,tesserati[],7,FALSE)) -> 
B67: =IF(ISERROR(VLOOKUP(A67,tesserati[],2,FALSE)),"",VLOOKUP(A67,tesserati[],2,FALSE)) ->  | C67: =IF(ISERROR(VLOOKUP(A67,tesserati[],3,FALSE)),"",VLOOKUP(A67,tesserati[],3,FALSE)) ->  | D67: =IF(ISERROR(VLOOKUP(A67,tesserati[],4,FALSE)),"",VLOOKUP(A67,tesserati[],4,FALSE)) ->  | E67: =IF(ISERROR(VLOOKUP(A67,tesserati[],5,FALSE)),"",VLOOKUP(A67,tesserati[],5,FALSE)) ->  | F67: =IF(ISERROR(VLOOKUP(A67,tesserati[],7,FALSE)),"",VLOOKUP(A67,tesserati[],7,FALSE)) -> 
B68: =IF(ISERROR(VLOOKUP(A68,tesserati[],2,FALSE)),"",VLOOKUP(A68,tesserati[],2,FALSE)) ->  | C68: =IF(ISERROR(VLOOKUP(A68,tesserati[],3,FALSE)),"",VLOOKUP(A68,tesserati[],3,FALSE)) ->  | D68: =IF(ISERROR(VLOOKUP(A68,tesserati[],4,FALSE)),"",VLOOKUP(A68,tesserati[],4,FALSE)) ->  | E68: =IF(ISERROR(VLOOKUP(A68,tesserati[],5,FALSE)),"",VLOOKUP(A68,tesserati[],5,FALSE)) ->  | F68: =IF(ISERROR(VLOOKUP(A68,tesserati[],7,FALSE)),"",VLOOKUP(A68,tesserati[],7,FALSE)) -> 
B69: =IF(ISERROR(VLOOKUP(A69,tesserati[],2,FALSE)),"",VLOOKUP(A69,tesserati[],2,FALSE)) ->  | C69: =IF(ISERROR(VLOOKUP(A69,tesserati[],3,FALSE)),"",VLOOKUP(A69,tesserati[],3,FALSE)) ->  | D69: =IF(ISERROR(VLOOKUP(A69,tesserati[],4,FALSE)),"",VLOOKUP(A69,tesserati[],4,FALSE)) ->  | E69: =IF(ISERROR(VLOOKUP(A69,tesserati[],5,FALSE)),"",VLOOKUP(A69,tesserati[],5,FALSE)) ->  | F69: =IF(ISERROR(VLOOKUP(A69,tesserati[],7,FALSE)),"",VLOOKUP(A69,tesserati[],7,FALSE)) -> 
B70: =IF(ISERROR(VLOOKUP(A70,tesserati[],2,FALSE)),"",VLOOKUP(A70,tesserati[],2,FALSE)) ->  | C70: =IF(ISERROR(VLOOKUP(A70,tesserati[],3,FALSE)),"",VLOOKUP(A70,tesserati[],3,FALSE)) ->  | D70: =IF(ISERROR(VLOOKUP(A70,tesserati[],4,FALSE)),"",VLOOKUP(A70,tesserati[],4,FALSE)) ->  | E70: =IF(ISERROR(VLOOKUP(A70,tesserati[],5,FALSE)),"",VLOOKUP(A70,tesserati[],5,FALSE)) ->  | F70: =IF(ISERROR(VLOOKUP(A70,tesserati[],7,FALSE)),"",VLOOKUP(A70,tesserati[],7,FALSE)) -> 
B71: =IF(ISERROR(VLOOKUP(A71,tesserati[],2,FALSE)),"",VLOOKUP(A71,tesserati[],2,FALSE)) ->  | C71: =IF(ISERROR(VLOOKUP(A71,tesserati[],3,FALSE)),"",VLOOKUP(A71,tesserati[],3,FALSE)) ->  | D71: =IF(ISERROR(VLOOKUP(A71,tesserati[],4,FALSE)),"",VLOOKUP(A71,tesserati[],4,FALSE)) ->  | E71: =IF(ISERROR(VLOOKUP(A71,tesserati[],5,FALSE)),"",VLOOKUP(A71,tesserati[],5,FALSE)) ->  | F71: =IF(ISERROR(VLOOKUP(A71,tesserati[],7,FALSE)),"",VLOOKUP(A71,tesserati[],7,FALSE)) -> 
B72: =IF(ISERROR(VLOOKUP(A72,tesserati[],2,FALSE)),"",VLOOKUP(A72,tesserati[],2,FALSE)) ->  | C72: =IF(ISERROR(VLOOKUP(A72,tesserati[],3,FALSE)),"",VLOOKUP(A72,tesserati[],3,FALSE)) ->  | D72: =IF(ISERROR(VLOOKUP(A72,tesserati[],4,FALSE)),"",VLOOKUP(A72,tesserati[],4,FALSE)) ->  | E72: =IF(ISERROR(VLOOKUP(A72,tesserati[],5,FALSE)),"",VLOOKUP(A72,tesserati[],5,FALSE)) ->  | F72: =IF(ISERROR(VLOOKUP(A72,tesserati[],7,FALSE)),"",VLOOKUP(A72,tesserati[],7,FALSE)) -> 

Sheet STAFFETTE 4X100 CF
C1: MANIFESTAZIONE | F1: LOCALITA' | I1: SOCIETA' ORGANIZZATRICE
C2: 6° prova provinciale | F2: Tezze sul Brenta | I2: CSI Tezze sul Brenta
A3: CATEGORIA | C3: ORA INIZIO | D3: ORA FINE | F3: GARA | I3: DATA
A4: CADETTE | F4: STAFFETTA 4 X 100 | I4: 2017-09-24
A6: N. tessera | B6: ATLETA COGNOME E NOME | D6: SOCIETA' | E6: NASCITA | F6: CATEGORIA | G6: Corsia | H6: PETTORALE | I6: Tempo | J6: Piazzamento | K6: PUNTI | L6: CL.
A8: 1 SERIE | B8: =IF(ISERROR(VLOOKUP(A8,tesserati[],2,FALSE)),"",VLOOKUP(A8,tesserati[],2,FALSE)) ->  | C8: =IF(ISERROR(VLOOKUP(A8,tesserati[],3,FALSE)),"",VLOOKUP(A8,tesserati[],3,FALSE)) ->  | D8: =IF(ISERROR(VLOOKUP(#REF!,tesserati[],5,FALSE)),"",VLOOKUP(#REF!,tesserati[],5,FALSE)) ->  | E8: =IF(ISERROR(VLOOKUP(A8,tesserati[],4,FALSE)),"",VLOOKUP(A8,tesserati[],4,FALSE)) ->  | F8: =IF(ISERROR(VLOOKUP(A8,tesserati[],7,FALSE)),"",VLOOKUP(A8,tesserati[],7,FALSE)) -> 
A9: 4595 | B9: =IF(ISERROR(VLOOKUP(A9,tesserati[],2,FALSE)),"",VLOOKUP(A9,tesserati[],2,FALSE)) -> VALLORTIGARA | C9: =IF(ISERROR(VLOOKUP(A9,tesserati[],3,FALSE)),"",VLOOKUP(A9,tesserati[],3,FALSE)) -> ELENA | D9: =IF(ISERROR(VLOOKUP(A9,tesserati[],4,FALSE)),"",VLOOKUP(A9,tesserati[],4,FALSE)) -> CSI ATLETICA COLLI BERICI | E9: =IF(ISERROR(VLOOKUP(A9,tesserati[],5,FALSE)),"",VLOOKUP(A9,tesserati[],5,FALSE)) -> 2004 | F9: =IF(ISERROR(VLOOKUP(A9,tesserati[],7,FALSE)),"",VLOOKUP(A9,tesserati[],7,FALSE)) -> RF | G9: 1 | I9: 54.8
A10: 7975 | B10: =IF(ISERROR(VLOOKUP(A10,tesserati[],2,FALSE)),"",VLOOKUP(A10,tesserati[],2,FALSE)) -> FIAGAH | C10: =IF(ISERROR(VLOOKUP(A10,tesserati[],3,FALSE)),"",VLOOKUP(A10,tesserati[],3,FALSE)) -> MARY | D10: =IF(ISERROR(VLOOKUP(A10,tesserati[],4,FALSE)),"",VLOOKUP(A10,tesserati[],4,FALSE)) -> CSI ATLETICA COLLI BERICI | E10: =IF(ISERROR(VLOOKUP(A10,tesserati[],5,FALSE)),"",VLOOKUP(A10,tesserati[],5,FALSE)) -> 2004 | F10: =IF(ISERROR(VLOOKUP(A10,tesserati[],7,FALSE)),"",VLOOKUP(A10,tesserati[],7,FALSE)) -> RF
A11: 4378 | B11: =IF(ISERROR(VLOOKUP(A11,tesserati[],2,FALSE)),"",VLOOKUP(A11,tesserati[],2,FALSE)) -> ASSAM | C11: =IF(ISERROR(VLOOKUP(A11,tesserati[],3,FALSE)),"",VLOOKUP(A11,tesserati[],3,FALSE)) -> FAIZA | D11: =IF(ISERROR(VLOOKUP(A11,tesserati[],4,FALSE)),"",VLOOKUP(A11,tesserati[],4,FALSE)) -> CSI ATLETICA COLLI BERICI | E11: =IF(ISERROR(VLOOKUP(A11,tesserati[],5,FALSE)),"",VLOOKUP(A11,tesserati[],5,FALSE)) -> 2003 | F11: =IF(ISERROR(VLOOKUP(A11,tesserati[],7,FALSE)),"",VLOOKUP(A11,tesserati[],7,FALSE)) -> CF
A12: 4379 | B12: =IF(ISERROR(VLOOKUP(A12,tesserati[],2,FALSE)),"",VLOOKUP(A12,tesserati[],2,FALSE)) -> ASSAM | C12: =IF(ISERROR(VLOOKUP(A12,tesserati[],3,FALSE)),"",VLOOKUP(A12,tesserati[],3,FALSE)) -> SALIHA | D12: =IF(ISERROR(VLOOKUP(A12,tesserati[],4,FALSE)),"",VLOOKUP(A12,tesserati[],4,FALSE)) -> CSI ATLETICA COLLI BERICI | E12: =IF(ISERROR(VLOOKUP(A12,tesserati[],5,FALSE)),"",VLOOKUP(A12,tesserati[],5,FALSE)) -> 2003 | F12: =IF(ISERROR(VLOOKUP(A12,tesserati[],7,FALSE)),"",VLOOKUP(A12,tesserati[],7,FALSE)) -> CF
A13: 5129 | B13: =IF(ISERROR(VLOOKUP(A13,tesserati[],2,FALSE)),"",VLOOKUP(A13,tesserati[],2,FALSE)) -> MENEGHETTI | C13: =IF(ISERROR(VLOOKUP(A13,tesserati[],3,FALSE)),"",VLOOKUP(A13,tesserati[],3,FALSE)) -> ALICE | D13: =IF(ISERROR(VLOOKUP(A13,tesserati[],4,FALSE)),"",VLOOKUP(A13,tesserati[],4,FALSE)) -> POLISPORTIVA SALF ALTOPADOVANA | E13: =IF(ISERROR(VLOOKUP(A13,tesserati[],5,FALSE)),"",VLOOKUP(A13,tesserati[],5,FALSE)) -> 2005 | F13: =IF(ISERROR(VLOOKUP(A13,tesserati[],7,FALSE)),"",VLOOKUP(A13,tesserati[],7,FALSE)) -> RF | G13: 3 | I13: 56
A14: 5169 | B14: =IF(ISERROR(VLOOKUP(A14,tesserati[],2,FALSE)),"",VLOOKUP(A14,tesserati[],2,FALSE)) -> NONNI | C14: =IF(ISERROR(VLOOKUP(A14,tesserati[],3,FALSE)),"",VLOOKUP(A14,tesserati[],3,FALSE)) -> HASANATOU | D14: =IF(ISERROR(VLOOKUP(A14,tesserati[],4,FALSE)),"",VLOOKUP(A14,tesserati[],4,FALSE)) -> POLISPORTIVA SALF ALTOPADOVANA | E14: =IF(ISERROR(VLOOKUP(A14,tesserati[],5,FALSE)),"",VLOOKUP(A14,tesserati[],5,FALSE)) -> 2005 | F14: =IF(ISERROR(VLOOKUP(A14,tesserati[],7,FALSE)),"",VLOOKUP(A14,tesserati[],7,FALSE)) -> RF
A15: 4903 | B15: =IF(ISERROR(VLOOKUP(A15,tesserati[],2,FALSE)),"",VLOOKUP(A15,tesserati[],2,FALSE)) -> GNOATTO | C15: =IF(ISERROR(VLOOKUP(A15,tesserati[],3,FALSE)),"",VLOOKUP(A15,tesserati[],3,FALSE)) -> ALTEA | D15: =IF(ISERROR(VLOOKUP(A15,tesserati[],4,FALSE)),"",VLOOKUP(A15,tesserati[],4,FALSE)) -> POLISPORTIVA SALF ALTOPADOVANA | E15: =IF(ISERROR(VLOOKUP(A15,tesserati[],5,FALSE)),"",VLOOKUP(A15,tesserati[],5,FALSE)) -> 2004 | F15: =IF(ISERROR(VLOOKUP(A15,tesserati[],7,FALSE)),"",VLOOKUP(A15,tesserati[],7,FALSE)) -> RF
A16: 5119 | B16: =IF(ISERROR(VLOOKUP(A16,tesserati[],2,FALSE)),"",VLOOKUP(A16,tesserati[],2,FALSE)) -> MARANGONI | C16: =IF(ISERROR(VLOOKUP(A16,tesserati[],3,FALSE)),"",VLOOKUP(A16,tesserati[],3,FALSE)) -> ALICE | D16: =IF(ISERROR(VLOOKUP(A16,tesserati[],4,FALSE)),"",VLOOKUP(A16,tesserati[],4,FALSE)) -> POLISPORTIVA SALF ALTOPADOVANA | E16: =IF(ISERROR(VLOOKUP(A16,tesserati[],5,FALSE)),"",VLOOKUP(A16,tesserati[],5,FALSE)) -> 2003 | F16: =IF(ISERROR(VLOOKUP(A16,tesserati[],7,FALSE)),"",VLOOKUP(A16,tesserati[],7,FALSE)) -> CF
A17: 2968 | B17: =IF(ISERROR(VLOOKUP(A17,tesserati[],2,FALSE)),"",VLOOKUP(A17,tesserati[],2,FALSE)) -> FACCINI | C17: =IF(ISERROR(VLOOKUP(A17,tesserati[],3,FALSE)),"",VLOOKUP(A17,tesserati[],3,FALSE)) -> ELISA | D17: =IF(ISERROR(VLOOKUP(A17,tesserati[],4,FALSE)),"",VLOOKUP(A17,tesserati[],4,FALSE)) -> ATLETICA UNION CREAZZO | E17: =IF(ISERROR(VLOOKUP(A17,tesserati[],5,FALSE)),"",VLOOKUP(A17,tesserati[],5,FALSE)) -> 2003 | F17: =IF(ISERROR(VLOOKUP(A17,tesserati[],7,FALSE)),"",VLOOKUP(A17,tesserati[],7,FALSE)) -> CF | G17: 5 | I17: 57.3
A18: 3042 | B18: =IF(ISERROR(VLOOKUP(A18,tesserati[],2,FALSE)),"",VLOOKUP(A18,tesserati[],2,FALSE)) -> RINALDI | C18: =IF(ISERROR(VLOOKUP(A18,tesserati[],3,FALSE)),"",VLOOKUP(A18,tesserati[],3,FALSE)) -> GIULIA | D18: =IF(ISERROR(VLOOKUP(A18,tesserati[],4,FALSE)),"",VLOOKUP(A18,tesserati[],4,FALSE)) -> ATLETICA UNION CREAZZO | E18: =IF(ISERROR(VLOOKUP(A18,tesserati[],5,FALSE)),"",VLOOKUP(A18,tesserati[],5,FALSE)) -> 2003 | F18: =IF(ISERROR(VLOOKUP(A18,tesserati[],7,FALSE)),"",VLOOKUP(A18,tesserati[],7,FALSE)) -> CF
A19: 2990 | B19: =IF(ISERROR(VLOOKUP(A19,tesserati[],2,FALSE)),"",VLOOKUP(A19,tesserati[],2,FALSE)) -> PARLATO | C19: =IF(ISERROR(VLOOKUP(A19,tesserati[],3,FALSE)),"",VLOOKUP(A19,tesserati[],3,FALSE)) -> LETIZIA | D19: =IF(ISERROR(VLOOKUP(A19,tesserati[],4,FALSE)),"",VLOOKUP(A19,tesserati[],4,FALSE)) -> ATLETICA UNION CREAZZO | E19: =IF(ISERROR(VLOOKUP(A19,tesserati[],5,FALSE)),"",VLOOKUP(A19,tesserati[],5,FALSE)) -> 2002 | F19: =IF(ISERROR(VLOOKUP(A19,tesserati[],7,FALSE)),"",VLOOKUP(A19,tesserati[],7,FALSE)) -> CF
A20: 3426 | B20: =IF(ISERROR(VLOOKUP(A20,tesserati[],2,FALSE)),"",VLOOKUP(A20,tesserati[],2,FALSE)) -> GHEZZO | C20: =IF(ISERROR(VLOOKUP(A20,tesserati[],3,FALSE)),"",VLOOKUP(A20,tesserati[],3,FALSE)) -> REBECCA | D20: =IF(ISERROR(VLOOKUP(A20,tesserati[],4,FALSE)),"",VLOOKUP(A20,tesserati[],4,FALSE)) -> ATLETICA UNION CREAZZO | E20: =IF(ISERROR(VLOOKUP(A20,tesserati[],5,FALSE)),"",VLOOKUP(A20,tesserati[],5,FALSE)) -> 2003 | F20: =IF(ISERROR(VLOOKUP(A20,tesserati[],7,FALSE)),"",VLOOKUP(A20,tesserati[],7,FALSE)) -> CF
A21: 3963 | B21: =IF(ISERROR(VLOOKUP(A21,tesserati[],2,FALSE)),"",VLOOKUP(A21,tesserati[],2,FALSE)) -> DJADOU | C21: =IF(ISERROR(VLOOKUP(A21,tesserati[],3,FALSE)),"",VLOOKUP(A21,tesserati[],3,FALSE)) -> AKPENE MARTIALE | D21: =IF(ISERROR(VLOOKUP(A21,tesserati[],4,FALSE)),"",VLOOKUP(A21,tesserati[],4,FALSE)) -> POLISPORTIVA DUEVILLE | E21: =IF(ISERROR(VLOOKUP(A21,tesserati[],5,FALSE)),"",VLOOKUP(A21,tesserati[],5,FALSE)) -> 2003 | F21: =IF(ISERROR(VLOOKUP(A21,tesserati[],7,FALSE)),"",VLOOKUP(A21,tesserati[],7,FALSE)) -> CF | G21: 2 | I21: 58.3
A22: 3962 | B22: =IF(ISERROR(VLOOKUP(A22,tesserati[],2,FALSE)),"",VLOOKUP(A22,tesserati[],2,FALSE)) -> DE ROSSO | C22: =IF(ISERROR(VLOOKUP(A22,tesserati[],3,FALSE)),"",VLOOKUP(A22,tesserati[],3,FALSE)) -> CHIARA | D22: =IF(ISERROR(VLOOKUP(A22,tesserati[],4,FALSE)),"",VLOOKUP(A22,tesserati[],4,FALSE)) -> POLISPORTIVA DUEVILLE | E22: =IF(ISERROR(VLOOKUP(A22,tesserati[],5,FALSE)),"",VLOOKUP(A22,tesserati[],5,FALSE)) -> 2003 | F22: =IF(ISERROR(VLOOKUP(A22,tesserati[],7,FALSE)),"",VLOOKUP(A22,tesserati[],7,FALSE)) -> CF
A23: 4040 | B23: =IF(ISERROR(VLOOKUP(A23,tesserati[],2,FALSE)),"",VLOOKUP(A23,tesserati[],2,FALSE)) -> SARTORI | C23: =IF(ISERROR(VLOOKUP(A23,tesserati[],3,FALSE)),"",VLOOKUP(A23,tesserati[],3,FALSE)) -> AURORA | D23: =IF(ISERROR(VLOOKUP(A23,tesserati[],4,FALSE)),"",VLOOKUP(A23,tesserati[],4,FALSE)) -> POLISPORTIVA DUEVILLE | E23: =IF(ISERROR(VLOOKUP(A23,tesserati[],5,FALSE)),"",VLOOKUP(A23,tesserati[],5,FALSE)) -> 2004 | F23: =IF(ISERROR(VLOOKUP(A23,tesserati[],7,FALSE)),"",VLOOKUP(A23,tesserati[],7,FALSE)) -> RF
A24: 4009 | B24: =IF(ISERROR(VLOOKUP(A24,tesserati[],2,FALSE)),"",VLOOKUP(A24,tesserati[],2,FALSE)) -> SACCARDO | C24: =IF(ISERROR(VLOOKUP(A24,tesserati[],3,FALSE)),"",VLOOKUP(A24,tesserati[],3,FALSE)) -> MARIA CLELIA | D24: =IF(ISERROR(VLOOKUP(A24,tesserati[],4,FALSE)),"",VLOOKUP(A24,tesserati[],4,FALSE)) -> POLISPORTIVA DUEVILLE | E24: =IF(ISERROR(VLOOKUP(A24,tesserati[],5,FALSE)),"",VLOOKUP(A24,tesserati[],5,FALSE)) -> 2002 | F24: =IF(ISERROR(VLOOKUP(A24,tesserati[],7,FALSE)),"",VLOOKUP(A24,tesserati[],7,FALSE)) -> CF
A25: 2477 | B25: =IF(ISERROR(VLOOKUP(A25,tesserati[],2,FALSE)),"",VLOOKUP(A25,tesserati[],2,FALSE)) -> RIGO | C25: =IF(ISERROR(VLOOKUP(A25,tesserati[],3,FALSE)),"",VLOOKUP(A25,tesserati[],3,FALSE)) -> GIORGIA | D25: =IF(ISERROR(VLOOKUP(A25,tesserati[],4,FALSE)),"",VLOOKUP(A25,tesserati[],4,FALSE)) -> C.S.I. TEZZE SUL BRENTA | E25: =IF(ISERROR(VLOOKUP(A25,tesserati[],5,FALSE)),"",VLOOKUP(A25,tesserati[],5,FALSE)) -> 2004 | F25: =IF(ISERROR(VLOOKUP(A25,tesserati[],7,FALSE)),"",VLOOKUP(A25,tesserati[],7,FALSE)) -> RF | G25: 6 | I25: 59.6
A26: 2468 | B26: =IF(ISERROR(VLOOKUP(A26,tesserati[],2,FALSE)),"",VLOOKUP(A26,tesserati[],2,FALSE)) -> REFFO | C26: =IF(ISERROR(VLOOKUP(A26,tesserati[],3,FALSE)),"",VLOOKUP(A26,tesserati[],3,FALSE)) -> VALENTINA | D26: =IF(ISERROR(VLOOKUP(A26,tesserati[],4,FALSE)),"",VLOOKUP(A26,tesserati[],4,FALSE)) -> C.S.I. TEZZE SUL BRENTA | E26: =IF(ISERROR(VLOOKUP(A26,tesserati[],5,FALSE)),"",VLOOKUP(A26,tesserati[],5,FALSE)) -> 2003 | F26: =IF(ISERROR(VLOOKUP(A26,tesserati[],7,FALSE)),"",VLOOKUP(A26,tesserati[],7,FALSE)) -> CF
A27: 2482 | B27: =IF(ISERROR(VLOOKUP(A27,tesserati[],2,FALSE)),"",VLOOKUP(A27,tesserati[],2,FALSE)) -> LAGO | C27: =IF(ISERROR(VLOOKUP(A27,tesserati[],3,FALSE)),"",VLOOKUP(A27,tesserati[],3,FALSE)) -> ANGELICA | D27: =IF(ISERROR(VLOOKUP(A27,tesserati[],4,FALSE)),"",VLOOKUP(A27,tesserati[],4,FALSE)) -> C.S.I. TEZZE SUL BRENTA | E27: =IF(ISERROR(VLOOKUP(A27,tesserati[],5,FALSE)),"",VLOOKUP(A27,tesserati[],5,FALSE)) -> 2003 | F27: =IF(ISERROR(VLOOKUP(A27,tesserati[],7,FALSE)),"",VLOOKUP(A27,tesserati[],7,FALSE)) -> CF
A28: 2480 | B28: =IF(ISERROR(VLOOKUP(A28,tesserati[],2,FALSE)),"",VLOOKUP(A28,tesserati[],2,FALSE)) -> MARAGNO | C28: =IF(ISERROR(VLOOKUP(A28,tesserati[],3,FALSE)),"",VLOOKUP(A28,tesserati[],3,FALSE)) -> GIULIA | D28: =IF(ISERROR(VLOOKUP(A28,tesserati[],4,FALSE)),"",VLOOKUP(A28,tesserati[],4,FALSE)) -> C.S.I. TEZZE SUL BRENTA | E28: =IF(ISERROR(VLOOKUP(A28,tesserati[],5,FALSE)),"",VLOOKUP(A28,tesserati[],5,FALSE)) -> 2003 | F28: =IF(ISERROR(VLOOKUP(A28,tesserati[],7,FALSE)),"",VLOOKUP(A28,tesserati[],7,FALSE)) -> CF
A29: 6287 | B29: =IF(ISERROR(VLOOKUP(A29,tesserati[],2,FALSE)),"",VLOOKUP(A29,tesserati[],2,FALSE)) -> BANCE | C29: =IF(ISERROR(VLOOKUP(A29,tesserati[],3,FALSE)),"",VLOOKUP(A29,tesserati[],3,FALSE)) -> RABIATOU | D29: =IF(ISERROR(VLOOKUP(A29,tesserati[],4,FALSE)),"",VLOOKUP(A29,tesserati[],4,FALSE)) -> ATLETICA TRISSINO | E29: =IF(ISERROR(VLOOKUP(A29,tesserati[],5,FALSE)),"",VLOOKUP(A29,tesserati[],5,FALSE)) -> 2004 | F29: =IF(ISERROR(VLOOKUP(A29,tesserati[],7,FALSE)),"",VLOOKUP(A29,tesserati[],7,FALSE)) -> RF | G29: 4 | I29: 1,07.3
A30: 4206 | B30: =IF(ISERROR(VLOOKUP(A30,tesserati[],2,FALSE)),"",VLOOKUP(A30,tesserati[],2,FALSE)) -> SEGATO | C30: =IF(ISERROR(VLOOKUP(A30,tesserati[],3,FALSE)),"",VLOOKUP(A30,tesserati[],3,FALSE)) -> EMY | D30: =IF(ISERROR(VLOOKUP(A30,tesserati[],4,FALSE)),"",VLOOKUP(A30,tesserati[],4,FALSE)) -> ATLETICA TRISSINO | E30: =IF(ISERROR(VLOOKUP(A30,tesserati[],5,FALSE)),"",VLOOKUP(A30,tesserati[],5,FALSE)) -> 2005 | F30: =IF(ISERROR(VLOOKUP(A30,tesserati[],7,FALSE)),"",VLOOKUP(A30,tesserati[],7,FALSE)) -> RF
A31: 4211 | B31: =IF(ISERROR(VLOOKUP(A31,tesserati[],2,FALSE)),"",VLOOKUP(A31,tesserati[],2,FALSE)) -> GENTILIN | C31: =IF(ISERROR(VLOOKUP(A31,tesserati[],3,FALSE)),"",VLOOKUP(A31,tesserati[],3,FALSE)) -> ALESSIA | D31: =IF(ISERROR(VLOOKUP(A31,tesserati[],4,FALSE)),"",VLOOKUP(A31,tesserati[],4,FALSE)) -> ATLETICA TRISSINO | E31: =IF(ISERROR(VLOOKUP(A31,tesserati[],5,FALSE)),"",VLOOKUP(A31,tesserati[],5,FALSE)) -> 2004 | F31: =IF(ISERROR(VLOOKUP(A31,tesserati[],7,FALSE)),"",VLOOKUP(A31,tesserati[],7,FALSE)) -> RF
A32: 4210 | B32: =IF(ISERROR(VLOOKUP(A32,tesserati[],2,FALSE)),"",VLOOKUP(A32,tesserati[],2,FALSE)) -> PASETTI | C32: =IF(ISERROR(VLOOKUP(A32,tesserati[],3,FALSE)),"",VLOOKUP(A32,tesserati[],3,FALSE)) -> ANGELA | D32: =IF(ISERROR(VLOOKUP(A32,tesserati[],4,FALSE)),"",VLOOKUP(A32,tesserati[],4,FALSE)) -> ATLETICA TRISSINO | E32: =IF(ISERROR(VLOOKUP(A32,tesserati[],5,FALSE)),"",VLOOKUP(A32,tesserati[],5,FALSE)) -> 2003 | F32: =IF(ISERROR(VLOOKUP(A32,tesserati[],7,FALSE)),"",VLOOKUP(A32,tesserati[],7,FALSE)) -> CF
A33: 2 SERIE
B34: =IF(ISERROR(VLOOKUP(A34,tesserati[],2,FALSE)),"",VLOOKUP(A34,tesserati[],2,FALSE)) ->  | C34: =IF(ISERROR(VLOOKUP(A34,tesserati[],3,FALSE)),"",VLOOKUP(A34,tesserati[],3,FALSE)) ->  | D34: =IF(ISERROR(VLOOKUP(A34,tesserati[],4,FALSE)),"",VLOOKUP(A34,tesserati[],4,FALSE)) ->  | E34: =IF(ISERROR(VLOOKUP(A34,tesserati[],5,FALSE)),"",VLOOKUP(A34,tesserati[],5,FALSE)) ->  | F34: =IF(ISERROR(VLOOKUP(A34,tesserati[],7,FALSE)),"",VLOOKUP(A34,tesserati[],7,FALSE)) ->  | G34: 1
B35: =IF(ISERROR(VLOOKUP(A35,tesserati[],2,FALSE)),"",VLOOKUP(A35,tesserati[],2,FALSE)) ->  | C35: =IF(ISERROR(VLOOKUP(A35,tesserati[],3,FALSE)),"",VLOOKUP(A35,tesserati[],3,FALSE)) ->  | D35: =IF(ISERROR(VLOOKUP(A35,tesserati[],4,FALSE)),"",VLOOKUP(A35,tesserati[],4,FALSE)) ->  | E35: =IF(ISERROR(VLOOKUP(A35,tesserati[],5,FALSE)),"",VLOOKUP(A35,tesserati[],5,FALSE)) ->  | F35: =IF(ISERROR(VLOOKUP(A35,tesserati[],7,FALSE)),"",VLOOKUP(A35,tesserati[],7,FALSE)) -> 
B36: =IF(ISERROR(VLOOKUP(A36,tesserati[],2,FALSE)),"",VLOOKUP(A36,tesserati[],2,FALSE)) ->  | C36: =IF(ISERROR(VLOOKUP(A36,tesserati[],3,FALSE)),"",VLOOKUP(A36,tesserati[],3,FALSE)) ->  | D36: =IF(ISERROR(VLOOKUP(A36,tesserati[],4,FALSE)),"",VLOOKUP(A36,tesserati[],4,FALSE)) ->  | E36: =IF(ISERROR(VLOOKUP(A36,tesserati[],5,FALSE)),"",VLOOKUP(A36,tesserati[],5,FALSE)) ->  | F36: =IF(ISERROR(VLOOKUP(A36,tesserati[],7,FALSE)),"",VLOOKUP(A36,tesserati[],7,FALSE)) -> 
B37: =IF(ISERROR(VLOOKUP(A37,tesserati[],2,FALSE)),"",VLOOKUP(A37,tesserati[],2,FALSE)) ->  | C37: =IF(ISERROR(VLOOKUP(A37,tesserati[],3,FALSE)),"",VLOOKUP(A37,tesserati[],3,FALSE)) ->  | D37: =IF(ISERROR(VLOOKUP(A37,tesserati[],4,FALSE)),"",VLOOKUP(A37,tesserati[],4,FALSE)) ->  | E37: =IF(ISERROR(VLOOKUP(A37,tesserati[],5,FALSE)),"",VLOOKUP(A37,tesserati[],5,FALSE)) ->  | F37: =IF(ISERROR(VLOOKUP(A37,tesserati[],7,FALSE)),"",VLOOKUP(A37,tesserati[],7,FALSE)) -> 
B38: =IF(ISERROR(VLOOKUP(A38,tesserati[],2,FALSE)),"",VLOOKUP(A38,tesserati[],2,FALSE)) ->  | C38: =IF(ISERROR(VLOOKUP(A38,tesserati[],3,FALSE)),"",VLOOKUP(A38,tesserati[],3,FALSE)) ->  | D38: =IF(ISERROR(VLOOKUP(A38,tesserati[],4,FALSE)),"",VLOOKUP(A38,tesserati[],4,FALSE)) ->  | E38: =IF(ISERROR(VLOOKUP(A38,tesserati[],5,FALSE)),"",VLOOKUP(A38,tesserati[],5,FALSE)) ->  | F38: =IF(ISERROR(VLOOKUP(A38,tesserati[],7,FALSE)),"",VLOOKUP(A38,tesserati[],7,FALSE)) ->  | G38: 2
B39: =IF(ISERROR(VLOOKUP(A39,tesserati[],2,FALSE)),"",VLOOKUP(A39,tesserati[],2,FALSE)) ->  | C39: =IF(ISERROR(VLOOKUP(A39,tesserati[],3,FALSE)),"",VLOOKUP(A39,tesserati[],3,FALSE)) ->  | D39: =IF(ISERROR(VLOOKUP(A39,tesserati[],4,FALSE)),"",VLOOKUP(A39,tesserati[],4,FALSE)) ->  | E39: =IF(ISERROR(VLOOKUP(A39,tesserati[],5,FALSE)),"",VLOOKUP(A39,tesserati[],5,FALSE)) ->  | F39: =IF(ISERROR(VLOOKUP(A39,tesserati[],7,FALSE)),"",VLOOKUP(A39,tesserati[],7,FALSE)) -> 
B40: =IF(ISERROR(VLOOKUP(A40,tesserati[],2,FALSE)),"",VLOOKUP(A40,tesserati[],2,FALSE)) ->  | C40: =IF(ISERROR(VLOOKUP(A40,tesserati[],3,FALSE)),"",VLOOKUP(A40,tesserati[],3,FALSE)) ->  | D40: =IF(ISERROR(VLOOKUP(A40,tesserati[],4,FALSE)),"",VLOOKUP(A40,tesserati[],4,FALSE)) ->  | E40: =IF(ISERROR(VLOOKUP(A40,tesserati[],5,FALSE)),"",VLOOKUP(A40,tesserati[],5,FALSE)) ->  | F40: =IF(ISERROR(VLOOKUP(A40,tesserati[],7,FALSE)),"",VLOOKUP(A40,tesserati[],7,FALSE)) -> 
B41: =IF(ISERROR(VLOOKUP(A41,tesserati[],2,FALSE)),"",VLOOKUP(A41,tesserati[],2,FALSE)) ->  | C41: =IF(ISERROR(VLOOKUP(A41,tesserati[],3,FALSE)),"",VLOOKUP(A41,tesserati[],3,FALSE)) ->  | D41: =IF(ISERROR(VLOOKUP(A41,tesserati[],4,FALSE)),"",VLOOKUP(A41,tesserati[],4,FALSE)) ->  | E41: =IF(ISERROR(VLOOKUP(A41,tesserati[],5,FALSE)),"",VLOOKUP(A41,tesserati[],5,FALSE)) ->  | F41: =IF(ISERROR(VLOOKUP(A41,tesserati[],7,FALSE)),"",VLOOKUP(A41,tesserati[],7,FALSE)) -> 
B42: =IF(ISERROR(VLOOKUP(A42,tesserati[],2,FALSE)),"",VLOOKUP(A42,tesserati[],2,FALSE)) ->  | C42: =IF(ISERROR(VLOOKUP(A42,tesserati[],3,FALSE)),"",VLOOKUP(A42,tesserati[],3,FALSE)) ->  | D42: =IF(ISERROR(VLOOKUP(A42,tesserati[],4,FALSE)),"",VLOOKUP(A42,tesserati[],4,FALSE)) ->  | E42: =IF(ISERROR(VLOOKUP(A42,tesserati[],5,FALSE)),"",VLOOKUP(A42,tesserati[],5,FALSE)) ->  | F42: =IF(ISERROR(VLOOKUP(A42,tesserati[],7,FALSE)),"",VLOOKUP(A42,tesserati[],7,FALSE)) ->  | G42: 3
B43: =IF(ISERROR(VLOOKUP(A43,tesserati[],2,FALSE)),"",VLOOKUP(A43,tesserati[],2,FALSE)) ->  | C43: =IF(ISERROR(VLOOKUP(A43,tesserati[],3,FALSE)),"",VLOOKUP(A43,tesserati[],3,FALSE)) ->  | D43: =IF(ISERROR(VLOOKUP(A43,tesserati[],4,FALSE)),"",VLOOKUP(A43,tesserati[],4,FALSE)) ->  | E43: =IF(ISERROR(VLOOKUP(A43,tesserati[],5,FALSE)),"",VLOOKUP(A43,tesserati[],5,FALSE)) ->  | F43: =IF(ISERROR(VLOOKUP(A43,tesserati[],7,FALSE)),"",VLOOKUP(A43,tesserati[],7,FALSE)) -> 
B44: =IF(ISERROR(VLOOKUP(A44,tesserati[],2,FALSE)),"",VLOOKUP(A44,tesserati[],2,FALSE)) ->  | C44: =IF(ISERROR(VLOOKUP(A44,tesserati[],3,FALSE)),"",VLOOKUP(A44,tesserati[],3,FALSE)) ->  | D44: =IF(ISERROR(VLOOKUP(A44,tesserati[],4,FALSE)),"",VLOOKUP(A44,tesserati[],4,FALSE)) ->  | E44: =IF(ISERROR(VLOOKUP(A44,tesserati[],5,FALSE)),"",VLOOKUP(A44,tesserati[],5,FALSE)) ->  | F44: =IF(ISERROR(VLOOKUP(A44,tesserati[],7,FALSE)),"",VLOOKUP(A44,tesserati[],7,FALSE)) -> 
B45: =IF(ISERROR(VLOOKUP(A45,tesserati[],2,FALSE)),"",VLOOKUP(A45,tesserati[],2,FALSE)) ->  | C45: =IF(ISERROR(VLOOKUP(A45,tesserati[],3,FALSE)),"",VLOOKUP(A45,tesserati[],3,FALSE)) ->  | D45: =IF(ISERROR(VLOOKUP(A45,tesserati[],4,FALSE)),"",VLOOKUP(A45,tesserati[],4,FALSE)) ->  | E45: =IF(ISERROR(VLOOKUP(A45,tesserati[],5,FALSE)),"",VLOOKUP(A45,tesserati[],5,FALSE)) ->  | F45: =IF(ISERROR(VLOOKUP(A45,tesserati[],7,FALSE)),"",VLOOKUP(A45,tesserati[],7,FALSE)) -> 
B46: =IF(ISERROR(VLOOKUP(A46,tesserati[],2,FALSE)),"",VLOOKUP(A46,tesserati[],2,FALSE)) ->  | C46: =IF(ISERROR(VLOOKUP(A46,tesserati[],3,FALSE)),"",VLOOKUP(A46,tesserati[],3,FALSE)) ->  | D46: =IF(ISERROR(VLOOKUP(A46,tesserati[],4,FALSE)),"",VLOOKUP(A46,tesserati[],4,FALSE)) ->  | E46: =IF(ISERROR(VLOOKUP(A46,tesserati[],5,FALSE)),"",VLOOKUP(A46,tesserati[],5,FALSE)) ->  | F46: =IF(ISERROR(VLOOKUP(A46,tesserati[],7,FALSE)),"",VLOOKUP(A46,tesserati[],7,FALSE)) ->  | G46: 4
B47: =IF(ISERROR(VLOOKUP(A47,tesserati[],2,FALSE)),"",VLOOKUP(A47,tesserati[],2,FALSE)) ->  | C47: =IF(ISERROR(VLOOKUP(A47,tesserati[],3,FALSE)),"",VLOOKUP(A47,tesserati[],3,FALSE)) ->  | D47: =IF(ISERROR(VLOOKUP(A47,tesserati[],4,FALSE)),"",VLOOKUP(A47,tesserati[],4,FALSE)) ->  | E47: =IF(ISERROR(VLOOKUP(A47,tesserati[],5,FALSE)),"",VLOOKUP(A47,tesserati[],5,FALSE)) ->  | F47: =IF(ISERROR(VLOOKUP(A47,tesserati[],7,FALSE)),"",VLOOKUP(A47,tesserati[],7,FALSE)) -> 
B48: =IF(ISERROR(VLOOKUP(A48,tesserati[],2,FALSE)),"",VLOOKUP(A48,tesserati[],2,FALSE)) ->  | C48: =IF(ISERROR(VLOOKUP(A48,tesserati[],3,FALSE)),"",VLOOKUP(A48,tesserati[],3,FALSE)) ->  | D48: =IF(ISERROR(VLOOKUP(A48,tesserati[],4,FALSE)),"",VLOOKUP(A48,tesserati[],4,FALSE)) ->  | E48: =IF(ISERROR(VLOOKUP(A48,tesserati[],5,FALSE)),"",VLOOKUP(A48,tesserati[],5,FALSE)) ->  | F48: =IF(ISERROR(VLOOKUP(A48,tesserati[],7,FALSE)),"",VLOOKUP(A48,tesserati[],7,FALSE)) -> 
B49: =IF(ISERROR(VLOOKUP(A49,tesserati[],2,FALSE)),"",VLOOKUP(A49,tesserati[],2,FALSE)) ->  | C49: =IF(ISERROR(VLOOKUP(A49,tesserati[],3,FALSE)),"",VLOOKUP(A49,tesserati[],3,FALSE)) ->  | D49: =IF(ISERROR(VLOOKUP(A49,tesserati[],4,FALSE)),"",VLOOKUP(A49,tesserati[],4,FALSE)) ->  | E49: =IF(ISERROR(VLOOKUP(A49,tesserati[],5,FALSE)),"",VLOOKUP(A49,tesserati[],5,FALSE)) ->  | F49: =IF(ISERROR(VLOOKUP(A49,tesserati[],7,FALSE)),"",VLOOKUP(A49,tesserati[],7,FALSE)) -> 
B50: =IF(ISERROR(VLOOKUP(A50,tesserati[],2,FALSE)),"",VLOOKUP(A50,tesserati[],2,FALSE)) ->  | C50: =IF(ISERROR(VLOOKUP(A50,tesserati[],3,FALSE)),"",VLOOKUP(A50,tesserati[],3,FALSE)) ->  | D50: =IF(ISERROR(VLOOKUP(A50,tesserati[],4,FALSE)),"",VLOOKUP(A50,tesserati[],4,FALSE)) ->  | E50: =IF(ISERROR(VLOOKUP(A50,tesserati[],5,FALSE)),"",VLOOKUP(A50,tesserati[],5,FALSE)) ->  | F50: =IF(ISERROR(VLOOKUP(A50,tesserati[],7,FALSE)),"",VLOOKUP(A50,tesserati[],7,FALSE)) ->  | G50: 5
B51: =IF(ISERROR(VLOOKUP(A51,tesserati[],2,FALSE)),"",VLOOKUP(A51,tesserati[],2,FALSE)) ->  | C51: =IF(ISERROR(VLOOKUP(A51,tesserati[],3,FALSE)),"",VLOOKUP(A51,tesserati[],3,FALSE)) ->  | D51: =IF(ISERROR(VLOOKUP(A51,tesserati[],4,FALSE)),"",VLOOKUP(A51,tesserati[],4,FALSE)) ->  | E51: =IF(ISERROR(VLOOKUP(A51,tesserati[],5,FALSE)),"",VLOOKUP(A51,tesserati[],5,FALSE)) ->  | F51: =IF(ISERROR(VLOOKUP(A51,tesserati[],7,FALSE)),"",VLOOKUP(A51,tesserati[],7,FALSE)) -> 
B52: =IF(ISERROR(VLOOKUP(A52,tesserati[],2,FALSE)),"",VLOOKUP(A52,tesserati[],2,FALSE)) ->  | C52: =IF(ISERROR(VLOOKUP(A52,tesserati[],3,FALSE)),"",VLOOKUP(A52,tesserati[],3,FALSE)) ->  | D52: =IF(ISERROR(VLOOKUP(A52,tesserati[],4,FALSE)),"",VLOOKUP(A52,tesserati[],4,FALSE)) ->  | E52: =IF(ISERROR(VLOOKUP(A52,tesserati[],5,FALSE)),"",VLOOKUP(A52,tesserati[],5,FALSE)) ->  | F52: =IF(ISERROR(VLOOKUP(A52,tesserati[],7,FALSE)),"",VLOOKUP(A52,tesserati[],7,FALSE)) -> 
B53: =IF(ISERROR(VLOOKUP(A53,tesserati[],2,FALSE)),"",VLOOKUP(A53,tesserati[],2,FALSE)) ->  | C53: =IF(ISERROR(VLOOKUP(A53,tesserati[],3,FALSE)),"",VLOOKUP(A53,tesserati[],3,FALSE)) ->  | D53: =IF(ISERROR(VLOOKUP(A53,tesserati[],4,FALSE)),"",VLOOKUP(A53,tesserati[],4,FALSE)) ->  | E53: =IF(ISERROR(VLOOKUP(A53,tesserati[],5,FALSE)),"",VLOOKUP(A53,tesserati[],5,FALSE)) ->  | F53: =IF(ISERROR(VLOOKUP(A53,tesserati[],7,FALSE)),"",VLOOKUP(A53,tesserati[],7,FALSE)) -> 
B54: =IF(ISERROR(VLOOKUP(A54,tesserati[],2,FALSE)),"",VLOOKUP(A54,tesserati[],2,FALSE)) ->  | C54: =IF(ISERROR(VLOOKUP(A54,tesserati[],3,FALSE)),"",VLOOKUP(A54,tesserati[],3,FALSE)) ->  | D54: =IF(ISERROR(VLOOKUP(A54,tesserati[],4,FALSE)),"",VLOOKUP(A54,tesserati[],4,FALSE)) ->  | E54: =IF(ISERROR(VLOOKUP(A54,tesserati[],5,FALSE)),"",VLOOKUP(A54,tesserati[],5,FALSE)) ->  | F54: =IF(ISERROR(VLOOKUP(A54,tesserati[],7,FALSE)),"",VLOOKUP(A54,tesserati[],7,FALSE)) ->  | G54: 6
B55: =IF(ISERROR(VLOOKUP(A55,tesserati[],2,FALSE)),"",VLOOKUP(A55,tesserati[],2,FALSE)) ->  | C55: =IF(ISERROR(VLOOKUP(A55,tesserati[],3,FALSE)),"",VLOOKUP(A55,tesserati[],3,FALSE)) ->  | D55: =IF(ISERROR(VLOOKUP(A55,tesserati[],4,FALSE)),"",VLOOKUP(A55,tesserati[],4,FALSE)) ->  | E55: =IF(ISERROR(VLOOKUP(A55,tesserati[],5,FALSE)),"",VLOOKUP(A55,tesserati[],5,FALSE)) ->  | F55: =IF(ISERROR(VLOOKUP(A55,tesserati[],7,FALSE)),"",VLOOKUP(A55,tesserati[],7,FALSE)) -> 
B56: =IF(ISERROR(VLOOKUP(A56,tesserati[],2,FALSE)),"",VLOOKUP(A56,tesserati[],2,FALSE)) ->  | C56: =IF(ISERROR(VLOOKUP(A56,tesserati[],3,FALSE)),"",VLOOKUP(A56,tesserati[],3,FALSE)) ->  | D56: =IF(ISERROR(VLOOKUP(A56,tesserati[],4,FALSE)),"",VLOOKUP(A56,tesserati[],4,FALSE)) ->  | E56: =IF(ISERROR(VLOOKUP(A56,tesserati[],5,FALSE)),"",VLOOKUP(A56,tesserati[],5,FALSE)) ->  | F56: =IF(ISERROR(VLOOKUP(A56,tesserati[],7,FALSE)),"",VLOOKUP(A56,tesserati[],7,FALSE)) -> 
B57: =IF(ISERROR(VLOOKUP(A57,tesserati[],2,FALSE)),"",VLOOKUP(A57,tesserati[],2,FALSE)) ->  | C57: =IF(ISERROR(VLOOKUP(A57,tesserati[],3,FALSE)),"",VLOOKUP(A57,tesserati[],3,FALSE)) ->  | D57: =IF(ISERROR(VLOOKUP(A57,tesserati[],4,FALSE)),"",VLOOKUP(A57,tesserati[],4,FALSE)) ->  | E57: =IF(ISERROR(VLOOKUP(A57,tesserati[],5,FALSE)),"",VLOOKUP(A57,tesserati[],5,FALSE)) ->  | F57: =IF(ISERROR(VLOOKUP(A57,tesserati[],7,FALSE)),"",VLOOKUP(A57,tesserati[],7,FALSE)) -> 
B58: =IF(ISERROR(VLOOKUP(A58,tesserati[],2,FALSE)),"",VLOOKUP(A58,tesserati[],2,FALSE)) ->  | C58: =IF(ISERROR(VLOOKUP(A58,tesserati[],3,FALSE)),"",VLOOKUP(A58,tesserati[],3,FALSE)) ->  | D58: =IF(ISERROR(VLOOKUP(A58,tesserati[],4,FALSE)),"",VLOOKUP(A58,tesserati[],4,FALSE)) ->  | E58: =IF(ISERROR(VLOOKUP(A58,tesserati[],5,FALSE)),"",VLOOKUP(A58,tesserati[],5,FALSE)) ->  | F58: =IF(ISERROR(VLOOKUP(A58,tesserati[],7,FALSE)),"",VLOOKUP(A58,tesserati[],7,FALSE)) -> 
B59: =IF(ISERROR(VLOOKUP(A59,tesserati[],2,FALSE)),"",VLOOKUP(A59,tesserati[],2,FALSE)) ->  | C59: =IF(ISERROR(VLOOKUP(A59,tesserati[],3,FALSE)),"",VLOOKUP(A59,tesserati[],3,FALSE)) ->  | D59: =IF(ISERROR(VLOOKUP(A59,tesserati[],4,FALSE)),"",VLOOKUP(A59,tesserati[],4,FALSE)) ->  | E59: =IF(ISERROR(VLOOKUP(A59,tesserati[],5,FALSE)),"",VLOOKUP(A59,tesserati[],5,FALSE)) ->  | F59: =IF(ISERROR(VLOOKUP(A59,tesserati[],7,FALSE)),"",VLOOKUP(A59,tesserati[],7,FALSE)) -> 
B60: =IF(ISERROR(VLOOKUP(A60,tesserati[],2,FALSE)),"",VLOOKUP(A60,tesserati[],2,FALSE)) ->  | C60: =IF(ISERROR(VLOOKUP(A60,tesserati[],3,FALSE)),"",VLOOKUP(A60,tesserati[],3,FALSE)) ->  | D60: =IF(ISERROR(VLOOKUP(A60,tesserati[],4,FALSE)),"",VLOOKUP(A60,tesserati[],4,FALSE)) ->  | E60: =IF(ISERROR(VLOOKUP(A60,tesserati[],5,FALSE)),"",VLOOKUP(A60,tesserati[],5,FALSE)) ->  | F60: =IF(ISERROR(VLOOKUP(A60,tesserati[],7,FALSE)),"",VLOOKUP(A60,tesserati[],7,FALSE)) -> 
B61: =IF(ISERROR(VLOOKUP(A61,tesserati[],2,FALSE)),"",VLOOKUP(A61,tesserati[],2,FALSE)) ->  | C61: =IF(ISERROR(VLOOKUP(A61,tesserati[],3,FALSE)),"",VLOOKUP(A61,tesserati[],3,FALSE)) ->  | D61: =IF(ISERROR(VLOOKUP(A61,tesserati[],4,FALSE)),"",VLOOKUP(A61,tesserati[],4,FALSE)) ->  | E61: =IF(ISERROR(VLOOKUP(A61,tesserati[],5,FALSE)),"",VLOOKUP(A61,tesserati[],5,FALSE)) ->  | F61: =IF(ISERROR(VLOOKUP(A61,tesserati[],7,FALSE)),"",VLOOKUP(A61,tesserati[],7,FALSE)) -> 
B62: =IF(ISERROR(VLOOKUP(A62,tesserati[],2,FALSE)),"",VLOOKUP(A62,tesserati[],2,FALSE)) ->  | C62: =IF(ISERROR(VLOOKUP(A62,tesserati[],3,FALSE)),"",VLOOKUP(A62,tesserati[],3,FALSE)) ->  | D62: =IF(ISERROR(VLOOKUP(A62,tesserati[],4,FALSE)),"",VLOOKUP(A62,tesserati[],4,FALSE)) ->  | E62: =IF(ISERROR(VLOOKUP(A62,tesserati[],5,FALSE)),"",VLOOKUP(A62,tesserati[],5,FALSE)) ->  | F62: =IF(ISERROR(VLOOKUP(A62,tesserati[],7,FALSE)),"",VLOOKUP(A62,tesserati[],7,FALSE)) -> 
B63: =IF(ISERROR(VLOOKUP(A63,tesserati[],2,FALSE)),"",VLOOKUP(A63,tesserati[],2,FALSE)) ->  | C63: =IF(ISERROR(VLOOKUP(A63,tesserati[],3,FALSE)),"",VLOOKUP(A63,tesserati[],3,FALSE)) ->  | D63: =IF(ISERROR(VLOOKUP(A63,tesserati[],4,FALSE)),"",VLOOKUP(A63,tesserati[],4,FALSE)) ->  | E63: =IF(ISERROR(VLOOKUP(A63,tesserati[],5,FALSE)),"",VLOOKUP(A63,tesserati[],5,FALSE)) ->  | F63: =IF(ISERROR(VLOOKUP(A63,tesserati[],7,FALSE)),"",VLOOKUP(A63,tesserati[],7,FALSE)) -> 
B64: =IF(ISERROR(VLOOKUP(A64,tesserati[],2,FALSE)),"",VLOOKUP(A64,tesserati[],2,FALSE)) ->  | C64: =IF(ISERROR(VLOOKUP(A64,tesserati[],3,FALSE)),"",VLOOKUP(A64,tesserati[],3,FALSE)) ->  | D64: =IF(ISERROR(VLOOKUP(A64,tesserati[],4,FALSE)),"",VLOOKUP(A64,tesserati[],4,FALSE)) ->  | E64: =IF(ISERROR(VLOOKUP(A64,tesserati[],5,FALSE)),"",VLOOKUP(A64,tesserati[],5,FALSE)) ->  | F64: =IF(ISERROR(VLOOKUP(A64,tesserati[],7,FALSE)),"",VLOOKUP(A64,tesserati[],7,FALSE)) -> 
B65: =IF(ISERROR(VLOOKUP(A65,tesserati[],2,FALSE)),"",VLOOKUP(A65,tesserati[],2,FALSE)) ->  | C65: =IF(ISERROR(VLOOKUP(A65,tesserati[],3,FALSE)),"",VLOOKUP(A65,tesserati[],3,FALSE)) ->  | D65: =IF(ISERROR(VLOOKUP(A65,tesserati[],4,FALSE)),"",VLOOKUP(A65,tesserati[],4,FALSE)) ->  | E65: =IF(ISERROR(VLOOKUP(A65,tesserati[],5,FALSE)),"",VLOOKUP(A65,tesserati[],5,FALSE)) ->  | F65: =IF(ISERROR(VLOOKUP(A65,tesserati[],7,FALSE)),"",VLOOKUP(A65,tesserati[],7,FALSE)) -> 
B66: =IF(ISERROR(VLOOKUP(A66,tesserati[],2,FALSE)),"",VLOOKUP(A66,tesserati[],2,FALSE)) ->  | C66: =IF(ISERROR(VLOOKUP(A66,tesserati[],3,FALSE)),"",VLOOKUP(A66,tesserati[],3,FALSE)) ->  | D66: =IF(ISERROR(VLOOKUP(A66,tesserati[],4,FALSE)),"",VLOOKUP(A66,tesserati[],4,FALSE)) ->  | E66: =IF(ISERROR(VLOOKUP(A66,tesserati[],5,FALSE)),"",VLOOKUP(A66,tesserati[],5,FALSE)) ->  | F66: =IF(ISERROR(VLOOKUP(A66,tesserati[],7,FALSE)),"",VLOOKUP(A66,tesserati[],7,FALSE)) -> 
B67: =IF(ISERROR(VLOOKUP(A67,tesserati[],2,FALSE)),"",VLOOKUP(A67,tesserati[],2,FALSE)) ->  | C67: =IF(ISERROR(VLOOKUP(A67,tesserati[],3,FALSE)),"",VLOOKUP(A67,tesserati[],3,FALSE)) ->  | D67: =IF(ISERROR(VLOOKUP(A67,tesserati[],4,FALSE)),"",VLOOKUP(A67,tesserati[],4,FALSE)) ->  | E67: =IF(ISERROR(VLOOKUP(A67,tesserati[],5,FALSE)),"",VLOOKUP(A67,tesserati[],5,FALSE)) ->  | F67: =IF(ISERROR(VLOOKUP(A67,tesserati[],7,FALSE)),"",VLOOKUP(A67,tesserati[],7,FALSE)) -> 
B68: =IF(ISERROR(VLOOKUP(A68,tesserati[],2,FALSE)),"",VLOOKUP(A68,tesserati[],2,FALSE)) ->  | C68: =IF(ISERROR(VLOOKUP(A68,tesserati[],3,FALSE)),"",VLOOKUP(A68,tesserati[],3,FALSE)) ->  | D68: =IF(ISERROR(VLOOKUP(A68,tesserati[],4,FALSE)),"",VLOOKUP(A68,tesserati[],4,FALSE)) ->  | E68: =IF(ISERROR(VLOOKUP(A68,tesserati[],5,FALSE)),"",VLOOKUP(A68,tesserati[],5,FALSE)) ->  | F68: =IF(ISERROR(VLOOKUP(A68,tesserati[],7,FALSE)),"",VLOOKUP(A68,tesserati[],7,FALSE)) -> 
B69: =IF(ISERROR(VLOOKUP(A69,tesserati[],2,FALSE)),"",VLOOKUP(A69,tesserati[],2,FALSE)) ->  | C69: =IF(ISERROR(VLOOKUP(A69,tesserati[],3,FALSE)),"",VLOOKUP(A69,tesserati[],3,FALSE)) ->  | D69: =IF(ISERROR(VLOOKUP(A69,tesserati[],4,FALSE)),"",VLOOKUP(A69,tesserati[],4,FALSE)) ->  | E69: =IF(ISERROR(VLOOKUP(A69,tesserati[],5,FALSE)),"",VLOOKUP(A69,tesserati[],5,FALSE)) ->  | F69: =IF(ISERROR(VLOOKUP(A69,tesserati[],7,FALSE)),"",VLOOKUP(A69,tesserati[],7,FALSE)) -> 
B70: =IF(ISERROR(VLOOKUP(A70,tesserati[],2,FALSE)),"",VLOOKUP(A70,tesserati[],2,FALSE)) ->  | C70: =IF(ISERROR(VLOOKUP(A70,tesserati[],3,FALSE)),"",VLOOKUP(A70,tesserati[],3,FALSE)) ->  | D70: =IF(ISERROR(VLOOKUP(A70,tesserati[],4,FALSE)),"",VLOOKUP(A70,tesserati[],4,FALSE)) ->  | E70: =IF(ISERROR(VLOOKUP(A70,tesserati[],5,FALSE)),"",VLOOKUP(A70,tesserati[],5,FALSE)) ->  | F70: =IF(ISERROR(VLOOKUP(A70,tesserati[],7,FALSE)),"",VLOOKUP(A70,tesserati[],7,FALSE)) -> 
B71: =IF(ISERROR(VLOOKUP(A71,tesserati[],2,FALSE)),"",VLOOKUP(A71,tesserati[],2,FALSE)) ->  | C71: =IF(ISERROR(VLOOKUP(A71,tesserati[],3,FALSE)),"",VLOOKUP(A71,tesserati[],3,FALSE)) ->  | D71: =IF(ISERROR(VLOOKUP(A71,tesserati[],4,FALSE)),"",VLOOKUP(A71,tesserati[],4,FALSE)) ->  | E71: =IF(ISERROR(VLOOKUP(A71,tesserati[],5,FALSE)),"",VLOOKUP(A71,tesserati[],5,FALSE)) ->  | F71: =IF(ISERROR(VLOOKUP(A71,tesserati[],7,FALSE)),"",VLOOKUP(A71,tesserati[],7,FALSE)) -> 
B72: =IF(ISERROR(VLOOKUP(A72,tesserati[],2,FALSE)),"",VLOOKUP(A72,tesserati[],2,FALSE)) ->  | C72: =IF(ISERROR(VLOOKUP(A72,tesserati[],3,FALSE)),"",VLOOKUP(A72,tesserati[],3,FALSE)) ->  | D72: =IF(ISERROR(VLOOKUP(A72,tesserati[],4,FALSE)),"",VLOOKUP(A72,tesserati[],4,FALSE)) ->  | E72: =IF(ISERROR(VLOOKUP(A72,tesserati[],5,FALSE)),"",VLOOKUP(A72,tesserati[],5,FALSE)) ->  | F72: =IF(ISERROR(VLOOKUP(A72,tesserati[],7,FALSE)),"",VLOOKUP(A72,tesserati[],7,FALSE)) -> 

Sheet STAFFETTE 4X100 RM
C1: MANIFESTAZIONE | F1: LOCALITA' | I1: SOCIETA' ORGANIZZATRICE
C2: 6° prova provinciale | F2: Tezze sul Brenta | I2: CSI Tezze sul Brenta
A3: CATEGORIA | C3: ORA INIZIO | D3: ORA FINE | F3: GARA | I3: DATA
A4: RAGAZZI | F4: STAFFETTA 4 X 100 | I4: 2017-09-24
A6: N. tessera | B6: ATLETA COGNOME E NOME | D6: SOCIETA' | E6: NASCITA | F6: CATEGORIA | G6: Corsia | H6: PETTORALE | I6: Tempo | J6: Piazzamento | K6: PUNTI | L6: CL.
A8: 1 SERIE | B8: =IF(ISERROR(VLOOKUP(A8,tesserati[],2,FALSE)),"",VLOOKUP(A8,tesserati[],2,FALSE)) ->  | C8: =IF(ISERROR(VLOOKUP(A8,tesserati[],3,FALSE)),"",VLOOKUP(A8,tesserati[],3,FALSE)) ->  | D8: =IF(ISERROR(VLOOKUP(#REF!,tesserati[],5,FALSE)),"",VLOOKUP(#REF!,tesserati[],5,FALSE)) ->  | E8: =IF(ISERROR(VLOOKUP(A8,tesserati[],4,FALSE)),"",VLOOKUP(A8,tesserati[],4,FALSE)) ->  | F8: =IF(ISERROR(VLOOKUP(A8,tesserati[],7,FALSE)),"",VLOOKUP(A8,tesserati[],7,FALSE)) -> 
A9: 3854 | B9: =IF(ISERROR(VLOOKUP(A9,tesserati[],2,FALSE)),"",VLOOKUP(A9,tesserati[],2,FALSE)) -> PEREGO | C9: =IF(ISERROR(VLOOKUP(A9,tesserati[],3,FALSE)),"",VLOOKUP(A9,tesserati[],3,FALSE)) -> CRISTIAN | D9: =IF(ISERROR(VLOOKUP(A9,tesserati[],4,FALSE)),"",VLOOKUP(A9,tesserati[],4,FALSE)) -> ATLETICA VALCHIAMPO | E9: =IF(ISERROR(VLOOKUP(A9,tesserati[],5,FALSE)),"",VLOOKUP(A9,tesserati[],5,FALSE)) -> 2004 | F9: =IF(ISERROR(VLOOKUP(A9,tesserati[],7,FALSE)),"",VLOOKUP(A9,tesserati[],7,FALSE)) -> RM | G9: 2 | I9: 55.2 | J9: 1
A10: 3846 | B10: =IF(ISERROR(VLOOKUP(A10,tesserati[],2,FALSE)),"",VLOOKUP(A10,tesserati[],2,FALSE)) -> MISTRORIGO | C10: =IF(ISERROR(VLOOKUP(A10,tesserati[],3,FALSE)),"",VLOOKUP(A10,tesserati[],3,FALSE)) -> ALBERTO | D10: =IF(ISERROR(VLOOKUP(A10,tesserati[],4,FALSE)),"",VLOOKUP(A10,tesserati[],4,FALSE)) -> ATLETICA VALCHIAMPO | E10: =IF(ISERROR(VLOOKUP(A10,tesserati[],5,FALSE)),"",VLOOKUP(A10,tesserati[],5,FALSE)) -> 2004 | F10: =IF(ISERROR(VLOOKUP(A10,tesserati[],7,FALSE)),"",VLOOKUP(A10,tesserati[],7,FALSE)) -> RM
A11: 3835 | B11: =IF(ISERROR(VLOOKUP(A11,tesserati[],2,FALSE)),"",VLOOKUP(A11,tesserati[],2,FALSE)) -> GIRARDELLO | C11: =IF(ISERROR(VLOOKUP(A11,tesserati[],3,FALSE)),"",VLOOKUP(A11,tesserati[],3,FALSE)) -> NICOLA | D11: =IF(ISERROR(VLOOKUP(A11,tesserati[],4,FALSE)),"",VLOOKUP(A11,tesserati[],4,FALSE)) -> ATLETICA VALCHIAMPO | E11: =IF(ISERROR(VLOOKUP(A11,tesserati[],5,FALSE)),"",VLOOKUP(A11,tesserati[],5,FALSE)) -> 2005 | F11: =IF(ISERROR(VLOOKUP(A11,tesserati[],7,FALSE)),"",VLOOKUP(A11,tesserati[],7,FALSE)) -> RM
A12: 3842 | B12: =IF(ISERROR(VLOOKUP(A12,tesserati[],2,FALSE)),"",VLOOKUP(A12,tesserati[],2,FALSE)) -> MECENERO | C12: =IF(ISERROR(VLOOKUP(A12,tesserati[],3,FALSE)),"",VLOOKUP(A12,tesserati[],3,FALSE)) -> ELIA | D12: =IF(ISERROR(VLOOKUP(A12,tesserati[],4,FALSE)),"",VLOOKUP(A12,tesserati[],4,FALSE)) -> ATLETICA VALCHIAMPO | E12: =IF(ISERROR(VLOOKUP(A12,tesserati[],5,FALSE)),"",VLOOKUP(A12,tesserati[],5,FALSE)) -> 2004 | F12: =IF(ISERROR(VLOOKUP(A12,tesserati[],7,FALSE)),"",VLOOKUP(A12,tesserati[],7,FALSE)) -> RM
B13: =IF(ISERROR(VLOOKUP(A13,tesserati[],2,FALSE)),"",VLOOKUP(A13,tesserati[],2,FALSE)) ->  | C13: =IF(ISERROR(VLOOKUP(A13,tesserati[],3,FALSE)),"",VLOOKUP(A13,tesserati[],3,FALSE)) ->  | D13: =IF(ISERROR(VLOOKUP(A13,tesserati[],4,FALSE)),"",VLOOKUP(A13,tesserati[],4,FALSE)) ->  | E13: =IF(ISERROR(VLOOKUP(A13,tesserati[],5,FALSE)),"",VLOOKUP(A13,tesserati[],5,FALSE)) ->  | F13: =IF(ISERROR(VLOOKUP(A13,tesserati[],7,FALSE)),"",VLOOKUP(A13,tesserati[],7,FALSE)) -> 
B14: =IF(ISERROR(VLOOKUP(A14,tesserati[],2,FALSE)),"",VLOOKUP(A14,tesserati[],2,FALSE)) ->  | C14: =IF(ISERROR(VLOOKUP(A14,tesserati[],3,FALSE)),"",VLOOKUP(A14,tesserati[],3,FALSE)) ->  | D14: =IF(ISERROR(VLOOKUP(A14,tesserati[],4,FALSE)),"",VLOOKUP(A14,tesserati[],4,FALSE)) ->  | E14: =IF(ISERROR(VLOOKUP(A14,tesserati[],5,FALSE)),"",VLOOKUP(A14,tesserati[],5,FALSE)) ->  | F14: =IF(ISERROR(VLOOKUP(A14,tesserati[],7,FALSE)),"",VLOOKUP(A14,tesserati[],7,FALSE)) -> 
B15: =IF(ISERROR(VLOOKUP(A15,tesserati[],2,FALSE)),"",VLOOKUP(A15,tesserati[],2,FALSE)) ->  | C15: =IF(ISERROR(VLOOKUP(A15,tesserati[],3,FALSE)),"",VLOOKUP(A15,tesserati[],3,FALSE)) ->  | D15: =IF(ISERROR(VLOOKUP(A15,tesserati[],4,FALSE)),"",VLOOKUP(A15,tesserati[],4,FALSE)) ->  | E15: =IF(ISERROR(VLOOKUP(A15,tesserati[],5,FALSE)),"",VLOOKUP(A15,tesserati[],5,FALSE)) ->  | F15: =IF(ISERROR(VLOOKUP(A15,tesserati[],7,FALSE)),"",VLOOKUP(A15,tesserati[],7,FALSE)) -> 
B16: =IF(ISERROR(VLOOKUP(A16,tesserati[],2,FALSE)),"",VLOOKUP(A16,tesserati[],2,FALSE)) ->  | C16: =IF(ISERROR(VLOOKUP(A16,tesserati[],3,FALSE)),"",VLOOKUP(A16,tesserati[],3,FALSE)) ->  | D16: =IF(ISERROR(VLOOKUP(A16,tesserati[],4,FALSE)),"",VLOOKUP(A16,tesserati[],4,FALSE)) ->  | E16: =IF(ISERROR(VLOOKUP(A16,tesserati[],5,FALSE)),"",VLOOKUP(A16,tesserati[],5,FALSE)) ->  | F16: =IF(ISERROR(VLOOKUP(A16,tesserati[],7,FALSE)),"",VLOOKUP(A16,tesserati[],7,FALSE)) -> 
B17: =IF(ISERROR(VLOOKUP(A17,tesserati[],2,FALSE)),"",VLOOKUP(A17,tesserati[],2,FALSE)) ->  | C17: =IF(ISERROR(VLOOKUP(A17,tesserati[],3,FALSE)),"",VLOOKUP(A17,tesserati[],3,FALSE)) ->  | D17: =IF(ISERROR(VLOOKUP(A17,tesserati[],4,FALSE)),"",VLOOKUP(A17,tesserati[],4,FALSE)) ->  | E17: =IF(ISERROR(VLOOKUP(A17,tesserati[],5,FALSE)),"",VLOOKUP(A17,tesserati[],5,FALSE)) ->  | F17: =IF(ISERROR(VLOOKUP(A17,tesserati[],7,FALSE)),"",VLOOKUP(A17,tesserati[],7,FALSE)) -> 
B18: =IF(ISERROR(VLOOKUP(A18,tesserati[],2,FALSE)),"",VLOOKUP(A18,tesserati[],2,FALSE)) ->  | C18: =IF(ISERROR(VLOOKUP(A18,tesserati[],3,FALSE)),"",VLOOKUP(A18,tesserati[],3,FALSE)) ->  | D18: =IF(ISERROR(VLOOKUP(A18,tesserati[],4,FALSE)),"",VLOOKUP(A18,tesserati[],4,FALSE)) ->  | E18: =IF(ISERROR(VLOOKUP(A18,tesserati[],5,FALSE)),"",VLOOKUP(A18,tesserati[],5,FALSE)) ->  | F18: =IF(ISERROR(VLOOKUP(A18,tesserati[],7,FALSE)),"",VLOOKUP(A18,tesserati[],7,FALSE)) -> 
B19: =IF(ISERROR(VLOOKUP(A19,tesserati[],2,FALSE)),"",VLOOKUP(A19,tesserati[],2,FALSE)) ->  | C19: =IF(ISERROR(VLOOKUP(A19,tesserati[],3,FALSE)),"",VLOOKUP(A19,tesserati[],3,FALSE)) ->  | D19: =IF(ISERROR(VLOOKUP(A19,tesserati[],4,FALSE)),"",VLOOKUP(A19,tesserati[],4,FALSE)) ->  | E19: =IF(ISERROR(VLOOKUP(A19,tesserati[],5,FALSE)),"",VLOOKUP(A19,tesserati[],5,FALSE)) ->  | F19: =IF(ISERROR(VLOOKUP(A19,tesserati[],7,FALSE)),"",VLOOKUP(A19,tesserati[],7,FALSE)) -> 
B20: =IF(ISERROR(VLOOKUP(A20,tesserati[],2,FALSE)),"",VLOOKUP(A20,tesserati[],2,FALSE)) ->  | C20: =IF(ISERROR(VLOOKUP(A20,tesserati[],3,FALSE)),"",VLOOKUP(A20,tesserati[],3,FALSE)) ->  | D20: =IF(ISERROR(VLOOKUP(A20,tesserati[],4,FALSE)),"",VLOOKUP(A20,tesserati[],4,FALSE)) ->  | E20: =IF(ISERROR(VLOOKUP(A20,tesserati[],5,FALSE)),"",VLOOKUP(A20,tesserati[],5,FALSE)) ->  | F20: =IF(ISERROR(VLOOKUP(A20,tesserati[],7,FALSE)),"",VLOOKUP(A20,tesserati[],7,FALSE)) -> 
B21: =IF(ISERROR(VLOOKUP(A21,tesserati[],2,FALSE)),"",VLOOKUP(A21,tesserati[],2,FALSE)) ->  | C21: =IF(ISERROR(VLOOKUP(A21,tesserati[],3,FALSE)),"",VLOOKUP(A21,tesserati[],3,FALSE)) ->  | D21: =IF(ISERROR(VLOOKUP(A21,tesserati[],4,FALSE)),"",VLOOKUP(A21,tesserati[],4,FALSE)) ->  | E21: =IF(ISERROR(VLOOKUP(A21,tesserati[],5,FALSE)),"",VLOOKUP(A21,tesserati[],5,FALSE)) ->  | F21: =IF(ISERROR(VLOOKUP(A21,tesserati[],7,FALSE)),"",VLOOKUP(A21,tesserati[],7,FALSE)) ->  | G21: 4
B22: =IF(ISERROR(VLOOKUP(A22,tesserati[],2,FALSE)),"",VLOOKUP(A22,tesserati[],2,FALSE)) ->  | C22: =IF(ISERROR(VLOOKUP(A22,tesserati[],3,FALSE)),"",VLOOKUP(A22,tesserati[],3,FALSE)) ->  | D22: =IF(ISERROR(VLOOKUP(A22,tesserati[],4,FALSE)),"",VLOOKUP(A22,tesserati[],4,FALSE)) ->  | E22: =IF(ISERROR(VLOOKUP(A22,tesserati[],5,FALSE)),"",VLOOKUP(A22,tesserati[],5,FALSE)) ->  | F22: =IF(ISERROR(VLOOKUP(A22,tesserati[],7,FALSE)),"",VLOOKUP(A22,tesserati[],7,FALSE)) -> 
B23: =IF(ISERROR(VLOOKUP(A23,tesserati[],2,FALSE)),"",VLOOKUP(A23,tesserati[],2,FALSE)) ->  | C23: =IF(ISERROR(VLOOKUP(A23,tesserati[],3,FALSE)),"",VLOOKUP(A23,tesserati[],3,FALSE)) ->  | D23: =IF(ISERROR(VLOOKUP(A23,tesserati[],4,FALSE)),"",VLOOKUP(A23,tesserati[],4,FALSE)) ->  | E23: =IF(ISERROR(VLOOKUP(A23,tesserati[],5,FALSE)),"",VLOOKUP(A23,tesserati[],5,FALSE)) ->  | F23: =IF(ISERROR(VLOOKUP(A23,tesserati[],7,FALSE)),"",VLOOKUP(A23,tesserati[],7,FALSE)) -> 
B24: =IF(ISERROR(VLOOKUP(A24,tesserati[],2,FALSE)),"",VLOOKUP(A24,tesserati[],2,FALSE)) ->  | C24: =IF(ISERROR(VLOOKUP(A24,tesserati[],3,FALSE)),"",VLOOKUP(A24,tesserati[],3,FALSE)) ->  | D24: =IF(ISERROR(VLOOKUP(A24,tesserati[],4,FALSE)),"",VLOOKUP(A24,tesserati[],4,FALSE)) ->  | E24: =IF(ISERROR(VLOOKUP(A24,tesserati[],5,FALSE)),"",VLOOKUP(A24,tesserati[],5,FALSE)) ->  | F24: =IF(ISERROR(VLOOKUP(A24,tesserati[],7,FALSE)),"",VLOOKUP(A24,tesserati[],7,FALSE)) -> 
B25: =IF(ISERROR(VLOOKUP(A25,tesserati[],2,FALSE)),"",VLOOKUP(A25,tesserati[],2,FALSE)) ->  | C25: =IF(ISERROR(VLOOKUP(A25,tesserati[],3,FALSE)),"",VLOOKUP(A25,tesserati[],3,FALSE)) ->  | D25: =IF(ISERROR(VLOOKUP(A25,tesserati[],4,FALSE)),"",VLOOKUP(A25,tesserati[],4,FALSE)) ->  | E25: =IF(ISERROR(VLOOKUP(A25,tesserati[],5,FALSE)),"",VLOOKUP(A25,tesserati[],5,FALSE)) ->  | F25: =IF(ISERROR(VLOOKUP(A25,tesserati[],7,FALSE)),"",VLOOKUP(A25,tesserati[],7,FALSE)) ->  | G25: 5
B26: =IF(ISERROR(VLOOKUP(A26,tesserati[],2,FALSE)),"",VLOOKUP(A26,tesserati[],2,FALSE)) ->  | C26: =IF(ISERROR(VLOOKUP(A26,tesserati[],3,FALSE)),"",VLOOKUP(A26,tesserati[],3,FALSE)) ->  | D26: =IF(ISERROR(VLOOKUP(A26,tesserati[],4,FALSE)),"",VLOOKUP(A26,tesserati[],4,FALSE)) ->  | E26: =IF(ISERROR(VLOOKUP(A26,tesserati[],5,FALSE)),"",VLOOKUP(A26,tesserati[],5,FALSE)) ->  | F26: =IF(ISERROR(VLOOKUP(A26,tesserati[],7,FALSE)),"",VLOOKUP(A26,tesserati[],7,FALSE)) -> 
B27: =IF(ISERROR(VLOOKUP(A27,tesserati[],2,FALSE)),"",VLOOKUP(A27,tesserati[],2,FALSE)) ->  | C27: =IF(ISERROR(VLOOKUP(A27,tesserati[],3,FALSE)),"",VLOOKUP(A27,tesserati[],3,FALSE)) ->  | D27: =IF(ISERROR(VLOOKUP(A27,tesserati[],4,FALSE)),"",VLOOKUP(A27,tesserati[],4,FALSE)) ->  | E27: =IF(ISERROR(VLOOKUP(A27,tesserati[],5,FALSE)),"",VLOOKUP(A27,tesserati[],5,FALSE)) ->  | F27: =IF(ISERROR(VLOOKUP(A27,tesserati[],7,FALSE)),"",VLOOKUP(A27,tesserati[],7,FALSE)) -> 
B28: =IF(ISERROR(VLOOKUP(A28,tesserati[],2,FALSE)),"",VLOOKUP(A28,tesserati[],2,FALSE)) ->  | C28: =IF(ISERROR(VLOOKUP(A28,tesserati[],3,FALSE)),"",VLOOKUP(A28,tesserati[],3,FALSE)) ->  | D28: =IF(ISERROR(VLOOKUP(A28,tesserati[],4,FALSE)),"",VLOOKUP(A28,tesserati[],4,FALSE)) ->  | E28: =IF(ISERROR(VLOOKUP(A28,tesserati[],5,FALSE)),"",VLOOKUP(A28,tesserati[],5,FALSE)) ->  | F28: =IF(ISERROR(VLOOKUP(A28,tesserati[],7,FALSE)),"",VLOOKUP(A28,tesserati[],7,FALSE)) -> 
B29: =IF(ISERROR(VLOOKUP(A29,tesserati[],2,FALSE)),"",VLOOKUP(A29,tesserati[],2,FALSE)) ->  | C29: =IF(ISERROR(VLOOKUP(A29,tesserati[],3,FALSE)),"",VLOOKUP(A29,tesserati[],3,FALSE)) ->  | D29: =IF(ISERROR(VLOOKUP(A29,tesserati[],4,FALSE)),"",VLOOKUP(A29,tesserati[],4,FALSE)) ->  | E29: =IF(ISERROR(VLOOKUP(A29,tesserati[],5,FALSE)),"",VLOOKUP(A29,tesserati[],5,FALSE)) ->  | F29: =IF(ISERROR(VLOOKUP(A29,tesserati[],7,FALSE)),"",VLOOKUP(A29,tesserati[],7,FALSE)) ->  | G29: 6
B30: =IF(ISERROR(VLOOKUP(A30,tesserati[],2,FALSE)),"",VLOOKUP(A30,tesserati[],2,FALSE)) ->  | C30: =IF(ISERROR(VLOOKUP(A30,tesserati[],3,FALSE)),"",VLOOKUP(A30,tesserati[],3,FALSE)) ->  | D30: =IF(ISERROR(VLOOKUP(A30,tesserati[],4,FALSE)),"",VLOOKUP(A30,tesserati[],4,FALSE)) ->  | E30: =IF(ISERROR(VLOOKUP(A30,tesserati[],5,FALSE)),"",VLOOKUP(A30,tesserati[],5,FALSE)) ->  | F30: =IF(ISERROR(VLOOKUP(A30,tesserati[],7,FALSE)),"",VLOOKUP(A30,tesserati[],7,FALSE)) -> 
B31: =IF(ISERROR(VLOOKUP(A31,tesserati[],2,FALSE)),"",VLOOKUP(A31,tesserati[],2,FALSE)) ->  | C31: =IF(ISERROR(VLOOKUP(A31,tesserati[],3,FALSE)),"",VLOOKUP(A31,tesserati[],3,FALSE)) ->  | D31: =IF(ISERROR(VLOOKUP(A31,tesserati[],4,FALSE)),"",VLOOKUP(A31,tesserati[],4,FALSE)) ->  | E31: =IF(ISERROR(VLOOKUP(A31,tesserati[],5,FALSE)),"",VLOOKUP(A31,tesserati[],5,FALSE)) ->  | F31: =IF(ISERROR(VLOOKUP(A31,tesserati[],7,FALSE)),"",VLOOKUP(A31,tesserati[],7,FALSE)) -> 
B32: =IF(ISERROR(VLOOKUP(A32,tesserati[],2,FALSE)),"",VLOOKUP(A32,tesserati[],2,FALSE)) ->  | C32: =IF(ISERROR(VLOOKUP(A32,tesserati[],3,FALSE)),"",VLOOKUP(A32,tesserati[],3,FALSE)) ->  | D32: =IF(ISERROR(VLOOKUP(A32,tesserati[],4,FALSE)),"",VLOOKUP(A32,tesserati[],4,FALSE)) ->  | E32: =IF(ISERROR(VLOOKUP(A32,tesserati[],5,FALSE)),"",VLOOKUP(A32,tesserati[],5,FALSE)) ->  | F32: =IF(ISERROR(VLOOKUP(A32,tesserati[],7,FALSE)),"",VLOOKUP(A32,tesserati[],7,FALSE)) -> 
A33: 2 SERIE
B34: =IF(ISERROR(VLOOKUP(A34,tesserati[],2,FALSE)),"",VLOOKUP(A34,tesserati[],2,FALSE)) ->  | C34: =IF(ISERROR(VLOOKUP(A34,tesserati[],3,FALSE)),"",VLOOKUP(A34,tesserati[],3,FALSE)) ->  | D34: =IF(ISERROR(VLOOKUP(A34,tesserati[],4,FALSE)),"",VLOOKUP(A34,tesserati[],4,FALSE)) ->  | E34: =IF(ISERROR(VLOOKUP(A34,tesserati[],5,FALSE)),"",VLOOKUP(A34,tesserati[],5,FALSE)) ->  | F34: =IF(ISERROR(VLOOKUP(A34,tesserati[],7,FALSE)),"",VLOOKUP(A34,tesserati[],7,FALSE)) ->  | G34: 1
B35: =IF(ISERROR(VLOOKUP(A35,tesserati[],2,FALSE)),"",VLOOKUP(A35,tesserati[],2,FALSE)) ->  | C35: =IF(ISERROR(VLOOKUP(A35,tesserati[],3,FALSE)),"",VLOOKUP(A35,tesserati[],3,FALSE)) ->  | D35: =IF(ISERROR(VLOOKUP(A35,tesserati[],4,FALSE)),"",VLOOKUP(A35,tesserati[],4,FALSE)) ->  | E35: =IF(ISERROR(VLOOKUP(A35,tesserati[],5,FALSE)),"",VLOOKUP(A35,tesserati[],5,FALSE)) ->  | F35: =IF(ISERROR(VLOOKUP(A35,tesserati[],7,FALSE)),"",VLOOKUP(A35,tesserati[],7,FALSE)) -> 
B36: =IF(ISERROR(VLOOKUP(A36,tesserati[],2,FALSE)),"",VLOOKUP(A36,tesserati[],2,FALSE)) ->  | C36: =IF(ISERROR(VLOOKUP(A36,tesserati[],3,FALSE)),"",VLOOKUP(A36,tesserati[],3,FALSE)) ->  | D36: =IF(ISERROR(VLOOKUP(A36,tesserati[],4,FALSE)),"",VLOOKUP(A36,tesserati[],4,FALSE)) ->  | E36: =IF(ISERROR(VLOOKUP(A36,tesserati[],5,FALSE)),"",VLOOKUP(A36,tesserati[],5,FALSE)) ->  | F36: =IF(ISERROR(VLOOKUP(A36,tesserati[],7,FALSE)),"",VLOOKUP(A36,tesserati[],7,FALSE)) -> 
B37: =IF(ISERROR(VLOOKUP(A37,tesserati[],2,FALSE)),"",VLOOKUP(A37,tesserati[],2,FALSE)) ->  | C37: =IF(ISERROR(VLOOKUP(A37,tesserati[],3,FALSE)),"",VLOOKUP(A37,tesserati[],3,FALSE)) ->  | D37: =IF(ISERROR(VLOOKUP(A37,tesserati[],4,FALSE)),"",VLOOKUP(A37,tesserati[],4,FALSE)) ->  | E37: =IF(ISERROR(VLOOKUP(A37,tesserati[],5,FALSE)),"",VLOOKUP(A37,tesserati[],5,FALSE)) ->  | F37: =IF(ISERROR(VLOOKUP(A37,tesserati[],7,FALSE)),"",VLOOKUP(A37,tesserati[],7,FALSE)) -> 
B38: =IF(ISERROR(VLOOKUP(A38,tesserati[],2,FALSE)),"",VLOOKUP(A38,tesserati[],2,FALSE)) ->  | C38: =IF(ISERROR(VLOOKUP(A38,tesserati[],3,FALSE)),"",VLOOKUP(A38,tesserati[],3,FALSE)) ->  | D38: =IF(ISERROR(VLOOKUP(A38,tesserati[],4,FALSE)),"",VLOOKUP(A38,tesserati[],4,FALSE)) ->  | E38: =IF(ISERROR(VLOOKUP(A38,tesserati[],5,FALSE)),"",VLOOKUP(A38,tesserati[],5,FALSE)) ->  | F38: =IF(ISERROR(VLOOKUP(A38,tesserati[],7,FALSE)),"",VLOOKUP(A38,tesserati[],7,FALSE)) ->  | G38: 2
B39: =IF(ISERROR(VLOOKUP(A39,tesserati[],2,FALSE)),"",VLOOKUP(A39,tesserati[],2,FALSE)) ->  | C39: =IF(ISERROR(VLOOKUP(A39,tesserati[],3,FALSE)),"",VLOOKUP(A39,tesserati[],3,FALSE)) ->  | D39: =IF(ISERROR(VLOOKUP(A39,tesserati[],4,FALSE)),"",VLOOKUP(A39,tesserati[],4,FALSE)) ->  | E39: =IF(ISERROR(VLOOKUP(A39,tesserati[],5,FALSE)),"",VLOOKUP(A39,tesserati[],5,FALSE)) ->  | F39: =IF(ISERROR(VLOOKUP(A39,tesserati[],7,FALSE)),"",VLOOKUP(A39,tesserati[],7,FALSE)) -> 
B40: =IF(ISERROR(VLOOKUP(A40,tesserati[],2,FALSE)),"",VLOOKUP(A40,tesserati[],2,FALSE)) ->  | C40: =IF(ISERROR(VLOOKUP(A40,tesserati[],3,FALSE)),"",VLOOKUP(A40,tesserati[],3,FALSE)) ->  | D40: =IF(ISERROR(VLOOKUP(A40,tesserati[],4,FALSE)),"",VLOOKUP(A40,tesserati[],4,FALSE)) ->  | E40: =IF(ISERROR(VLOOKUP(A40,tesserati[],5,FALSE)),"",VLOOKUP(A40,tesserati[],5,FALSE)) ->  | F40: =IF(ISERROR(VLOOKUP(A40,tesserati[],7,FALSE)),"",VLOOKUP(A40,tesserati[],7,FALSE)) -> 
B41: =IF(ISERROR(VLOOKUP(A41,tesserati[],2,FALSE)),"",VLOOKUP(A41,tesserati[],2,FALSE)) ->  | C41: =IF(ISERROR(VLOOKUP(A41,tesserati[],3,FALSE)),"",VLOOKUP(A41,tesserati[],3,FALSE)) ->  | D41: =IF(ISERROR(VLOOKUP(A41,tesserati[],4,FALSE)),"",VLOOKUP(A41,tesserati[],4,FALSE)) ->  | E41: =IF(ISERROR(VLOOKUP(A41,tesserati[],5,FALSE)),"",VLOOKUP(A41,tesserati[],5,FALSE)) ->  | F41: =IF(ISERROR(VLOOKUP(A41,tesserati[],7,FALSE)),"",VLOOKUP(A41,tesserati[],7,FALSE)) -> 
B42: =IF(ISERROR(VLOOKUP(A42,tesserati[],2,FALSE)),"",VLOOKUP(A42,tesserati[],2,FALSE)) ->  | C42: =IF(ISERROR(VLOOKUP(A42,tesserati[],3,FALSE)),"",VLOOKUP(A42,tesserati[],3,FALSE)) ->  | D42: =IF(ISERROR(VLOOKUP(A42,tesserati[],4,FALSE)),"",VLOOKUP(A42,tesserati[],4,FALSE)) ->  | E42: =IF(ISERROR(VLOOKUP(A42,tesserati[],5,FALSE)),"",VLOOKUP(A42,tesserati[],5,FALSE)) ->  | F42: =IF(ISERROR(VLOOKUP(A42,tesserati[],7,FALSE)),"",VLOOKUP(A42,tesserati[],7,FALSE)) ->  | G42: 3
B43: =IF(ISERROR(VLOOKUP(A43,tesserati[],2,FALSE)),"",VLOOKUP(A43,tesserati[],2,FALSE)) ->  | C43: =IF(ISERROR(VLOOKUP(A43,tesserati[],3,FALSE)),"",VLOOKUP(A43,tesserati[],3,FALSE)) ->  | D43: =IF(ISERROR(VLOOKUP(A43,tesserati[],4,FALSE)),"",VLOOKUP(A43,tesserati[],4,FALSE)) ->  | E43: =IF(ISERROR(VLOOKUP(A43,tesserati[],5,FALSE)),"",VLOOKUP(A43,tesserati[],5,FALSE)) ->  | F43: =IF(ISERROR(VLOOKUP(A43,tesserati[],7,FALSE)),"",VLOOKUP(A43,tesserati[],7,FALSE)) -> 
B44: =IF(ISERROR(VLOOKUP(A44,tesserati[],2,FALSE)),"",VLOOKUP(A44,tesserati[],2,FALSE)) ->  | C44: =IF(ISERROR(VLOOKUP(A44,tesserati[],3,FALSE)),"",VLOOKUP(A44,tesserati[],3,FALSE)) ->  | D44: =IF(ISERROR(VLOOKUP(A44,tesserati[],4,FALSE)),"",VLOOKUP(A44,tesserati[],4,FALSE)) ->  | E44: =IF(ISERROR(VLOOKUP(A44,tesserati[],5,FALSE)),"",VLOOKUP(A44,tesserati[],5,FALSE)) ->  | F44: =IF(ISERROR(VLOOKUP(A44,tesserati[],7,FALSE)),"",VLOOKUP(A44,tesserati[],7,FALSE)) -> 
B45: =IF(ISERROR(VLOOKUP(A45,tesserati[],2,FALSE)),"",VLOOKUP(A45,tesserati[],2,FALSE)) ->  | C45: =IF(ISERROR(VLOOKUP(A45,tesserati[],3,FALSE)),"",VLOOKUP(A45,tesserati[],3,FALSE)) ->  | D45: =IF(ISERROR(VLOOKUP(A45,tesserati[],4,FALSE)),"",VLOOKUP(A45,tesserati[],4,FALSE)) ->  | E45: =IF(ISERROR(VLOOKUP(A45,tesserati[],5,FALSE)),"",VLOOKUP(A45,tesserati[],5,FALSE)) ->  | F45: =IF(ISERROR(VLOOKUP(A45,tesserati[],7,FALSE)),"",VLOOKUP(A45,tesserati[],7,FALSE)) -> 
B46: =IF(ISERROR(VLOOKUP(A46,tesserati[],2,FALSE)),"",VLOOKUP(A46,tesserati[],2,FALSE)) ->  | C46: =IF(ISERROR(VLOOKUP(A46,tesserati[],3,FALSE)),"",VLOOKUP(A46,tesserati[],3,FALSE)) ->  | D46: =IF(ISERROR(VLOOKUP(A46,tesserati[],4,FALSE)),"",VLOOKUP(A46,tesserati[],4,FALSE)) ->  | E46: =IF(ISERROR(VLOOKUP(A46,tesserati[],5,FALSE)),"",VLOOKUP(A46,tesserati[],5,FALSE)) ->  | F46: =IF(ISERROR(VLOOKUP(A46,tesserati[],7,FALSE)),"",VLOOKUP(A46,tesserati[],7,FALSE)) ->  | G46: 4
B47: =IF(ISERROR(VLOOKUP(A47,tesserati[],2,FALSE)),"",VLOOKUP(A47,tesserati[],2,FALSE)) ->  | C47: =IF(ISERROR(VLOOKUP(A47,tesserati[],3,FALSE)),"",VLOOKUP(A47,tesserati[],3,FALSE)) ->  | D47: =IF(ISERROR(VLOOKUP(A47,tesserati[],4,FALSE)),"",VLOOKUP(A47,tesserati[],4,FALSE)) ->  | E47: =IF(ISERROR(VLOOKUP(A47,tesserati[],5,FALSE)),"",VLOOKUP(A47,tesserati[],5,FALSE)) ->  | F47: =IF(ISERROR(VLOOKUP(A47,tesserati[],7,FALSE)),"",VLOOKUP(A47,tesserati[],7,FALSE)) -> 
B48: =IF(ISERROR(VLOOKUP(A48,tesserati[],2,FALSE)),"",VLOOKUP(A48,tesserati[],2,FALSE)) ->  | C48: =IF(ISERROR(VLOOKUP(A48,tesserati[],3,FALSE)),"",VLOOKUP(A48,tesserati[],3,FALSE)) ->  | D48: =IF(ISERROR(VLOOKUP(A48,tesserati[],4,FALSE)),"",VLOOKUP(A48,tesserati[],4,FALSE)) ->  | E48: =IF(ISERROR(VLOOKUP(A48,tesserati[],5,FALSE)),"",VLOOKUP(A48,tesserati[],5,FALSE)) ->  | F48: =IF(ISERROR(VLOOKUP(A48,tesserati[],7,FALSE)),"",VLOOKUP(A48,tesserati[],7,FALSE)) -> 
B49: =IF(ISERROR(VLOOKUP(A49,tesserati[],2,FALSE)),"",VLOOKUP(A49,tesserati[],2,FALSE)) ->  | C49: =IF(ISERROR(VLOOKUP(A49,tesserati[],3,FALSE)),"",VLOOKUP(A49,tesserati[],3,FALSE)) ->  | D49: =IF(ISERROR(VLOOKUP(A49,tesserati[],4,FALSE)),"",VLOOKUP(A49,tesserati[],4,FALSE)) ->  | E49: =IF(ISERROR(VLOOKUP(A49,tesserati[],5,FALSE)),"",VLOOKUP(A49,tesserati[],5,FALSE)) ->  | F49: =IF(ISERROR(VLOOKUP(A49,tesserati[],7,FALSE)),"",VLOOKUP(A49,tesserati[],7,FALSE)) -> 
B50: =IF(ISERROR(VLOOKUP(A50,tesserati[],2,FALSE)),"",VLOOKUP(A50,tesserati[],2,FALSE)) ->  | C50: =IF(ISERROR(VLOOKUP(A50,tesserati[],3,FALSE)),"",VLOOKUP(A50,tesserati[],3,FALSE)) ->  | D50: =IF(ISERROR(VLOOKUP(A50,tesserati[],4,FALSE)),"",VLOOKUP(A50,tesserati[],4,FALSE)) ->  | E50: =IF(ISERROR(VLOOKUP(A50,tesserati[],5,FALSE)),"",VLOOKUP(A50,tesserati[],5,FALSE)) ->  | F50: =IF(ISERROR(VLOOKUP(A50,tesserati[],7,FALSE)),"",VLOOKUP(A50,tesserati[],7,FALSE)) ->  | G50: 5
B51: =IF(ISERROR(VLOOKUP(A51,tesserati[],2,FALSE)),"",VLOOKUP(A51,tesserati[],2,FALSE)) ->  | C51: =IF(ISERROR(VLOOKUP(A51,tesserati[],3,FALSE)),"",VLOOKUP(A51,tesserati[],3,FALSE)) ->  | D51: =IF(ISERROR(VLOOKUP(A51,tesserati[],4,FALSE)),"",VLOOKUP(A51,tesserati[],4,FALSE)) ->  | E51: =IF(ISERROR(VLOOKUP(A51,tesserati[],5,FALSE)),"",VLOOKUP(A51,tesserati[],5,FALSE)) ->  | F51: =IF(ISERROR(VLOOKUP(A51,tesserati[],7,FALSE)),"",VLOOKUP(A51,tesserati[],7,FALSE)) -> 
B52: =IF(ISERROR(VLOOKUP(A52,tesserati[],2,FALSE)),"",VLOOKUP(A52,tesserati[],2,FALSE)) ->  | C52: =IF(ISERROR(VLOOKUP(A52,tesserati[],3,FALSE)),"",VLOOKUP(A52,tesserati[],3,FALSE)) ->  | D52: =IF(ISERROR(VLOOKUP(A52,tesserati[],4,FALSE)),"",VLOOKUP(A52,tesserati[],4,FALSE)) ->  | E52: =IF(ISERROR(VLOOKUP(A52,tesserati[],5,FALSE)),"",VLOOKUP(A52,tesserati[],5,FALSE)) ->  | F52: =IF(ISERROR(VLOOKUP(A52,tesserati[],7,FALSE)),"",VLOOKUP(A52,tesserati[],7,FALSE)) -> 
B53: =IF(ISERROR(VLOOKUP(A53,tesserati[],2,FALSE)),"",VLOOKUP(A53,tesserati[],2,FALSE)) ->  | C53: =IF(ISERROR(VLOOKUP(A53,tesserati[],3,FALSE)),"",VLOOKUP(A53,tesserati[],3,FALSE)) ->  | D53: =IF(ISERROR(VLOOKUP(A53,tesserati[],4,FALSE)),"",VLOOKUP(A53,tesserati[],4,FALSE)) ->  | E53: =IF(ISERROR(VLOOKUP(A53,tesserati[],5,FALSE)),"",VLOOKUP(A53,tesserati[],5,FALSE)) ->  | F53: =IF(ISERROR(VLOOKUP(A53,tesserati[],7,FALSE)),"",VLOOKUP(A53,tesserati[],7,FALSE)) -> 
B54: =IF(ISERROR(VLOOKUP(A54,tesserati[],2,FALSE)),"",VLOOKUP(A54,tesserati[],2,FALSE)) ->  | C54: =IF(ISERROR(VLOOKUP(A54,tesserati[],3,FALSE)),"",VLOOKUP(A54,tesserati[],3,FALSE)) ->  | D54: =IF(ISERROR(VLOOKUP(A54,tesserati[],4,FALSE)),"",VLOOKUP(A54,tesserati[],4,FALSE)) ->  | E54: =IF(ISERROR(VLOOKUP(A54,tesserati[],5,FALSE)),"",VLOOKUP(A54,tesserati[],5,FALSE)) ->  | F54: =IF(ISERROR(VLOOKUP(A54,tesserati[],7,FALSE)),"",VLOOKUP(A54,tesserati[],7,FALSE)) ->  | G54: 6
B55: =IF(ISERROR(VLOOKUP(A55,tesserati[],2,FALSE)),"",VLOOKUP(A55,tesserati[],2,FALSE)) ->  | C55: =IF(ISERROR(VLOOKUP(A55,tesserati[],3,FALSE)),"",VLOOKUP(A55,tesserati[],3,FALSE)) ->  | D55: =IF(ISERROR(VLOOKUP(A55,tesserati[],4,FALSE)),"",VLOOKUP(A55,tesserati[],4,FALSE)) ->  | E55: =IF(ISERROR(VLOOKUP(A55,tesserati[],5,FALSE)),"",VLOOKUP(A55,tesserati[],5,FALSE)) ->  | F55: =IF(ISERROR(VLOOKUP(A55,tesserati[],7,FALSE)),"",VLOOKUP(A55,tesserati[],7,FALSE)) -> 
B56: =IF(ISERROR(VLOOKUP(A56,tesserati[],2,FALSE)),"",VLOOKUP(A56,tesserati[],2,FALSE)) ->  | C56: =IF(ISERROR(VLOOKUP(A56,tesserati[],3,FALSE)),"",VLOOKUP(A56,tesserati[],3,FALSE)) ->  | D56: =IF(ISERROR(VLOOKUP(A56,tesserati[],4,FALSE)),"",VLOOKUP(A56,tesserati[],4,FALSE)) ->  | E56: =IF(ISERROR(VLOOKUP(A56,tesserati[],5,FALSE)),"",VLOOKUP(A56,tesserati[],5,FALSE)) ->  | F56: =IF(ISERROR(VLOOKUP(A56,tesserati[],7,FALSE)),"",VLOOKUP(A56,tesserati[],7,FALSE)) -> 
B57: =IF(ISERROR(VLOOKUP(A57,tesserati[],2,FALSE)),"",VLOOKUP(A57,tesserati[],2,FALSE)) ->  | C57: =IF(ISERROR(VLOOKUP(A57,tesserati[],3,FALSE)),"",VLOOKUP(A57,tesserati[],3,FALSE)) ->  | D57: =IF(ISERROR(VLOOKUP(A57,tesserati[],4,FALSE)),"",VLOOKUP(A57,tesserati[],4,FALSE)) ->  | E57: =IF(ISERROR(VLOOKUP(A57,tesserati[],5,FALSE)),"",VLOOKUP(A57,tesserati[],5,FALSE)) ->  | F57: =IF(ISERROR(VLOOKUP(A57,tesserati[],7,FALSE)),"",VLOOKUP(A57,tesserati[],7,FALSE)) -> 
B58: =IF(ISERROR(VLOOKUP(A58,tesserati[],2,FALSE)),"",VLOOKUP(A58,tesserati[],2,FALSE)) ->  | C58: =IF(ISERROR(VLOOKUP(A58,tesserati[],3,FALSE)),"",VLOOKUP(A58,tesserati[],3,FALSE)) ->  | D58: =IF(ISERROR(VLOOKUP(A58,tesserati[],4,FALSE)),"",VLOOKUP(A58,tesserati[],4,FALSE)) ->  | E58: =IF(ISERROR(VLOOKUP(A58,tesserati[],5,FALSE)),"",VLOOKUP(A58,tesserati[],5,FALSE)) ->  | F58: =IF(ISERROR(VLOOKUP(A58,tesserati[],7,FALSE)),"",VLOOKUP(A58,tesserati[],7,FALSE)) -> 
B59: =IF(ISERROR(VLOOKUP(A59,tesserati[],2,FALSE)),"",VLOOKUP(A59,tesserati[],2,FALSE)) ->  | C59: =IF(ISERROR(VLOOKUP(A59,tesserati[],3,FALSE)),"",VLOOKUP(A59,tesserati[],3,FALSE)) ->  | D59: =IF(ISERROR(VLOOKUP(A59,tesserati[],4,FALSE)),"",VLOOKUP(A59,tesserati[],4,FALSE)) ->  | E59: =IF(ISERROR(VLOOKUP(A59,tesserati[],5,FALSE)),"",VLOOKUP(A59,tesserati[],5,FALSE)) ->  | F59: =IF(ISERROR(VLOOKUP(A59,tesserati[],7,FALSE)),"",VLOOKUP(A59,tesserati[],7,FALSE)) -> 
B60: =IF(ISERROR(VLOOKUP(A60,tesserati[],2,FALSE)),"",VLOOKUP(A60,tesserati[],2,FALSE)) ->  | C60: =IF(ISERROR(VLOOKUP(A60,tesserati[],3,FALSE)),"",VLOOKUP(A60,tesserati[],3,FALSE)) ->  | D60: =IF(ISERROR(VLOOKUP(A60,tesserati[],4,FALSE)),"",VLOOKUP(A60,tesserati[],4,FALSE)) ->  | E60: =IF(ISERROR(VLOOKUP(A60,tesserati[],5,FALSE)),"",VLOOKUP(A60,tesserati[],5,FALSE)) ->  | F60: =IF(ISERROR(VLOOKUP(A60,tesserati[],7,FALSE)),"",VLOOKUP(A60,tesserati[],7,FALSE)) -> 
B61: =IF(ISERROR(VLOOKUP(A61,tesserati[],2,FALSE)),"",VLOOKUP(A61,tesserati[],2,FALSE)) ->  | C61: =IF(ISERROR(VLOOKUP(A61,tesserati[],3,FALSE)),"",VLOOKUP(A61,tesserati[],3,FALSE)) ->  | D61: =IF(ISERROR(VLOOKUP(A61,tesserati[],4,FALSE)),"",VLOOKUP(A61,tesserati[],4,FALSE)) ->  | E61: =IF(ISERROR(VLOOKUP(A61,tesserati[],5,FALSE)),"",VLOOKUP(A61,tesserati[],5,FALSE)) ->  | F61: =IF(ISERROR(VLOOKUP(A61,tesserati[],7,FALSE)),"",VLOOKUP(A61,tesserati[],7,FALSE)) -> 
B62: =IF(ISERROR(VLOOKUP(A62,tesserati[],2,FALSE)),"",VLOOKUP(A62,tesserati[],2,FALSE)) ->  | C62: =IF(ISERROR(VLOOKUP(A62,tesserati[],3,FALSE)),"",VLOOKUP(A62,tesserati[],3,FALSE)) ->  | D62: =IF(ISERROR(VLOOKUP(A62,tesserati[],4,FALSE)),"",VLOOKUP(A62,tesserati[],4,FALSE)) ->  | E62: =IF(ISERROR(VLOOKUP(A62,tesserati[],5,FALSE)),"",VLOOKUP(A62,tesserati[],5,FALSE)) ->  | F62: =IF(ISERROR(VLOOKUP(A62,tesserati[],7,FALSE)),"",VLOOKUP(A62,tesserati[],7,FALSE)) -> 
B63: =IF(ISERROR(VLOOKUP(A63,tesserati[],2,FALSE)),"",VLOOKUP(A63,tesserati[],2,FALSE)) ->  | C63: =IF(ISERROR(VLOOKUP(A63,tesserati[],3,FALSE)),"",VLOOKUP(A63,tesserati[],3,FALSE)) ->  | D63: =IF(ISERROR(VLOOKUP(A63,tesserati[],4,FALSE)),"",VLOOKUP(A63,tesserati[],4,FALSE)) ->  | E63: =IF(ISERROR(VLOOKUP(A63,tesserati[],5,FALSE)),"",VLOOKUP(A63,tesserati[],5,FALSE)) ->  | F63: =IF(ISERROR(VLOOKUP(A63,tesserati[],7,FALSE)),"",VLOOKUP(A63,tesserati[],7,FALSE)) -> 
B64: =IF(ISERROR(VLOOKUP(A64,tesserati[],2,FALSE)),"",VLOOKUP(A64,tesserati[],2,FALSE)) ->  | C64: =IF(ISERROR(VLOOKUP(A64,tesserati[],3,FALSE)),"",VLOOKUP(A64,tesserati[],3,FALSE)) ->  | D64: =IF(ISERROR(VLOOKUP(A64,tesserati[],4,FALSE)),"",VLOOKUP(A64,tesserati[],4,FALSE)) ->  | E64: =IF(ISERROR(VLOOKUP(A64,tesserati[],5,FALSE)),"",VLOOKUP(A64,tesserati[],5,FALSE)) ->  | F64: =IF(ISERROR(VLOOKUP(A64,tesserati[],7,FALSE)),"",VLOOKUP(A64,tesserati[],7,FALSE)) -> 
B65: =IF(ISERROR(VLOOKUP(A65,tesserati[],2,FALSE)),"",VLOOKUP(A65,tesserati[],2,FALSE)) ->  | C65: =IF(ISERROR(VLOOKUP(A65,tesserati[],3,FALSE)),"",VLOOKUP(A65,tesserati[],3,FALSE)) ->  | D65: =IF(ISERROR(VLOOKUP(A65,tesserati[],4,FALSE)),"",VLOOKUP(A65,tesserati[],4,FALSE)) ->  | E65: =IF(ISERROR(VLOOKUP(A65,tesserati[],5,FALSE)),"",VLOOKUP(A65,tesserati[],5,FALSE)) ->  | F65: =IF(ISERROR(VLOOKUP(A65,tesserati[],7,FALSE)),"",VLOOKUP(A65,tesserati[],7,FALSE)) -> 
B66: =IF(ISERROR(VLOOKUP(A66,tesserati[],2,FALSE)),"",VLOOKUP(A66,tesserati[],2,FALSE)) ->  | C66: =IF(ISERROR(VLOOKUP(A66,tesserati[],3,FALSE)),"",VLOOKUP(A66,tesserati[],3,FALSE)) ->  | D66: =IF(ISERROR(VLOOKUP(A66,tesserati[],4,FALSE)),"",VLOOKUP(A66,tesserati[],4,FALSE)) ->  | E66: =IF(ISERROR(VLOOKUP(A66,tesserati[],5,FALSE)),"",VLOOKUP(A66,tesserati[],5,FALSE)) ->  | F66: =IF(ISERROR(VLOOKUP(A66,tesserati[],7,FALSE)),"",VLOOKUP(A66,tesserati[],7,FALSE)) -> 
B67: =IF(ISERROR(VLOOKUP(A67,tesserati[],2,FALSE)),"",VLOOKUP(A67,tesserati[],2,FALSE)) ->  | C67: =IF(ISERROR(VLOOKUP(A67,tesserati[],3,FALSE)),"",VLOOKUP(A67,tesserati[],3,FALSE)) ->  | D67: =IF(ISERROR(VLOOKUP(A67,tesserati[],4,FALSE)),"",VLOOKUP(A67,tesserati[],4,FALSE)) ->  | E67: =IF(ISERROR(VLOOKUP(A67,tesserati[],5,FALSE)),"",VLOOKUP(A67,tesserati[],5,FALSE)) ->  | F67: =IF(ISERROR(VLOOKUP(A67,tesserati[],7,FALSE)),"",VLOOKUP(A67,tesserati[],7,FALSE)) -> 
B68: =IF(ISERROR(VLOOKUP(A68,tesserati[],2,FALSE)),"",VLOOKUP(A68,tesserati[],2,FALSE)) ->  | C68: =IF(ISERROR(VLOOKUP(A68,tesserati[],3,FALSE)),"",VLOOKUP(A68,tesserati[],3,FALSE)) ->  | D68: =IF(ISERROR(VLOOKUP(A68,tesserati[],4,FALSE)),"",VLOOKUP(A68,tesserati[],4,FALSE)) ->  | E68: =IF(ISERROR(VLOOKUP(A68,tesserati[],5,FALSE)),"",VLOOKUP(A68,tesserati[],5,FALSE)) ->  | F68: =IF(ISERROR(VLOOKUP(A68,tesserati[],7,FALSE)),"",VLOOKUP(A68,tesserati[],7,FALSE)) -> 
B69: =IF(ISERROR(VLOOKUP(A69,tesserati[],2,FALSE)),"",VLOOKUP(A69,tesserati[],2,FALSE)) ->  | C69: =IF(ISERROR(VLOOKUP(A69,tesserati[],3,FALSE)),"",VLOOKUP(A69,tesserati[],3,FALSE)) ->  | D69: =IF(ISERROR(VLOOKUP(A69,tesserati[],4,FALSE)),"",VLOOKUP(A69,tesserati[],4,FALSE)) ->  | E69: =IF(ISERROR(VLOOKUP(A69,tesserati[],5,FALSE)),"",VLOOKUP(A69,tesserati[],5,FALSE)) ->  | F69: =IF(ISERROR(VLOOKUP(A69,tesserati[],7,FALSE)),"",VLOOKUP(A69,tesserati[],7,FALSE)) -> 
B70: =IF(ISERROR(VLOOKUP(A70,tesserati[],2,FALSE)),"",VLOOKUP(A70,tesserati[],2,FALSE)) ->  | C70: =IF(ISERROR(VLOOKUP(A70,tesserati[],3,FALSE)),"",VLOOKUP(A70,tesserati[],3,FALSE)) ->  | D70: =IF(ISERROR(VLOOKUP(A70,tesserati[],4,FALSE)),"",VLOOKUP(A70,tesserati[],4,FALSE)) ->  | E70: =IF(ISERROR(VLOOKUP(A70,tesserati[],5,FALSE)),"",VLOOKUP(A70,tesserati[],5,FALSE)) ->  | F70: =IF(ISERROR(VLOOKUP(A70,tesserati[],7,FALSE)),"",VLOOKUP(A70,tesserati[],7,FALSE)) -> 
B71: =IF(ISERROR(VLOOKUP(A71,tesserati[],2,FALSE)),"",VLOOKUP(A71,tesserati[],2,FALSE)) ->  | C71: =IF(ISERROR(VLOOKUP(A71,tesserati[],3,FALSE)),"",VLOOKUP(A71,tesserati[],3,FALSE)) ->  | D71: =IF(ISERROR(VLOOKUP(A71,tesserati[],4,FALSE)),"",VLOOKUP(A71,tesserati[],4,FALSE)) ->  | E71: =IF(ISERROR(VLOOKUP(A71,tesserati[],5,FALSE)),"",VLOOKUP(A71,tesserati[],5,FALSE)) ->  | F71: =IF(ISERROR(VLOOKUP(A71,tesserati[],7,FALSE)),"",VLOOKUP(A71,tesserati[],7,FALSE)) -> 
B72: =IF(ISERROR(VLOOKUP(A72,tesserati[],2,FALSE)),"",VLOOKUP(A72,tesserati[],2,FALSE)) ->  | C72: =IF(ISERROR(VLOOKUP(A72,tesserati[],3,FALSE)),"",VLOOKUP(A72,tesserati[],3,FALSE)) ->  | D72: =IF(ISERROR(VLOOKUP(A72,tesserati[],4,FALSE)),"",VLOOKUP(A72,tesserati[],4,FALSE)) ->  | E72: =IF(ISERROR(VLOOKUP(A72,tesserati[],5,FALSE)),"",VLOOKUP(A72,tesserati[],5,FALSE)) ->  | F72: =IF(ISERROR(VLOOKUP(A72,tesserati[],7,FALSE)),"",VLOOKUP(A72,tesserati[],7,FALSE)) -> 

Sheet STAFFETTE 4X100 RF
C1: MANIFESTAZIONE | F1: LOCALITA' | I1: SOCIETA' ORGANIZZATRICE
C2: 6° prova provinciale | F2: Tezze sul Brenta | I2: CSI Tezze sul Brenta
A3: CATEGORIA | C3: ORA INIZIO | D3: ORA FINE | F3: GARA | I3: DATA
A4: RAGAZZE | F4: STAFFETTA 4 X 100 | I4: 2017-09-24
A6: N. tessera | B6: ATLETA COGNOME E NOME | D6: SOCIETA' | E6: NASCITA | F6: CATEGORIA | G6: Corsia | H6: PETTORALE | I6: Tempo | J6: Piazzamento | K6: PUNTI | L6: CL.
A8: 1 SERIE | B8: =IF(ISERROR(VLOOKUP(A8,tesserati[],2,FALSE)),"",VLOOKUP(A8,tesserati[],2,FALSE)) ->  | C8: =IF(ISERROR(VLOOKUP(A8,tesserati[],3,FALSE)),"",VLOOKUP(A8,tesserati[],3,FALSE)) ->  | D8: =IF(ISERROR(VLOOKUP(#REF!,tesserati[],5,FALSE)),"",VLOOKUP(#REF!,tesserati[],5,FALSE)) ->  | E8: =IF(ISERROR(VLOOKUP(A8,tesserati[],4,FALSE)),"",VLOOKUP(A8,tesserati[],4,FALSE)) ->  | F8: =IF(ISERROR(VLOOKUP(A8,tesserati[],7,FALSE)),"",VLOOKUP(A8,tesserati[],7,FALSE)) -> 
A9: 2728 | B9: =IF(ISERROR(VLOOKUP(A9,tesserati[],2,FALSE)),"",VLOOKUP(A9,tesserati[],2,FALSE)) -> GALLEAZZO | C9: =IF(ISERROR(VLOOKUP(A9,tesserati[],3,FALSE)),"",VLOOKUP(A9,tesserati[],3,FALSE)) -> MATILDE | D9: =IF(ISERROR(VLOOKUP(A9,tesserati[],4,FALSE)),"",VLOOKUP(A9,tesserati[],4,FALSE)) -> POL. DIL. MONTECCHIO PRECALCINO | E9: =IF(ISERROR(VLOOKUP(A9,tesserati[],5,FALSE)),"",VLOOKUP(A9,tesserati[],5,FALSE)) -> 2004 | F9: =IF(ISERROR(VLOOKUP(A9,tesserati[],7,FALSE)),"",VLOOKUP(A9,tesserati[],7,FALSE)) -> RF | G9: 1 | I9: 59.6 | J9: 1
A10: 2704 | B10: =IF(ISERROR(VLOOKUP(A10,tesserati[],2,FALSE)),"",VLOOKUP(A10,tesserati[],2,FALSE)) -> CHEMELLO | C10: =IF(ISERROR(VLOOKUP(A10,tesserati[],3,FALSE)),"",VLOOKUP(A10,tesserati[],3,FALSE)) -> SILVIA | D10: =IF(ISERROR(VLOOKUP(A10,tesserati[],4,FALSE)),"",VLOOKUP(A10,tesserati[],4,FALSE)) -> POL. DIL. MONTECCHIO PRECALCINO | E10: =IF(ISERROR(VLOOKUP(A10,tesserati[],5,FALSE)),"",VLOOKUP(A10,tesserati[],5,FALSE)) -> 2004 | F10: =IF(ISERROR(VLOOKUP(A10,tesserati[],7,FALSE)),"",VLOOKUP(A10,tesserati[],7,FALSE)) -> RF
A11: 2721 | B11: =IF(ISERROR(VLOOKUP(A11,tesserati[],2,FALSE)),"",VLOOKUP(A11,tesserati[],2,FALSE)) -> TESTOLIN | C11: =IF(ISERROR(VLOOKUP(A11,tesserati[],3,FALSE)),"",VLOOKUP(A11,tesserati[],3,FALSE)) -> ANGELA | D11: =IF(ISERROR(VLOOKUP(A11,tesserati[],4,FALSE)),"",VLOOKUP(A11,tesserati[],4,FALSE)) -> POL. DIL. MONTECCHIO PRECALCINO | E11: =IF(ISERROR(VLOOKUP(A11,tesserati[],5,FALSE)),"",VLOOKUP(A11,tesserati[],5,FALSE)) -> 2004 | F11: =IF(ISERROR(VLOOKUP(A11,tesserati[],7,FALSE)),"",VLOOKUP(A11,tesserati[],7,FALSE)) -> RF
A12: 2696 | B12: =IF(ISERROR(VLOOKUP(A12,tesserati[],2,FALSE)),"",VLOOKUP(A12,tesserati[],2,FALSE)) -> MACULAN | C12: =IF(ISERROR(VLOOKUP(A12,tesserati[],3,FALSE)),"",VLOOKUP(A12,tesserati[],3,FALSE)) -> NOEMI | D12: =IF(ISERROR(VLOOKUP(A12,tesserati[],4,FALSE)),"",VLOOKUP(A12,tesserati[],4,FALSE)) -> POL. DIL. MONTECCHIO PRECALCINO | E12: =IF(ISERROR(VLOOKUP(A12,tesserati[],5,FALSE)),"",VLOOKUP(A12,tesserati[],5,FALSE)) -> 2004 | F12: =IF(ISERROR(VLOOKUP(A12,tesserati[],7,FALSE)),"",VLOOKUP(A12,tesserati[],7,FALSE)) -> RF
B13: =IF(ISERROR(VLOOKUP(A13,tesserati[],2,FALSE)),"",VLOOKUP(A13,tesserati[],2,FALSE)) ->  | C13: =IF(ISERROR(VLOOKUP(A13,tesserati[],3,FALSE)),"",VLOOKUP(A13,tesserati[],3,FALSE)) ->  | D13: =IF(ISERROR(VLOOKUP(A13,tesserati[],4,FALSE)),"",VLOOKUP(A13,tesserati[],4,FALSE)) ->  | E13: =IF(ISERROR(VLOOKUP(A13,tesserati[],5,FALSE)),"",VLOOKUP(A13,tesserati[],5,FALSE)) ->  | F13: =IF(ISERROR(VLOOKUP(A13,tesserati[],7,FALSE)),"",VLOOKUP(A13,tesserati[],7,FALSE)) -> 
B14: =IF(ISERROR(VLOOKUP(A14,tesserati[],2,FALSE)),"",VLOOKUP(A14,tesserati[],2,FALSE)) ->  | C14: =IF(ISERROR(VLOOKUP(A14,tesserati[],3,FALSE)),"",VLOOKUP(A14,tesserati[],3,FALSE)) ->  | D14: =IF(ISERROR(VLOOKUP(A14,tesserati[],4,FALSE)),"",VLOOKUP(A14,tesserati[],4,FALSE)) ->  | E14: =IF(ISERROR(VLOOKUP(A14,tesserati[],5,FALSE)),"",VLOOKUP(A14,tesserati[],5,FALSE)) ->  | F14: =IF(ISERROR(VLOOKUP(A14,tesserati[],7,FALSE)),"",VLOOKUP(A14,tesserati[],7,FALSE)) -> 
B15: =IF(ISERROR(VLOOKUP(A15,tesserati[],2,FALSE)),"",VLOOKUP(A15,tesserati[],2,FALSE)) ->  | C15: =IF(ISERROR(VLOOKUP(A15,tesserati[],3,FALSE)),"",VLOOKUP(A15,tesserati[],3,FALSE)) ->  | D15: =IF(ISERROR(VLOOKUP(A15,tesserati[],4,FALSE)),"",VLOOKUP(A15,tesserati[],4,FALSE)) ->  | E15: =IF(ISERROR(VLOOKUP(A15,tesserati[],5,FALSE)),"",VLOOKUP(A15,tesserati[],5,FALSE)) ->  | F15: =IF(ISERROR(VLOOKUP(A15,tesserati[],7,FALSE)),"",VLOOKUP(A15,tesserati[],7,FALSE)) -> 
B16: =IF(ISERROR(VLOOKUP(A16,tesserati[],2,FALSE)),"",VLOOKUP(A16,tesserati[],2,FALSE)) ->  | C16: =IF(ISERROR(VLOOKUP(A16,tesserati[],3,FALSE)),"",VLOOKUP(A16,tesserati[],3,FALSE)) ->  | D16: =IF(ISERROR(VLOOKUP(A16,tesserati[],4,FALSE)),"",VLOOKUP(A16,tesserati[],4,FALSE)) ->  | E16: =IF(ISERROR(VLOOKUP(A16,tesserati[],5,FALSE)),"",VLOOKUP(A16,tesserati[],5,FALSE)) ->  | F16: =IF(ISERROR(VLOOKUP(A16,tesserati[],7,FALSE)),"",VLOOKUP(A16,tesserati[],7,FALSE)) -> 
B17: =IF(ISERROR(VLOOKUP(A17,tesserati[],2,FALSE)),"",VLOOKUP(A17,tesserati[],2,FALSE)) ->  | C17: =IF(ISERROR(VLOOKUP(A17,tesserati[],3,FALSE)),"",VLOOKUP(A17,tesserati[],3,FALSE)) ->  | D17: =IF(ISERROR(VLOOKUP(A17,tesserati[],4,FALSE)),"",VLOOKUP(A17,tesserati[],4,FALSE)) ->  | E17: =IF(ISERROR(VLOOKUP(A17,tesserati[],5,FALSE)),"",VLOOKUP(A17,tesserati[],5,FALSE)) ->  | F17: =IF(ISERROR(VLOOKUP(A17,tesserati[],7,FALSE)),"",VLOOKUP(A17,tesserati[],7,FALSE)) -> 
B18: =IF(ISERROR(VLOOKUP(A18,tesserati[],2,FALSE)),"",VLOOKUP(A18,tesserati[],2,FALSE)) ->  | C18: =IF(ISERROR(VLOOKUP(A18,tesserati[],3,FALSE)),"",VLOOKUP(A18,tesserati[],3,FALSE)) ->  | D18: =IF(ISERROR(VLOOKUP(A18,tesserati[],4,FALSE)),"",VLOOKUP(A18,tesserati[],4,FALSE)) ->  | E18: =IF(ISERROR(VLOOKUP(A18,tesserati[],5,FALSE)),"",VLOOKUP(A18,tesserati[],5,FALSE)) ->  | F18: =IF(ISERROR(VLOOKUP(A18,tesserati[],7,FALSE)),"",VLOOKUP(A18,tesserati[],7,FALSE)) -> 
B19: =IF(ISERROR(VLOOKUP(A19,tesserati[],2,FALSE)),"",VLOOKUP(A19,tesserati[],2,FALSE)) ->  | C19: =IF(ISERROR(VLOOKUP(A19,tesserati[],3,FALSE)),"",VLOOKUP(A19,tesserati[],3,FALSE)) ->  | D19: =IF(ISERROR(VLOOKUP(A19,tesserati[],4,FALSE)),"",VLOOKUP(A19,tesserati[],4,FALSE)) ->  | E19: =IF(ISERROR(VLOOKUP(A19,tesserati[],5,FALSE)),"",VLOOKUP(A19,tesserati[],5,FALSE)) ->  | F19: =IF(ISERROR(VLOOKUP(A19,tesserati[],7,FALSE)),"",VLOOKUP(A19,tesserati[],7,FALSE)) -> 
B20: =IF(ISERROR(VLOOKUP(A20,tesserati[],2,FALSE)),"",VLOOKUP(A20,tesserati[],2,FALSE)) ->  | C20: =IF(ISERROR(VLOOKUP(A20,tesserati[],3,FALSE)),"",VLOOKUP(A20,tesserati[],3,FALSE)) ->  | D20: =IF(ISERROR(VLOOKUP(A20,tesserati[],4,FALSE)),"",VLOOKUP(A20,tesserati[],4,FALSE)) ->  | E20: =IF(ISERROR(VLOOKUP(A20,tesserati[],5,FALSE)),"",VLOOKUP(A20,tesserati[],5,FALSE)) ->  | F20: =IF(ISERROR(VLOOKUP(A20,tesserati[],7,FALSE)),"",VLOOKUP(A20,tesserati[],7,FALSE)) -> 
B21: =IF(ISERROR(VLOOKUP(A21,tesserati[],2,FALSE)),"",VLOOKUP(A21,tesserati[],2,FALSE)) ->  | C21: =IF(ISERROR(VLOOKUP(A21,tesserati[],3,FALSE)),"",VLOOKUP(A21,tesserati[],3,FALSE)) ->  | D21: =IF(ISERROR(VLOOKUP(A21,tesserati[],4,FALSE)),"",VLOOKUP(A21,tesserati[],4,FALSE)) ->  | E21: =IF(ISERROR(VLOOKUP(A21,tesserati[],5,FALSE)),"",VLOOKUP(A21,tesserati[],5,FALSE)) ->  | F21: =IF(ISERROR(VLOOKUP(A21,tesserati[],7,FALSE)),"",VLOOKUP(A21,tesserati[],7,FALSE)) ->  | G21: 4
B22: =IF(ISERROR(VLOOKUP(A22,tesserati[],2,FALSE)),"",VLOOKUP(A22,tesserati[],2,FALSE)) ->  | C22: =IF(ISERROR(VLOOKUP(A22,tesserati[],3,FALSE)),"",VLOOKUP(A22,tesserati[],3,FALSE)) ->  | D22: =IF(ISERROR(VLOOKUP(A22,tesserati[],4,FALSE)),"",VLOOKUP(A22,tesserati[],4,FALSE)) ->  | E22: =IF(ISERROR(VLOOKUP(A22,tesserati[],5,FALSE)),"",VLOOKUP(A22,tesserati[],5,FALSE)) ->  | F22: =IF(ISERROR(VLOOKUP(A22,tesserati[],7,FALSE)),"",VLOOKUP(A22,tesserati[],7,FALSE)) -> 
B23: =IF(ISERROR(VLOOKUP(A23,tesserati[],2,FALSE)),"",VLOOKUP(A23,tesserati[],2,FALSE)) ->  | C23: =IF(ISERROR(VLOOKUP(A23,tesserati[],3,FALSE)),"",VLOOKUP(A23,tesserati[],3,FALSE)) ->  | D23: =IF(ISERROR(VLOOKUP(A23,tesserati[],4,FALSE)),"",VLOOKUP(A23,tesserati[],4,FALSE)) ->  | E23: =IF(ISERROR(VLOOKUP(A23,tesserati[],5,FALSE)),"",VLOOKUP(A23,tesserati[],5,FALSE)) ->  | F23: =IF(ISERROR(VLOOKUP(A23,tesserati[],7,FALSE)),"",VLOOKUP(A23,tesserati[],7,FALSE)) -> 
B24: =IF(ISERROR(VLOOKUP(A24,tesserati[],2,FALSE)),"",VLOOKUP(A24,tesserati[],2,FALSE)) ->  | C24: =IF(ISERROR(VLOOKUP(A24,tesserati[],3,FALSE)),"",VLOOKUP(A24,tesserati[],3,FALSE)) ->  | D24: =IF(ISERROR(VLOOKUP(A24,tesserati[],4,FALSE)),"",VLOOKUP(A24,tesserati[],4,FALSE)) ->  | E24: =IF(ISERROR(VLOOKUP(A24,tesserati[],5,FALSE)),"",VLOOKUP(A24,tesserati[],5,FALSE)) ->  | F24: =IF(ISERROR(VLOOKUP(A24,tesserati[],7,FALSE)),"",VLOOKUP(A24,tesserati[],7,FALSE)) -> 
B25: =IF(ISERROR(VLOOKUP(A25,tesserati[],2,FALSE)),"",VLOOKUP(A25,tesserati[],2,FALSE)) ->  | C25: =IF(ISERROR(VLOOKUP(A25,tesserati[],3,FALSE)),"",VLOOKUP(A25,tesserati[],3,FALSE)) ->  | D25: =IF(ISERROR(VLOOKUP(A25,tesserati[],4,FALSE)),"",VLOOKUP(A25,tesserati[],4,FALSE)) ->  | E25: =IF(ISERROR(VLOOKUP(A25,tesserati[],5,FALSE)),"",VLOOKUP(A25,tesserati[],5,FALSE)) ->  | F25: =IF(ISERROR(VLOOKUP(A25,tesserati[],7,FALSE)),"",VLOOKUP(A25,tesserati[],7,FALSE)) ->  | G25: 5
B26: =IF(ISERROR(VLOOKUP(A26,tesserati[],2,FALSE)),"",VLOOKUP(A26,tesserati[],2,FALSE)) ->  | C26: =IF(ISERROR(VLOOKUP(A26,tesserati[],3,FALSE)),"",VLOOKUP(A26,tesserati[],3,FALSE)) ->  | D26: =IF(ISERROR(VLOOKUP(A26,tesserati[],4,FALSE)),"",VLOOKUP(A26,tesserati[],4,FALSE)) ->  | E26: =IF(ISERROR(VLOOKUP(A26,tesserati[],5,FALSE)),"",VLOOKUP(A26,tesserati[],5,FALSE)) ->  | F26: =IF(ISERROR(VLOOKUP(A26,tesserati[],7,FALSE)),"",VLOOKUP(A26,tesserati[],7,FALSE)) -> 
B27: =IF(ISERROR(VLOOKUP(A27,tesserati[],2,FALSE)),"",VLOOKUP(A27,tesserati[],2,FALSE)) ->  | C27: =IF(ISERROR(VLOOKUP(A27,tesserati[],3,FALSE)),"",VLOOKUP(A27,tesserati[],3,FALSE)) ->  | D27: =IF(ISERROR(VLOOKUP(A27,tesserati[],4,FALSE)),"",VLOOKUP(A27,tesserati[],4,FALSE)) ->  | E27: =IF(ISERROR(VLOOKUP(A27,tesserati[],5,FALSE)),"",VLOOKUP(A27,tesserati[],5,FALSE)) ->  | F27: =IF(ISERROR(VLOOKUP(A27,tesserati[],7,FALSE)),"",VLOOKUP(A27,tesserati[],7,FALSE)) -> 
B28: =IF(ISERROR(VLOOKUP(A28,tesserati[],2,FALSE)),"",VLOOKUP(A28,tesserati[],2,FALSE)) ->  | C28: =IF(ISERROR(VLOOKUP(A28,tesserati[],3,FALSE)),"",VLOOKUP(A28,tesserati[],3,FALSE)) ->  | D28: =IF(ISERROR(VLOOKUP(A28,tesserati[],4,FALSE)),"",VLOOKUP(A28,tesserati[],4,FALSE)) ->  | E28: =IF(ISERROR(VLOOKUP(A28,tesserati[],5,FALSE)),"",VLOOKUP(A28,tesserati[],5,FALSE)) ->  | F28: =IF(ISERROR(VLOOKUP(A28,tesserati[],7,FALSE)),"",VLOOKUP(A28,tesserati[],7,FALSE)) -> 
B29: =IF(ISERROR(VLOOKUP(A29,tesserati[],2,FALSE)),"",VLOOKUP(A29,tesserati[],2,FALSE)) ->  | C29: =IF(ISERROR(VLOOKUP(A29,tesserati[],3,FALSE)),"",VLOOKUP(A29,tesserati[],3,FALSE)) ->  | D29: =IF(ISERROR(VLOOKUP(A29,tesserati[],4,FALSE)),"",VLOOKUP(A29,tesserati[],4,FALSE)) ->  | E29: =IF(ISERROR(VLOOKUP(A29,tesserati[],5,FALSE)),"",VLOOKUP(A29,tesserati[],5,FALSE)) ->  | F29: =IF(ISERROR(VLOOKUP(A29,tesserati[],7,FALSE)),"",VLOOKUP(A29,tesserati[],7,FALSE)) ->  | G29: 6
B30: =IF(ISERROR(VLOOKUP(A30,tesserati[],2,FALSE)),"",VLOOKUP(A30,tesserati[],2,FALSE)) ->  | C30: =IF(ISERROR(VLOOKUP(A30,tesserati[],3,FALSE)),"",VLOOKUP(A30,tesserati[],3,FALSE)) ->  | D30: =IF(ISERROR(VLOOKUP(A30,tesserati[],4,FALSE)),"",VLOOKUP(A30,tesserati[],4,FALSE)) ->  | E30: =IF(ISERROR(VLOOKUP(A30,tesserati[],5,FALSE)),"",VLOOKUP(A30,tesserati[],5,FALSE)) ->  | F30: =IF(ISERROR(VLOOKUP(A30,tesserati[],7,FALSE)),"",VLOOKUP(A30,tesserati[],7,FALSE)) -> 
B31: =IF(ISERROR(VLOOKUP(A31,tesserati[],2,FALSE)),"",VLOOKUP(A31,tesserati[],2,FALSE)) ->  | C31: =IF(ISERROR(VLOOKUP(A31,tesserati[],3,FALSE)),"",VLOOKUP(A31,tesserati[],3,FALSE)) ->  | D31: =IF(ISERROR(VLOOKUP(A31,tesserati[],4,FALSE)),"",VLOOKUP(A31,tesserati[],4,FALSE)) ->  | E31: =IF(ISERROR(VLOOKUP(A31,tesserati[],5,FALSE)),"",VLOOKUP(A31,tesserati[],5,FALSE)) ->  | F31: =IF(ISERROR(VLOOKUP(A31,tesserati[],7,FALSE)),"",VLOOKUP(A31,tesserati[],7,FALSE)) -> 
B32: =IF(ISERROR(VLOOKUP(A32,tesserati[],2,FALSE)),"",VLOOKUP(A32,tesserati[],2,FALSE)) ->  | C32: =IF(ISERROR(VLOOKUP(A32,tesserati[],3,FALSE)),"",VLOOKUP(A32,tesserati[],3,FALSE)) ->  | D32: =IF(ISERROR(VLOOKUP(A32,tesserati[],4,FALSE)),"",VLOOKUP(A32,tesserati[],4,FALSE)) ->  | E32: =IF(ISERROR(VLOOKUP(A32,tesserati[],5,FALSE)),"",VLOOKUP(A32,tesserati[],5,FALSE)) ->  | F32: =IF(ISERROR(VLOOKUP(A32,tesserati[],7,FALSE)),"",VLOOKUP(A32,tesserati[],7,FALSE)) -> 
A33: 2 SERIE
B34: =IF(ISERROR(VLOOKUP(A34,tesserati[],2,FALSE)),"",VLOOKUP(A34,tesserati[],2,FALSE)) ->  | C34: =IF(ISERROR(VLOOKUP(A34,tesserati[],3,FALSE)),"",VLOOKUP(A34,tesserati[],3,FALSE)) ->  | D34: =IF(ISERROR(VLOOKUP(A34,tesserati[],4,FALSE)),"",VLOOKUP(A34,tesserati[],4,FALSE)) ->  | E34: =IF(ISERROR(VLOOKUP(A34,tesserati[],5,FALSE)),"",VLOOKUP(A34,tesserati[],5,FALSE)) ->  | F34: =IF(ISERROR(VLOOKUP(A34,tesserati[],7,FALSE)),"",VLOOKUP(A34,tesserati[],7,FALSE)) ->  | G34: 1
B35: =IF(ISERROR(VLOOKUP(A35,tesserati[],2,FALSE)),"",VLOOKUP(A35,tesserati[],2,FALSE)) ->  | C35: =IF(ISERROR(VLOOKUP(A35,tesserati[],3,FALSE)),"",VLOOKUP(A35,tesserati[],3,FALSE)) ->  | D35: =IF(ISERROR(VLOOKUP(A35,tesserati[],4,FALSE)),"",VLOOKUP(A35,tesserati[],4,FALSE)) ->  | E35: =IF(ISERROR(VLOOKUP(A35,tesserati[],5,FALSE)),"",VLOOKUP(A35,tesserati[],5,FALSE)) ->  | F35: =IF(ISERROR(VLOOKUP(A35,tesserati[],7,FALSE)),"",VLOOKUP(A35,tesserati[],7,FALSE)) -> 
B36: =IF(ISERROR(VLOOKUP(A36,tesserati[],2,FALSE)),"",VLOOKUP(A36,tesserati[],2,FALSE)) ->  | C36: =IF(ISERROR(VLOOKUP(A36,tesserati[],3,FALSE)),"",VLOOKUP(A36,tesserati[],3,FALSE)) ->  | D36: =IF(ISERROR(VLOOKUP(A36,tesserati[],4,FALSE)),"",VLOOKUP(A36,tesserati[],4,FALSE)) ->  | E36: =IF(ISERROR(VLOOKUP(A36,tesserati[],5,FALSE)),"",VLOOKUP(A36,tesserati[],5,FALSE)) ->  | F36: =IF(ISERROR(VLOOKUP(A36,tesserati[],7,FALSE)),"",VLOOKUP(A36,tesserati[],7,FALSE)) -> 
B37: =IF(ISERROR(VLOOKUP(A37,tesserati[],2,FALSE)),"",VLOOKUP(A37,tesserati[],2,FALSE)) ->  | C37: =IF(ISERROR(VLOOKUP(A37,tesserati[],3,FALSE)),"",VLOOKUP(A37,tesserati[],3,FALSE)) ->  | D37: =IF(ISERROR(VLOOKUP(A37,tesserati[],4,FALSE)),"",VLOOKUP(A37,tesserati[],4,FALSE)) ->  | E37: =IF(ISERROR(VLOOKUP(A37,tesserati[],5,FALSE)),"",VLOOKUP(A37,tesserati[],5,FALSE)) ->  | F37: =IF(ISERROR(VLOOKUP(A37,tesserati[],7,FALSE)),"",VLOOKUP(A37,tesserati[],7,FALSE)) -> 
B38: =IF(ISERROR(VLOOKUP(A38,tesserati[],2,FALSE)),"",VLOOKUP(A38,tesserati[],2,FALSE)) ->  | C38: =IF(ISERROR(VLOOKUP(A38,tesserati[],3,FALSE)),"",VLOOKUP(A38,tesserati[],3,FALSE)) ->  | D38: =IF(ISERROR(VLOOKUP(A38,tesserati[],4,FALSE)),"",VLOOKUP(A38,tesserati[],4,FALSE)) ->  | E38: =IF(ISERROR(VLOOKUP(A38,tesserati[],5,FALSE)),"",VLOOKUP(A38,tesserati[],5,FALSE)) ->  | F38: =IF(ISERROR(VLOOKUP(A38,tesserati[],7,FALSE)),"",VLOOKUP(A38,tesserati[],7,FALSE)) ->  | G38: 2
B39: =IF(ISERROR(VLOOKUP(A39,tesserati[],2,FALSE)),"",VLOOKUP(A39,tesserati[],2,FALSE)) ->  | C39: =IF(ISERROR(VLOOKUP(A39,tesserati[],3,FALSE)),"",VLOOKUP(A39,tesserati[],3,FALSE)) ->  | D39: =IF(ISERROR(VLOOKUP(A39,tesserati[],4,FALSE)),"",VLOOKUP(A39,tesserati[],4,FALSE)) ->  | E39: =IF(ISERROR(VLOOKUP(A39,tesserati[],5,FALSE)),"",VLOOKUP(A39,tesserati[],5,FALSE)) ->  | F39: =IF(ISERROR(VLOOKUP(A39,tesserati[],7,FALSE)),"",VLOOKUP(A39,tesserati[],7,FALSE)) -> 
B40: =IF(ISERROR(VLOOKUP(A40,tesserati[],2,FALSE)),"",VLOOKUP(A40,tesserati[],2,FALSE)) ->  | C40: =IF(ISERROR(VLOOKUP(A40,tesserati[],3,FALSE)),"",VLOOKUP(A40,tesserati[],3,FALSE)) ->  | D40: =IF(ISERROR(VLOOKUP(A40,tesserati[],4,FALSE)),"",VLOOKUP(A40,tesserati[],4,FALSE)) ->  | E40: =IF(ISERROR(VLOOKUP(A40,tesserati[],5,FALSE)),"",VLOOKUP(A40,tesserati[],5,FALSE)) ->  | F40: =IF(ISERROR(VLOOKUP(A40,tesserati[],7,FALSE)),"",VLOOKUP(A40,tesserati[],7,FALSE)) -> 
B41: =IF(ISERROR(VLOOKUP(A41,tesserati[],2,FALSE)),"",VLOOKUP(A41,tesserati[],2,FALSE)) ->  | C41: =IF(ISERROR(VLOOKUP(A41,tesserati[],3,FALSE)),"",VLOOKUP(A41,tesserati[],3,FALSE)) ->  | D41: =IF(ISERROR(VLOOKUP(A41,tesserati[],4,FALSE)),"",VLOOKUP(A41,tesserati[],4,FALSE)) ->  | E41: =IF(ISERROR(VLOOKUP(A41,tesserati[],5,FALSE)),"",VLOOKUP(A41,tesserati[],5,FALSE)) ->  | F41: =IF(ISERROR(VLOOKUP(A41,tesserati[],7,FALSE)),"",VLOOKUP(A41,tesserati[],7,FALSE)) -> 
B42: =IF(ISERROR(VLOOKUP(A42,tesserati[],2,FALSE)),"",VLOOKUP(A42,tesserati[],2,FALSE)) ->  | C42: =IF(ISERROR(VLOOKUP(A42,tesserati[],3,FALSE)),"",VLOOKUP(A42,tesserati[],3,FALSE)) ->  | D42: =IF(ISERROR(VLOOKUP(A42,tesserati[],4,FALSE)),"",VLOOKUP(A42,tesserati[],4,FALSE)) ->  | E42: =IF(ISERROR(VLOOKUP(A42,tesserati[],5,FALSE)),"",VLOOKUP(A42,tesserati[],5,FALSE)) ->  | F42: =IF(ISERROR(VLOOKUP(A42,tesserati[],7,FALSE)),"",VLOOKUP(A42,tesserati[],7,FALSE)) ->  | G42: 3
B43: =IF(ISERROR(VLOOKUP(A43,tesserati[],2,FALSE)),"",VLOOKUP(A43,tesserati[],2,FALSE)) ->  | C43: =IF(ISERROR(VLOOKUP(A43,tesserati[],3,FALSE)),"",VLOOKUP(A43,tesserati[],3,FALSE)) ->  | D43: =IF(ISERROR(VLOOKUP(A43,tesserati[],4,FALSE)),"",VLOOKUP(A43,tesserati[],4,FALSE)) ->  | E43: =IF(ISERROR(VLOOKUP(A43,tesserati[],5,FALSE)),"",VLOOKUP(A43,tesserati[],5,FALSE)) ->  | F43: =IF(ISERROR(VLOOKUP(A43,tesserati[],7,FALSE)),"",VLOOKUP(A43,tesserati[],7,FALSE)) -> 
B44: =IF(ISERROR(VLOOKUP(A44,tesserati[],2,FALSE)),"",VLOOKUP(A44,tesserati[],2,FALSE)) ->  | C44: =IF(ISERROR(VLOOKUP(A44,tesserati[],3,FALSE)),"",VLOOKUP(A44,tesserati[],3,FALSE)) ->  | D44: =IF(ISERROR(VLOOKUP(A44,tesserati[],4,FALSE)),"",VLOOKUP(A44,tesserati[],4,FALSE)) ->  | E44: =IF(ISERROR(VLOOKUP(A44,tesserati[],5,FALSE)),"",VLOOKUP(A44,tesserati[],5,FALSE)) ->  | F44: =IF(ISERROR(VLOOKUP(A44,tesserati[],7,FALSE)),"",VLOOKUP(A44,tesserati[],7,FALSE)) -> 
B45: =IF(ISERROR(VLOOKUP(A45,tesserati[],2,FALSE)),"",VLOOKUP(A45,tesserati[],2,FALSE)) ->  | C45: =IF(ISERROR(VLOOKUP(A45,tesserati[],3,FALSE)),"",VLOOKUP(A45,tesserati[],3,FALSE)) ->  | D45: =IF(ISERROR(VLOOKUP(A45,tesserati[],4,FALSE)),"",VLOOKUP(A45,tesserati[],4,FALSE)) ->  | E45: =IF(ISERROR(VLOOKUP(A45,tesserati[],5,FALSE)),"",VLOOKUP(A45,tesserati[],5,FALSE)) ->  | F45: =IF(ISERROR(VLOOKUP(A45,tesserati[],7,FALSE)),"",VLOOKUP(A45,tesserati[],7,FALSE)) -> 
B46: =IF(ISERROR(VLOOKUP(A46,tesserati[],2,FALSE)),"",VLOOKUP(A46,tesserati[],2,FALSE)) ->  | C46: =IF(ISERROR(VLOOKUP(A46,tesserati[],3,FALSE)),"",VLOOKUP(A46,tesserati[],3,FALSE)) ->  | D46: =IF(ISERROR(VLOOKUP(A46,tesserati[],4,FALSE)),"",VLOOKUP(A46,tesserati[],4,FALSE)) ->  | E46: =IF(ISERROR(VLOOKUP(A46,tesserati[],5,FALSE)),"",VLOOKUP(A46,tesserati[],5,FALSE)) ->  | F46: =IF(ISERROR(VLOOKUP(A46,tesserati[],7,FALSE)),"",VLOOKUP(A46,tesserati[],7,FALSE)) ->  | G46: 4
B47: =IF(ISERROR(VLOOKUP(A47,tesserati[],2,FALSE)),"",VLOOKUP(A47,tesserati[],2,FALSE)) ->  | C47: =IF(ISERROR(VLOOKUP(A47,tesserati[],3,FALSE)),"",VLOOKUP(A47,tesserati[],3,FALSE)) ->  | D47: =IF(ISERROR(VLOOKUP(A47,tesserati[],4,FALSE)),"",VLOOKUP(A47,tesserati[],4,FALSE)) ->  | E47: =IF(ISERROR(VLOOKUP(A47,tesserati[],5,FALSE)),"",VLOOKUP(A47,tesserati[],5,FALSE)) ->  | F47: =IF(ISERROR(VLOOKUP(A47,tesserati[],7,FALSE)),"",VLOOKUP(A47,tesserati[],7,FALSE)) -> 
B48: =IF(ISERROR(VLOOKUP(A48,tesserati[],2,FALSE)),"",VLOOKUP(A48,tesserati[],2,FALSE)) ->  | C48: =IF(ISERROR(VLOOKUP(A48,tesserati[],3,FALSE)),"",VLOOKUP(A48,tesserati[],3,FALSE)) ->  | D48: =IF(ISERROR(VLOOKUP(A48,tesserati[],4,FALSE)),"",VLOOKUP(A48,tesserati[],4,FALSE)) ->  | E48: =IF(ISERROR(VLOOKUP(A48,tesserati[],5,FALSE)),"",VLOOKUP(A48,tesserati[],5,FALSE)) ->  | F48: =IF(ISERROR(VLOOKUP(A48,tesserati[],7,FALSE)),"",VLOOKUP(A48,tesserati[],7,FALSE)) -> 
B49: =IF(ISERROR(VLOOKUP(A49,tesserati[],2,FALSE)),"",VLOOKUP(A49,tesserati[],2,FALSE)) ->  | C49: =IF(ISERROR(VLOOKUP(A49,tesserati[],3,FALSE)),"",VLOOKUP(A49,tesserati[],3,FALSE)) ->  | D49: =IF(ISERROR(VLOOKUP(A49,tesserati[],4,FALSE)),"",VLOOKUP(A49,tesserati[],4,FALSE)) ->  | E49: =IF(ISERROR(VLOOKUP(A49,tesserati[],5,FALSE)),"",VLOOKUP(A49,tesserati[],5,FALSE)) ->  | F49: =IF(ISERROR(VLOOKUP(A49,tesserati[],7,FALSE)),"",VLOOKUP(A49,tesserati[],7,FALSE)) -> 
B50: =IF(ISERROR(VLOOKUP(A50,tesserati[],2,FALSE)),"",VLOOKUP(A50,tesserati[],2,FALSE)) ->  | C50: =IF(ISERROR(VLOOKUP(A50,tesserati[],3,FALSE)),"",VLOOKUP(A50,tesserati[],3,FALSE)) ->  | D50: =IF(ISERROR(VLOOKUP(A50,tesserati[],4,FALSE)),"",VLOOKUP(A50,tesserati[],4,FALSE)) ->  | E50: =IF(ISERROR(VLOOKUP(A50,tesserati[],5,FALSE)),"",VLOOKUP(A50,tesserati[],5,FALSE)) ->  | F50: =IF(ISERROR(VLOOKUP(A50,tesserati[],7,FALSE)),"",VLOOKUP(A50,tesserati[],7,FALSE)) ->  | G50: 5
B51: =IF(ISERROR(VLOOKUP(A51,tesserati[],2,FALSE)),"",VLOOKUP(A51,tesserati[],2,FALSE)) ->  | C51: =IF(ISERROR(VLOOKUP(A51,tesserati[],3,FALSE)),"",VLOOKUP(A51,tesserati[],3,FALSE)) ->  | D51: =IF(ISERROR(VLOOKUP(A51,tesserati[],4,FALSE)),"",VLOOKUP(A51,tesserati[],4,FALSE)) ->  | E51: =IF(ISERROR(VLOOKUP(A51,tesserati[],5,FALSE)),"",VLOOKUP(A51,tesserati[],5,FALSE)) ->  | F51: =IF(ISERROR(VLOOKUP(A51,tesserati[],7,FALSE)),"",VLOOKUP(A51,tesserati[],7,FALSE)) -> 
B52: =IF(ISERROR(VLOOKUP(A52,tesserati[],2,FALSE)),"",VLOOKUP(A52,tesserati[],2,FALSE)) ->  | C52: =IF(ISERROR(VLOOKUP(A52,tesserati[],3,FALSE)),"",VLOOKUP(A52,tesserati[],3,FALSE)) ->  | D52: =IF(ISERROR(VLOOKUP(A52,tesserati[],4,FALSE)),"",VLOOKUP(A52,tesserati[],4,FALSE)) ->  | E52: =IF(ISERROR(VLOOKUP(A52,tesserati[],5,FALSE)),"",VLOOKUP(A52,tesserati[],5,FALSE)) ->  | F52: =IF(ISERROR(VLOOKUP(A52,tesserati[],7,FALSE)),"",VLOOKUP(A52,tesserati[],7,FALSE)) -> 
B53: =IF(ISERROR(VLOOKUP(A53,tesserati[],2,FALSE)),"",VLOOKUP(A53,tesserati[],2,FALSE)) ->  | C53: =IF(ISERROR(VLOOKUP(A53,tesserati[],3,FALSE)),"",VLOOKUP(A53,tesserati[],3,FALSE)) ->  | D53: =IF(ISERROR(VLOOKUP(A53,tesserati[],4,FALSE)),"",VLOOKUP(A53,tesserati[],4,FALSE)) ->  | E53: =IF(ISERROR(VLOOKUP(A53,tesserati[],5,FALSE)),"",VLOOKUP(A53,tesserati[],5,FALSE)) ->  | F53: =IF(ISERROR(VLOOKUP(A53,tesserati[],7,FALSE)),"",VLOOKUP(A53,tesserati[],7,FALSE)) -> 
B54: =IF(ISERROR(VLOOKUP(A54,tesserati[],2,FALSE)),"",VLOOKUP(A54,tesserati[],2,FALSE)) ->  | C54: =IF(ISERROR(VLOOKUP(A54,tesserati[],3,FALSE)),"",VLOOKUP(A54,tesserati[],3,FALSE)) ->  | D54: =IF(ISERROR(VLOOKUP(A54,tesserati[],4,FALSE)),"",VLOOKUP(A54,tesserati[],4,FALSE)) ->  | E54: =IF(ISERROR(VLOOKUP(A54,tesserati[],5,FALSE)),"",VLOOKUP(A54,tesserati[],5,FALSE)) ->  | F54: =IF(ISERROR(VLOOKUP(A54,tesserati[],7,FALSE)),"",VLOOKUP(A54,tesserati[],7,FALSE)) ->  | G54: 6
B55: =IF(ISERROR(VLOOKUP(A55,tesserati[],2,FALSE)),"",VLOOKUP(A55,tesserati[],2,FALSE)) ->  | C55: =IF(ISERROR(VLOOKUP(A55,tesserati[],3,FALSE)),"",VLOOKUP(A55,tesserati[],3,FALSE)) ->  | D55: =IF(ISERROR(VLOOKUP(A55,tesserati[],4,FALSE)),"",VLOOKUP(A55,tesserati[],4,FALSE)) ->  | E55: =IF(ISERROR(VLOOKUP(A55,tesserati[],5,FALSE)),"",VLOOKUP(A55,tesserati[],5,FALSE)) ->  | F55: =IF(ISERROR(VLOOKUP(A55,tesserati[],7,FALSE)),"",VLOOKUP(A55,tesserati[],7,FALSE)) -> 
B56: =IF(ISERROR(VLOOKUP(A56,tesserati[],2,FALSE)),"",VLOOKUP(A56,tesserati[],2,FALSE)) ->  | C56: =IF(ISERROR(VLOOKUP(A56,tesserati[],3,FALSE)),"",VLOOKUP(A56,tesserati[],3,FALSE)) ->  | D56: =IF(ISERROR(VLOOKUP(A56,tesserati[],4,FALSE)),"",VLOOKUP(A56,tesserati[],4,FALSE)) ->  | E56: =IF(ISERROR(VLOOKUP(A56,tesserati[],5,FALSE)),"",VLOOKUP(A56,tesserati[],5,FALSE)) ->  | F56: =IF(ISERROR(VLOOKUP(A56,tesserati[],7,FALSE)),"",VLOOKUP(A56,tesserati[],7,FALSE)) -> 
B57: =IF(ISERROR(VLOOKUP(A57,tesserati[],2,FALSE)),"",VLOOKUP(A57,tesserati[],2,FALSE)) ->  | C57: =IF(ISERROR(VLOOKUP(A57,tesserati[],3,FALSE)),"",VLOOKUP(A57,tesserati[],3,FALSE)) ->  | D57: =IF(ISERROR(VLOOKUP(A57,tesserati[],4,FALSE)),"",VLOOKUP(A57,tesserati[],4,FALSE)) ->  | E57: =IF(ISERROR(VLOOKUP(A57,tesserati[],5,FALSE)),"",VLOOKUP(A57,tesserati[],5,FALSE)) ->  | F57: =IF(ISERROR(VLOOKUP(A57,tesserati[],7,FALSE)),"",VLOOKUP(A57,tesserati[],7,FALSE)) -> 
B58: =IF(ISERROR(VLOOKUP(A58,tesserati[],2,FALSE)),"",VLOOKUP(A58,tesserati[],2,FALSE)) ->  | C58: =IF(ISERROR(VLOOKUP(A58,tesserati[],3,FALSE)),"",VLOOKUP(A58,tesserati[],3,FALSE)) ->  | D58: =IF(ISERROR(VLOOKUP(A58,tesserati[],4,FALSE)),"",VLOOKUP(A58,tesserati[],4,FALSE)) ->  | E58: =IF(ISERROR(VLOOKUP(A58,tesserati[],5,FALSE)),"",VLOOKUP(A58,tesserati[],5,FALSE)) ->  | F58: =IF(ISERROR(VLOOKUP(A58,tesserati[],7,FALSE)),"",VLOOKUP(A58,tesserati[],7,FALSE)) -> 
B59: =IF(ISERROR(VLOOKUP(A59,tesserati[],2,FALSE)),"",VLOOKUP(A59,tesserati[],2,FALSE)) ->  | C59: =IF(ISERROR(VLOOKUP(A59,tesserati[],3,FALSE)),"",VLOOKUP(A59,tesserati[],3,FALSE)) ->  | D59: =IF(ISERROR(VLOOKUP(A59,tesserati[],4,FALSE)),"",VLOOKUP(A59,tesserati[],4,FALSE)) ->  | E59: =IF(ISERROR(VLOOKUP(A59,tesserati[],5,FALSE)),"",VLOOKUP(A59,tesserati[],5,FALSE)) ->  | F59: =IF(ISERROR(VLOOKUP(A59,tesserati[],7,FALSE)),"",VLOOKUP(A59,tesserati[],7,FALSE)) -> 
B60: =IF(ISERROR(VLOOKUP(A60,tesserati[],2,FALSE)),"",VLOOKUP(A60,tesserati[],2,FALSE)) ->  | C60: =IF(ISERROR(VLOOKUP(A60,tesserati[],3,FALSE)),"",VLOOKUP(A60,tesserati[],3,FALSE)) ->  | D60: =IF(ISERROR(VLOOKUP(A60,tesserati[],4,FALSE)),"",VLOOKUP(A60,tesserati[],4,FALSE)) ->  | E60: =IF(ISERROR(VLOOKUP(A60,tesserati[],5,FALSE)),"",VLOOKUP(A60,tesserati[],5,FALSE)) ->  | F60: =IF(ISERROR(VLOOKUP(A60,tesserati[],7,FALSE)),"",VLOOKUP(A60,tesserati[],7,FALSE)) -> 
B61: =IF(ISERROR(VLOOKUP(A61,tesserati[],2,FALSE)),"",VLOOKUP(A61,tesserati[],2,FALSE)) ->  | C61: =IF(ISERROR(VLOOKUP(A61,tesserati[],3,FALSE)),"",VLOOKUP(A61,tesserati[],3,FALSE)) ->  | D61: =IF(ISERROR(VLOOKUP(A61,tesserati[],4,FALSE)),"",VLOOKUP(A61,tesserati[],4,FALSE)) ->  | E61: =IF(ISERROR(VLOOKUP(A61,tesserati[],5,FALSE)),"",VLOOKUP(A61,tesserati[],5,FALSE)) ->  | F61: =IF(ISERROR(VLOOKUP(A61,tesserati[],7,FALSE)),"",VLOOKUP(A61,tesserati[],7,FALSE)) -> 
B62: =IF(ISERROR(VLOOKUP(A62,tesserati[],2,FALSE)),"",VLOOKUP(A62,tesserati[],2,FALSE)) ->  | C62: =IF(ISERROR(VLOOKUP(A62,tesserati[],3,FALSE)),"",VLOOKUP(A62,tesserati[],3,FALSE)) ->  | D62: =IF(ISERROR(VLOOKUP(A62,tesserati[],4,FALSE)),"",VLOOKUP(A62,tesserati[],4,FALSE)) ->  | E62: =IF(ISERROR(VLOOKUP(A62,tesserati[],5,FALSE)),"",VLOOKUP(A62,tesserati[],5,FALSE)) ->  | F62: =IF(ISERROR(VLOOKUP(A62,tesserati[],7,FALSE)),"",VLOOKUP(A62,tesserati[],7,FALSE)) -> 
B63: =IF(ISERROR(VLOOKUP(A63,tesserati[],2,FALSE)),"",VLOOKUP(A63,tesserati[],2,FALSE)) ->  | C63: =IF(ISERROR(VLOOKUP(A63,tesserati[],3,FALSE)),"",VLOOKUP(A63,tesserati[],3,FALSE)) ->  | D63: =IF(ISERROR(VLOOKUP(A63,tesserati[],4,FALSE)),"",VLOOKUP(A63,tesserati[],4,FALSE)) ->  | E63: =IF(ISERROR(VLOOKUP(A63,tesserati[],5,FALSE)),"",VLOOKUP(A63,tesserati[],5,FALSE)) ->  | F63: =IF(ISERROR(VLOOKUP(A63,tesserati[],7,FALSE)),"",VLOOKUP(A63,tesserati[],7,FALSE)) -> 
B64: =IF(ISERROR(VLOOKUP(A64,tesserati[],2,FALSE)),"",VLOOKUP(A64,tesserati[],2,FALSE)) ->  | C64: =IF(ISERROR(VLOOKUP(A64,tesserati[],3,FALSE)),"",VLOOKUP(A64,tesserati[],3,FALSE)) ->  | D64: =IF(ISERROR(VLOOKUP(A64,tesserati[],4,FALSE)),"",VLOOKUP(A64,tesserati[],4,FALSE)) ->  | E64: =IF(ISERROR(VLOOKUP(A64,tesserati[],5,FALSE)),"",VLOOKUP(A64,tesserati[],5,FALSE)) ->  | F64: =IF(ISERROR(VLOOKUP(A64,tesserati[],7,FALSE)),"",VLOOKUP(A64,tesserati[],7,FALSE)) -> 
B65: =IF(ISERROR(VLOOKUP(A65,tesserati[],2,FALSE)),"",VLOOKUP(A65,tesserati[],2,FALSE)) ->  | C65: =IF(ISERROR(VLOOKUP(A65,tesserati[],3,FALSE)),"",VLOOKUP(A65,tesserati[],3,FALSE)) ->  | D65: =IF(ISERROR(VLOOKUP(A65,tesserati[],4,FALSE)),"",VLOOKUP(A65,tesserati[],4,FALSE)) ->  | E65: =IF(ISERROR(VLOOKUP(A65,tesserati[],5,FALSE)),"",VLOOKUP(A65,tesserati[],5,FALSE)) ->  | F65: =IF(ISERROR(VLOOKUP(A65,tesserati[],7,FALSE)),"",VLOOKUP(A65,tesserati[],7,FALSE)) -> 
B66: =IF(ISERROR(VLOOKUP(A66,tesserati[],2,FALSE)),"",VLOOKUP(A66,tesserati[],2,FALSE)) ->  | C66: =IF(ISERROR(VLOOKUP(A66,tesserati[],3,FALSE)),"",VLOOKUP(A66,tesserati[],3,FALSE)) ->  | D66: =IF(ISERROR(VLOOKUP(A66,tesserati[],4,FALSE)),"",VLOOKUP(A66,tesserati[],4,FALSE)) ->  | E66: =IF(ISERROR(VLOOKUP(A66,tesserati[],5,FALSE)),"",VLOOKUP(A66,tesserati[],5,FALSE)) ->  | F66: =IF(ISERROR(VLOOKUP(A66,tesserati[],7,FALSE)),"",VLOOKUP(A66,tesserati[],7,FALSE)) -> 
B67: =IF(ISERROR(VLOOKUP(A67,tesserati[],2,FALSE)),"",VLOOKUP(A67,tesserati[],2,FALSE)) ->  | C67: =IF(ISERROR(VLOOKUP(A67,tesserati[],3,FALSE)),"",VLOOKUP(A67,tesserati[],3,FALSE)) ->  | D67: =IF(ISERROR(VLOOKUP(A67,tesserati[],4,FALSE)),"",VLOOKUP(A67,tesserati[],4,FALSE)) ->  | E67: =IF(ISERROR(VLOOKUP(A67,tesserati[],5,FALSE)),"",VLOOKUP(A67,tesserati[],5,FALSE)) ->  | F67: =IF(ISERROR(VLOOKUP(A67,tesserati[],7,FALSE)),"",VLOOKUP(A67,tesserati[],7,FALSE)) -> 
B68: =IF(ISERROR(VLOOKUP(A68,tesserati[],2,FALSE)),"",VLOOKUP(A68,tesserati[],2,FALSE)) ->  | C68: =IF(ISERROR(VLOOKUP(A68,tesserati[],3,FALSE)),"",VLOOKUP(A68,tesserati[],3,FALSE)) ->  | D68: =IF(ISERROR(VLOOKUP(A68,tesserati[],4,FALSE)),"",VLOOKUP(A68,tesserati[],4,FALSE)) ->  | E68: =IF(ISERROR(VLOOKUP(A68,tesserati[],5,FALSE)),"",VLOOKUP(A68,tesserati[],5,FALSE)) ->  | F68: =IF(ISERROR(VLOOKUP(A68,tesserati[],7,FALSE)),"",VLOOKUP(A68,tesserati[],7,FALSE)) -> 
B69: =IF(ISERROR(VLOOKUP(A69,tesserati[],2,FALSE)),"",VLOOKUP(A69,tesserati[],2,FALSE)) ->  | C69: =IF(ISERROR(VLOOKUP(A69,tesserati[],3,FALSE)),"",VLOOKUP(A69,tesserati[],3,FALSE)) ->  | D69: =IF(ISERROR(VLOOKUP(A69,tesserati[],4,FALSE)),"",VLOOKUP(A69,tesserati[],4,FALSE)) ->  | E69: =IF(ISERROR(VLOOKUP(A69,tesserati[],5,FALSE)),"",VLOOKUP(A69,tesserati[],5,FALSE)) ->  | F69: =IF(ISERROR(VLOOKUP(A69,tesserati[],7,FALSE)),"",VLOOKUP(A69,tesserati[],7,FALSE)) -> 
B70: =IF(ISERROR(VLOOKUP(A70,tesserati[],2,FALSE)),"",VLOOKUP(A70,tesserati[],2,FALSE)) ->  | C70: =IF(ISERROR(VLOOKUP(A70,tesserati[],3,FALSE)),"",VLOOKUP(A70,tesserati[],3,FALSE)) ->  | D70: =IF(ISERROR(VLOOKUP(A70,tesserati[],4,FALSE)),"",VLOOKUP(A70,tesserati[],4,FALSE)) ->  | E70: =IF(ISERROR(VLOOKUP(A70,tesserati[],5,FALSE)),"",VLOOKUP(A70,tesserati[],5,FALSE)) ->  | F70: =IF(ISERROR(VLOOKUP(A70,tesserati[],7,FALSE)),"",VLOOKUP(A70,tesserati[],7,FALSE)) -> 
B71: =IF(ISERROR(VLOOKUP(A71,tesserati[],2,FALSE)),"",VLOOKUP(A71,tesserati[],2,FALSE)) ->  | C71: =IF(ISERROR(VLOOKUP(A71,tesserati[],3,FALSE)),"",VLOOKUP(A71,tesserati[],3,FALSE)) ->  | D71: =IF(ISERROR(VLOOKUP(A71,tesserati[],4,FALSE)),"",VLOOKUP(A71,tesserati[],4,FALSE)) ->  | E71: =IF(ISERROR(VLOOKUP(A71,tesserati[],5,FALSE)),"",VLOOKUP(A71,tesserati[],5,FALSE)) ->  | F71: =IF(ISERROR(VLOOKUP(A71,tesserati[],7,FALSE)),"",VLOOKUP(A71,tesserati[],7,FALSE)) -> 
B72: =IF(ISERROR(VLOOKUP(A72,tesserati[],2,FALSE)),"",VLOOKUP(A72,tesserati[],2,FALSE)) ->  | C72: =IF(ISERROR(VLOOKUP(A72,tesserati[],3,FALSE)),"",VLOOKUP(A72,tesserati[],3,FALSE)) ->  | D72: =IF(ISERROR(VLOOKUP(A72,tesserati[],4,FALSE)),"",VLOOKUP(A72,tesserati[],4,FALSE)) ->  | E72: =IF(ISERROR(VLOOKUP(A72,tesserati[],5,FALSE)),"",VLOOKUP(A72,tesserati[],5,FALSE)) ->  | F72: =IF(ISERROR(VLOOKUP(A72,tesserati[],7,FALSE)),"",VLOOKUP(A72,tesserati[],7,FALSE)) -> 

Sheet STAFFETTE 4X50 ES
C1: MANIFESTAZIONE | F1: LOCALITA' | I1: SOCIETA' ORGANIZZATRICE
C2: 6° prova provinciale | F2: Tezze sul Brenta | I2: CSI Tezze sul Brenta
A3: CATEGORIA | C3: ORA INIZIO | D3: ORA FINE | F3: GARA | I3: DATA
A4: ESORDIENTI | F4: STAFFETTA 4 X 50 | I4: 2017-09-24
A6: N. tessera | B6: ATLETA COGNOME E NOME | D6: SOCIETA' | E6: NASCITA | F6: CATEGORIA | G6: Corsia | H6: PETTORALE | I6: Tempo | J6: Piazzamento | K6: PUNTI | L6: CL.
A8: 1 SERIE | B8: =IF(ISERROR(VLOOKUP(A8,tesserati[],2,FALSE)),"",VLOOKUP(A8,tesserati[],2,FALSE)) ->  | C8: =IF(ISERROR(VLOOKUP(A8,tesserati[],3,FALSE)),"",VLOOKUP(A8,tesserati[],3,FALSE)) ->  | D8: =IF(ISERROR(VLOOKUP(#REF!,tesserati[],5,FALSE)),"",VLOOKUP(#REF!,tesserati[],5,FALSE)) ->  | E8: =IF(ISERROR(VLOOKUP(A8,tesserati[],4,FALSE)),"",VLOOKUP(A8,tesserati[],4,FALSE)) ->  | F8: =IF(ISERROR(VLOOKUP(A8,tesserati[],7,FALSE)),"",VLOOKUP(A8,tesserati[],7,FALSE)) -> 
A9: 2944 | B9: =IF(ISERROR(VLOOKUP(A9,tesserati[],2,FALSE)),"",VLOOKUP(A9,tesserati[],2,FALSE)) -> ALBA | C9: =IF(ISERROR(VLOOKUP(A9,tesserati[],3,FALSE)),"",VLOOKUP(A9,tesserati[],3,FALSE)) -> SARA | D9: =IF(ISERROR(VLOOKUP(A9,tesserati[],4,FALSE)),"",VLOOKUP(A9,tesserati[],4,FALSE)) -> ATLETICA UNION CREAZZO | E9: =IF(ISERROR(VLOOKUP(A9,tesserati[],5,FALSE)),"",VLOOKUP(A9,tesserati[],5,FALSE)) -> 2006 | F9: =IF(ISERROR(VLOOKUP(A9,tesserati[],7,FALSE)),"",VLOOKUP(A9,tesserati[],7,FALSE)) -> EF | G9: 1 | I9: 31.1 | J9: 1
A10: 2963 | B10: =IF(ISERROR(VLOOKUP(A10,tesserati[],2,FALSE)),"",VLOOKUP(A10,tesserati[],2,FALSE)) -> DE CAO | C10: =IF(ISERROR(VLOOKUP(A10,tesserati[],3,FALSE)),"",VLOOKUP(A10,tesserati[],3,FALSE)) -> DILETTA | D10: =IF(ISERROR(VLOOKUP(A10,tesserati[],4,FALSE)),"",VLOOKUP(A10,tesserati[],4,FALSE)) -> ATLETICA UNION CREAZZO | E10: =IF(ISERROR(VLOOKUP(A10,tesserati[],5,FALSE)),"",VLOOKUP(A10,tesserati[],5,FALSE)) -> 2006 | F10: =IF(ISERROR(VLOOKUP(A10,tesserati[],7,FALSE)),"",VLOOKUP(A10,tesserati[],7,FALSE)) -> EF
A11: 2929 | B11: =IF(ISERROR(VLOOKUP(A11,tesserati[],2,FALSE)),"",VLOOKUP(A11,tesserati[],2,FALSE)) -> MASSIGNAN | C11: =IF(ISERROR(VLOOKUP(A11,tesserati[],3,FALSE)),"",VLOOKUP(A11,tesserati[],3,FALSE)) -> CAMILLA | D11: =IF(ISERROR(VLOOKUP(A11,tesserati[],4,FALSE)),"",VLOOKUP(A11,tesserati[],4,FALSE)) -> ATLETICA UNION CREAZZO | E11: =IF(ISERROR(VLOOKUP(A11,tesserati[],5,FALSE)),"",VLOOKUP(A11,tesserati[],5,FALSE)) -> 2006 | F11: =IF(ISERROR(VLOOKUP(A11,tesserati[],7,FALSE)),"",VLOOKUP(A11,tesserati[],7,FALSE)) -> EF
A12: 3459 | B12: =IF(ISERROR(VLOOKUP(A12,tesserati[],2,FALSE)),"",VLOOKUP(A12,tesserati[],2,FALSE)) -> CAPITANIO | C12: =IF(ISERROR(VLOOKUP(A12,tesserati[],3,FALSE)),"",VLOOKUP(A12,tesserati[],3,FALSE)) -> NICOLE | D12: =IF(ISERROR(VLOOKUP(A12,tesserati[],4,FALSE)),"",VLOOKUP(A12,tesserati[],4,FALSE)) -> ATLETICA UNION CREAZZO | E12: =IF(ISERROR(VLOOKUP(A12,tesserati[],5,FALSE)),"",VLOOKUP(A12,tesserati[],5,FALSE)) -> 2006 | F12: =IF(ISERROR(VLOOKUP(A12,tesserati[],7,FALSE)),"",VLOOKUP(A12,tesserati[],7,FALSE)) -> EF
A13: 4578 | B13: =IF(ISERROR(VLOOKUP(A13,tesserati[],2,FALSE)),"",VLOOKUP(A13,tesserati[],2,FALSE)) -> GOTTER | C13: =IF(ISERROR(VLOOKUP(A13,tesserati[],3,FALSE)),"",VLOOKUP(A13,tesserati[],3,FALSE)) -> TAMARA | D13: =IF(ISERROR(VLOOKUP(A13,tesserati[],4,FALSE)),"",VLOOKUP(A13,tesserati[],4,FALSE)) -> CSI ATLETICA COLLI BERICI | E13: =IF(ISERROR(VLOOKUP(A13,tesserati[],5,FALSE)),"",VLOOKUP(A13,tesserati[],5,FALSE)) -> 2006 | F13: =IF(ISERROR(VLOOKUP(A13,tesserati[],7,FALSE)),"",VLOOKUP(A13,tesserati[],7,FALSE)) -> EF | G13: 2 | I13: 31.3 | J13: 2
A14: 4402 | B14: =IF(ISERROR(VLOOKUP(A14,tesserati[],2,FALSE)),"",VLOOKUP(A14,tesserati[],2,FALSE)) -> TOGNETTI | C14: =IF(ISERROR(VLOOKUP(A14,tesserati[],3,FALSE)),"",VLOOKUP(A14,tesserati[],3,FALSE)) -> CRISTIANO | D14: =IF(ISERROR(VLOOKUP(A14,tesserati[],4,FALSE)),"",VLOOKUP(A14,tesserati[],4,FALSE)) -> CSI ATLETICA COLLI BERICI | E14: =IF(ISERROR(VLOOKUP(A14,tesserati[],5,FALSE)),"",VLOOKUP(A14,tesserati[],5,FALSE)) -> 2006 | F14: =IF(ISERROR(VLOOKUP(A14,tesserati[],7,FALSE)),"",VLOOKUP(A14,tesserati[],7,FALSE)) -> EM
A15: 4405 | B15: =IF(ISERROR(VLOOKUP(A15,tesserati[],2,FALSE)),"",VLOOKUP(A15,tesserati[],2,FALSE)) -> VALLORTIGARA | C15: =IF(ISERROR(VLOOKUP(A15,tesserati[],3,FALSE)),"",VLOOKUP(A15,tesserati[],3,FALSE)) -> SIMONE | D15: =IF(ISERROR(VLOOKUP(A15,tesserati[],4,FALSE)),"",VLOOKUP(A15,tesserati[],4,FALSE)) -> CSI ATLETICA COLLI BERICI | E15: =IF(ISERROR(VLOOKUP(A15,tesserati[],5,FALSE)),"",VLOOKUP(A15,tesserati[],5,FALSE)) -> 2007 | F15: =IF(ISERROR(VLOOKUP(A15,tesserati[],7,FALSE)),"",VLOOKUP(A15,tesserati[],7,FALSE)) -> EM
A16: 4393 | B16: =IF(ISERROR(VLOOKUP(A16,tesserati[],2,FALSE)),"",VLOOKUP(A16,tesserati[],2,FALSE)) -> MATTIAZZI | C16: =IF(ISERROR(VLOOKUP(A16,tesserati[],3,FALSE)),"",VLOOKUP(A16,tesserati[],3,FALSE)) -> MARTINO | D16: =IF(ISERROR(VLOOKUP(A16,tesserati[],4,FALSE)),"",VLOOKUP(A16,tesserati[],4,FALSE)) -> CSI ATLETICA COLLI BERICI | E16: =IF(ISERROR(VLOOKUP(A16,tesserati[],5,FALSE)),"",VLOOKUP(A16,tesserati[],5,FALSE)) -> 2006 | F16: =IF(ISERROR(VLOOKUP(A16,tesserati[],7,FALSE)),"",VLOOKUP(A16,tesserati[],7,FALSE)) -> EM
A17: 3987 | B17: =IF(ISERROR(VLOOKUP(A17,tesserati[],2,FALSE)),"",VLOOKUP(A17,tesserati[],2,FALSE)) -> MIGLIORINI | C17: =IF(ISERROR(VLOOKUP(A17,tesserati[],3,FALSE)),"",VLOOKUP(A17,tesserati[],3,FALSE)) -> SUSY | D17: =IF(ISERROR(VLOOKUP(A17,tesserati[],4,FALSE)),"",VLOOKUP(A17,tesserati[],4,FALSE)) -> POLISPORTIVA DUEVILLE | E17: =IF(ISERROR(VLOOKUP(A17,tesserati[],5,FALSE)),"",VLOOKUP(A17,tesserati[],5,FALSE)) -> 2006 | F17: =IF(ISERROR(VLOOKUP(A17,tesserati[],7,FALSE)),"",VLOOKUP(A17,tesserati[],7,FALSE)) -> EF | G17: 6 | I17: 31.6 | J17: 3
A18: 4018 | B18: =IF(ISERROR(VLOOKUP(A18,tesserati[],2,FALSE)),"",VLOOKUP(A18,tesserati[],2,FALSE)) -> VELLER | C18: =IF(ISERROR(VLOOKUP(A18,tesserati[],3,FALSE)),"",VLOOKUP(A18,tesserati[],3,FALSE)) -> MARIA | D18: =IF(ISERROR(VLOOKUP(A18,tesserati[],4,FALSE)),"",VLOOKUP(A18,tesserati[],4,FALSE)) -> POLISPORTIVA DUEVILLE | E18: =IF(ISERROR(VLOOKUP(A18,tesserati[],5,FALSE)),"",VLOOKUP(A18,tesserati[],5,FALSE)) -> 2006 | F18: =IF(ISERROR(VLOOKUP(A18,tesserati[],7,FALSE)),"",VLOOKUP(A18,tesserati[],7,FALSE)) -> EF
A19: 4043 | B19: =IF(ISERROR(VLOOKUP(A19,tesserati[],2,FALSE)),"",VLOOKUP(A19,tesserati[],2,FALSE)) -> ZOLIN | C19: =IF(ISERROR(VLOOKUP(A19,tesserati[],3,FALSE)),"",VLOOKUP(A19,tesserati[],3,FALSE)) -> AURORA | D19: =IF(ISERROR(VLOOKUP(A19,tesserati[],4,FALSE)),"",VLOOKUP(A19,tesserati[],4,FALSE)) -> POLISPORTIVA DUEVILLE | E19: =IF(ISERROR(VLOOKUP(A19,tesserati[],5,FALSE)),"",VLOOKUP(A19,tesserati[],5,FALSE)) -> 2007 | F19: =IF(ISERROR(VLOOKUP(A19,tesserati[],7,FALSE)),"",VLOOKUP(A19,tesserati[],7,FALSE)) -> EF
A20: 4047 | B20: =IF(ISERROR(VLOOKUP(A20,tesserati[],2,FALSE)),"",VLOOKUP(A20,tesserati[],2,FALSE)) -> COPIELLO | C20: =IF(ISERROR(VLOOKUP(A20,tesserati[],3,FALSE)),"",VLOOKUP(A20,tesserati[],3,FALSE)) -> SOFIA | D20: =IF(ISERROR(VLOOKUP(A20,tesserati[],4,FALSE)),"",VLOOKUP(A20,tesserati[],4,FALSE)) -> POLISPORTIVA DUEVILLE | E20: =IF(ISERROR(VLOOKUP(A20,tesserati[],5,FALSE)),"",VLOOKUP(A20,tesserati[],5,FALSE)) -> 2007 | F20: =IF(ISERROR(VLOOKUP(A20,tesserati[],7,FALSE)),"",VLOOKUP(A20,tesserati[],7,FALSE)) -> EF
A21: 2732 | B21: =IF(ISERROR(VLOOKUP(A21,tesserati[],2,FALSE)),"",VLOOKUP(A21,tesserati[],2,FALSE)) -> SCHNEIDER | C21: =IF(ISERROR(VLOOKUP(A21,tesserati[],3,FALSE)),"",VLOOKUP(A21,tesserati[],3,FALSE)) -> LUCA | D21: =IF(ISERROR(VLOOKUP(A21,tesserati[],4,FALSE)),"",VLOOKUP(A21,tesserati[],4,FALSE)) -> POL. DIL. MONTECCHIO PRECALCINO | E21: =IF(ISERROR(VLOOKUP(A21,tesserati[],5,FALSE)),"",VLOOKUP(A21,tesserati[],5,FALSE)) -> 2006 | F21: =IF(ISERROR(VLOOKUP(A21,tesserati[],7,FALSE)),"",VLOOKUP(A21,tesserati[],7,FALSE)) -> EM | G21: 3 | I21: 33.1 | J21: 4
A22: 2738 | B22: =IF(ISERROR(VLOOKUP(A22,tesserati[],2,FALSE)),"",VLOOKUP(A22,tesserati[],2,FALSE)) -> DAL ZOTTO | C22: =IF(ISERROR(VLOOKUP(A22,tesserati[],3,FALSE)),"",VLOOKUP(A22,tesserati[],3,FALSE)) -> PIETRO | D22: =IF(ISERROR(VLOOKUP(A22,tesserati[],4,FALSE)),"",VLOOKUP(A22,tesserati[],4,FALSE)) -> POL. DIL. MONTECCHIO PRECALCINO | E22: =IF(ISERROR(VLOOKUP(A22,tesserati[],5,FALSE)),"",VLOOKUP(A22,tesserati[],5,FALSE)) -> 2006 | F22: =IF(ISERROR(VLOOKUP(A22,tesserati[],7,FALSE)),"",VLOOKUP(A22,tesserati[],7,FALSE)) -> EM
A23: 3242 | B23: =IF(ISERROR(VLOOKUP(A23,tesserati[],2,FALSE)),"",VLOOKUP(A23,tesserati[],2,FALSE)) -> EL HACHIMI | C23: =IF(ISERROR(VLOOKUP(A23,tesserati[],3,FALSE)),"",VLOOKUP(A23,tesserati[],3,FALSE)) -> AIMAN | D23: =IF(ISERROR(VLOOKUP(A23,tesserati[],4,FALSE)),"",VLOOKUP(A23,tesserati[],4,FALSE)) -> POL. DIL. MONTECCHIO PRECALCINO | E23: =IF(ISERROR(VLOOKUP(A23,tesserati[],5,FALSE)),"",VLOOKUP(A23,tesserati[],5,FALSE)) -> 2007 | F23: =IF(ISERROR(VLOOKUP(A23,tesserati[],7,FALSE)),"",VLOOKUP(A23,tesserati[],7,FALSE)) -> EM
A24: 2692 | B24: =IF(ISERROR(VLOOKUP(A24,tesserati[],2,FALSE)),"",VLOOKUP(A24,tesserati[],2,FALSE)) -> CAPPELLOTTO | C24: =IF(ISERROR(VLOOKUP(A24,tesserati[],3,FALSE)),"",VLOOKUP(A24,tesserati[],3,FALSE)) -> FILIPPO | D24: =IF(ISERROR(VLOOKUP(A24,tesserati[],4,FALSE)),"",VLOOKUP(A24,tesserati[],4,FALSE)) -> POL. DIL. MONTECCHIO PRECALCINO | E24: =IF(ISERROR(VLOOKUP(A24,tesserati[],5,FALSE)),"",VLOOKUP(A24,tesserati[],5,FALSE)) -> 2006 | F24: =IF(ISERROR(VLOOKUP(A24,tesserati[],7,FALSE)),"",VLOOKUP(A24,tesserati[],7,FALSE)) -> EM
A25: 3044 | B25: =IF(ISERROR(VLOOKUP(A25,tesserati[],2,FALSE)),"",VLOOKUP(A25,tesserati[],2,FALSE)) -> TREVISAN | C25: =IF(ISERROR(VLOOKUP(A25,tesserati[],3,FALSE)),"",VLOOKUP(A25,tesserati[],3,FALSE)) -> CRISTIAN | D25: =IF(ISERROR(VLOOKUP(A25,tesserati[],4,FALSE)),"",VLOOKUP(A25,tesserati[],4,FALSE)) -> ATLETICA UNION CREAZZO | E25: =IF(ISERROR(VLOOKUP(A25,tesserati[],5,FALSE)),"",VLOOKUP(A25,tesserati[],5,FALSE)) -> 2007 | F25: =IF(ISERROR(VLOOKUP(A25,tesserati[],7,FALSE)),"",VLOOKUP(A25,tesserati[],7,FALSE)) -> EM | G25: 5 | I25: 34.1 | J25: 5
A26: 8897 | B26: =IF(ISERROR(VLOOKUP(A26,tesserati[],2,FALSE)),"",VLOOKUP(A26,tesserati[],2,FALSE)) -> FERRARIN | C26: =IF(ISERROR(VLOOKUP(A26,tesserati[],3,FALSE)),"",VLOOKUP(A26,tesserati[],3,FALSE)) -> ALBERTO | D26: =IF(ISERROR(VLOOKUP(A26,tesserati[],4,FALSE)),"",VLOOKUP(A26,tesserati[],4,FALSE)) -> ATLETICA UNION CREAZZO | E26: =IF(ISERROR(VLOOKUP(A26,tesserati[],5,FALSE)),"",VLOOKUP(A26,tesserati[],5,FALSE)) -> 2007 | F26: =IF(ISERROR(VLOOKUP(A26,tesserati[],7,FALSE)),"",VLOOKUP(A26,tesserati[],7,FALSE)) -> EM
A27: 2928 | B27: =IF(ISERROR(VLOOKUP(A27,tesserati[],2,FALSE)),"",VLOOKUP(A27,tesserati[],2,FALSE)) -> FAEDO | C27: =IF(ISERROR(VLOOKUP(A27,tesserati[],3,FALSE)),"",VLOOKUP(A27,tesserati[],3,FALSE)) -> SARA | D27: =IF(ISERROR(VLOOKUP(A27,tesserati[],4,FALSE)),"",VLOOKUP(A27,tesserati[],4,FALSE)) -> ATLETICA UNION CREAZZO | E27: =IF(ISERROR(VLOOKUP(A27,tesserati[],5,FALSE)),"",VLOOKUP(A27,tesserati[],5,FALSE)) -> 2007 | F27: =IF(ISERROR(VLOOKUP(A27,tesserati[],7,FALSE)),"",VLOOKUP(A27,tesserati[],7,FALSE)) -> EF
A28: 3051 | B28: =IF(ISERROR(VLOOKUP(A28,tesserati[],2,FALSE)),"",VLOOKUP(A28,tesserati[],2,FALSE)) -> DE CAO | C28: =IF(ISERROR(VLOOKUP(A28,tesserati[],3,FALSE)),"",VLOOKUP(A28,tesserati[],3,FALSE)) -> FRANCESCO | D28: =IF(ISERROR(VLOOKUP(A28,tesserati[],4,FALSE)),"",VLOOKUP(A28,tesserati[],4,FALSE)) -> ATLETICA UNION CREAZZO | E28: =IF(ISERROR(VLOOKUP(A28,tesserati[],5,FALSE)),"",VLOOKUP(A28,tesserati[],5,FALSE)) -> 2006 | F28: =IF(ISERROR(VLOOKUP(A28,tesserati[],7,FALSE)),"",VLOOKUP(A28,tesserati[],7,FALSE)) -> EM
A29: 2705 | B29: =IF(ISERROR(VLOOKUP(A29,tesserati[],2,FALSE)),"",VLOOKUP(A29,tesserati[],2,FALSE)) -> COSTALUNGA | C29: =IF(ISERROR(VLOOKUP(A29,tesserati[],3,FALSE)),"",VLOOKUP(A29,tesserati[],3,FALSE)) -> KENSY | D29: =IF(ISERROR(VLOOKUP(A29,tesserati[],4,FALSE)),"",VLOOKUP(A29,tesserati[],4,FALSE)) -> POL. DIL. MONTECCHIO PRECALCINO | E29: =IF(ISERROR(VLOOKUP(A29,tesserati[],5,FALSE)),"",VLOOKUP(A29,tesserati[],5,FALSE)) -> 2007 | F29: =IF(ISERROR(VLOOKUP(A29,tesserati[],7,FALSE)),"",VLOOKUP(A29,tesserati[],7,FALSE)) -> EF | G29: 4 | I29: 34.7 | J29: 6
A30: 2703 | B30: =IF(ISERROR(VLOOKUP(A30,tesserati[],2,FALSE)),"",VLOOKUP(A30,tesserati[],2,FALSE)) -> CHEMELLO | C30: =IF(ISERROR(VLOOKUP(A30,tesserati[],3,FALSE)),"",VLOOKUP(A30,tesserati[],3,FALSE)) -> CHIARA | D30: =IF(ISERROR(VLOOKUP(A30,tesserati[],4,FALSE)),"",VLOOKUP(A30,tesserati[],4,FALSE)) -> POL. DIL. MONTECCHIO PRECALCINO | E30: =IF(ISERROR(VLOOKUP(A30,tesserati[],5,FALSE)),"",VLOOKUP(A30,tesserati[],5,FALSE)) -> 2006 | F30: =IF(ISERROR(VLOOKUP(A30,tesserati[],7,FALSE)),"",VLOOKUP(A30,tesserati[],7,FALSE)) -> EF
A31: 2733 | B31: =IF(ISERROR(VLOOKUP(A31,tesserati[],2,FALSE)),"",VLOOKUP(A31,tesserati[],2,FALSE)) -> MAINO | C31: =IF(ISERROR(VLOOKUP(A31,tesserati[],3,FALSE)),"",VLOOKUP(A31,tesserati[],3,FALSE)) -> CHIARA | D31: =IF(ISERROR(VLOOKUP(A31,tesserati[],4,FALSE)),"",VLOOKUP(A31,tesserati[],4,FALSE)) -> POL. DIL. MONTECCHIO PRECALCINO | E31: =IF(ISERROR(VLOOKUP(A31,tesserati[],5,FALSE)),"",VLOOKUP(A31,tesserati[],5,FALSE)) -> 2006 | F31: =IF(ISERROR(VLOOKUP(A31,tesserati[],7,FALSE)),"",VLOOKUP(A31,tesserati[],7,FALSE)) -> EF
A32: 2722 | B32: =IF(ISERROR(VLOOKUP(A32,tesserati[],2,FALSE)),"",VLOOKUP(A32,tesserati[],2,FALSE)) -> ELLERO | C32: =IF(ISERROR(VLOOKUP(A32,tesserati[],3,FALSE)),"",VLOOKUP(A32,tesserati[],3,FALSE)) -> ALICE | D32: =IF(ISERROR(VLOOKUP(A32,tesserati[],4,FALSE)),"",VLOOKUP(A32,tesserati[],4,FALSE)) -> POL. DIL. MONTECCHIO PRECALCINO | E32: =IF(ISERROR(VLOOKUP(A32,tesserati[],5,FALSE)),"",VLOOKUP(A32,tesserati[],5,FALSE)) -> 2006 | F32: =IF(ISERROR(VLOOKUP(A32,tesserati[],7,FALSE)),"",VLOOKUP(A32,tesserati[],7,FALSE)) -> EF
A33: 2 SERIE
B34: =IF(ISERROR(VLOOKUP(A34,tesserati[],2,FALSE)),"",VLOOKUP(A34,tesserati[],2,FALSE)) ->  | C34: =IF(ISERROR(VLOOKUP(A34,tesserati[],3,FALSE)),"",VLOOKUP(A34,tesserati[],3,FALSE)) ->  | D34: =IF(ISERROR(VLOOKUP(A34,tesserati[],4,FALSE)),"",VLOOKUP(A34,tesserati[],4,FALSE)) ->  | E34: =IF(ISERROR(VLOOKUP(A34,tesserati[],5,FALSE)),"",VLOOKUP(A34,tesserati[],5,FALSE)) ->  | F34: =IF(ISERROR(VLOOKUP(A34,tesserati[],7,FALSE)),"",VLOOKUP(A34,tesserati[],7,FALSE)) ->  | G34: 1
B35: =IF(ISERROR(VLOOKUP(A35,tesserati[],2,FALSE)),"",VLOOKUP(A35,tesserati[],2,FALSE)) ->  | C35: =IF(ISERROR(VLOOKUP(A35,tesserati[],3,FALSE)),"",VLOOKUP(A35,tesserati[],3,FALSE)) ->  | D35: =IF(ISERROR(VLOOKUP(A35,tesserati[],4,FALSE)),"",VLOOKUP(A35,tesserati[],4,FALSE)) ->  | E35: =IF(ISERROR(VLOOKUP(A35,tesserati[],5,FALSE)),"",VLOOKUP(A35,tesserati[],5,FALSE)) ->  | F35: =IF(ISERROR(VLOOKUP(A35,tesserati[],7,FALSE)),"",VLOOKUP(A35,tesserati[],7,FALSE)) -> 
B36: =IF(ISERROR(VLOOKUP(A36,tesserati[],2,FALSE)),"",VLOOKUP(A36,tesserati[],2,FALSE)) ->  | C36: =IF(ISERROR(VLOOKUP(A36,tesserati[],3,FALSE)),"",VLOOKUP(A36,tesserati[],3,FALSE)) ->  | D36: =IF(ISERROR(VLOOKUP(A36,tesserati[],4,FALSE)),"",VLOOKUP(A36,tesserati[],4,FALSE)) ->  | E36: =IF(ISERROR(VLOOKUP(A36,tesserati[],5,FALSE)),"",VLOOKUP(A36,tesserati[],5,FALSE)) ->  | F36: =IF(ISERROR(VLOOKUP(A36,tesserati[],7,FALSE)),"",VLOOKUP(A36,tesserati[],7,FALSE)) -> 
B37: =IF(ISERROR(VLOOKUP(A37,tesserati[],2,FALSE)),"",VLOOKUP(A37,tesserati[],2,FALSE)) ->  | C37: =IF(ISERROR(VLOOKUP(A37,tesserati[],3,FALSE)),"",VLOOKUP(A37,tesserati[],3,FALSE)) ->  | D37: =IF(ISERROR(VLOOKUP(A37,tesserati[],4,FALSE)),"",VLOOKUP(A37,tesserati[],4,FALSE)) ->  | E37: =IF(ISERROR(VLOOKUP(A37,tesserati[],5,FALSE)),"",VLOOKUP(A37,tesserati[],5,FALSE)) ->  | F37: =IF(ISERROR(VLOOKUP(A37,tesserati[],7,FALSE)),"",VLOOKUP(A37,tesserati[],7,FALSE)) -> 
B38: =IF(ISERROR(VLOOKUP(A38,tesserati[],2,FALSE)),"",VLOOKUP(A38,tesserati[],2,FALSE)) ->  | C38: =IF(ISERROR(VLOOKUP(A38,tesserati[],3,FALSE)),"",VLOOKUP(A38,tesserati[],3,FALSE)) ->  | D38: =IF(ISERROR(VLOOKUP(A38,tesserati[],4,FALSE)),"",VLOOKUP(A38,tesserati[],4,FALSE)) ->  | E38: =IF(ISERROR(VLOOKUP(A38,tesserati[],5,FALSE)),"",VLOOKUP(A38,tesserati[],5,FALSE)) ->  | F38: =IF(ISERROR(VLOOKUP(A38,tesserati[],7,FALSE)),"",VLOOKUP(A38,tesserati[],7,FALSE)) ->  | G38: 2
B39: =IF(ISERROR(VLOOKUP(A39,tesserati[],2,FALSE)),"",VLOOKUP(A39,tesserati[],2,FALSE)) ->  | C39: =IF(ISERROR(VLOOKUP(A39,tesserati[],3,FALSE)),"",VLOOKUP(A39,tesserati[],3,FALSE)) ->  | D39: =IF(ISERROR(VLOOKUP(A39,tesserati[],4,FALSE)),"",VLOOKUP(A39,tesserati[],4,FALSE)) ->  | E39: =IF(ISERROR(VLOOKUP(A39,tesserati[],5,FALSE)),"",VLOOKUP(A39,tesserati[],5,FALSE)) ->  | F39: =IF(ISERROR(VLOOKUP(A39,tesserati[],7,FALSE)),"",VLOOKUP(A39,tesserati[],7,FALSE)) -> 
B40: =IF(ISERROR(VLOOKUP(A40,tesserati[],2,FALSE)),"",VLOOKUP(A40,tesserati[],2,FALSE)) ->  | C40: =IF(ISERROR(VLOOKUP(A40,tesserati[],3,FALSE)),"",VLOOKUP(A40,tesserati[],3,FALSE)) ->  | D40: =IF(ISERROR(VLOOKUP(A40,tesserati[],4,FALSE)),"",VLOOKUP(A40,tesserati[],4,FALSE)) ->  | E40: =IF(ISERROR(VLOOKUP(A40,tesserati[],5,FALSE)),"",VLOOKUP(A40,tesserati[],5,FALSE)) ->  | F40: =IF(ISERROR(VLOOKUP(A40,tesserati[],7,FALSE)),"",VLOOKUP(A40,tesserati[],7,FALSE)) -> 
B41: =IF(ISERROR(VLOOKUP(A41,tesserati[],2,FALSE)),"",VLOOKUP(A41,tesserati[],2,FALSE)) ->  | C41: =IF(ISERROR(VLOOKUP(A41,tesserati[],3,FALSE)),"",VLOOKUP(A41,tesserati[],3,FALSE)) ->  | D41: =IF(ISERROR(VLOOKUP(A41,tesserati[],4,FALSE)),"",VLOOKUP(A41,tesserati[],4,FALSE)) ->  | E41: =IF(ISERROR(VLOOKUP(A41,tesserati[],5,FALSE)),"",VLOOKUP(A41,tesserati[],5,FALSE)) ->  | F41: =IF(ISERROR(VLOOKUP(A41,tesserati[],7,FALSE)),"",VLOOKUP(A41,tesserati[],7,FALSE)) -> 
B42: =IF(ISERROR(VLOOKUP(A42,tesserati[],2,FALSE)),"",VLOOKUP(A42,tesserati[],2,FALSE)) ->  | C42: =IF(ISERROR(VLOOKUP(A42,tesserati[],3,FALSE)),"",VLOOKUP(A42,tesserati[],3,FALSE)) ->  | D42: =IF(ISERROR(VLOOKUP(A42,tesserati[],4,FALSE)),"",VLOOKUP(A42,tesserati[],4,FALSE)) ->  | E42: =IF(ISERROR(VLOOKUP(A42,tesserati[],5,FALSE)),"",VLOOKUP(A42,tesserati[],5,FALSE)) ->  | F42: =IF(ISERROR(VLOOKUP(A42,tesserati[],7,FALSE)),"",VLOOKUP(A42,tesserati[],7,FALSE)) ->  | G42: 3
B43: =IF(ISERROR(VLOOKUP(A43,tesserati[],2,FALSE)),"",VLOOKUP(A43,tesserati[],2,FALSE)) ->  | C43: =IF(ISERROR(VLOOKUP(A43,tesserati[],3,FALSE)),"",VLOOKUP(A43,tesserati[],3,FALSE)) ->  | D43: =IF(ISERROR(VLOOKUP(A43,tesserati[],4,FALSE)),"",VLOOKUP(A43,tesserati[],4,FALSE)) ->  | E43: =IF(ISERROR(VLOOKUP(A43,tesserati[],5,FALSE)),"",VLOOKUP(A43,tesserati[],5,FALSE)) ->  | F43: =IF(ISERROR(VLOOKUP(A43,tesserati[],7,FALSE)),"",VLOOKUP(A43,tesserati[],7,FALSE)) -> 
B44: =IF(ISERROR(VLOOKUP(A44,tesserati[],2,FALSE)),"",VLOOKUP(A44,tesserati[],2,FALSE)) ->  | C44: =IF(ISERROR(VLOOKUP(A44,tesserati[],3,FALSE)),"",VLOOKUP(A44,tesserati[],3,FALSE)) ->  | D44: =IF(ISERROR(VLOOKUP(A44,tesserati[],4,FALSE)),"",VLOOKUP(A44,tesserati[],4,FALSE)) ->  | E44: =IF(ISERROR(VLOOKUP(A44,tesserati[],5,FALSE)),"",VLOOKUP(A44,tesserati[],5,FALSE)) ->  | F44: =IF(ISERROR(VLOOKUP(A44,tesserati[],7,FALSE)),"",VLOOKUP(A44,tesserati[],7,FALSE)) -> 
B45: =IF(ISERROR(VLOOKUP(A45,tesserati[],2,FALSE)),"",VLOOKUP(A45,tesserati[],2,FALSE)) ->  | C45: =IF(ISERROR(VLOOKUP(A45,tesserati[],3,FALSE)),"",VLOOKUP(A45,tesserati[],3,FALSE)) ->  | D45: =IF(ISERROR(VLOOKUP(A45,tesserati[],4,FALSE)),"",VLOOKUP(A45,tesserati[],4,FALSE)) ->  | E45: =IF(ISERROR(VLOOKUP(A45,tesserati[],5,FALSE)),"",VLOOKUP(A45,tesserati[],5,FALSE)) ->  | F45: =IF(ISERROR(VLOOKUP(A45,tesserati[],7,FALSE)),"",VLOOKUP(A45,tesserati[],7,FALSE)) -> 
B46: =IF(ISERROR(VLOOKUP(A46,tesserati[],2,FALSE)),"",VLOOKUP(A46,tesserati[],2,FALSE)) ->  | C46: =IF(ISERROR(VLOOKUP(A46,tesserati[],3,FALSE)),"",VLOOKUP(A46,tesserati[],3,FALSE)) ->  | D46: =IF(ISERROR(VLOOKUP(A46,tesserati[],4,FALSE)),"",VLOOKUP(A46,tesserati[],4,FALSE)) ->  | E46: =IF(ISERROR(VLOOKUP(A46,tesserati[],5,FALSE)),"",VLOOKUP(A46,tesserati[],5,FALSE)) ->  | F46: =IF(ISERROR(VLOOKUP(A46,tesserati[],7,FALSE)),"",VLOOKUP(A46,tesserati[],7,FALSE)) ->  | G46: 4
B47: =IF(ISERROR(VLOOKUP(A47,tesserati[],2,FALSE)),"",VLOOKUP(A47,tesserati[],2,FALSE)) ->  | C47: =IF(ISERROR(VLOOKUP(A47,tesserati[],3,FALSE)),"",VLOOKUP(A47,tesserati[],3,FALSE)) ->  | D47: =IF(ISERROR(VLOOKUP(A47,tesserati[],4,FALSE)),"",VLOOKUP(A47,tesserati[],4,FALSE)) ->  | E47: =IF(ISERROR(VLOOKUP(A47,tesserati[],5,FALSE)),"",VLOOKUP(A47,tesserati[],5,FALSE)) ->  | F47: =IF(ISERROR(VLOOKUP(A47,tesserati[],7,FALSE)),"",VLOOKUP(A47,tesserati[],7,FALSE)) -> 
B48: =IF(ISERROR(VLOOKUP(A48,tesserati[],2,FALSE)),"",VLOOKUP(A48,tesserati[],2,FALSE)) ->  | C48: =IF(ISERROR(VLOOKUP(A48,tesserati[],3,FALSE)),"",VLOOKUP(A48,tesserati[],3,FALSE)) ->  | D48: =IF(ISERROR(VLOOKUP(A48,tesserati[],4,FALSE)),"",VLOOKUP(A48,tesserati[],4,FALSE)) ->  | E48: =IF(ISERROR(VLOOKUP(A48,tesserati[],5,FALSE)),"",VLOOKUP(A48,tesserati[],5,FALSE)) ->  | F48: =IF(ISERROR(VLOOKUP(A48,tesserati[],7,FALSE)),"",VLOOKUP(A48,tesserati[],7,FALSE)) -> 
B49: =IF(ISERROR(VLOOKUP(A49,tesserati[],2,FALSE)),"",VLOOKUP(A49,tesserati[],2,FALSE)) ->  | C49: =IF(ISERROR(VLOOKUP(A49,tesserati[],3,FALSE)),"",VLOOKUP(A49,tesserati[],3,FALSE)) ->  | D49: =IF(ISERROR(VLOOKUP(A49,tesserati[],4,FALSE)),"",VLOOKUP(A49,tesserati[],4,FALSE)) ->  | E49: =IF(ISERROR(VLOOKUP(A49,tesserati[],5,FALSE)),"",VLOOKUP(A49,tesserati[],5,FALSE)) ->  | F49: =IF(ISERROR(VLOOKUP(A49,tesserati[],7,FALSE)),"",VLOOKUP(A49,tesserati[],7,FALSE)) -> 
B50: =IF(ISERROR(VLOOKUP(A50,tesserati[],2,FALSE)),"",VLOOKUP(A50,tesserati[],2,FALSE)) ->  | C50: =IF(ISERROR(VLOOKUP(A50,tesserati[],3,FALSE)),"",VLOOKUP(A50,tesserati[],3,FALSE)) ->  | D50: =IF(ISERROR(VLOOKUP(A50,tesserati[],4,FALSE)),"",VLOOKUP(A50,tesserati[],4,FALSE)) ->  | E50: =IF(ISERROR(VLOOKUP(A50,tesserati[],5,FALSE)),"",VLOOKUP(A50,tesserati[],5,FALSE)) ->  | F50: =IF(ISERROR(VLOOKUP(A50,tesserati[],7,FALSE)),"",VLOOKUP(A50,tesserati[],7,FALSE)) ->  | G50: 5
B51: =IF(ISERROR(VLOOKUP(A51,tesserati[],2,FALSE)),"",VLOOKUP(A51,tesserati[],2,FALSE)) ->  | C51: =IF(ISERROR(VLOOKUP(A51,tesserati[],3,FALSE)),"",VLOOKUP(A51,tesserati[],3,FALSE)) ->  | D51: =IF(ISERROR(VLOOKUP(A51,tesserati[],4,FALSE)),"",VLOOKUP(A51,tesserati[],4,FALSE)) ->  | E51: =IF(ISERROR(VLOOKUP(A51,tesserati[],5,FALSE)),"",VLOOKUP(A51,tesserati[],5,FALSE)) ->  | F51: =IF(ISERROR(VLOOKUP(A51,tesserati[],7,FALSE)),"",VLOOKUP(A51,tesserati[],7,FALSE)) -> 
B52: =IF(ISERROR(VLOOKUP(A52,tesserati[],2,FALSE)),"",VLOOKUP(A52,tesserati[],2,FALSE)) ->  | C52: =IF(ISERROR(VLOOKUP(A52,tesserati[],3,FALSE)),"",VLOOKUP(A52,tesserati[],3,FALSE)) ->  | D52: =IF(ISERROR(VLOOKUP(A52,tesserati[],4,FALSE)),"",VLOOKUP(A52,tesserati[],4,FALSE)) ->  | E52: =IF(ISERROR(VLOOKUP(A52,tesserati[],5,FALSE)),"",VLOOKUP(A52,tesserati[],5,FALSE)) ->  | F52: =IF(ISERROR(VLOOKUP(A52,tesserati[],7,FALSE)),"",VLOOKUP(A52,tesserati[],7,FALSE)) -> 
B53: =IF(ISERROR(VLOOKUP(A53,tesserati[],2,FALSE)),"",VLOOKUP(A53,tesserati[],2,FALSE)) ->  | C53: =IF(ISERROR(VLOOKUP(A53,tesserati[],3,FALSE)),"",VLOOKUP(A53,tesserati[],3,FALSE)) ->  | D53: =IF(ISERROR(VLOOKUP(A53,tesserati[],4,FALSE)),"",VLOOKUP(A53,tesserati[],4,FALSE)) ->  | E53: =IF(ISERROR(VLOOKUP(A53,tesserati[],5,FALSE)),"",VLOOKUP(A53,tesserati[],5,FALSE)) ->  | F53: =IF(ISERROR(VLOOKUP(A53,tesserati[],7,FALSE)),"",VLOOKUP(A53,tesserati[],7,FALSE)) -> 
B54: =IF(ISERROR(VLOOKUP(A54,tesserati[],2,FALSE)),"",VLOOKUP(A54,tesserati[],2,FALSE)) ->  | C54: =IF(ISERROR(VLOOKUP(A54,tesserati[],3,FALSE)),"",VLOOKUP(A54,tesserati[],3,FALSE)) ->  | D54: =IF(ISERROR(VLOOKUP(A54,tesserati[],4,FALSE)),"",VLOOKUP(A54,tesserati[],4,FALSE)) ->  | E54: =IF(ISERROR(VLOOKUP(A54,tesserati[],5,FALSE)),"",VLOOKUP(A54,tesserati[],5,FALSE)) ->  | F54: =IF(ISERROR(VLOOKUP(A54,tesserati[],7,FALSE)),"",VLOOKUP(A54,tesserati[],7,FALSE)) ->  | G54: 6
B55: =IF(ISERROR(VLOOKUP(A55,tesserati[],2,FALSE)),"",VLOOKUP(A55,tesserati[],2,FALSE)) ->  | C55: =IF(ISERROR(VLOOKUP(A55,tesserati[],3,FALSE)),"",VLOOKUP(A55,tesserati[],3,FALSE)) ->  | D55: =IF(ISERROR(VLOOKUP(A55,tesserati[],4,FALSE)),"",VLOOKUP(A55,tesserati[],4,FALSE)) ->  | E55: =IF(ISERROR(VLOOKUP(A55,tesserati[],5,FALSE)),"",VLOOKUP(A55,tesserati[],5,FALSE)) ->  | F55: =IF(ISERROR(VLOOKUP(A55,tesserati[],7,FALSE)),"",VLOOKUP(A55,tesserati[],7,FALSE)) -> 
B56: =IF(ISERROR(VLOOKUP(A56,tesserati[],2,FALSE)),"",VLOOKUP(A56,tesserati[],2,FALSE)) ->  | C56: =IF(ISERROR(VLOOKUP(A56,tesserati[],3,FALSE)),"",VLOOKUP(A56,tesserati[],3,FALSE)) ->  | D56: =IF(ISERROR(VLOOKUP(A56,tesserati[],4,FALSE)),"",VLOOKUP(A56,tesserati[],4,FALSE)) ->  | E56: =IF(ISERROR(VLOOKUP(A56,tesserati[],5,FALSE)),"",VLOOKUP(A56,tesserati[],5,FALSE)) ->  | F56: =IF(ISERROR(VLOOKUP(A56,tesserati[],7,FALSE)),"",VLOOKUP(A56,tesserati[],7,FALSE)) -> 
B57: =IF(ISERROR(VLOOKUP(A57,tesserati[],2,FALSE)),"",VLOOKUP(A57,tesserati[],2,FALSE)) ->  | C57: =IF(ISERROR(VLOOKUP(A57,tesserati[],3,FALSE)),"",VLOOKUP(A57,tesserati[],3,FALSE)) ->  | D57: =IF(ISERROR(VLOOKUP(A57,tesserati[],4,FALSE)),"",VLOOKUP(A57,tesserati[],4,FALSE)) ->  | E57: =IF(ISERROR(VLOOKUP(A57,tesserati[],5,FALSE)),"",VLOOKUP(A57,tesserati[],5,FALSE)) ->  | F57: =IF(ISERROR(VLOOKUP(A57,tesserati[],7,FALSE)),"",VLOOKUP(A57,tesserati[],7,FALSE)) -> 
B58: =IF(ISERROR(VLOOKUP(A58,tesserati[],2,FALSE)),"",VLOOKUP(A58,tesserati[],2,FALSE)) ->  | C58: =IF(ISERROR(VLOOKUP(A58,tesserati[],3,FALSE)),"",VLOOKUP(A58,tesserati[],3,FALSE)) ->  | D58: =IF(ISERROR(VLOOKUP(A58,tesserati[],4,FALSE)),"",VLOOKUP(A58,tesserati[],4,FALSE)) ->  | E58: =IF(ISERROR(VLOOKUP(A58,tesserati[],5,FALSE)),"",VLOOKUP(A58,tesserati[],5,FALSE)) ->  | F58: =IF(ISERROR(VLOOKUP(A58,tesserati[],7,FALSE)),"",VLOOKUP(A58,tesserati[],7,FALSE)) -> 
B59: =IF(ISERROR(VLOOKUP(A59,tesserati[],2,FALSE)),"",VLOOKUP(A59,tesserati[],2,FALSE)) ->  | C59: =IF(ISERROR(VLOOKUP(A59,tesserati[],3,FALSE)),"",VLOOKUP(A59,tesserati[],3,FALSE)) ->  | D59: =IF(ISERROR(VLOOKUP(A59,tesserati[],4,FALSE)),"",VLOOKUP(A59,tesserati[],4,FALSE)) ->  | E59: =IF(ISERROR(VLOOKUP(A59,tesserati[],5,FALSE)),"",VLOOKUP(A59,tesserati[],5,FALSE)) ->  | F59: =IF(ISERROR(VLOOKUP(A59,tesserati[],7,FALSE)),"",VLOOKUP(A59,tesserati[],7,FALSE)) -> 
B60: =IF(ISERROR(VLOOKUP(A60,tesserati[],2,FALSE)),"",VLOOKUP(A60,tesserati[],2,FALSE)) ->  | C60: =IF(ISERROR(VLOOKUP(A60,tesserati[],3,FALSE)),"",VLOOKUP(A60,tesserati[],3,FALSE)) ->  | D60: =IF(ISERROR(VLOOKUP(A60,tesserati[],4,FALSE)),"",VLOOKUP(A60,tesserati[],4,FALSE)) ->  | E60: =IF(ISERROR(VLOOKUP(A60,tesserati[],5,FALSE)),"",VLOOKUP(A60,tesserati[],5,FALSE)) ->  | F60: =IF(ISERROR(VLOOKUP(A60,tesserati[],7,FALSE)),"",VLOOKUP(A60,tesserati[],7,FALSE)) -> 
B61: =IF(ISERROR(VLOOKUP(A61,tesserati[],2,FALSE)),"",VLOOKUP(A61,tesserati[],2,FALSE)) ->  | C61: =IF(ISERROR(VLOOKUP(A61,tesserati[],3,FALSE)),"",VLOOKUP(A61,tesserati[],3,FALSE)) ->  | D61: =IF(ISERROR(VLOOKUP(A61,tesserati[],4,FALSE)),"",VLOOKUP(A61,tesserati[],4,FALSE)) ->  | E61: =IF(ISERROR(VLOOKUP(A61,tesserati[],5,FALSE)),"",VLOOKUP(A61,tesserati[],5,FALSE)) ->  | F61: =IF(ISERROR(VLOOKUP(A61,tesserati[],7,FALSE)),"",VLOOKUP(A61,tesserati[],7,FALSE)) -> 
B62: =IF(ISERROR(VLOOKUP(A62,tesserati[],2,FALSE)),"",VLOOKUP(A62,tesserati[],2,FALSE)) ->  | C62: =IF(ISERROR(VLOOKUP(A62,tesserati[],3,FALSE)),"",VLOOKUP(A62,tesserati[],3,FALSE)) ->  | D62: =IF(ISERROR(VLOOKUP(A62,tesserati[],4,FALSE)),"",VLOOKUP(A62,tesserati[],4,FALSE)) ->  | E62: =IF(ISERROR(VLOOKUP(A62,tesserati[],5,FALSE)),"",VLOOKUP(A62,tesserati[],5,FALSE)) ->  | F62: =IF(ISERROR(VLOOKUP(A62,tesserati[],7,FALSE)),"",VLOOKUP(A62,tesserati[],7,FALSE)) -> 
B63: =IF(ISERROR(VLOOKUP(A63,tesserati[],2,FALSE)),"",VLOOKUP(A63,tesserati[],2,FALSE)) ->  | C63: =IF(ISERROR(VLOOKUP(A63,tesserati[],3,FALSE)),"",VLOOKUP(A63,tesserati[],3,FALSE)) ->  | D63: =IF(ISERROR(VLOOKUP(A63,tesserati[],4,FALSE)),"",VLOOKUP(A63,tesserati[],4,FALSE)) ->  | E63: =IF(ISERROR(VLOOKUP(A63,tesserati[],5,FALSE)),"",VLOOKUP(A63,tesserati[],5,FALSE)) ->  | F63: =IF(ISERROR(VLOOKUP(A63,tesserati[],7,FALSE)),"",VLOOKUP(A63,tesserati[],7,FALSE)) -> 
B64: =IF(ISERROR(VLOOKUP(A64,tesserati[],2,FALSE)),"",VLOOKUP(A64,tesserati[],2,FALSE)) ->  | C64: =IF(ISERROR(VLOOKUP(A64,tesserati[],3,FALSE)),"",VLOOKUP(A64,tesserati[],3,FALSE)) ->  | D64: =IF(ISERROR(VLOOKUP(A64,tesserati[],4,FALSE)),"",VLOOKUP(A64,tesserati[],4,FALSE)) ->  | E64: =IF(ISERROR(VLOOKUP(A64,tesserati[],5,FALSE)),"",VLOOKUP(A64,tesserati[],5,FALSE)) ->  | F64: =IF(ISERROR(VLOOKUP(A64,tesserati[],7,FALSE)),"",VLOOKUP(A64,tesserati[],7,FALSE)) -> 
B65: =IF(ISERROR(VLOOKUP(A65,tesserati[],2,FALSE)),"",VLOOKUP(A65,tesserati[],2,FALSE)) ->  | C65: =IF(ISERROR(VLOOKUP(A65,tesserati[],3,FALSE)),"",VLOOKUP(A65,tesserati[],3,FALSE)) ->  | D65: =IF(ISERROR(VLOOKUP(A65,tesserati[],4,FALSE)),"",VLOOKUP(A65,tesserati[],4,FALSE)) ->  | E65: =IF(ISERROR(VLOOKUP(A65,tesserati[],5,FALSE)),"",VLOOKUP(A65,tesserati[],5,FALSE)) ->  | F65: =IF(ISERROR(VLOOKUP(A65,tesserati[],7,FALSE)),"",VLOOKUP(A65,tesserati[],7,FALSE)) -> 
B66: =IF(ISERROR(VLOOKUP(A66,tesserati[],2,FALSE)),"",VLOOKUP(A66,tesserati[],2,FALSE)) ->  | C66: =IF(ISERROR(VLOOKUP(A66,tesserati[],3,FALSE)),"",VLOOKUP(A66,tesserati[],3,FALSE)) ->  | D66: =IF(ISERROR(VLOOKUP(A66,tesserati[],4,FALSE)),"",VLOOKUP(A66,tesserati[],4,FALSE)) ->  | E66: =IF(ISERROR(VLOOKUP(A66,tesserati[],5,FALSE)),"",VLOOKUP(A66,tesserati[],5,FALSE)) ->  | F66: =IF(ISERROR(VLOOKUP(A66,tesserati[],7,FALSE)),"",VLOOKUP(A66,tesserati[],7,FALSE)) -> 
B67: =IF(ISERROR(VLOOKUP(A67,tesserati[],2,FALSE)),"",VLOOKUP(A67,tesserati[],2,FALSE)) ->  | C67: =IF(ISERROR(VLOOKUP(A67,tesserati[],3,FALSE)),"",VLOOKUP(A67,tesserati[],3,FALSE)) ->  | D67: =IF(ISERROR(VLOOKUP(A67,tesserati[],4,FALSE)),"",VLOOKUP(A67,tesserati[],4,FALSE)) ->  | E67: =IF(ISERROR(VLOOKUP(A67,tesserati[],5,FALSE)),"",VLOOKUP(A67,tesserati[],5,FALSE)) ->  | F67: =IF(ISERROR(VLOOKUP(A67,tesserati[],7,FALSE)),"",VLOOKUP(A67,tesserati[],7,FALSE)) -> 
B68: =IF(ISERROR(VLOOKUP(A68,tesserati[],2,FALSE)),"",VLOOKUP(A68,tesserati[],2,FALSE)) ->  | C68: =IF(ISERROR(VLOOKUP(A68,tesserati[],3,FALSE)),"",VLOOKUP(A68,tesserati[],3,FALSE)) ->  | D68: =IF(ISERROR(VLOOKUP(A68,tesserati[],4,FALSE)),"",VLOOKUP(A68,tesserati[],4,FALSE)) ->  | E68: =IF(ISERROR(VLOOKUP(A68,tesserati[],5,FALSE)),"",VLOOKUP(A68,tesserati[],5,FALSE)) ->  | F68: =IF(ISERROR(VLOOKUP(A68,tesserati[],7,FALSE)),"",VLOOKUP(A68,tesserati[],7,FALSE)) -> 
B69: =IF(ISERROR(VLOOKUP(A69,tesserati[],2,FALSE)),"",VLOOKUP(A69,tesserati[],2,FALSE)) ->  | C69: =IF(ISERROR(VLOOKUP(A69,tesserati[],3,FALSE)),"",VLOOKUP(A69,tesserati[],3,FALSE)) ->  | D69: =IF(ISERROR(VLOOKUP(A69,tesserati[],4,FALSE)),"",VLOOKUP(A69,tesserati[],4,FALSE)) ->  | E69: =IF(ISERROR(VLOOKUP(A69,tesserati[],5,FALSE)),"",VLOOKUP(A69,tesserati[],5,FALSE)) ->  | F69: =IF(ISERROR(VLOOKUP(A69,tesserati[],7,FALSE)),"",VLOOKUP(A69,tesserati[],7,FALSE)) -> 
B70: =IF(ISERROR(VLOOKUP(A70,tesserati[],2,FALSE)),"",VLOOKUP(A70,tesserati[],2,FALSE)) ->  | C70: =IF(ISERROR(VLOOKUP(A70,tesserati[],3,FALSE)),"",VLOOKUP(A70,tesserati[],3,FALSE)) ->  | D70: =IF(ISERROR(VLOOKUP(A70,tesserati[],4,FALSE)),"",VLOOKUP(A70,tesserati[],4,FALSE)) ->  | E70: =IF(ISERROR(VLOOKUP(A70,tesserati[],5,FALSE)),"",VLOOKUP(A70,tesserati[],5,FALSE)) ->  | F70: =IF(ISERROR(VLOOKUP(A70,tesserati[],7,FALSE)),"",VLOOKUP(A70,tesserati[],7,FALSE)) -> 
B71: =IF(ISERROR(VLOOKUP(A71,tesserati[],2,FALSE)),"",VLOOKUP(A71,tesserati[],2,FALSE)) ->  | C71: =IF(ISERROR(VLOOKUP(A71,tesserati[],3,FALSE)),"",VLOOKUP(A71,tesserati[],3,FALSE)) ->  | D71: =IF(ISERROR(VLOOKUP(A71,tesserati[],4,FALSE)),"",VLOOKUP(A71,tesserati[],4,FALSE)) ->  | E71: =IF(ISERROR(VLOOKUP(A71,tesserati[],5,FALSE)),"",VLOOKUP(A71,tesserati[],5,FALSE)) ->  | F71: =IF(ISERROR(VLOOKUP(A71,tesserati[],7,FALSE)),"",VLOOKUP(A71,tesserati[],7,FALSE)) -> 
B72: =IF(ISERROR(VLOOKUP(A72,tesserati[],2,FALSE)),"",VLOOKUP(A72,tesserati[],2,FALSE)) ->  | C72: =IF(ISERROR(VLOOKUP(A72,tesserati[],3,FALSE)),"",VLOOKUP(A72,tesserati[],3,FALSE)) ->  | D72: =IF(ISERROR(VLOOKUP(A72,tesserati[],4,FALSE)),"",VLOOKUP(A72,tesserati[],4,FALSE)) ->  | E72: =IF(ISERROR(VLOOKUP(A72,tesserati[],5,FALSE)),"",VLOOKUP(A72,tesserati[],5,FALSE)) ->  | F72: =IF(ISERROR(VLOOKUP(A72,tesserati[],7,FALSE)),"",VLOOKUP(A72,tesserati[],7,FALSE)) -> 

Sheet STAFFETTE 4X100 Master M
C1: MANIFESTAZIONE | F1: LOCALITA' | I1: SOCIETA' ORGANIZZATRICE
C2: 6° prova provinciale | F2: Tezze sul Brenta | I2: CSI Tezze sul Brenta
A3: CATEGORIA | C3: ORA INIZIO | D3: ORA FINE | F3: GARA | I3: DATA
A4: MASTER M | F4: STAFFETTA 4 X 100 | I4: 2017-09-24
A6: N. tessera | B6: ATLETA COGNOME E NOME | D6: SOCIETA' | E6: NASCITA | F6: CATEGORIA | G6: Corsia | H6: PETTORALE | I6: Tempo | J6: Piazzamento | K6: PUNTI | L6: CL.
A8: 1 SERIE | B8: =IF(ISERROR(VLOOKUP(A8,tesserati[],2,FALSE)),"",VLOOKUP(A8,tesserati[],2,FALSE)) ->  | C8: =IF(ISERROR(VLOOKUP(A8,tesserati[],3,FALSE)),"",VLOOKUP(A8,tesserati[],3,FALSE)) ->  | D8: =IF(ISERROR(VLOOKUP(#REF!,tesserati[],5,FALSE)),"",VLOOKUP(#REF!,tesserati[],5,FALSE)) ->  | E8: =IF(ISERROR(VLOOKUP(A8,tesserati[],4,FALSE)),"",VLOOKUP(A8,tesserati[],4,FALSE)) ->  | F8: =IF(ISERROR(VLOOKUP(A8,tesserati[],7,FALSE)),"",VLOOKUP(A8,tesserati[],7,FALSE)) -> 
B9: =IF(ISERROR(VLOOKUP(A9,tesserati[],2,FALSE)),"",VLOOKUP(A9,tesserati[],2,FALSE)) ->  | C9: =IF(ISERROR(VLOOKUP(A9,tesserati[],3,FALSE)),"",VLOOKUP(A9,tesserati[],3,FALSE)) ->  | D9: =IF(ISERROR(VLOOKUP(A9,tesserati[],4,FALSE)),"",VLOOKUP(A9,tesserati[],4,FALSE)) ->  | E9: =IF(ISERROR(VLOOKUP(A9,tesserati[],5,FALSE)),"",VLOOKUP(A9,tesserati[],5,FALSE)) ->  | F9: =IF(ISERROR(VLOOKUP(A9,tesserati[],7,FALSE)),"",VLOOKUP(A9,tesserati[],7,FALSE)) ->  | G9: 1
B10: =IF(ISERROR(VLOOKUP(A10,tesserati[],2,FALSE)),"",VLOOKUP(A10,tesserati[],2,FALSE)) ->  | C10: =IF(ISERROR(VLOOKUP(A10,tesserati[],3,FALSE)),"",VLOOKUP(A10,tesserati[],3,FALSE)) ->  | D10: =IF(ISERROR(VLOOKUP(A10,tesserati[],4,FALSE)),"",VLOOKUP(A10,tesserati[],4,FALSE)) ->  | E10: =IF(ISERROR(VLOOKUP(A10,tesserati[],5,FALSE)),"",VLOOKUP(A10,tesserati[],5,FALSE)) ->  | F10: =IF(ISERROR(VLOOKUP(A10,tesserati[],7,FALSE)),"",VLOOKUP(A10,tesserati[],7,FALSE)) -> 
B11: =IF(ISERROR(VLOOKUP(A11,tesserati[],2,FALSE)),"",VLOOKUP(A11,tesserati[],2,FALSE)) ->  | C11: =IF(ISERROR(VLOOKUP(A11,tesserati[],3,FALSE)),"",VLOOKUP(A11,tesserati[],3,FALSE)) ->  | D11: =IF(ISERROR(VLOOKUP(A11,tesserati[],4,FALSE)),"",VLOOKUP(A11,tesserati[],4,FALSE)) ->  | E11: =IF(ISERROR(VLOOKUP(A11,tesserati[],5,FALSE)),"",VLOOKUP(A11,tesserati[],5,FALSE)) ->  | F11: =IF(ISERROR(VLOOKUP(A11,tesserati[],7,FALSE)),"",VLOOKUP(A11,tesserati[],7,FALSE)) -> 
B12: =IF(ISERROR(VLOOKUP(A12,tesserati[],2,FALSE)),"",VLOOKUP(A12,tesserati[],2,FALSE)) ->  | C12: =IF(ISERROR(VLOOKUP(A12,tesserati[],3,FALSE)),"",VLOOKUP(A12,tesserati[],3,FALSE)) ->  | D12: =IF(ISERROR(VLOOKUP(A12,tesserati[],4,FALSE)),"",VLOOKUP(A12,tesserati[],4,FALSE)) ->  | E12: =IF(ISERROR(VLOOKUP(A12,tesserati[],5,FALSE)),"",VLOOKUP(A12,tesserati[],5,FALSE)) ->  | F12: =IF(ISERROR(VLOOKUP(A12,tesserati[],7,FALSE)),"",VLOOKUP(A12,tesserati[],7,FALSE)) -> 
B13: =IF(ISERROR(VLOOKUP(A13,tesserati[],2,FALSE)),"",VLOOKUP(A13,tesserati[],2,FALSE)) ->  | C13: =IF(ISERROR(VLOOKUP(A13,tesserati[],3,FALSE)),"",VLOOKUP(A13,tesserati[],3,FALSE)) ->  | D13: =IF(ISERROR(VLOOKUP(A13,tesserati[],4,FALSE)),"",VLOOKUP(A13,tesserati[],4,FALSE)) ->  | E13: =IF(ISERROR(VLOOKUP(A13,tesserati[],5,FALSE)),"",VLOOKUP(A13,tesserati[],5,FALSE)) ->  | F13: =IF(ISERROR(VLOOKUP(A13,tesserati[],7,FALSE)),"",VLOOKUP(A13,tesserati[],7,FALSE)) ->  | G13: 2
B14: =IF(ISERROR(VLOOKUP(A14,tesserati[],2,FALSE)),"",VLOOKUP(A14,tesserati[],2,FALSE)) ->  | C14: =IF(ISERROR(VLOOKUP(A14,tesserati[],3,FALSE)),"",VLOOKUP(A14,tesserati[],3,FALSE)) ->  | D14: =IF(ISERROR(VLOOKUP(A14,tesserati[],4,FALSE)),"",VLOOKUP(A14,tesserati[],4,FALSE)) ->  | E14: =IF(ISERROR(VLOOKUP(A14,tesserati[],5,FALSE)),"",VLOOKUP(A14,tesserati[],5,FALSE)) ->  | F14: =IF(ISERROR(VLOOKUP(A14,tesserati[],7,FALSE)),"",VLOOKUP(A14,tesserati[],7,FALSE)) -> 
B15: =IF(ISERROR(VLOOKUP(A15,tesserati[],2,FALSE)),"",VLOOKUP(A15,tesserati[],2,FALSE)) ->  | C15: =IF(ISERROR(VLOOKUP(A15,tesserati[],3,FALSE)),"",VLOOKUP(A15,tesserati[],3,FALSE)) ->  | D15: =IF(ISERROR(VLOOKUP(A15,tesserati[],4,FALSE)),"",VLOOKUP(A15,tesserati[],4,FALSE)) ->  | E15: =IF(ISERROR(VLOOKUP(A15,tesserati[],5,FALSE)),"",VLOOKUP(A15,tesserati[],5,FALSE)) ->  | F15: =IF(ISERROR(VLOOKUP(A15,tesserati[],7,FALSE)),"",VLOOKUP(A15,tesserati[],7,FALSE)) -> 
B16: =IF(ISERROR(VLOOKUP(A16,tesserati[],2,FALSE)),"",VLOOKUP(A16,tesserati[],2,FALSE)) ->  | C16: =IF(ISERROR(VLOOKUP(A16,tesserati[],3,FALSE)),"",VLOOKUP(A16,tesserati[],3,FALSE)) ->  | D16: =IF(ISERROR(VLOOKUP(A16,tesserati[],4,FALSE)),"",VLOOKUP(A16,tesserati[],4,FALSE)) ->  | E16: =IF(ISERROR(VLOOKUP(A16,tesserati[],5,FALSE)),"",VLOOKUP(A16,tesserati[],5,FALSE)) ->  | F16: =IF(ISERROR(VLOOKUP(A16,tesserati[],7,FALSE)),"",VLOOKUP(A16,tesserati[],7,FALSE)) -> 
B17: =IF(ISERROR(VLOOKUP(A17,tesserati[],2,FALSE)),"",VLOOKUP(A17,tesserati[],2,FALSE)) ->  | C17: =IF(ISERROR(VLOOKUP(A17,tesserati[],3,FALSE)),"",VLOOKUP(A17,tesserati[],3,FALSE)) ->  | D17: =IF(ISERROR(VLOOKUP(A17,tesserati[],4,FALSE)),"",VLOOKUP(A17,tesserati[],4,FALSE)) ->  | E17: =IF(ISERROR(VLOOKUP(A17,tesserati[],5,FALSE)),"",VLOOKUP(A17,tesserati[],5,FALSE)) ->  | F17: =IF(ISERROR(VLOOKUP(A17,tesserati[],7,FALSE)),"",VLOOKUP(A17,tesserati[],7,FALSE)) ->  | G17: 3
B18: =IF(ISERROR(VLOOKUP(A18,tesserati[],2,FALSE)),"",VLOOKUP(A18,tesserati[],2,FALSE)) ->  | C18: =IF(ISERROR(VLOOKUP(A18,tesserati[],3,FALSE)),"",VLOOKUP(A18,tesserati[],3,FALSE)) ->  | D18: =IF(ISERROR(VLOOKUP(A18,tesserati[],4,FALSE)),"",VLOOKUP(A18,tesserati[],4,FALSE)) ->  | E18: =IF(ISERROR(VLOOKUP(A18,tesserati[],5,FALSE)),"",VLOOKUP(A18,tesserati[],5,FALSE)) ->  | F18: =IF(ISERROR(VLOOKUP(A18,tesserati[],7,FALSE)),"",VLOOKUP(A18,tesserati[],7,FALSE)) -> 
B19: =IF(ISERROR(VLOOKUP(A19,tesserati[],2,FALSE)),"",VLOOKUP(A19,tesserati[],2,FALSE)) ->  | C19: =IF(ISERROR(VLOOKUP(A19,tesserati[],3,FALSE)),"",VLOOKUP(A19,tesserati[],3,FALSE)) ->  | D19: =IF(ISERROR(VLOOKUP(A19,tesserati[],4,FALSE)),"",VLOOKUP(A19,tesserati[],4,FALSE)) ->  | E19: =IF(ISERROR(VLOOKUP(A19,tesserati[],5,FALSE)),"",VLOOKUP(A19,tesserati[],5,FALSE)) ->  | F19: =IF(ISERROR(VLOOKUP(A19,tesserati[],7,FALSE)),"",VLOOKUP(A19,tesserati[],7,FALSE)) -> 
B20: =IF(ISERROR(VLOOKUP(A20,tesserati[],2,FALSE)),"",VLOOKUP(A20,tesserati[],2,FALSE)) ->  | C20: =IF(ISERROR(VLOOKUP(A20,tesserati[],3,FALSE)),"",VLOOKUP(A20,tesserati[],3,FALSE)) ->  | D20: =IF(ISERROR(VLOOKUP(A20,tesserati[],4,FALSE)),"",VLOOKUP(A20,tesserati[],4,FALSE)) ->  | E20: =IF(ISERROR(VLOOKUP(A20,tesserati[],5,FALSE)),"",VLOOKUP(A20,tesserati[],5,FALSE)) ->  | F20: =IF(ISERROR(VLOOKUP(A20,tesserati[],7,FALSE)),"",VLOOKUP(A20,tesserati[],7,FALSE)) -> 
B21: =IF(ISERROR(VLOOKUP(A21,tesserati[],2,FALSE)),"",VLOOKUP(A21,tesserati[],2,FALSE)) ->  | C21: =IF(ISERROR(VLOOKUP(A21,tesserati[],3,FALSE)),"",VLOOKUP(A21,tesserati[],3,FALSE)) ->  | D21: =IF(ISERROR(VLOOKUP(A21,tesserati[],4,FALSE)),"",VLOOKUP(A21,tesserati[],4,FALSE)) ->  | E21: =IF(ISERROR(VLOOKUP(A21,tesserati[],5,FALSE)),"",VLOOKUP(A21,tesserati[],5,FALSE)) ->  | F21: =IF(ISERROR(VLOOKUP(A21,tesserati[],7,FALSE)),"",VLOOKUP(A21,tesserati[],7,FALSE)) ->  | G21: 4
B22: =IF(ISERROR(VLOOKUP(A22,tesserati[],2,FALSE)),"",VLOOKUP(A22,tesserati[],2,FALSE)) ->  | C22: =IF(ISERROR(VLOOKUP(A22,tesserati[],3,FALSE)),"",VLOOKUP(A22,tesserati[],3,FALSE)) ->  | D22: =IF(ISERROR(VLOOKUP(A22,tesserati[],4,FALSE)),"",VLOOKUP(A22,tesserati[],4,FALSE)) ->  | E22: =IF(ISERROR(VLOOKUP(A22,tesserati[],5,FALSE)),"",VLOOKUP(A22,tesserati[],5,FALSE)) ->  | F22: =IF(ISERROR(VLOOKUP(A22,tesserati[],7,FALSE)),"",VLOOKUP(A22,tesserati[],7,FALSE)) -> 
B23: =IF(ISERROR(VLOOKUP(A23,tesserati[],2,FALSE)),"",VLOOKUP(A23,tesserati[],2,FALSE)) ->  | C23: =IF(ISERROR(VLOOKUP(A23,tesserati[],3,FALSE)),"",VLOOKUP(A23,tesserati[],3,FALSE)) ->  | D23: =IF(ISERROR(VLOOKUP(A23,tesserati[],4,FALSE)),"",VLOOKUP(A23,tesserati[],4,FALSE)) ->  | E23: =IF(ISERROR(VLOOKUP(A23,tesserati[],5,FALSE)),"",VLOOKUP(A23,tesserati[],5,FALSE)) ->  | F23: =IF(ISERROR(VLOOKUP(A23,tesserati[],7,FALSE)),"",VLOOKUP(A23,tesserati[],7,FALSE)) -> 
B24: =IF(ISERROR(VLOOKUP(A24,tesserati[],2,FALSE)),"",VLOOKUP(A24,tesserati[],2,FALSE)) ->  | C24: =IF(ISERROR(VLOOKUP(A24,tesserati[],3,FALSE)),"",VLOOKUP(A24,tesserati[],3,FALSE)) ->  | D24: =IF(ISERROR(VLOOKUP(A24,tesserati[],4,FALSE)),"",VLOOKUP(A24,tesserati[],4,FALSE)) ->  | E24: =IF(ISERROR(VLOOKUP(A24,tesserati[],5,FALSE)),"",VLOOKUP(A24,tesserati[],5,FALSE)) ->  | F24: =IF(ISERROR(VLOOKUP(A24,tesserati[],7,FALSE)),"",VLOOKUP(A24,tesserati[],7,FALSE)) -> 
B25: =IF(ISERROR(VLOOKUP(A25,tesserati[],2,FALSE)),"",VLOOKUP(A25,tesserati[],2,FALSE)) ->  | C25: =IF(ISERROR(VLOOKUP(A25,tesserati[],3,FALSE)),"",VLOOKUP(A25,tesserati[],3,FALSE)) ->  | D25: =IF(ISERROR(VLOOKUP(A25,tesserati[],4,FALSE)),"",VLOOKUP(A25,tesserati[],4,FALSE)) ->  | E25: =IF(ISERROR(VLOOKUP(A25,tesserati[],5,FALSE)),"",VLOOKUP(A25,tesserati[],5,FALSE)) ->  | F25: =IF(ISERROR(VLOOKUP(A25,tesserati[],7,FALSE)),"",VLOOKUP(A25,tesserati[],7,FALSE)) ->  | G25: 5
B26: =IF(ISERROR(VLOOKUP(A26,tesserati[],2,FALSE)),"",VLOOKUP(A26,tesserati[],2,FALSE)) ->  | C26: =IF(ISERROR(VLOOKUP(A26,tesserati[],3,FALSE)),"",VLOOKUP(A26,tesserati[],3,FALSE)) ->  | D26: =IF(ISERROR(VLOOKUP(A26,tesserati[],4,FALSE)),"",VLOOKUP(A26,tesserati[],4,FALSE)) ->  | E26: =IF(ISERROR(VLOOKUP(A26,tesserati[],5,FALSE)),"",VLOOKUP(A26,tesserati[],5,FALSE)) ->  | F26: =IF(ISERROR(VLOOKUP(A26,tesserati[],7,FALSE)),"",VLOOKUP(A26,tesserati[],7,FALSE)) -> 
B27: =IF(ISERROR(VLOOKUP(A27,tesserati[],2,FALSE)),"",VLOOKUP(A27,tesserati[],2,FALSE)) ->  | C27: =IF(ISERROR(VLOOKUP(A27,tesserati[],3,FALSE)),"",VLOOKUP(A27,tesserati[],3,FALSE)) ->  | D27: =IF(ISERROR(VLOOKUP(A27,tesserati[],4,FALSE)),"",VLOOKUP(A27,tesserati[],4,FALSE)) ->  | E27: =IF(ISERROR(VLOOKUP(A27,tesserati[],5,FALSE)),"",VLOOKUP(A27,tesserati[],5,FALSE)) ->  | F27: =IF(ISERROR(VLOOKUP(A27,tesserati[],7,FALSE)),"",VLOOKUP(A27,tesserati[],7,FALSE)) -> 
B28: =IF(ISERROR(VLOOKUP(A28,tesserati[],2,FALSE)),"",VLOOKUP(A28,tesserati[],2,FALSE)) ->  | C28: =IF(ISERROR(VLOOKUP(A28,tesserati[],3,FALSE)),"",VLOOKUP(A28,tesserati[],3,FALSE)) ->  | D28: =IF(ISERROR(VLOOKUP(A28,tesserati[],4,FALSE)),"",VLOOKUP(A28,tesserati[],4,FALSE)) ->  | E28: =IF(ISERROR(VLOOKUP(A28,tesserati[],5,FALSE)),"",VLOOKUP(A28,tesserati[],5,FALSE)) ->  | F28: =IF(ISERROR(VLOOKUP(A28,tesserati[],7,FALSE)),"",VLOOKUP(A28,tesserati[],7,FALSE)) -> 
B29: =IF(ISERROR(VLOOKUP(A29,tesserati[],2,FALSE)),"",VLOOKUP(A29,tesserati[],2,FALSE)) ->  | C29: =IF(ISERROR(VLOOKUP(A29,tesserati[],3,FALSE)),"",VLOOKUP(A29,tesserati[],3,FALSE)) ->  | D29: =IF(ISERROR(VLOOKUP(A29,tesserati[],4,FALSE)),"",VLOOKUP(A29,tesserati[],4,FALSE)) ->  | E29: =IF(ISERROR(VLOOKUP(A29,tesserati[],5,FALSE)),"",VLOOKUP(A29,tesserati[],5,FALSE)) ->  | F29: =IF(ISERROR(VLOOKUP(A29,tesserati[],7,FALSE)),"",VLOOKUP(A29,tesserati[],7,FALSE)) ->  | G29: 6
B30: =IF(ISERROR(VLOOKUP(A30,tesserati[],2,FALSE)),"",VLOOKUP(A30,tesserati[],2,FALSE)) ->  | C30: =IF(ISERROR(VLOOKUP(A30,tesserati[],3,FALSE)),"",VLOOKUP(A30,tesserati[],3,FALSE)) ->  | D30: =IF(ISERROR(VLOOKUP(A30,tesserati[],4,FALSE)),"",VLOOKUP(A30,tesserati[],4,FALSE)) ->  | E30: =IF(ISERROR(VLOOKUP(A30,tesserati[],5,FALSE)),"",VLOOKUP(A30,tesserati[],5,FALSE)) ->  | F30: =IF(ISERROR(VLOOKUP(A30,tesserati[],7,FALSE)),"",VLOOKUP(A30,tesserati[],7,FALSE)) -> 
B31: =IF(ISERROR(VLOOKUP(A31,tesserati[],2,FALSE)),"",VLOOKUP(A31,tesserati[],2,FALSE)) ->  | C31: =IF(ISERROR(VLOOKUP(A31,tesserati[],3,FALSE)),"",VLOOKUP(A31,tesserati[],3,FALSE)) ->  | D31: =IF(ISERROR(VLOOKUP(A31,tesserati[],4,FALSE)),"",VLOOKUP(A31,tesserati[],4,FALSE)) ->  | E31: =IF(ISERROR(VLOOKUP(A31,tesserati[],5,FALSE)),"",VLOOKUP(A31,tesserati[],5,FALSE)) ->  | F31: =IF(ISERROR(VLOOKUP(A31,tesserati[],7,FALSE)),"",VLOOKUP(A31,tesserati[],7,FALSE)) -> 
B32: =IF(ISERROR(VLOOKUP(A32,tesserati[],2,FALSE)),"",VLOOKUP(A32,tesserati[],2,FALSE)) ->  | C32: =IF(ISERROR(VLOOKUP(A32,tesserati[],3,FALSE)),"",VLOOKUP(A32,tesserati[],3,FALSE)) ->  | D32: =IF(ISERROR(VLOOKUP(A32,tesserati[],4,FALSE)),"",VLOOKUP(A32,tesserati[],4,FALSE)) ->  | E32: =IF(ISERROR(VLOOKUP(A32,tesserati[],5,FALSE)),"",VLOOKUP(A32,tesserati[],5,FALSE)) ->  | F32: =IF(ISERROR(VLOOKUP(A32,tesserati[],7,FALSE)),"",VLOOKUP(A32,tesserati[],7,FALSE)) -> 
A33: 2 SERIE
B34: =IF(ISERROR(VLOOKUP(A34,tesserati[],2,FALSE)),"",VLOOKUP(A34,tesserati[],2,FALSE)) ->  | C34: =IF(ISERROR(VLOOKUP(A34,tesserati[],3,FALSE)),"",VLOOKUP(A34,tesserati[],3,FALSE)) ->  | D34: =IF(ISERROR(VLOOKUP(A34,tesserati[],4,FALSE)),"",VLOOKUP(A34,tesserati[],4,FALSE)) ->  | E34: =IF(ISERROR(VLOOKUP(A34,tesserati[],5,FALSE)),"",VLOOKUP(A34,tesserati[],5,FALSE)) ->  | F34: =IF(ISERROR(VLOOKUP(A34,tesserati[],7,FALSE)),"",VLOOKUP(A34,tesserati[],7,FALSE)) ->  | G34: 1
B35: =IF(ISERROR(VLOOKUP(A35,tesserati[],2,FALSE)),"",VLOOKUP(A35,tesserati[],2,FALSE)) ->  | C35: =IF(ISERROR(VLOOKUP(A35,tesserati[],3,FALSE)),"",VLOOKUP(A35,tesserati[],3,FALSE)) ->  | D35: =IF(ISERROR(VLOOKUP(A35,tesserati[],4,FALSE)),"",VLOOKUP(A35,tesserati[],4,FALSE)) ->  | E35: =IF(ISERROR(VLOOKUP(A35,tesserati[],5,FALSE)),"",VLOOKUP(A35,tesserati[],5,FALSE)) ->  | F35: =IF(ISERROR(VLOOKUP(A35,tesserati[],7,FALSE)),"",VLOOKUP(A35,tesserati[],7,FALSE)) -> 
B36: =IF(ISERROR(VLOOKUP(A36,tesserati[],2,FALSE)),"",VLOOKUP(A36,tesserati[],2,FALSE)) ->  | C36: =IF(ISERROR(VLOOKUP(A36,tesserati[],3,FALSE)),"",VLOOKUP(A36,tesserati[],3,FALSE)) ->  | D36: =IF(ISERROR(VLOOKUP(A36,tesserati[],4,FALSE)),"",VLOOKUP(A36,tesserati[],4,FALSE)) ->  | E36: =IF(ISERROR(VLOOKUP(A36,tesserati[],5,FALSE)),"",VLOOKUP(A36,tesserati[],5,FALSE)) ->  | F36: =IF(ISERROR(VLOOKUP(A36,tesserati[],7,FALSE)),"",VLOOKUP(A36,tesserati[],7,FALSE)) -> 
B37: =IF(ISERROR(VLOOKUP(A37,tesserati[],2,FALSE)),"",VLOOKUP(A37,tesserati[],2,FALSE)) ->  | C37: =IF(ISERROR(VLOOKUP(A37,tesserati[],3,FALSE)),"",VLOOKUP(A37,tesserati[],3,FALSE)) ->  | D37: =IF(ISERROR(VLOOKUP(A37,tesserati[],4,FALSE)),"",VLOOKUP(A37,tesserati[],4,FALSE)) ->  | E37: =IF(ISERROR(VLOOKUP(A37,tesserati[],5,FALSE)),"",VLOOKUP(A37,tesserati[],5,FALSE)) ->  | F37: =IF(ISERROR(VLOOKUP(A37,tesserati[],7,FALSE)),"",VLOOKUP(A37,tesserati[],7,FALSE)) -> 
B38: =IF(ISERROR(VLOOKUP(A38,tesserati[],2,FALSE)),"",VLOOKUP(A38,tesserati[],2,FALSE)) ->  | C38: =IF(ISERROR(VLOOKUP(A38,tesserati[],3,FALSE)),"",VLOOKUP(A38,tesserati[],3,FALSE)) ->  | D38: =IF(ISERROR(VLOOKUP(A38,tesserati[],4,FALSE)),"",VLOOKUP(A38,tesserati[],4,FALSE)) ->  | E38: =IF(ISERROR(VLOOKUP(A38,tesserati[],5,FALSE)),"",VLOOKUP(A38,tesserati[],5,FALSE)) ->  | F38: =IF(ISERROR(VLOOKUP(A38,tesserati[],7,FALSE)),"",VLOOKUP(A38,tesserati[],7,FALSE)) ->  | G38: 2
B39: =IF(ISERROR(VLOOKUP(A39,tesserati[],2,FALSE)),"",VLOOKUP(A39,tesserati[],2,FALSE)) ->  | C39: =IF(ISERROR(VLOOKUP(A39,tesserati[],3,FALSE)),"",VLOOKUP(A39,tesserati[],3,FALSE)) ->  | D39: =IF(ISERROR(VLOOKUP(A39,tesserati[],4,FALSE)),"",VLOOKUP(A39,tesserati[],4,FALSE)) ->  | E39: =IF(ISERROR(VLOOKUP(A39,tesserati[],5,FALSE)),"",VLOOKUP(A39,tesserati[],5,FALSE)) ->  | F39: =IF(ISERROR(VLOOKUP(A39,tesserati[],7,FALSE)),"",VLOOKUP(A39,tesserati[],7,FALSE)) -> 
B40: =IF(ISERROR(VLOOKUP(A40,tesserati[],2,FALSE)),"",VLOOKUP(A40,tesserati[],2,FALSE)) ->  | C40: =IF(ISERROR(VLOOKUP(A40,tesserati[],3,FALSE)),"",VLOOKUP(A40,tesserati[],3,FALSE)) ->  | D40: =IF(ISERROR(VLOOKUP(A40,tesserati[],4,FALSE)),"",VLOOKUP(A40,tesserati[],4,FALSE)) ->  | E40: =IF(ISERROR(VLOOKUP(A40,tesserati[],5,FALSE)),"",VLOOKUP(A40,tesserati[],5,FALSE)) ->  | F40: =IF(ISERROR(VLOOKUP(A40,tesserati[],7,FALSE)),"",VLOOKUP(A40,tesserati[],7,FALSE)) -> 
B41: =IF(ISERROR(VLOOKUP(A41,tesserati[],2,FALSE)),"",VLOOKUP(A41,tesserati[],2,FALSE)) ->  | C41: =IF(ISERROR(VLOOKUP(A41,tesserati[],3,FALSE)),"",VLOOKUP(A41,tesserati[],3,FALSE)) ->  | D41: =IF(ISERROR(VLOOKUP(A41,tesserati[],4,FALSE)),"",VLOOKUP(A41,tesserati[],4,FALSE)) ->  | E41: =IF(ISERROR(VLOOKUP(A41,tesserati[],5,FALSE)),"",VLOOKUP(A41,tesserati[],5,FALSE)) ->  | F41: =IF(ISERROR(VLOOKUP(A41,tesserati[],7,FALSE)),"",VLOOKUP(A41,tesserati[],7,FALSE)) -> 
B42: =IF(ISERROR(VLOOKUP(A42,tesserati[],2,FALSE)),"",VLOOKUP(A42,tesserati[],2,FALSE)) ->  | C42: =IF(ISERROR(VLOOKUP(A42,tesserati[],3,FALSE)),"",VLOOKUP(A42,tesserati[],3,FALSE)) ->  | D42: =IF(ISERROR(VLOOKUP(A42,tesserati[],4,FALSE)),"",VLOOKUP(A42,tesserati[],4,FALSE)) ->  | E42: =IF(ISERROR(VLOOKUP(A42,tesserati[],5,FALSE)),"",VLOOKUP(A42,tesserati[],5,FALSE)) ->  | F42: =IF(ISERROR(VLOOKUP(A42,tesserati[],7,FALSE)),"",VLOOKUP(A42,tesserati[],7,FALSE)) ->  | G42: 3
B43: =IF(ISERROR(VLOOKUP(A43,tesserati[],2,FALSE)),"",VLOOKUP(A43,tesserati[],2,FALSE)) ->  | C43: =IF(ISERROR(VLOOKUP(A43,tesserati[],3,FALSE)),"",VLOOKUP(A43,tesserati[],3,FALSE)) ->  | D43: =IF(ISERROR(VLOOKUP(A43,tesserati[],4,FALSE)),"",VLOOKUP(A43,tesserati[],4,FALSE)) ->  | E43: =IF(ISERROR(VLOOKUP(A43,tesserati[],5,FALSE)),"",VLOOKUP(A43,tesserati[],5,FALSE)) ->  | F43: =IF(ISERROR(VLOOKUP(A43,tesserati[],7,FALSE)),"",VLOOKUP(A43,tesserati[],7,FALSE)) -> 
B44: =IF(ISERROR(VLOOKUP(A44,tesserati[],2,FALSE)),"",VLOOKUP(A44,tesserati[],2,FALSE)) ->  | C44: =IF(ISERROR(VLOOKUP(A44,tesserati[],3,FALSE)),"",VLOOKUP(A44,tesserati[],3,FALSE)) ->  | D44: =IF(ISERROR(VLOOKUP(A44,tesserati[],4,FALSE)),"",VLOOKUP(A44,tesserati[],4,FALSE)) ->  | E44: =IF(ISERROR(VLOOKUP(A44,tesserati[],5,FALSE)),"",VLOOKUP(A44,tesserati[],5,FALSE)) ->  | F44: =IF(ISERROR(VLOOKUP(A44,tesserati[],7,FALSE)),"",VLOOKUP(A44,tesserati[],7,FALSE)) -> 
B45: =IF(ISERROR(VLOOKUP(A45,tesserati[],2,FALSE)),"",VLOOKUP(A45,tesserati[],2,FALSE)) ->  | C45: =IF(ISERROR(VLOOKUP(A45,tesserati[],3,FALSE)),"",VLOOKUP(A45,tesserati[],3,FALSE)) ->  | D45: =IF(ISERROR(VLOOKUP(A45,tesserati[],4,FALSE)),"",VLOOKUP(A45,tesserati[],4,FALSE)) ->  | E45: =IF(ISERROR(VLOOKUP(A45,tesserati[],5,FALSE)),"",VLOOKUP(A45,tesserati[],5,FALSE)) ->  | F45: =IF(ISERROR(VLOOKUP(A45,tesserati[],7,FALSE)),"",VLOOKUP(A45,tesserati[],7,FALSE)) -> 
B46: =IF(ISERROR(VLOOKUP(A46,tesserati[],2,FALSE)),"",VLOOKUP(A46,tesserati[],2,FALSE)) ->  | C46: =IF(ISERROR(VLOOKUP(A46,tesserati[],3,FALSE)),"",VLOOKUP(A46,tesserati[],3,FALSE)) ->  | D46: =IF(ISERROR(VLOOKUP(A46,tesserati[],4,FALSE)),"",VLOOKUP(A46,tesserati[],4,FALSE)) ->  | E46: =IF(ISERROR(VLOOKUP(A46,tesserati[],5,FALSE)),"",VLOOKUP(A46,tesserati[],5,FALSE)) ->  | F46: =IF(ISERROR(VLOOKUP(A46,tesserati[],7,FALSE)),"",VLOOKUP(A46,tesserati[],7,FALSE)) ->  | G46: 4
B47: =IF(ISERROR(VLOOKUP(A47,tesserati[],2,FALSE)),"",VLOOKUP(A47,tesserati[],2,FALSE)) ->  | C47: =IF(ISERROR(VLOOKUP(A47,tesserati[],3,FALSE)),"",VLOOKUP(A47,tesserati[],3,FALSE)) ->  | D47: =IF(ISERROR(VLOOKUP(A47,tesserati[],4,FALSE)),"",VLOOKUP(A47,tesserati[],4,FALSE)) ->  | E47: =IF(ISERROR(VLOOKUP(A47,tesserati[],5,FALSE)),"",VLOOKUP(A47,tesserati[],5,FALSE)) ->  | F47: =IF(ISERROR(VLOOKUP(A47,tesserati[],7,FALSE)),"",VLOOKUP(A47,tesserati[],7,FALSE)) -> 
B48: =IF(ISERROR(VLOOKUP(A48,tesserati[],2,FALSE)),"",VLOOKUP(A48,tesserati[],2,FALSE)) ->  | C48: =IF(ISERROR(VLOOKUP(A48,tesserati[],3,FALSE)),"",VLOOKUP(A48,tesserati[],3,FALSE)) ->  | D48: =IF(ISERROR(VLOOKUP(A48,tesserati[],4,FALSE)),"",VLOOKUP(A48,tesserati[],4,FALSE)) ->  | E48: =IF(ISERROR(VLOOKUP(A48,tesserati[],5,FALSE)),"",VLOOKUP(A48,tesserati[],5,FALSE)) ->  | F48: =IF(ISERROR(VLOOKUP(A48,tesserati[],7,FALSE)),"",VLOOKUP(A48,tesserati[],7,FALSE)) -> 
B49: =IF(ISERROR(VLOOKUP(A49,tesserati[],2,FALSE)),"",VLOOKUP(A49,tesserati[],2,FALSE)) ->  | C49: =IF(ISERROR(VLOOKUP(A49,tesserati[],3,FALSE)),"",VLOOKUP(A49,tesserati[],3,FALSE)) ->  | D49: =IF(ISERROR(VLOOKUP(A49,tesserati[],4,FALSE)),"",VLOOKUP(A49,tesserati[],4,FALSE)) ->  | E49: =IF(ISERROR(VLOOKUP(A49,tesserati[],5,FALSE)),"",VLOOKUP(A49,tesserati[],5,FALSE)) ->  | F49: =IF(ISERROR(VLOOKUP(A49,tesserati[],7,FALSE)),"",VLOOKUP(A49,tesserati[],7,FALSE)) -> 
B50: =IF(ISERROR(VLOOKUP(A50,tesserati[],2,FALSE)),"",VLOOKUP(A50,tesserati[],2,FALSE)) ->  | C50: =IF(ISERROR(VLOOKUP(A50,tesserati[],3,FALSE)),"",VLOOKUP(A50,tesserati[],3,FALSE)) ->  | D50: =IF(ISERROR(VLOOKUP(A50,tesserati[],4,FALSE)),"",VLOOKUP(A50,tesserati[],4,FALSE)) ->  | E50: =IF(ISERROR(VLOOKUP(A50,tesserati[],5,FALSE)),"",VLOOKUP(A50,tesserati[],5,FALSE)) ->  | F50: =IF(ISERROR(VLOOKUP(A50,tesserati[],7,FALSE)),"",VLOOKUP(A50,tesserati[],7,FALSE)) ->  | G50: 5
B51: =IF(ISERROR(VLOOKUP(A51,tesserati[],2,FALSE)),"",VLOOKUP(A51,tesserati[],2,FALSE)) ->  | C51: =IF(ISERROR(VLOOKUP(A51,tesserati[],3,FALSE)),"",VLOOKUP(A51,tesserati[],3,FALSE)) ->  | D51: =IF(ISERROR(VLOOKUP(A51,tesserati[],4,FALSE)),"",VLOOKUP(A51,tesserati[],4,FALSE)) ->  | E51: =IF(ISERROR(VLOOKUP(A51,tesserati[],5,FALSE)),"",VLOOKUP(A51,tesserati[],5,FALSE)) ->  | F51: =IF(ISERROR(VLOOKUP(A51,tesserati[],7,FALSE)),"",VLOOKUP(A51,tesserati[],7,FALSE)) -> 
B52: =IF(ISERROR(VLOOKUP(A52,tesserati[],2,FALSE)),"",VLOOKUP(A52,tesserati[],2,FALSE)) ->  | C52: =IF(ISERROR(VLOOKUP(A52,tesserati[],3,FALSE)),"",VLOOKUP(A52,tesserati[],3,FALSE)) ->  | D52: =IF(ISERROR(VLOOKUP(A52,tesserati[],4,FALSE)),"",VLOOKUP(A52,tesserati[],4,FALSE)) ->  | E52: =IF(ISERROR(VLOOKUP(A52,tesserati[],5,FALSE)),"",VLOOKUP(A52,tesserati[],5,FALSE)) ->  | F52: =IF(ISERROR(VLOOKUP(A52,tesserati[],7,FALSE)),"",VLOOKUP(A52,tesserati[],7,FALSE)) -> 
B53: =IF(ISERROR(VLOOKUP(A53,tesserati[],2,FALSE)),"",VLOOKUP(A53,tesserati[],2,FALSE)) ->  | C53: =IF(ISERROR(VLOOKUP(A53,tesserati[],3,FALSE)),"",VLOOKUP(A53,tesserati[],3,FALSE)) ->  | D53: =IF(ISERROR(VLOOKUP(A53,tesserati[],4,FALSE)),"",VLOOKUP(A53,tesserati[],4,FALSE)) ->  | E53: =IF(ISERROR(VLOOKUP(A53,tesserati[],5,FALSE)),"",VLOOKUP(A53,tesserati[],5,FALSE)) ->  | F53: =IF(ISERROR(VLOOKUP(A53,tesserati[],7,FALSE)),"",VLOOKUP(A53,tesserati[],7,FALSE)) -> 
B54: =IF(ISERROR(VLOOKUP(A54,tesserati[],2,FALSE)),"",VLOOKUP(A54,tesserati[],2,FALSE)) ->  | C54: =IF(ISERROR(VLOOKUP(A54,tesserati[],3,FALSE)),"",VLOOKUP(A54,tesserati[],3,FALSE)) ->  | D54: =IF(ISERROR(VLOOKUP(A54,tesserati[],4,FALSE)),"",VLOOKUP(A54,tesserati[],4,FALSE)) ->  | E54: =IF(ISERROR(VLOOKUP(A54,tesserati[],5,FALSE)),"",VLOOKUP(A54,tesserati[],5,FALSE)) ->  | F54: =IF(ISERROR(VLOOKUP(A54,tesserati[],7,FALSE)),"",VLOOKUP(A54,tesserati[],7,FALSE)) ->  | G54: 6
B55: =IF(ISERROR(VLOOKUP(A55,tesserati[],2,FALSE)),"",VLOOKUP(A55,tesserati[],2,FALSE)) ->  | C55: =IF(ISERROR(VLOOKUP(A55,tesserati[],3,FALSE)),"",VLOOKUP(A55,tesserati[],3,FALSE)) ->  | D55: =IF(ISERROR(VLOOKUP(A55,tesserati[],4,FALSE)),"",VLOOKUP(A55,tesserati[],4,FALSE)) ->  | E55: =IF(ISERROR(VLOOKUP(A55,tesserati[],5,FALSE)),"",VLOOKUP(A55,tesserati[],5,FALSE)) ->  | F55: =IF(ISERROR(VLOOKUP(A55,tesserati[],7,FALSE)),"",VLOOKUP(A55,tesserati[],7,FALSE)) -> 
B56: =IF(ISERROR(VLOOKUP(A56,tesserati[],2,FALSE)),"",VLOOKUP(A56,tesserati[],2,FALSE)) ->  | C56: =IF(ISERROR(VLOOKUP(A56,tesserati[],3,FALSE)),"",VLOOKUP(A56,tesserati[],3,FALSE)) ->  | D56: =IF(ISERROR(VLOOKUP(A56,tesserati[],4,FALSE)),"",VLOOKUP(A56,tesserati[],4,FALSE)) ->  | E56: =IF(ISERROR(VLOOKUP(A56,tesserati[],5,FALSE)),"",VLOOKUP(A56,tesserati[],5,FALSE)) ->  | F56: =IF(ISERROR(VLOOKUP(A56,tesserati[],7,FALSE)),"",VLOOKUP(A56,tesserati[],7,FALSE)) -> 
B57: =IF(ISERROR(VLOOKUP(A57,tesserati[],2,FALSE)),"",VLOOKUP(A57,tesserati[],2,FALSE)) ->  | C57: =IF(ISERROR(VLOOKUP(A57,tesserati[],3,FALSE)),"",VLOOKUP(A57,tesserati[],3,FALSE)) ->  | D57: =IF(ISERROR(VLOOKUP(A57,tesserati[],4,FALSE)),"",VLOOKUP(A57,tesserati[],4,FALSE)) ->  | E57: =IF(ISERROR(VLOOKUP(A57,tesserati[],5,FALSE)),"",VLOOKUP(A57,tesserati[],5,FALSE)) ->  | F57: =IF(ISERROR(VLOOKUP(A57,tesserati[],7,FALSE)),"",VLOOKUP(A57,tesserati[],7,FALSE)) -> 
B58: =IF(ISERROR(VLOOKUP(A58,tesserati[],2,FALSE)),"",VLOOKUP(A58,tesserati[],2,FALSE)) ->  | C58: =IF(ISERROR(VLOOKUP(A58,tesserati[],3,FALSE)),"",VLOOKUP(A58,tesserati[],3,FALSE)) ->  | D58: =IF(ISERROR(VLOOKUP(A58,tesserati[],4,FALSE)),"",VLOOKUP(A58,tesserati[],4,FALSE)) ->  | E58: =IF(ISERROR(VLOOKUP(A58,tesserati[],5,FALSE)),"",VLOOKUP(A58,tesserati[],5,FALSE)) ->  | F58: =IF(ISERROR(VLOOKUP(A58,tesserati[],7,FALSE)),"",VLOOKUP(A58,tesserati[],7,FALSE)) -> 
B59: =IF(ISERROR(VLOOKUP(A59,tesserati[],2,FALSE)),"",VLOOKUP(A59,tesserati[],2,FALSE)) ->  | C59: =IF(ISERROR(VLOOKUP(A59,tesserati[],3,FALSE)),"",VLOOKUP(A59,tesserati[],3,FALSE)) ->  | D59: =IF(ISERROR(VLOOKUP(A59,tesserati[],4,FALSE)),"",VLOOKUP(A59,tesserati[],4,FALSE)) ->  | E59: =IF(ISERROR(VLOOKUP(A59,tesserati[],5,FALSE)),"",VLOOKUP(A59,tesserati[],5,FALSE)) ->  | F59: =IF(ISERROR(VLOOKUP(A59,tesserati[],7,FALSE)),"",VLOOKUP(A59,tesserati[],7,FALSE)) -> 
B60: =IF(ISERROR(VLOOKUP(A60,tesserati[],2,FALSE)),"",VLOOKUP(A60,tesserati[],2,FALSE)) ->  | C60: =IF(ISERROR(VLOOKUP(A60,tesserati[],3,FALSE)),"",VLOOKUP(A60,tesserati[],3,FALSE)) ->  | D60: =IF(ISERROR(VLOOKUP(A60,tesserati[],4,FALSE)),"",VLOOKUP(A60,tesserati[],4,FALSE)) ->  | E60: =IF(ISERROR(VLOOKUP(A60,tesserati[],5,FALSE)),"",VLOOKUP(A60,tesserati[],5,FALSE)) ->  | F60: =IF(ISERROR(VLOOKUP(A60,tesserati[],7,FALSE)),"",VLOOKUP(A60,tesserati[],7,FALSE)) -> 
B61: =IF(ISERROR(VLOOKUP(A61,tesserati[],2,FALSE)),"",VLOOKUP(A61,tesserati[],2,FALSE)) ->  | C61: =IF(ISERROR(VLOOKUP(A61,tesserati[],3,FALSE)),"",VLOOKUP(A61,tesserati[],3,FALSE)) ->  | D61: =IF(ISERROR(VLOOKUP(A61,tesserati[],4,FALSE)),"",VLOOKUP(A61,tesserati[],4,FALSE)) ->  | E61: =IF(ISERROR(VLOOKUP(A61,tesserati[],5,FALSE)),"",VLOOKUP(A61,tesserati[],5,FALSE)) ->  | F61: =IF(ISERROR(VLOOKUP(A61,tesserati[],7,FALSE)),"",VLOOKUP(A61,tesserati[],7,FALSE)) -> 
B62: =IF(ISERROR(VLOOKUP(A62,tesserati[],2,FALSE)),"",VLOOKUP(A62,tesserati[],2,FALSE)) ->  | C62: =IF(ISERROR(VLOOKUP(A62,tesserati[],3,FALSE)),"",VLOOKUP(A62,tesserati[],3,FALSE)) ->  | D62: =IF(ISERROR(VLOOKUP(A62,tesserati[],4,FALSE)),"",VLOOKUP(A62,tesserati[],4,FALSE)) ->  | E62: =IF(ISERROR(VLOOKUP(A62,tesserati[],5,FALSE)),"",VLOOKUP(A62,tesserati[],5,FALSE)) ->  | F62: =IF(ISERROR(VLOOKUP(A62,tesserati[],7,FALSE)),"",VLOOKUP(A62,tesserati[],7,FALSE)) -> 
B63: =IF(ISERROR(VLOOKUP(A63,tesserati[],2,FALSE)),"",VLOOKUP(A63,tesserati[],2,FALSE)) ->  | C63: =IF(ISERROR(VLOOKUP(A63,tesserati[],3,FALSE)),"",VLOOKUP(A63,tesserati[],3,FALSE)) ->  | D63: =IF(ISERROR(VLOOKUP(A63,tesserati[],4,FALSE)),"",VLOOKUP(A63,tesserati[],4,FALSE)) ->  | E63: =IF(ISERROR(VLOOKUP(A63,tesserati[],5,FALSE)),"",VLOOKUP(A63,tesserati[],5,FALSE)) ->  | F63: =IF(ISERROR(VLOOKUP(A63,tesserati[],7,FALSE)),"",VLOOKUP(A63,tesserati[],7,FALSE)) -> 
B64: =IF(ISERROR(VLOOKUP(A64,tesserati[],2,FALSE)),"",VLOOKUP(A64,tesserati[],2,FALSE)) ->  | C64: =IF(ISERROR(VLOOKUP(A64,tesserati[],3,FALSE)),"",VLOOKUP(A64,tesserati[],3,FALSE)) ->  | D64: =IF(ISERROR(VLOOKUP(A64,tesserati[],4,FALSE)),"",VLOOKUP(A64,tesserati[],4,FALSE)) ->  | E64: =IF(ISERROR(VLOOKUP(A64,tesserati[],5,FALSE)),"",VLOOKUP(A64,tesserati[],5,FALSE)) ->  | F64: =IF(ISERROR(VLOOKUP(A64,tesserati[],7,FALSE)),"",VLOOKUP(A64,tesserati[],7,FALSE)) -> 
B65: =IF(ISERROR(VLOOKUP(A65,tesserati[],2,FALSE)),"",VLOOKUP(A65,tesserati[],2,FALSE)) ->  | C65: =IF(ISERROR(VLOOKUP(A65,tesserati[],3,FALSE)),"",VLOOKUP(A65,tesserati[],3,FALSE)) ->  | D65: =IF(ISERROR(VLOOKUP(A65,tesserati[],4,FALSE)),"",VLOOKUP(A65,tesserati[],4,FALSE)) ->  | E65: =IF(ISERROR(VLOOKUP(A65,tesserati[],5,FALSE)),"",VLOOKUP(A65,tesserati[],5,FALSE)) ->  | F65: =IF(ISERROR(VLOOKUP(A65,tesserati[],7,FALSE)),"",VLOOKUP(A65,tesserati[],7,FALSE)) -> 
B66: =IF(ISERROR(VLOOKUP(A66,tesserati[],2,FALSE)),"",VLOOKUP(A66,tesserati[],2,FALSE)) ->  | C66: =IF(ISERROR(VLOOKUP(A66,tesserati[],3,FALSE)),"",VLOOKUP(A66,tesserati[],3,FALSE)) ->  | D66: =IF(ISERROR(VLOOKUP(A66,tesserati[],4,FALSE)),"",VLOOKUP(A66,tesserati[],4,FALSE)) ->  | E66: =IF(ISERROR(VLOOKUP(A66,tesserati[],5,FALSE)),"",VLOOKUP(A66,tesserati[],5,FALSE)) ->  | F66: =IF(ISERROR(VLOOKUP(A66,tesserati[],7,FALSE)),"",VLOOKUP(A66,tesserati[],7,FALSE)) -> 
B67: =IF(ISERROR(VLOOKUP(A67,tesserati[],2,FALSE)),"",VLOOKUP(A67,tesserati[],2,FALSE)) ->  | C67: =IF(ISERROR(VLOOKUP(A67,tesserati[],3,FALSE)),"",VLOOKUP(A67,tesserati[],3,FALSE)) ->  | D67: =IF(ISERROR(VLOOKUP(A67,tesserati[],4,FALSE)),"",VLOOKUP(A67,tesserati[],4,FALSE)) ->  | E67: =IF(ISERROR(VLOOKUP(A67,tesserati[],5,FALSE)),"",VLOOKUP(A67,tesserati[],5,FALSE)) ->  | F67: =IF(ISERROR(VLOOKUP(A67,tesserati[],7,FALSE)),"",VLOOKUP(A67,tesserati[],7,FALSE)) -> 
B68: =IF(ISERROR(VLOOKUP(A68,tesserati[],2,FALSE)),"",VLOOKUP(A68,tesserati[],2,FALSE)) ->  | C68: =IF(ISERROR(VLOOKUP(A68,tesserati[],3,FALSE)),"",VLOOKUP(A68,tesserati[],3,FALSE)) ->  | D68: =IF(ISERROR(VLOOKUP(A68,tesserati[],4,FALSE)),"",VLOOKUP(A68,tesserati[],4,FALSE)) ->  | E68: =IF(ISERROR(VLOOKUP(A68,tesserati[],5,FALSE)),"",VLOOKUP(A68,tesserati[],5,FALSE)) ->  | F68: =IF(ISERROR(VLOOKUP(A68,tesserati[],7,FALSE)),"",VLOOKUP(A68,tesserati[],7,FALSE)) -> 
B69: =IF(ISERROR(VLOOKUP(A69,tesserati[],2,FALSE)),"",VLOOKUP(A69,tesserati[],2,FALSE)) ->  | C69: =IF(ISERROR(VLOOKUP(A69,tesserati[],3,FALSE)),"",VLOOKUP(A69,tesserati[],3,FALSE)) ->  | D69: =IF(ISERROR(VLOOKUP(A69,tesserati[],4,FALSE)),"",VLOOKUP(A69,tesserati[],4,FALSE)) ->  | E69: =IF(ISERROR(VLOOKUP(A69,tesserati[],5,FALSE)),"",VLOOKUP(A69,tesserati[],5,FALSE)) ->  | F69: =IF(ISERROR(VLOOKUP(A69,tesserati[],7,FALSE)),"",VLOOKUP(A69,tesserati[],7,FALSE)) -> 
B70: =IF(ISERROR(VLOOKUP(A70,tesserati[],2,FALSE)),"",VLOOKUP(A70,tesserati[],2,FALSE)) ->  | C70: =IF(ISERROR(VLOOKUP(A70,tesserati[],3,FALSE)),"",VLOOKUP(A70,tesserati[],3,FALSE)) ->  | D70: =IF(ISERROR(VLOOKUP(A70,tesserati[],4,FALSE)),"",VLOOKUP(A70,tesserati[],4,FALSE)) ->  | E70: =IF(ISERROR(VLOOKUP(A70,tesserati[],5,FALSE)),"",VLOOKUP(A70,tesserati[],5,FALSE)) ->  | F70: =IF(ISERROR(VLOOKUP(A70,tesserati[],7,FALSE)),"",VLOOKUP(A70,tesserati[],7,FALSE)) -> 
B71: =IF(ISERROR(VLOOKUP(A71,tesserati[],2,FALSE)),"",VLOOKUP(A71,tesserati[],2,FALSE)) ->  | C71: =IF(ISERROR(VLOOKUP(A71,tesserati[],3,FALSE)),"",VLOOKUP(A71,tesserati[],3,FALSE)) ->  | D71: =IF(ISERROR(VLOOKUP(A71,tesserati[],4,FALSE)),"",VLOOKUP(A71,tesserati[],4,FALSE)) ->  | E71: =IF(ISERROR(VLOOKUP(A71,tesserati[],5,FALSE)),"",VLOOKUP(A71,tesserati[],5,FALSE)) ->  | F71: =IF(ISERROR(VLOOKUP(A71,tesserati[],7,FALSE)),"",VLOOKUP(A71,tesserati[],7,FALSE)) -> 
B72: =IF(ISERROR(VLOOKUP(A72,tesserati[],2,FALSE)),"",VLOOKUP(A72,tesserati[],2,FALSE)) ->  | C72: =IF(ISERROR(VLOOKUP(A72,tesserati[],3,FALSE)),"",VLOOKUP(A72,tesserati[],3,FALSE)) ->  | D72: =IF(ISERROR(VLOOKUP(A72,tesserati[],4,FALSE)),"",VLOOKUP(A72,tesserati[],4,FALSE)) ->  | E72: =IF(ISERROR(VLOOKUP(A72,tesserati[],5,FALSE)),"",VLOOKUP(A72,tesserati[],5,FALSE)) ->  | F72: =IF(ISERROR(VLOOKUP(A72,tesserati[],7,FALSE)),"",VLOOKUP(A72,tesserati[],7,FALSE)) -> 

Sheet SVEDESE ASS FEM
C1: MANIFESTAZIONE | F1: LOCALITA' | I1: SOCIETA' ORGANIZZATRICE
C2: 6° prova provinciale | F2: Tezze sul Brenta | I2: CSI Tezze sul Brenta
A3: CATEGORIA | C3: ORA INIZIO | D3: ORA FINE | F3: GARA | I3: DATA
A4: ASS F | F4: SVEDESE | I4: 2017-09-24
A6: N. tessera | B6: ATLETA COGNOME E NOME | D6: SOCIETA' | E6: NASCITA | F6: CATEGORIA | G6: Corsia | H6: PETTORALE | I6: Tempo | J6: Piazzamento | K6: PUNTI | L6: CL.
A8: 1 SERIE | B8: =IF(ISERROR(VLOOKUP(A8,tesserati[],2,FALSE)),"",VLOOKUP(A8,tesserati[],2,FALSE)) ->  | C8: =IF(ISERROR(VLOOKUP(A8,tesserati[],3,FALSE)),"",VLOOKUP(A8,tesserati[],3,FALSE)) ->  | D8: =IF(ISERROR(VLOOKUP(#REF!,tesserati[],5,FALSE)),"",VLOOKUP(#REF!,tesserati[],5,FALSE)) ->  | E8: =IF(ISERROR(VLOOKUP(A8,tesserati[],4,FALSE)),"",VLOOKUP(A8,tesserati[],4,FALSE)) ->  | F8: =IF(ISERROR(VLOOKUP(A8,tesserati[],7,FALSE)),"",VLOOKUP(A8,tesserati[],7,FALSE)) -> 
A9: 3122 | B9: =IF(ISERROR(VLOOKUP(A9,tesserati[],2,FALSE)),"",VLOOKUP(A9,tesserati[],2,FALSE)) -> GRIGNOLO | C9: =IF(ISERROR(VLOOKUP(A9,tesserati[],3,FALSE)),"",VLOOKUP(A9,tesserati[],3,FALSE)) -> ALESSIA | D9: =IF(ISERROR(VLOOKUP(A9,tesserati[],4,FALSE)),"",VLOOKUP(A9,tesserati[],4,FALSE)) -> ATLETICA UNION CREAZZO | E9: =IF(ISERROR(VLOOKUP(A9,tesserati[],5,FALSE)),"",VLOOKUP(A9,tesserati[],5,FALSE)) -> 2000 | F9: =IF(ISERROR(VLOOKUP(A9,tesserati[],7,FALSE)),"",VLOOKUP(A9,tesserati[],7,FALSE)) -> AF | G9: 1 | H9: 25 | I9: 2,36.6 | J9: 1
A10: 3123 | B10: =IF(ISERROR(VLOOKUP(A10,tesserati[],2,FALSE)),"",VLOOKUP(A10,tesserati[],2,FALSE)) -> URBANI | C10: =IF(ISERROR(VLOOKUP(A10,tesserati[],3,FALSE)),"",VLOOKUP(A10,tesserati[],3,FALSE)) -> CATERINA | D10: =IF(ISERROR(VLOOKUP(A10,tesserati[],4,FALSE)),"",VLOOKUP(A10,tesserati[],4,FALSE)) -> ATLETICA UNION CREAZZO | E10: =IF(ISERROR(VLOOKUP(A10,tesserati[],5,FALSE)),"",VLOOKUP(A10,tesserati[],5,FALSE)) -> 2000 | F10: =IF(ISERROR(VLOOKUP(A10,tesserati[],7,FALSE)),"",VLOOKUP(A10,tesserati[],7,FALSE)) -> AF
A11: 1956 | B11: =IF(ISERROR(VLOOKUP(A11,tesserati[],2,FALSE)),"",VLOOKUP(A11,tesserati[],2,FALSE)) -> MARAN | C11: =IF(ISERROR(VLOOKUP(A11,tesserati[],3,FALSE)),"",VLOOKUP(A11,tesserati[],3,FALSE)) -> ELISABETTA | D11: =IF(ISERROR(VLOOKUP(A11,tesserati[],4,FALSE)),"",VLOOKUP(A11,tesserati[],4,FALSE)) -> ATLETICA UNION CREAZZO | E11: =IF(ISERROR(VLOOKUP(A11,tesserati[],5,FALSE)),"",VLOOKUP(A11,tesserati[],5,FALSE)) -> 1992 | F11: =IF(ISERROR(VLOOKUP(A11,tesserati[],7,FALSE)),"",VLOOKUP(A11,tesserati[],7,FALSE)) -> SF
A12: 2958 | B12: =IF(ISERROR(VLOOKUP(A12,tesserati[],2,FALSE)),"",VLOOKUP(A12,tesserati[],2,FALSE)) -> CATTANI | C12: =IF(ISERROR(VLOOKUP(A12,tesserati[],3,FALSE)),"",VLOOKUP(A12,tesserati[],3,FALSE)) -> LEILA | D12: =IF(ISERROR(VLOOKUP(A12,tesserati[],4,FALSE)),"",VLOOKUP(A12,tesserati[],4,FALSE)) -> ATLETICA UNION CREAZZO | E12: =IF(ISERROR(VLOOKUP(A12,tesserati[],5,FALSE)),"",VLOOKUP(A12,tesserati[],5,FALSE)) -> 2001 | F12: =IF(ISERROR(VLOOKUP(A12,tesserati[],7,FALSE)),"",VLOOKUP(A12,tesserati[],7,FALSE)) -> AF
A13: 4004 | B13: =IF(ISERROR(VLOOKUP(A13,tesserati[],2,FALSE)),"",VLOOKUP(A13,tesserati[],2,FALSE)) -> RIGHI | C13: =IF(ISERROR(VLOOKUP(A13,tesserati[],3,FALSE)),"",VLOOKUP(A13,tesserati[],3,FALSE)) -> ELENA | D13: =IF(ISERROR(VLOOKUP(A13,tesserati[],4,FALSE)),"",VLOOKUP(A13,tesserati[],4,FALSE)) -> POLISPORTIVA DUEVILLE | E13: =IF(ISERROR(VLOOKUP(A13,tesserati[],5,FALSE)),"",VLOOKUP(A13,tesserati[],5,FALSE)) -> 1968 | F13: =IF(ISERROR(VLOOKUP(A13,tesserati[],7,FALSE)),"",VLOOKUP(A13,tesserati[],7,FALSE)) -> ABF | G13: 2 | H13: 83 | I13: 2,45.4 | J13: 2
A14: 3336 | B14: =IF(ISERROR(VLOOKUP(A14,tesserati[],2,FALSE)),"",VLOOKUP(A14,tesserati[],2,FALSE)) -> GONELLA | C14: =IF(ISERROR(VLOOKUP(A14,tesserati[],3,FALSE)),"",VLOOKUP(A14,tesserati[],3,FALSE)) -> CLAUDIA | D14: =IF(ISERROR(VLOOKUP(A14,tesserati[],4,FALSE)),"",VLOOKUP(A14,tesserati[],4,FALSE)) -> POLISPORTIVA DUEVILLE | E14: =IF(ISERROR(VLOOKUP(A14,tesserati[],5,FALSE)),"",VLOOKUP(A14,tesserati[],5,FALSE)) -> 1966 | F14: =IF(ISERROR(VLOOKUP(A14,tesserati[],7,FALSE)),"",VLOOKUP(A14,tesserati[],7,FALSE)) -> ABF
A15: 3956 | B15: =IF(ISERROR(VLOOKUP(A15,tesserati[],2,FALSE)),"",VLOOKUP(A15,tesserati[],2,FALSE)) -> CRISTOFORI | C15: =IF(ISERROR(VLOOKUP(A15,tesserati[],3,FALSE)),"",VLOOKUP(A15,tesserati[],3,FALSE)) -> SARA | D15: =IF(ISERROR(VLOOKUP(A15,tesserati[],4,FALSE)),"",VLOOKUP(A15,tesserati[],4,FALSE)) -> POLISPORTIVA DUEVILLE | E15: =IF(ISERROR(VLOOKUP(A15,tesserati[],5,FALSE)),"",VLOOKUP(A15,tesserati[],5,FALSE)) -> 2000 | F15: =IF(ISERROR(VLOOKUP(A15,tesserati[],7,FALSE)),"",VLOOKUP(A15,tesserati[],7,FALSE)) -> AF
A16: 4035 | B16: =IF(ISERROR(VLOOKUP(A16,tesserati[],2,FALSE)),"",VLOOKUP(A16,tesserati[],2,FALSE)) -> FASSINA | C16: =IF(ISERROR(VLOOKUP(A16,tesserati[],3,FALSE)),"",VLOOKUP(A16,tesserati[],3,FALSE)) -> ALESSANDRA | D16: =IF(ISERROR(VLOOKUP(A16,tesserati[],4,FALSE)),"",VLOOKUP(A16,tesserati[],4,FALSE)) -> POLISPORTIVA DUEVILLE | E16: =IF(ISERROR(VLOOKUP(A16,tesserati[],5,FALSE)),"",VLOOKUP(A16,tesserati[],5,FALSE)) -> 2001 | F16: =IF(ISERROR(VLOOKUP(A16,tesserati[],7,FALSE)),"",VLOOKUP(A16,tesserati[],7,FALSE)) -> AF
A17: 2974 | B17: =IF(ISERROR(VLOOKUP(A17,tesserati[],2,FALSE)),"",VLOOKUP(A17,tesserati[],2,FALSE)) -> GASPARI | C17: =IF(ISERROR(VLOOKUP(A17,tesserati[],3,FALSE)),"",VLOOKUP(A17,tesserati[],3,FALSE)) -> NADIA | D17: =IF(ISERROR(VLOOKUP(A17,tesserati[],4,FALSE)),"",VLOOKUP(A17,tesserati[],4,FALSE)) -> ATLETICA UNION CREAZZO | E17: =IF(ISERROR(VLOOKUP(A17,tesserati[],5,FALSE)),"",VLOOKUP(A17,tesserati[],5,FALSE)) -> 1970 | F17: =IF(ISERROR(VLOOKUP(A17,tesserati[],7,FALSE)),"",VLOOKUP(A17,tesserati[],7,FALSE)) -> ABF | G17: 3 | H17: 6 | I17: 2,56.3 | J17: 3
A18: 2951 | B18: =IF(ISERROR(VLOOKUP(A18,tesserati[],2,FALSE)),"",VLOOKUP(A18,tesserati[],2,FALSE)) -> BEVILACQUA | C18: =IF(ISERROR(VLOOKUP(A18,tesserati[],3,FALSE)),"",VLOOKUP(A18,tesserati[],3,FALSE)) -> DINA | D18: =IF(ISERROR(VLOOKUP(A18,tesserati[],4,FALSE)),"",VLOOKUP(A18,tesserati[],4,FALSE)) -> ATLETICA UNION CREAZZO | E18: =IF(ISERROR(VLOOKUP(A18,tesserati[],5,FALSE)),"",VLOOKUP(A18,tesserati[],5,FALSE)) -> 1965 | F18: =IF(ISERROR(VLOOKUP(A18,tesserati[],7,FALSE)),"",VLOOKUP(A18,tesserati[],7,FALSE)) -> ABF
A19: 4750 | B19: =IF(ISERROR(VLOOKUP(A19,tesserati[],2,FALSE)),"",VLOOKUP(A19,tesserati[],2,FALSE)) -> GIANELLO | C19: =IF(ISERROR(VLOOKUP(A19,tesserati[],3,FALSE)),"",VLOOKUP(A19,tesserati[],3,FALSE)) -> EVELIN | D19: =IF(ISERROR(VLOOKUP(A19,tesserati[],4,FALSE)),"",VLOOKUP(A19,tesserati[],4,FALSE)) -> ATLETICA UNION CREAZZO | E19: =IF(ISERROR(VLOOKUP(A19,tesserati[],5,FALSE)),"",VLOOKUP(A19,tesserati[],5,FALSE)) -> 1971 | F19: =IF(ISERROR(VLOOKUP(A19,tesserati[],7,FALSE)),"",VLOOKUP(A19,tesserati[],7,FALSE)) -> ABF
A20: 3025 | B20: =IF(ISERROR(VLOOKUP(A20,tesserati[],2,FALSE)),"",VLOOKUP(A20,tesserati[],2,FALSE)) -> ZERBINATI | C20: =IF(ISERROR(VLOOKUP(A20,tesserati[],3,FALSE)),"",VLOOKUP(A20,tesserati[],3,FALSE)) -> SARA | D20: =IF(ISERROR(VLOOKUP(A20,tesserati[],4,FALSE)),"",VLOOKUP(A20,tesserati[],4,FALSE)) -> ATLETICA UNION CREAZZO | E20: =IF(ISERROR(VLOOKUP(A20,tesserati[],5,FALSE)),"",VLOOKUP(A20,tesserati[],5,FALSE)) -> 1978 | F20: =IF(ISERROR(VLOOKUP(A20,tesserati[],7,FALSE)),"",VLOOKUP(A20,tesserati[],7,FALSE)) -> AAF
B21: =IF(ISERROR(VLOOKUP(A21,tesserati[],2,FALSE)),"",VLOOKUP(A21,tesserati[],2,FALSE)) ->  | C21: =IF(ISERROR(VLOOKUP(A21,tesserati[],3,FALSE)),"",VLOOKUP(A21,tesserati[],3,FALSE)) ->  | D21: =IF(ISERROR(VLOOKUP(A21,tesserati[],4,FALSE)),"",VLOOKUP(A21,tesserati[],4,FALSE)) ->  | E21: =IF(ISERROR(VLOOKUP(A21,tesserati[],5,FALSE)),"",VLOOKUP(A21,tesserati[],5,FALSE)) ->  | F21: =IF(ISERROR(VLOOKUP(A21,tesserati[],7,FALSE)),"",VLOOKUP(A21,tesserati[],7,FALSE)) -> 
B22: =IF(ISERROR(VLOOKUP(A22,tesserati[],2,FALSE)),"",VLOOKUP(A22,tesserati[],2,FALSE)) ->  | C22: =IF(ISERROR(VLOOKUP(A22,tesserati[],3,FALSE)),"",VLOOKUP(A22,tesserati[],3,FALSE)) ->  | D22: =IF(ISERROR(VLOOKUP(A22,tesserati[],4,FALSE)),"",VLOOKUP(A22,tesserati[],4,FALSE)) ->  | E22: =IF(ISERROR(VLOOKUP(A22,tesserati[],5,FALSE)),"",VLOOKUP(A22,tesserati[],5,FALSE)) ->  | F22: =IF(ISERROR(VLOOKUP(A22,tesserati[],7,FALSE)),"",VLOOKUP(A22,tesserati[],7,FALSE)) -> 
B23: =IF(ISERROR(VLOOKUP(A23,tesserati[],2,FALSE)),"",VLOOKUP(A23,tesserati[],2,FALSE)) ->  | C23: =IF(ISERROR(VLOOKUP(A23,tesserati[],3,FALSE)),"",VLOOKUP(A23,tesserati[],3,FALSE)) ->  | D23: =IF(ISERROR(VLOOKUP(A23,tesserati[],4,FALSE)),"",VLOOKUP(A23,tesserati[],4,FALSE)) ->  | E23: =IF(ISERROR(VLOOKUP(A23,tesserati[],5,FALSE)),"",VLOOKUP(A23,tesserati[],5,FALSE)) ->  | F23: =IF(ISERROR(VLOOKUP(A23,tesserati[],7,FALSE)),"",VLOOKUP(A23,tesserati[],7,FALSE)) -> 
B24: =IF(ISERROR(VLOOKUP(A24,tesserati[],2,FALSE)),"",VLOOKUP(A24,tesserati[],2,FALSE)) ->  | C24: =IF(ISERROR(VLOOKUP(A24,tesserati[],3,FALSE)),"",VLOOKUP(A24,tesserati[],3,FALSE)) ->  | D24: =IF(ISERROR(VLOOKUP(A24,tesserati[],4,FALSE)),"",VLOOKUP(A24,tesserati[],4,FALSE)) ->  | E24: =IF(ISERROR(VLOOKUP(A24,tesserati[],5,FALSE)),"",VLOOKUP(A24,tesserati[],5,FALSE)) ->  | F24: =IF(ISERROR(VLOOKUP(A24,tesserati[],7,FALSE)),"",VLOOKUP(A24,tesserati[],7,FALSE)) -> 
B25: =IF(ISERROR(VLOOKUP(A25,tesserati[],2,FALSE)),"",VLOOKUP(A25,tesserati[],2,FALSE)) ->  | C25: =IF(ISERROR(VLOOKUP(A25,tesserati[],3,FALSE)),"",VLOOKUP(A25,tesserati[],3,FALSE)) ->  | D25: =IF(ISERROR(VLOOKUP(A25,tesserati[],4,FALSE)),"",VLOOKUP(A25,tesserati[],4,FALSE)) ->  | E25: =IF(ISERROR(VLOOKUP(A25,tesserati[],5,FALSE)),"",VLOOKUP(A25,tesserati[],5,FALSE)) ->  | F25: =IF(ISERROR(VLOOKUP(A25,tesserati[],7,FALSE)),"",VLOOKUP(A25,tesserati[],7,FALSE)) -> 
B26: =IF(ISERROR(VLOOKUP(A26,tesserati[],2,FALSE)),"",VLOOKUP(A26,tesserati[],2,FALSE)) ->  | C26: =IF(ISERROR(VLOOKUP(A26,tesserati[],3,FALSE)),"",VLOOKUP(A26,tesserati[],3,FALSE)) ->  | D26: =IF(ISERROR(VLOOKUP(A26,tesserati[],4,FALSE)),"",VLOOKUP(A26,tesserati[],4,FALSE)) ->  | E26: =IF(ISERROR(VLOOKUP(A26,tesserati[],5,FALSE)),"",VLOOKUP(A26,tesserati[],5,FALSE)) ->  | F26: =IF(ISERROR(VLOOKUP(A26,tesserati[],7,FALSE)),"",VLOOKUP(A26,tesserati[],7,FALSE)) -> 
B27: =IF(ISERROR(VLOOKUP(A27,tesserati[],2,FALSE)),"",VLOOKUP(A27,tesserati[],2,FALSE)) ->  | C27: =IF(ISERROR(VLOOKUP(A27,tesserati[],3,FALSE)),"",VLOOKUP(A27,tesserati[],3,FALSE)) ->  | D27: =IF(ISERROR(VLOOKUP(A27,tesserati[],4,FALSE)),"",VLOOKUP(A27,tesserati[],4,FALSE)) ->  | E27: =IF(ISERROR(VLOOKUP(A27,tesserati[],5,FALSE)),"",VLOOKUP(A27,tesserati[],5,FALSE)) ->  | F27: =IF(ISERROR(VLOOKUP(A27,tesserati[],7,FALSE)),"",VLOOKUP(A27,tesserati[],7,FALSE)) -> 
B28: =IF(ISERROR(VLOOKUP(A28,tesserati[],2,FALSE)),"",VLOOKUP(A28,tesserati[],2,FALSE)) ->  | C28: =IF(ISERROR(VLOOKUP(A28,tesserati[],3,FALSE)),"",VLOOKUP(A28,tesserati[],3,FALSE)) ->  | D28: =IF(ISERROR(VLOOKUP(A28,tesserati[],4,FALSE)),"",VLOOKUP(A28,tesserati[],4,FALSE)) ->  | E28: =IF(ISERROR(VLOOKUP(A28,tesserati[],5,FALSE)),"",VLOOKUP(A28,tesserati[],5,FALSE)) ->  | F28: =IF(ISERROR(VLOOKUP(A28,tesserati[],7,FALSE)),"",VLOOKUP(A28,tesserati[],7,FALSE)) -> 
B29: =IF(ISERROR(VLOOKUP(A29,tesserati[],2,FALSE)),"",VLOOKUP(A29,tesserati[],2,FALSE)) ->  | C29: =IF(ISERROR(VLOOKUP(A29,tesserati[],3,FALSE)),"",VLOOKUP(A29,tesserati[],3,FALSE)) ->  | D29: =IF(ISERROR(VLOOKUP(A29,tesserati[],4,FALSE)),"",VLOOKUP(A29,tesserati[],4,FALSE)) ->  | E29: =IF(ISERROR(VLOOKUP(A29,tesserati[],5,FALSE)),"",VLOOKUP(A29,tesserati[],5,FALSE)) ->  | F29: =IF(ISERROR(VLOOKUP(A29,tesserati[],7,FALSE)),"",VLOOKUP(A29,tesserati[],7,FALSE)) -> 
B30: =IF(ISERROR(VLOOKUP(A30,tesserati[],2,FALSE)),"",VLOOKUP(A30,tesserati[],2,FALSE)) ->  | C30: =IF(ISERROR(VLOOKUP(A30,tesserati[],3,FALSE)),"",VLOOKUP(A30,tesserati[],3,FALSE)) ->  | D30: =IF(ISERROR(VLOOKUP(A30,tesserati[],4,FALSE)),"",VLOOKUP(A30,tesserati[],4,FALSE)) ->  | E30: =IF(ISERROR(VLOOKUP(A30,tesserati[],5,FALSE)),"",VLOOKUP(A30,tesserati[],5,FALSE)) ->  | F30: =IF(ISERROR(VLOOKUP(A30,tesserati[],7,FALSE)),"",VLOOKUP(A30,tesserati[],7,FALSE)) -> 
B31: =IF(ISERROR(VLOOKUP(A31,tesserati[],2,FALSE)),"",VLOOKUP(A31,tesserati[],2,FALSE)) ->  | C31: =IF(ISERROR(VLOOKUP(A31,tesserati[],3,FALSE)),"",VLOOKUP(A31,tesserati[],3,FALSE)) ->  | D31: =IF(ISERROR(VLOOKUP(A31,tesserati[],4,FALSE)),"",VLOOKUP(A31,tesserati[],4,FALSE)) ->  | E31: =IF(ISERROR(VLOOKUP(A31,tesserati[],5,FALSE)),"",VLOOKUP(A31,tesserati[],5,FALSE)) ->  | F31: =IF(ISERROR(VLOOKUP(A31,tesserati[],7,FALSE)),"",VLOOKUP(A31,tesserati[],7,FALSE)) -> 
B32: =IF(ISERROR(VLOOKUP(A32,tesserati[],2,FALSE)),"",VLOOKUP(A32,tesserati[],2,FALSE)) ->  | C32: =IF(ISERROR(VLOOKUP(A32,tesserati[],3,FALSE)),"",VLOOKUP(A32,tesserati[],3,FALSE)) ->  | D32: =IF(ISERROR(VLOOKUP(A32,tesserati[],4,FALSE)),"",VLOOKUP(A32,tesserati[],4,FALSE)) ->  | E32: =IF(ISERROR(VLOOKUP(A32,tesserati[],5,FALSE)),"",VLOOKUP(A32,tesserati[],5,FALSE)) ->  | F32: =IF(ISERROR(VLOOKUP(A32,tesserati[],7,FALSE)),"",VLOOKUP(A32,tesserati[],7,FALSE)) -> 
A33: 2 SERIE
B34: =IF(ISERROR(VLOOKUP(A34,tesserati[],2,FALSE)),"",VLOOKUP(A34,tesserati[],2,FALSE)) ->  | C34: =IF(ISERROR(VLOOKUP(A34,tesserati[],3,FALSE)),"",VLOOKUP(A34,tesserati[],3,FALSE)) ->  | D34: =IF(ISERROR(VLOOKUP(A34,tesserati[],4,FALSE)),"",VLOOKUP(A34,tesserati[],4,FALSE)) ->  | E34: =IF(ISERROR(VLOOKUP(A34,tesserati[],5,FALSE)),"",VLOOKUP(A34,tesserati[],5,FALSE)) ->  | F34: =IF(ISERROR(VLOOKUP(A34,tesserati[],7,FALSE)),"",VLOOKUP(A34,tesserati[],7,FALSE)) ->  | G34: 1
B35: =IF(ISERROR(VLOOKUP(A35,tesserati[],2,FALSE)),"",VLOOKUP(A35,tesserati[],2,FALSE)) ->  | C35: =IF(ISERROR(VLOOKUP(A35,tesserati[],3,FALSE)),"",VLOOKUP(A35,tesserati[],3,FALSE)) ->  | D35: =IF(ISERROR(VLOOKUP(A35,tesserati[],4,FALSE)),"",VLOOKUP(A35,tesserati[],4,FALSE)) ->  | E35: =IF(ISERROR(VLOOKUP(A35,tesserati[],5,FALSE)),"",VLOOKUP(A35,tesserati[],5,FALSE)) ->  | F35: =IF(ISERROR(VLOOKUP(A35,tesserati[],7,FALSE)),"",VLOOKUP(A35,tesserati[],7,FALSE)) -> 
B36: =IF(ISERROR(VLOOKUP(A36,tesserati[],2,FALSE)),"",VLOOKUP(A36,tesserati[],2,FALSE)) ->  | C36: =IF(ISERROR(VLOOKUP(A36,tesserati[],3,FALSE)),"",VLOOKUP(A36,tesserati[],3,FALSE)) ->  | D36: =IF(ISERROR(VLOOKUP(A36,tesserati[],4,FALSE)),"",VLOOKUP(A36,tesserati[],4,FALSE)) ->  | E36: =IF(ISERROR(VLOOKUP(A36,tesserati[],5,FALSE)),"",VLOOKUP(A36,tesserati[],5,FALSE)) ->  | F36: =IF(ISERROR(VLOOKUP(A36,tesserati[],7,FALSE)),"",VLOOKUP(A36,tesserati[],7,FALSE)) -> 
B37: =IF(ISERROR(VLOOKUP(A37,tesserati[],2,FALSE)),"",VLOOKUP(A37,tesserati[],2,FALSE)) ->  | C37: =IF(ISERROR(VLOOKUP(A37,tesserati[],3,FALSE)),"",VLOOKUP(A37,tesserati[],3,FALSE)) ->  | D37: =IF(ISERROR(VLOOKUP(A37,tesserati[],4,FALSE)),"",VLOOKUP(A37,tesserati[],4,FALSE)) ->  | E37: =IF(ISERROR(VLOOKUP(A37,tesserati[],5,FALSE)),"",VLOOKUP(A37,tesserati[],5,FALSE)) ->  | F37: =IF(ISERROR(VLOOKUP(A37,tesserati[],7,FALSE)),"",VLOOKUP(A37,tesserati[],7,FALSE)) -> 
B38: =IF(ISERROR(VLOOKUP(A38,tesserati[],2,FALSE)),"",VLOOKUP(A38,tesserati[],2,FALSE)) ->  | C38: =IF(ISERROR(VLOOKUP(A38,tesserati[],3,FALSE)),"",VLOOKUP(A38,tesserati[],3,FALSE)) ->  | D38: =IF(ISERROR(VLOOKUP(A38,tesserati[],4,FALSE)),"",VLOOKUP(A38,tesserati[],4,FALSE)) ->  | E38: =IF(ISERROR(VLOOKUP(A38,tesserati[],5,FALSE)),"",VLOOKUP(A38,tesserati[],5,FALSE)) ->  | F38: =IF(ISERROR(VLOOKUP(A38,tesserati[],7,FALSE)),"",VLOOKUP(A38,tesserati[],7,FALSE)) ->  | G38: 2
B39: =IF(ISERROR(VLOOKUP(A39,tesserati[],2,FALSE)),"",VLOOKUP(A39,tesserati[],2,FALSE)) ->  | C39: =IF(ISERROR(VLOOKUP(A39,tesserati[],3,FALSE)),"",VLOOKUP(A39,tesserati[],3,FALSE)) ->  | D39: =IF(ISERROR(VLOOKUP(A39,tesserati[],4,FALSE)),"",VLOOKUP(A39,tesserati[],4,FALSE)) ->  | E39: =IF(ISERROR(VLOOKUP(A39,tesserati[],5,FALSE)),"",VLOOKUP(A39,tesserati[],5,FALSE)) ->  | F39: =IF(ISERROR(VLOOKUP(A39,tesserati[],7,FALSE)),"",VLOOKUP(A39,tesserati[],7,FALSE)) -> 
B40: =IF(ISERROR(VLOOKUP(A40,tesserati[],2,FALSE)),"",VLOOKUP(A40,tesserati[],2,FALSE)) ->  | C40: =IF(ISERROR(VLOOKUP(A40,tesserati[],3,FALSE)),"",VLOOKUP(A40,tesserati[],3,FALSE)) ->  | D40: =IF(ISERROR(VLOOKUP(A40,tesserati[],4,FALSE)),"",VLOOKUP(A40,tesserati[],4,FALSE)) ->  | E40: =IF(ISERROR(VLOOKUP(A40,tesserati[],5,FALSE)),"",VLOOKUP(A40,tesserati[],5,FALSE)) ->  | F40: =IF(ISERROR(VLOOKUP(A40,tesserati[],7,FALSE)),"",VLOOKUP(A40,tesserati[],7,FALSE)) -> 
B41: =IF(ISERROR(VLOOKUP(A41,tesserati[],2,FALSE)),"",VLOOKUP(A41,tesserati[],2,FALSE)) ->  | C41: =IF(ISERROR(VLOOKUP(A41,tesserati[],3,FALSE)),"",VLOOKUP(A41,tesserati[],3,FALSE)) ->  | D41: =IF(ISERROR(VLOOKUP(A41,tesserati[],4,FALSE)),"",VLOOKUP(A41,tesserati[],4,FALSE)) ->  | E41: =IF(ISERROR(VLOOKUP(A41,tesserati[],5,FALSE)),"",VLOOKUP(A41,tesserati[],5,FALSE)) ->  | F41: =IF(ISERROR(VLOOKUP(A41,tesserati[],7,FALSE)),"",VLOOKUP(A41,tesserati[],7,FALSE)) -> 
B42: =IF(ISERROR(VLOOKUP(A42,tesserati[],2,FALSE)),"",VLOOKUP(A42,tesserati[],2,FALSE)) ->  | C42: =IF(ISERROR(VLOOKUP(A42,tesserati[],3,FALSE)),"",VLOOKUP(A42,tesserati[],3,FALSE)) ->  | D42: =IF(ISERROR(VLOOKUP(A42,tesserati[],4,FALSE)),"",VLOOKUP(A42,tesserati[],4,FALSE)) ->  | E42: =IF(ISERROR(VLOOKUP(A42,tesserati[],5,FALSE)),"",VLOOKUP(A42,tesserati[],5,FALSE)) ->  | F42: =IF(ISERROR(VLOOKUP(A42,tesserati[],7,FALSE)),"",VLOOKUP(A42,tesserati[],7,FALSE)) ->  | G42: 3
B43: =IF(ISERROR(VLOOKUP(A43,tesserati[],2,FALSE)),"",VLOOKUP(A43,tesserati[],2,FALSE)) ->  | C43: =IF(ISERROR(VLOOKUP(A43,tesserati[],3,FALSE)),"",VLOOKUP(A43,tesserati[],3,FALSE)) ->  | D43: =IF(ISERROR(VLOOKUP(A43,tesserati[],4,FALSE)),"",VLOOKUP(A43,tesserati[],4,FALSE)) ->  | E43: =IF(ISERROR(VLOOKUP(A43,tesserati[],5,FALSE)),"",VLOOKUP(A43,tesserati[],5,FALSE)) ->  | F43: =IF(ISERROR(VLOOKUP(A43,tesserati[],7,FALSE)),"",VLOOKUP(A43,tesserati[],7,FALSE)) -> 
B44: =IF(ISERROR(VLOOKUP(A44,tesserati[],2,FALSE)),"",VLOOKUP(A44,tesserati[],2,FALSE)) ->  | C44: =IF(ISERROR(VLOOKUP(A44,tesserati[],3,FALSE)),"",VLOOKUP(A44,tesserati[],3,FALSE)) ->  | D44: =IF(ISERROR(VLOOKUP(A44,tesserati[],4,FALSE)),"",VLOOKUP(A44,tesserati[],4,FALSE)) ->  | E44: =IF(ISERROR(VLOOKUP(A44,tesserati[],5,FALSE)),"",VLOOKUP(A44,tesserati[],5,FALSE)) ->  | F44: =IF(ISERROR(VLOOKUP(A44,tesserati[],7,FALSE)),"",VLOOKUP(A44,tesserati[],7,FALSE)) -> 
